Workbook

Sheet LDC Info
Z3: 1 | AA3: Algoma Power Inc.
Z4: 2 | AA4: Atikokan Hydro Inc.
Z5: 3 | AA5: Attawapiskat Power Corporation
Z6: 4 | AA6: Bluewater Power Distribution Corporation
Z7: 5 | AA7: Brantford Power Inc.
Z8: 6 | AA8: Burlington Hydro Inc.
Z9: 7 | AA9: Canadian Niagara Power Inc.
Z10: 8 | AA10: Centre Wellington Hydro Ltd.
Z11: 9 | AA11: Chapleau Public Utilities Corporation
Z12: 10 | AA12: COLLUS PowerStream Corp.
Z13: 11 | AA13: Cooperative Hydro Embrun Inc.
D14: Utility Name | Z14: 12 | AA14: E.L.K. Energy Inc.
Z15: 13 | AA15: Energy + Inc.
D16: Assigned EB Number | Z16: 14 | AA16: Enersource Hydro Mississauga Inc.
Z17: 15 | AA17: Entegrus Powerlines Inc.
D18: Name of Contact and Title | Z18: 16 | AA18: ENWIN Utilities Ltd.
Z19: 17 | AA19: Erie Thames Powerlines Corporation
D20: Phone Number | Z20: 18 | AA20: Espanola Regional Hydro Distribution Corporation
Z21: 19 | AA21: Essex Powerlines Corporation
D22: Email Address | Z22: 20 | AA22: Festival Hydro Inc.
Z23: 21 | AA23: Fort Albany Power Corporation
D24: Test Year | E24: 2018 | Z24: 22 | AA24: Fort Frances Power Corporation
Z25: 23 | AA25: Greater Sudbury Hydro Inc.
D26: Bridge Year | E26: =IF(ISBLANK(E24), "", E24-1) -> 2017 | Z26: 24 | AA26: Grimsby Power Inc.
Z27: 25 | AA27: Guelph Hydro Electric Systems Inc.
D28: Last Rebasing Year | E28: 2014 | Z28: 26 | AA28: Haldimand County Hydro Inc.
Z29: 27 | AA29: Halton Hills Hydro Inc.
A30: Identify the accounting standard used for the test year | Z30: 28 | AA30: Hearst Power Distribution Company Limited
Z31: 29 | AA31: Horizon Utilities Corporation
Z32: 30 | AA32: Hydro 2000 Inc.
A33: Did you update your depreciation and capitalization policies and reflect the changes in policies in a prior rebasing application? | Z33: 31 | AA33: Hydro Hawkesbury Inc.
Z34: 32 | AA34: Hydro One Brampton Networks Inc.
Z35: 33 | AA35: Hydro One Networks Inc.
A36: When did you update your actual depreciation and capitalization policies? | Z36: 34 | AA36: Hydro One Networks Inc. - Norfolk
E37: 2001-01-01 | Z37: 35 | AA37: Hydro One Remote Communities Inc.
Z38: 36 | AA38: Hydro Ottawa Limited
A39: Identify the year the applicant adopted IFRS for financial reporting purposes | Z39: 37 | AA39: Innpower Corporation
Z40: 38 | AA40: Kashechewan Power Corporation
Z41: 39 | AA41: Kenora Hydro Electric Corporation Ltd.
Z42: 40 | AA42: Kingston Hydro Corporation
A43: Are you applying for cost recovery for the test and/or future year(s) for Green Energy initiatives? | Z43: 41 | AA43: Kitchener-Wilmot Hydro Inc.
Z44: 42 | AA44: Lakefront Utilities Inc.
Z45: 43 | AA45: Lakeland Power Distribution Ltd.
A46: ="Is " & E14 & " an embedded distributor?" -> Is an embedded distributor? | Z46: 44 | AA46: London Hydro Inc.
Z47: 45 | AA47: Midland Power Utility Corporation
Z48: 46 | AA48: Milton Hydro Distribution Inc.
B49: Notes | Z49: 47 | AA49: Newmarket-Tay Power Distribution Ltd.
Z50: 48 | AA50: Niagara Peninsula Energy Inc.
C51: Pale green cells represent input cells. | Z51: 49 | AA51: Niagara-on-the-Lake Hydro Inc.
Z52: 50 | AA52: North Bay Hydro Distribution Limited
C53: Pale blue cells represent drop-down lists. The applicant should select the appropriate item from the drop-down list. | Z53: 51 | AA53: Northern Ontario Wires Inc.
Z54: 52 | AA54: Oakville Hydro Electricity Distribution Inc.
C55: White cells contain fixed values, automatically generated values or formulae. | N55: =IF(LEN($G55)>1, (SUMPRODUCT(--($C$78:$C$1000=$C55),--($A$78:$A$1000=$D55), --($B$78:$B$1000=$B55&"_TOTAL"), $L$78:$L$1000)), "") ->  | O55: =IF(LEN($G55)>1, (SUMPRODUCT(--($C$78:$C$1000=$C55),--($A$78:$A$1000=$D55), --($B$78:$B$1000=$B55&"_TOTAL"), $M$78:$M$1000)), "") ->  | Z55: 53 | AA55: Orangeville Hydro Limited
N56: =IF(LEN($G56)>1, (SUMPRODUCT(--($C$78:$C$1000=$C56),--($A$78:$A$1000=$D56), --($B$78:$B$1000=$B56&"_TOTAL"), $L$78:$L$1000)), "") ->  | O56: =IF(LEN($G56)>1, (SUMPRODUCT(--($C$78:$C$1000=$C56),--($A$78:$A$1000=$D56), --($B$78:$B$1000=$B56&"_TOTAL"), $M$78:$M$1000)), "") ->  | Z56: 54 | AA56: Orillia Power Distribution Corporation
Z57: 55 | AA57: Oshawa PUC Networks Inc.
Z58: 56 | AA58: Ottawa River Power Corporation
Z59: 57 | AA59: Peterborough Distribution Inc.
Z60: 58 | AA60: PowerStream Inc.
Z61: 59 | AA61: PUC Distribution Inc.
Z62: 60 | AA62: Renfrew Hydro Inc.
Z63: 61 | AA63: Rideau St. Lawrence Distribution Inc.
Z64: 62 | AA64: Sioux Lookout Hydro Inc.
Z65: 63 | AA65: St. Thomas Energy Inc.
Z66: 64 | AA66: Thunder Bay Hydro Electricity Distribution Inc.
Z67: 65 | AA67: Tillsonburg Hydro Inc.
Z68: 66 | AA68: Toronto Hydro-Electric System Limited
Z69: 67 | AA69: Veridian Connections Inc.
Z70: 68 | AA70: Wasaga Distribution Inc.
Z71: 69 | AA71: Waterloo North Hydro Inc.
Z72: 70 | AA72: Welland Hydro-Electric System Corp.
Z73: 71 | AA73: Wellington North Power Inc.
Z74: 72 | AA74: West Coast Huron Energy Inc.
Z75: 73 | AA75: Westario Power Inc.
Z76: 74 | AA76: Whitby Hydro Electric Corporation
Z77: 75 | AA77: Woodstock Hydro Services Inc.

Sheet Index
A15: 1 | B15: LDC Information Sheet | E15: 27 | F15: App.2-G: Service Reliability Indicators
A16: 2 | B16: Index | E16: 28 | F16: App.2-H: Other Operating Revenue
A17: 3 | B17: Cost of Service Application Flowchart | E17: 29 | F17: App.2-I: Load Forecast CDM Adjustment Workform
A18: 4 | B18: List of Key References | E18: 30 | F18: App.2-IA: Load Forecast Data Instructions
A19: 5 | B19: App.2-A: List of Requested Approvals | E19: 31 | F19: App.2-IB: Actual and Forecast Load and Customer Data
A20: 6 | B20: App.2-AA: Capital Projects Table | E20: 32 | F20: App.2-JA: OM&A Summary Analysis
A21: 7 | B21: App.2-AB: Capital Expenditures | E21: 33 | F21: App.2-JB: Recoverable OM&A Cost Driver Table
A22: 8 | B22: App. 2-AC: Customer Engagement Worksheet | E22: 34 | F22: App.2-JC: OM&A Programs Table
A23: 9 | B23: App.2-B: General Accounting Instructions | E23: 35 | F23: App.2-K: Employee Costs
A24: 10 | B24: App.2-BA: Fixed Asset Continuity Schedule | E24: 36 | F24: App.2-KA: OPEBs (Other Post-Employment Benefits) Costs
A25: 11 | B25: Appendix 2-BB: Service Life Comparison | E25: 37 | F25: App.2-L: Recoverable OM&A Cost per Customer and per FTE
A26: 12 | B26: App.2-CA: Year 1 Depreciation and Amortization Expense (Old CGAAP) | E26: 38 | F26: App.2-M: Regulatory Costs Schedule
A27: 13 | B27: App.2-CB: Year 1 Depreciation and Amortization Expense (New CGAAP) | E27: 39 | F27: App.2-N: Shared Services and Corporate Cost Allocation
A28: 14 | B28: App.2-CC: Year 2 Depreciation and Amortization Expense (New CGAAP) | E28: 40 | F28: App.2-OA: Capital Structure and Cost of Capital
A29: 15 | B29: App.2-CD: Year 3 Depreciation and Amortization Expense (New CGAAP or MIFRS) | E29: 41 | F29: App.2-OB: Debt Instruments
A30: 16 | B30: App.2-CE: Year 4 Depreciation and Amortization Expense (MIFRS) | E30: 42 | F30: App.2-Q: Cost of Serving Embedded Distributor(s)
A31: 17 | B31: App.2-CF: Year 5 Depreciation and Amortization Expense (MIFRS) | E31: 43 | F31: App.2-R: Loss Factors
A32: 18 | B32: App.2-CG: Year 6 Depreciation and Amortization Expense (Old CGAAP) | E32: 44 | F32: App.2-S: Stranded Meter Treatment
A33: 19 | B33: App.2-CH: Depreciation and Amortization Expense (MIFRS) | E33: 45 | F33: App.2-Y: Transition to MIFRS Summary Impact
A34: 20 | B34: App.2-D: Overhead Expenses | E34: 46 | F34: App.2-YA: One-Time Incremental IFRS Transition Costs
A35: 21 | B35: App.2-EA: Account 1575 PP&E Deferral Account (2015 IFRS Adopters)
A36: 22 | B36: App.2-EB: Account 1576 - Accounting Changes Under CGAAP (2012 Changes)
A37: 23 | B37: App.2-EC: Account 1576 - Accounting Changes Under CGAAP (2013 Changes)
A38: 24 | B38: App.2-FA: Renewable Generation Connection Investment Summary
A39: 25 | B39: App.2-FB: Calculation of Renewable Generation Connection Direct Benefits/Provincial Amount: Renewable Enabling Improvement Investments
A40: 26 | B40: App.2-FC: Calculation of Renewable Generation Connection Direct Benefits/Provincial Amount: Renewable Expansion Investments
A42: Note: | B42: Appendices for the Tariff of Rates and Charges at Current and Proposed Rates, and for the Bill Impacts are now in a separate spreadsheet model. These appendices were formerly 2-Z and 2-W.

Sheet COS Flowchart
B4: Cost of Service Rate Application Schematic
B6: The Cost of Service Rate Application Schematic is a flowchart that is included as a guide for the components of an application. The schematic demonstrates how demand and costs interrelate to derive the revenue requirement and how the revenue requirement is allocated between classes and through fixed/variable splits to derive rates that will be compensatory for the annual revenue requirement, based on the the forecasted demand. There is no form to be filled out; therefore, this Schedule is not required to be filed.

Sheet List of Key References
B3: List of Key References
A5: A list of key references for understanding the Filing Requirements has been embedded in the document below. To access the list of references and associated hyperlinks double-click the icon below.

Sheet App.2-A_Requested_Approvals
B9: Appendix 2-A
B10: List of Requested Approvals
B12: The distributor must fill out the following sheet with the complete list of specific approvals requested and relevant section(s) of the legislation must be provided. All approvals, including accounting orders (deferral and variance accounts) new rate classes, revised specific service charges or retail service charges which the applicant is seeking, must be separately identified, as well being clearly documented in the appropriate sections of the application.
B14: Additional requests may be added by copying and pasting blank input rows, as needed.
B16: If additional requests arise, or requested approvals are removed, during the processing of the application, the distributor should update this list.
B18: =CONCATENATE('LDC Info'!E14," is seeking the following approvals in this application:") -> is seeking the following approvals in this application:
B20: 1 | F20: Approval to charge distribution rates effective January 1, 2018 to recover a service revenue requirement of $1,107,885 which includes a revenue deficiency of $198,507 as detailed in Exhibit 6. The schedule of proposed rates is set out in Exhibit 8.
B22: 2 | F22: Approval of the Distribution System Plan as outlined in Exhibit 2 Section 2.5.2
B24: 3 | F24: Approval of a revised Microfit monthly service charge as outlined in Exhibit 3 and 8.
B26: 4 | F26: Approval to adjust the Retail Transmission Rates – Network and Connection as detailed in Exhibit 8.
B28: 5 | F28: Approval of the proposed loss factors as detailed in Exhibit 8.
B30: 6 | F30: Approval to continue to charge Wholesale Market and Rural Rate Protection Charges approved in the Board Decision and Order in the matter of CHEI 2017 Distribution Rates (EB-2016-0062).
B32: 7 | F32: Approval to continue the Specific Service Charges, Retail Service Charges, and Transformer Allowance approved in the Board Decision and Order in the matter of CHEI’s 2017 Distribution Rates (EB-2016-0065).
B34: 8 | F34: Approval of the rate riders for a one year disposition of the Group 1 and Group 2 and Other Deferral and Variance Accounts as detailed in Exhibit 9.
B36: 9 | F36: Approval to dispose of balances in the LRAM variance account as presented in Exhibit 9.
B38: 10 | F38: Such other approvals that CHEI may request and that the OEB accepts.

Sheet App.2-AA_Capital Projects
F1: =EBNUMBER -> 0
A9: Appendix 2-AA
A10: Capital Projects Table
A12: Reporting Basis | B12: Reporting Basis | D12: CGAAP | E12: NEWGAAP | F12: NEWGAAP | G12: MIFRS | H12: CGAAP | I12: MIFRS | J12: MIFRS
A13: Projects | B13: Projects | C13: USoA | D13: 2012 | E13: 2013 | F13: 2014 | G13: 2015 | H13: 2016 | I13: 2017 | J13: 2018
A15: System Access | B15: System Access
B16: New O/H and U/G services | C16: 1855 | D16: 5074
B18: New O/H and U/G services | C18: 1855 | E18: 5000
B20: New O/H and U/G services | C20: 1855 | F20: 12464
B21: Subdivision Faubourg Ste-Marie | C21: 1845 | F21: 692811
B22: Subdivision Faubourg Ste-Marie | C22: 1850 | F22: 288934
B23: Pumping Station Ste-Marie | C23: 1830 | F23: 10425
B24: Pumping Station Ste-Marie | C24: 1835 | F24: 10425
B25: Oligo Project East Entrance | C25: 1835 | F25: 6577
B26: Oligo Project West Entrance | C26: 1835 | F26: 5298
B27: Subdivision Faubourg Ste-Marie Relocate pole | C27: 1835 | F27: 20181.5
B28: Line Relocated 950 Notre-Dame | C28: 1835 | F28: 10000
B29: 4th Feeder Cloutier Drive | C29: 1830 | F29: 43996.37
B30: 4th Feeder Cloutier Drive | C30: 1835 | F30: 23362
B31: New Meter | C31: 1860 | F31: 25716
B35: New O/H and U/G services | C35: 1855 | G35: 15074
B36: New Meters | C36: 1860 | G36: 9244
B37: Oligo - Promenade Quatres Saison Project | C37: 1850 | G37: 110238
B38: Oligo - Promenade Quatres Saison Project(Professional Fees) | C38: 1845 | G38: 1864.25
B39: Oligo - Promenade Quatres Saison Project(Engineer) | C39: 1845 | G39: 5898
B40: Oligo - Promenade Quatres Saison Project(Bollards) | C40: 1845 | G40: 30774.2
B41: Oligo - Promenade Quatres Saison Project(Distribution System) | C41: 1845 | G41: 35000
B42: Oligo - Promenade Quatres Saison Project(Distribution System) | C42: 1845 | G42: 54875
B43: Oligo - Promenade Quatres Saison Project(Distribution System) | C43: 1845 | G43: 694
B44: Oligo - Promenade Quatres Saison Project(Distribution System) | C44: 1845 | G44: 525
B45: Enginneer Cost 4th Switching Cabinet | C45: 1820 | G45: 73810
B48: New O/H and U/G services | C48: 1855 | H48: 22175
B49: Facilities to New Bell pole | C49: 1835 | H49: 2230.5
B50: Relocate Span Guy , Down Guy and Overhead Triplex | C50: 1835 | H50: 2342
B51: New Measurement Units | C51: 1860 | H51: 1321.46
B52: Oligo - Promenade Grounding all Metal objects | C52: 1845 | H52: 1905.5
B53: New Meters | C53: 1860 | H53: 5491.8
B54: Engineer Devcor | C54: 1845 | H54: 1069
B55: Consultation ST-Jacques St. (Relocate Line) | C55: 1835 | H55: 1907.46
B56: Relocate 2 U/G service | C56: 1845 | H56: 12877.04
B57: New Meter | C57: 1860 | H57: 507.6
B58: Gateway Communication | C58: 1860 | H58: 558.71
B59: 4th Feeder Ste-Marie | C59: 1830 | H59: 28750
B60: 4th Feeder Ste-Marie | C60: 1835 | H60: 100000
B61: Installed Composite Crossarm | C61: 1835 | H61: 3119.4
B62: Transformer Pharmacie JC | C62: 1850 | H62: 2895
B63: Engineer Cost New Substation | C63: 1820 | H63: 50012.77
B64: Pole Information | C64: 1830 | H64: 3900
B65: Nameplate Pole Number | C65: 1830 | H65: 1125
B66: Pole Information | C66: 1830 | H66: 7524
B67: 4th Feeder Notre-Dame | C67: 1830 | H67: 28000
B68: 4th Feeder Notre-Dame | C68: 1835 | H68: 90850
B69: Load Flow Study | C69: 1835 | H69: 12917.67
B70: Load Flow Study | C70: 1845 | H70: 12917.77
B71: Overhead Amps Verification | C71: 1850 | H71: 2722.5
B72: Transformer Data Collection | C72: 1850 | H72: 2112
B79: New O/H and U/G services | C79: 1855 | I79: 20000
B80: Meters | C80: 1860 | I80: 8000
B81: Versaille III Project | C81: 1850 | I81: 20675
B82: Versaille III Project | C82: 1845 | I82: 160025
B83: New Substation - 1820 | C83: 1820 | I83: 1487396
B84: Engineer Consultant Substation 1820 | C84: 1820 | I84: 30000
B87: New O/H and U/G services | C87: 1855 | J87: 20000
B88: Meters | C88: 1860 | J88: 8000
B89: Replace pole with new 45` | C89: 1830 | J89: 6500
B94: Sub-Total System Access | D94: =SUM(D16:D89) -> 5074 | E94: 5000 | F94: 1150189.87 | G94: 337996.45 | H94: 399232.18 | I94: 1726096 | J94: 34500
A95: Contributed Capital
C96: 1995 | D96: -1600 | E96: -8000 | F96: -905202 | G96: -148144 | H96: -6450 | I96: -132000
B100: Contributed Capital | D100: =SUM(D96:D99) -> -1600 | E100: -8000 | F100: -905202 | G100: -148144 | H100: -6450 | I100: -132000 | J100: 0
A101: Total System Access | B101: Total System Access | D101: =SUM(D94)+SUM(D100) -> 3474 | E101: -3000 | F101: 244987.87 | G101: 189852.45 | H101: 392782.18 | I101: 1594096 | J101: 34500
A104: System Renewal | B104: System Renewal | C104: USoA | D104: 2012 | E104: 2013 | F104: 2014 | G104: 2015 | H104: 2016 | I104: 2017 | J104: 2018
B105: Transformers Program (Elbow and Inserts) | C105: 1850 | G105: 1879.25
B106: Transformers Program (Elbow and Inserts) | C106: 1850 | G106: 12583
B107: Installation culverts | C107: 1820 | G107: 1600
B108: REPLACEMENT ROTTEN POLE 20 Bourrasa | C108: 1830 | G108: 2662.5
B109: REPLACE CONDUCTOR DEVICE 20 Bourrasa | C109: 1835 | G109: 885
B111: Future Addition Transformers and Replacement | C111: 1850 | H111: 10045
B112: Straighten 2 dip poles and installed culvert | C112: 1835 | H112: 12206.58
B113: Transformers Program (Elbow and Inserts) | C113: 1850 | H113: 21844
B115: Transformers Program (Elbow and Inserts) | C115: 1850 | I115: 20000
B117: Pole Repalcement # 11 - 1830 | C117: 1830 | J117: 6800
B118: Pole Repalcement # 48 - 1830 | C118: 1830 | J118: 4500
B119: Pole Repalcement # 81 - 1830 | C119: 1830 | J119: 6500
B120: Pole Repalcement # 108 -1830 | C120: 1830 | J120: 6200
B121: Pole Repalcement # 139 - 1830 | C121: 1830 | J121: 6500
B122: Pole Repalcement # 353 -1830 | C122: 1830 | J122: 2500
B123: Pole Repalcement # 415 -1830 | C123: 1830 | J123: 4500
B124: Pole Repalcement # 465 -1830 | C124: 1830 | J124: 4000
B125: Transformer Replacement # 431 -1850 | C125: 1850 | J125: 4875
B126: Transformer Replacement # 456 -1850 | C126: 1850 | J126: 5575
B127: Transformer Replacement # 474 -1850 | C127: 1850 | J127: 5135
B128: Transformer Replacement # 501 -1850 | C128: 1850 | J128: 5775
B129: Transformer Replacement # 504 -1850 | C129: 1850 | J129: 2725
B130: Transformer Replacement # 506 -1850 | C130: 1850 | J130: 4835
B131: Transformer Replacement # 520 -1850 | C131: 1850 | J131: 5035
B132: Transformer Replacement # 522 -1850 | C132: 1850 | J132: 3825
B133: Transformer Replacement # 525 -1850 | C133: 1850 | J133: 5675
B134: Transformer Replacement # 550 -1850 | C134: 1850 | J134: 2725
B135: Transformer Replacement # 35 -1850 | C135: 1850 | J135: 8100
B136: Transformers Program (Elbow and Inserts) | C136: 1850 | J136: 20000
B140: Sub-Total System Renewal | D140: =SUM(D105:D136) -> 0 | E140: 0 | F140: 0 | G140: 19609.75 | H140: 44095.58 | I140: 20000 | J140: 115780
A141: Contributed Capital
C142: 1995
J143: -5775
B146: Contributed Capital | D146: =SUM(D142:D145) -> 0 | E146: 0 | F146: 0 | G146: 0 | H146: 0 | I146: 0 | J146: -5775
A147: Total System Renewal | B147: Total System Renewal | D147: =SUM(D140)+SUM(D146) -> 0 | E147: 0 | F147: 0 | G147: 19609.75 | H147: 44095.58 | I147: 20000 | J147: 110005
A150: System Service | B150: System Service | C150: USoA | D150: 2012 | E150: 2013 | F150: 2014 | G150: 2015 | H150: 2016 | I150: 2017 | J150: 2018
B151: Pole Replacement | C151: 1830 | D151: 3098.1
B152: Barriers for Transformers | C152: 1845 | D152: 942.5
B154: Pole replacement | C154: 1830 | E154: 29050
B155: Transformers for replacing | C155: 1850 | E155: 12000
B157: Pole Replacement 65 Forget Street | C157: 1830 | F157: 5400
B158: Pole Replacement 1287 St-Jacques Street | C158: 1830 | F158: 9850
B159: Pole Replacement 1179 Notre-Dame Street | C159: 1830 | F159: 5500
B160: Pole Replacement 1216 Ste Marie Street | C160: 1830 | F160: 3800
B161: Pole Replacement 1154 Notre-Dame Street | C161: 1830 | F161: 8600
B166: Communication Modem | C166: 1860 | H166: 643.17
B167: Phase Balancing | C167: 1835 | H167: 1425
B168: Pole Replacement Entrance Elementry School | C168: 1830 | H168: 4800
B169: In-Line Switches Remove -Blais Notre-Dame and Centenaire | C169: 1835 | H169: 2396
B171: Four Way Tie In Switch 1835 | C171: 1835 | I171: 39650
B172: 336 MCM Conductors 1835 | C172: 1835 | I172: 46250
B175: Sub-Total System Service | D175: =SUM(D151:D172) -> 4040.6 | E175: 41050 | F175: 33150 | G175: 0 | H175: 9264.17 | I175: 85900 | J175: 0
A176: Contributed Capital
C177: 1995
B181: Contributed Capital | D181: =SUM(D177:D180) -> 0 | E181: 0 | F181: 0 | G181: 0 | H181: 0 | I181: 0 | J181: 0
A182: Total System Service | B182: Total System Service | D182: =SUM(D175)+SUM(D181) -> 4040.6 | E182: 41050 | F182: 33150 | G182: 0 | H182: 9264.17 | I182: 85900 | J182: 0
A185: General Plant | B185: General Plant | C185: USoA | D185: 2012 | E185: 2013 | F185: 2014 | G185: 2015 | H185: 2016 | I185: 2017 | J185: 2018
B186: Hydro Vac Dip Pole 4th Feeders | C186: 1845 | D186: 4898.5
B187: Future Addition Transformers and Replacement | C187: 1850 | D187: 36088
B188: Ssmart meter deployment | C188: 1860 | D188: 310212
B189: Stranded Meter | C189: 1860 | D189: -79072
B190: Smart Meter Toll Deployment | C190: 1940 | D190: 4205
B191: New Computer | C191: 1920 | D191: 2745.57
B193: Grouding Study Substation | C193: 1820 | E193: 10000
B194: Add New Switching Cabinet | C194: 1820 | E194: 52400
B195: Ste-Therese Street 4th Feeder | C195: 1830 | E195: 54800
B196: Ste-Therese Street 4th Feeder | C196: 1835 | E196: 58750
B197: U/G Cable Substation to Ste-Therese | C197: 1845 | E197: 52400
B198: Cell phone | C198: 1915 | E198: 1500
B199: Computert Equipment Hardware Battery Back-up | C199: 1920 | E199: 1500
B200: MOE Standard Bill Print | C200: 1611 | E200: 25000
B201: Antivirus Protection | C201: 1611 | E201: 1500
B203: Time Clock Employee | C203: 1915 | F203: 633
B204: Note Pad Computer | C204: 1920 | F204: 430
B205: Harris Version 6.4 | C205: 1611 | F205: 20885
B206: Webpresentment | C206: 1611 | F206: 16549.37
B207: Anti-Spam Consentment | C207: 1611 | F207: 1419.95
B208: Software Upgrade Computer Office | C208: 1611 | F208: 1651.03
B210: New Cell Phone | C210: 1915 | G210: 571
B211: New Camera | C211: 1915 | G211: 391
B212: New Computer Station | C212: 1920 | G212: 1385
B213: Antivirus Software | C213: 1611 | G213: 466
B214: ORPC- Membership Module | C214: 1611 | G214: 840
B216: Office Accessories | C216: 1915 | H216: 1000
B217: Computert Equipment Hardware New Printer | C217: 1920 | H217: 1839.95
B218: Computer Screen | C218: 1920 | H218: 320
B219: Drill -Pole Inspection | C219: 1945 | H219: 7415
B220: Ergotron Standing Desk | C220: 1915 | H220: 563.15
B221: Upgrade CIS | C221: 1611 | H221: 840
B222: Upgrade CIS | C222: 1611 | H222: 525
B228: Website - 1611 | C228: 1611 | I228: 3000
B229: Antivirus - 1611 | C229: 1611 | I229: 1500
B230: Office Equipment 1915 | C230: 1915 | I230: 1000
B231: Computer & Hardware -1920 | C231: 1920 | I231: 1500
B237: Software - 1611 | C237: 1611 | J237: 3000
B238: Office Equipment 1915 | C238: 1915 | J238: 1200
B239: Computer & Hardware -1920 | C239: 1920 | J239: 1500
B241: Sub-Total General Plant | D241: =SUM(D186:D240) -> 279077.07 | E241: 257850 | F241: 41568.35 | G241: 3653 | H241: 12503.1 | I241: 7000 | J241: 5700
A242: Contributed Capital
C243: 1995
B247: Contributed Capital | D247: =SUM(D243:D246) -> 0 | E247: 0 | F247: 0 | G247: 0 | H247: 0 | I247: 0 | J247: 0
A248: Total System Service | B248: Total System Service | D248: =SUM(D241)+SUM(D247) -> 279077.07 | E248: 257850 | F248: 41568.35 | G248: 3653 | H248: 12503.1 | I248: 7000 | J248: 5700
A250: Total Capital Expenditures | D250: =D101+D147+D182+D248 -> 286591.67 | E250: 295900 | F250: 319706.22 | G250: 213115.2 | H250: 458645.03 | I250: 1706996 | J250: 150205
A252: Reconciliation to yearly additions | D252: 286592 | E252: 295900 | F252: =F103+F149+F184+F250 -> 319706.22 | G252: =G103+G149+G184+G250 -> 213115.2 | H252: =H103+H149+H184+H250 -> 458645.03 | I252: =I103+I149+I184+I250 -> 1706996 | J252: =J103+J149+J184+J250 -> 150205
A253: Variance to yearly additions | F253: =F250-F252 -> 0 | G253: =G250-G252 -> 0 | H253: 0 | I253: 0 | J253: 0
D254: * Note: Variance over $100 will be highlighted in red

Sheet App.2-AB_Capital Expenditures
S1: File Number: | U1: =EBNUMBER -> 0
S2: Exhibit:
S3: Tab:
S4: Schedule:
S5: Page:
S7: Date:
A9: Appendix 2-AB
A10: Table 2 - Capital Expenditure Summary from Chapter 5 Consolidated Distribution System Plan Filing Requirements
A12: First year of Forecast Period: | B12: =TestYear -> 2018
A13: CATEGORY | B13: Historical Period (previous plan1 & actual) | Q13: Forecast Period (planned)
B14: =E14-1 -> 2013 | E14: =H14-1 -> 2014 | H14: =K14-1 -> 2015 | K14: =N14-1 -> 2016 | N14: =Q14-1 -> 2017 | Q14: =B12 -> 2018 | R14: =Q14+1 -> 2019 | S14: =R14+1 -> 2020 | T14: 2021 | U14: 2022
B15: Plan | C15: Actual | D15: Var | E15: Plan | F15: Actual | G15: Var | H15: Plan | I15: Actual | J15: Var | K15: Plan | L15: Actual | M15: Var | N15: Plan | O15: Actual2 | P15: Var
B16: $ '000 | D16: % | E16: $ '000 | G16: % | H16: $ '000 | J16: % | K16: $ '000 | M16: % | N16: $ '000 | P16: % | Q16: $ '000
A17: System Access | B17: n/a | C17: 233350 | D17: =IF(ISERROR((C17-B17)/B17),"--",(C17-B17)/B17) -> -- | E17: 0 | F17: 1150190 | G17: =IF(ISERROR((F17-E17)/E17),"--",(F17-E17)/E17) -> -- | H17: 0 | I17: 337996 | J17: =IF(ISERROR((I17-H17)/H17),"--",(I17-H17)/H17) -> -- | K17: 0 | L17: 399233 | M17: =IF(ISERROR((L17-K17)/K17),"--",(L17-K17)/K17) -> -- | N17: 1726096 | O17: 0 | P17: =IF(ISERROR((O17-N17)/N17),"--",(O17-N17)/N17) -> -1 | Q17: 34500 | R17: 135000 | S17: 53000 | T17: 53000 | U17: 78000
A18: System Renewal | B18: n/a | C18: 41050 | D18: =IF(ISERROR((C18-B18)/B18),"--",(C18-B18)/B18) -> -- | E18: 0 | F18: 33150 | G18: =IF(ISERROR((F18-E18)/E18),"--",(F18-E18)/E18) -> -- | H18: 0 | I18: 19609 | J18: =IF(ISERROR((I18-H18)/H18),"--",(I18-H18)/H18) -> -- | K18: 0 | L18: 44096 | M18: =IF(ISERROR((L18-K18)/K18),"--",(L18-K18)/K18) -> -- | N18: 20000 | O18: 0 | P18: =IF(ISERROR((O18-N18)/N18),"--",(O18-N18)/N18) -> -1 | Q18: 115780 | R18: 20000 | S18: 60000 | T18: 62000 | U18: 40000
A19: System Service | B19: n/a | C19: 0 | D19: -- | E19: 0 | F19: 0 | G19: -- | H19: 0 | I19: 0 | J19: -- | K19: 0 | L19: 9264 | M19: -- | N19: 85900 | O19: 0 | P19: -1 | Q19: 0 | R19: 0 | S19: 0 | T19: 0 | U19: 0
A20: General Plant | B20: n/a | C20: 29500 | D20: -- | E20: 0 | F20: 41568 | G20: -- | H20: 0 | I20: 3653 | J20: -- | K20: 0 | L20: 12503 | M20: -- | N20: 7000 | O20: 0 | P20: -1 | Q20: 5700 | R20: 5700 | S20: 5700 | T20: 5700 | U20: 5700
A21: TOTAL EXPENDITURE | B21: =SUM(B17:B20) -> 0 | C21: =SUM(C17:C20) -> 303900 | D21: -- | E21: 474595 | F21: 1224908 | G21: 1.580954287 | H21: 265000 | I21: 361258 | J21: 0.3632377358 | K21: 425000 | L21: 465096 | M21: 0.09434352941 | N21: 1838996 | O21: 0 | P21: -1 | Q21: 155980 | R21: 160700 | S21: 118700 | T21: 120700 | U21: =SUM(U17:U20) -> 123700
A22: System O&M | C22: 56969 | D22: -- | F22: 73506 | G22: -- | I22: 66015 | J22: -- | L22: 80432 | M22: -- | N22: 86475 | O22: 0 | P22: -1 | Q22: 93984 | R22: 96334 | S22: 98742 | T22: 101201 | U22: 103741
A24: Notes to the Table:
A25: 1. Historical “previous plan” data is not required unless a plan has previously been filed. However, use the last Board-approved, at least on a Total (Capital) Expenditure basis for the last cost of service rebasing year, and the applicant should include their planned budget in each subsequent historical year up to and including the Bridge Year.
A26: 2. Indicate the number of months of 'actual' data included in the last year of the Historical Period (normally a 'bridge' year):
A28: Explanatory Notes on Variances (complete only if applicable)
A29: Notes on shifts in forecast vs. historical budgets by category
A32: Notes on year over year Plan vs. Actual variances for Total Expenditures
A35: Notes on Plan vs. Actual variance trends for individual expenditure categories

Sheet App.2-AC_Customer Engagement
B1: File Number: | C1: =EBNUMBER -> 0
B2: Exhibit:
B3: Tab:
B4: Schedule:
B5: Page:
B7: Date:
A9: Appendix 2-AC
A10: Customer Engagement Activities Summary
A12: Provide a list of customer engagement activities | B12: Provide a list of customer needs and preferences identified through each engagement activity | C12: Actions taken to respond to identified needs and preferences. If no action was taken, explain why.
A13: Newsletter | B13: No comments received | C13: No action required
A14: Annual General Assembly meeting | B14: No comments on proposed capital budget. | C14: No action required
A15: Customer Satisfaction Survey | B15: List of comments is presented at Appendix C of Exhibits 1 | C15: Comments were address on the utility’s website and notice posted on social media.
A17: Updated website to include capital projects | B17: No comments received to date | C17: No action required
A45: Note: Use "ALT-ENTER" to go to the next line within a cell

Sheet App.2-B_Acctg Instructions
A1: General Instructions to MIFRS Appendices
A2: Types of Schedules to File
A4: The purpose of this tab is to provide general instructions. The specific instructions to each appendix are listed in footnotes of each appendix.
A6: The typical applicant is expected to have made capitalization and depreciation policy changes under CGAAP as permitted by the Board on January 1, 2012 or mandated by the Board by January 1, 2013, and adopted IFRS for reporting purposes on January 1, 2015 (transition date January 1, 2014). Some distributors filing for 2017 rates have rebased with these accounting changes reflected in a prior rebasing application. If that is the case, information relating to pre-accounting policy changes is not generally required. The information to be provided by applicants will depend on when the accounting policy changes were made and when they last rebased. In general, applicants should provide the following information in the appendices:
E9: Reflecting Accounting Policy Changes in Current Application | G9: Reflected Accounting Policy Changes in Prior Application3
E10: Accounting Policy Changes in 2012 and Adopted IFRS in 2015 | F10: Accounting Policy Changes in 2013 and Adopted IFRS in 2015 | G10: Adopted IFRS in 2015
A11: Information to be filed in 2017 CoS Application | B11: 2017 | C11: Test | E11: MIFRS | F11: MIFRS | G11: MIFRS
B12: 2016 | C12: Bridge | E12: MIFRS | F12: MIFRS | G12: MIFRS
B13: 2015 | C13: Historical | E13: MIFRS | F13: MIFRS | G13: MIFRS
B14: 2014 | C14: Historical | E14: MIFRS and Revised CGAAP1 | F14: MIFRS and Revised CGAAP1 | G14: MIFRS and Revised CGAAP1
B15: 2013 | C15: Historical | E15: Revised CGAAP | F15: CGAAP and Revised CGAAP2 | G15: Rebased under Revised CGAAP
B16: 2012 | C16: Historical | E16: CGAAP and Revised CGAAP2 | F16: CGAAP | G16: Rebased under Revised CGAAP
B17: Prior | C17: Historicals | E17: Rebased under CGAAP | F17: Rebased under CGAAP | G17: N/A
A19: 1) For the transition year (2014), the applicant may file two appendices, one under Revised CGAAP and one under MIFRS, depending on the materiality of impacts. See the specific instructions under each appendix below for further details.
A20: 2) For applicants that are reflecting accounting policy changes for the first time in a rebasing application, the applicant must file two appendices in the year that the applicant implemented changes to its capitalization and depreciation policies (2012 or 2013), one before and one after the policy changes.
A21: 3) Applicants should provide CGGAP and Revised CGAAP schedules (i.e. as indicated in the first two columns of the above table) to support balances in Account 1576 if the account has yet to be disposed of.
A23: Appendix 2-BA - Fixed Asset Schedule
A25: Applicants are to provide Appendix 2-BA in accordance with the years and corresponding accounting standards noted in the above table to provide a year over year continuity in fixed assets.
A26: For the transition year (2014), the applicant should file two appendices, one under Revised CGAAP and one under MIFRS if the change between Revised CGAAP and MIFRS is material. If the change from the accounting standards is not material, the applicant may choose to only provide one appendix under MIFRS. However, the applicant must also indicate the fixed asset net book value balance under Revised CGAAP, the total dollar value of the change and explain why it is not material.
A30: Regulatory Gross Assets of Property, Plant and Equipment
A32: For an applicant that adopted IFRS on January 1, 2015 for financial reporting purposes, the applicant must establish the continuity of historic cost by using the December 31, 2013 regulatory gross assets of property, plant and equipment as the opening January 1, 2014 regulatory gross assets. The applicant must provide schedules (including Appendix 2-BA, Fixed Asset Continuity Schedule) which must identify the following details to substantiate the continuity of historic cost for regulatory purposes:
A35: · December 31, 2013 regulatory gross assets of property, plant and equipment, by asset class; and
A36: · January 1, 2014 regulatory gross assets of property, plant and equipment, by asset class.
A38: Accumulated Depreciation
A40: For an applicant that adopted IFRS on January 1, 2015 for financial reporting purposes, the applicant must establish the continuity of historic cost by using the December 31, 2013 regulatory accumulated depreciation as the opening January 1, 2014 regulatory accumulated depreciation. The applicant must provide schedules (including Appendix 2-BA, Fixed Asset Continuity Schedule) which must identify the following details to substantiate the continuity of historic cost for regulatory purposes:
A43: · December 31, 2013 regulatory accumulated depreciation, by asset class; and
A44: · January 1, 2014 regulatory accumulated depreciation, by asset class.
A46: Appendix 2-Cx - Depreciation and Amortization
A48: Applicants are to provide Appendix 2-Cx in accordance with the years and corresponding accounting standards listed in the above table.
A49: · | B49: If an applicant is reflecting changes to its depreciation policies for the first time in a rebasing application, the applicant should complete Appendix 2-CA to 2-CG (changes made in 2012) or Appendix 2-CA to 2-CF (changes made in 2013). In this set of appendices, the applicant will need to indicate the year it made the accounting policy changes. The applicant must provide data starting from the year it made changes to its capitalization and depreciation policies.
B52: *Depreciation accounting policy changes were mandated by the Board by January 1, 2013. In general, no further changes to an applicant's depreciation policy (i.e. assets' service lives) are expected after the Board mandated changes by January 1, 2013. The set of Appendix 2-CA to 2-CG assumes this to be the case. If the applicant has made any changes to its depreciation policy subsequent to the Board mandated changes, applicants must identify the change, explain the nature of the change, the reason for the change, quantify the impact of the change, and quantify the depreciation expense before and after the change.
A53: · | B53: If an applicant changed depreciation policies and reflected these changes in a prior rebasing application, the applicant should complete Appendix 2-CH. The applicant must provide data starting from the earlier of 1) all historical years back to its last rebasing; or 2) at least three years of historical actuals, in addition to Bridge Year and Test Year forecasts.
A56: Appendix 2-E - Account 1575, IFRS-CGAAP Transitional PP&E Amounts (2-EA), Account 1576, Accounting Changes Under CGAAP (2-EB, 2-EC)
A58: 1) For an applicant that has a balance in Account 1576 to dispose:
A59: · | B59: If an applicant changed capitalization and depreciation policies effective January 1, 2012, the applicant must complete Appendix 2-EB
A60: · | B60: If an applicant changed capitalization and depreciation policies effective January 1, 2013, the applicant must complete Appendix 2-EC
A62: 2) For an applicant that has a balance in Account 1575 to dispose:
A63: · | B63: The applicant must complete 2-EA
A64: If the applicant did not make any further PP&E accounting policy changes beyond the capitalization and depreciation policy changes as mandated by the Board by January 1, 2013 (i.e. no further changes made on transition to IFRS), the applicant must indicate this and does not need to complete Appendix 2-EA.
A69: Please refer to section 2.12.4 and 2.12.5 of the Filing Requirements for further details.
A71: Appendix 2-Y - Summary of Impacts to Revenue Requirement from Transition to MIFRS
A73: An applicant must provide a summary of the dollar impacts of MIFRS to each component of the revenue requirement (e.g. rate base, operating costs, etc.), including the overall impact on the proposed revenue requirement. Accordingly, the applicant must identify financial differences and resulting revenue requirement impacts arising from the adoption of MIFRS as compared to CGAAP. If the applicant is reflecting the changes in capitalization and depreciation policies for the first time in a rebasing application, then a comparison between MIFRS and CGAAP before the change in accounting policies should be completed. If the applicant changed capitalization and depreciation policies and reflected these changes in a prior rebasing application, then a comparison between MIFRS and CGAAP after the change in accounting policies should be completed.

Sheet App.2-BA_Fixed Asset Cont
L1: File Number: | M1: =EBNUMBER -> 0
L2: Exhibit:
L3: Tab:
L4: Schedule:
L5: Page:
L7: Date:
A9: Appendix 2-BA
A10: Fixed Asset Continuity Schedule 1
E12: Year | F12: 2014 | G12: CGAAP - with changes to policies
D14: Cost | J14: Accumulated Depreciation
A15: CCA Class | B15: OEB | C15: Description | D15: Opening Balance | E15: Additions | F15: Disposals | G15: Closing Balance | I15: Opening Balance | J15: Additions | K15: Disposals | L15: Closing Balance | M15: Net Book Value | O15: AVG Gross Bal | P15: AVG AccDep
A16: 12 | B16: 1611 | C16: Computer Software (Formally known as Account 1925) | D16: 85405.66 | E16: 40505.35 | F16: 0 | G16: =D16+E16+F16 -> 125911.01 | I16: 72106.73 | J16: 16714.52 | K16: 0 | L16: =I16+J16+K16 -> 88821.25 | M16: =G16-L16 -> 37089.76 | O16: =AVERAGE(G16,D16) -> 105658.335 | P16: =AVERAGE(L16,I16) -> 80463.99
A17: CEC | B17: 1612 | C17: Land Rights (Formally known as Account 1906 and 1806) | D17: 0 | E17: 0 | F17: 0 | G17: =D17+E17+F17 -> 0 | I17: 0 | J17: 0 | K17: 0 | L17: =I17+J17+K17 -> 0 | M17: =G17-L17 -> 0 | O17: 0 | P17: 0
A18: N/A | B18: 1805 | C18: Land | D18: 50000 | E18: 0 | F18: 0 | G18: 50000 | I18: 0 | J18: 0 | K18: 0 | L18: =I18+J18+K18 -> 0 | M18: 50000 | O18: 50000 | P18: 0
A19: 47 | B19: 1808 | C19: Buildings | D19: 0 | E19: 0 | F19: 0 | G19: 0 | I19: 0 | J19: 0 | K19: 0 | L19: =I19+J19+K19 -> 0 | M19: 0 | O19: 0 | P19: 0
A20: 13 | B20: 1810 | C20: Leasehold Improvements | D20: 0 | E20: 0 | F20: 0 | G20: 0 | I20: 0 | J20: 0 | K20: 0 | L20: 0 | M20: 0 | O20: 0 | P20: 0
A21: 47 | B21: 1815 | C21: Transformer Station Equipment >50 kV | D21: 0 | E21: 0 | F21: 0 | G21: 0 | I21: 0 | J21: 0 | K21: 0 | L21: 0 | M21: 0 | O21: 0 | P21: 0
A22: 47 | B22: 1820 | C22: Distribution Station Equipment <50 kV | D22: 284888 | E22: 0 | F22: 0 | G22: 284888 | I22: 86469.58 | J22: 5179.77 | K22: 0 | L22: 91649.35 | M22: 193238.65 | O22: 284888 | P22: 89059.465
A23: 47 | B23: 1825 | C23: Storage Battery Equipment | D23: 0 | E23: 0 | F23: 0 | G23: 0 | I23: 0 | J23: 0 | K23: 0 | L23: 0 | M23: 0 | O23: 0 | P23: 0
A24: 47 | B24: 1830 | C24: Poles, Towers & Fixtures | D24: 638783.24 | E24: 107752.87 | F24: 0 | G24: 746536.11 | I24: 226474.49 | J24: 17316.49 | K24: 0 | L24: 243790.98 | M24: 502745.13 | O24: 692659.675 | P24: 235132.735
A25: 47 | B25: 1835 | C25: Overhead Conductors & Devices | D25: 605736.69 | E25: 55661.82 | F25: 0 | G25: 661398.51 | I25: 237379.06 | J25: 10559.43 | K25: 0 | L25: 247938.49 | M25: 413460.02 | O25: 633567.6 | P25: 242658.775
A26: 47 | B26: 1840 | C26: Underground Conduit | D26: 0 | E26: 0 | F26: 0 | G26: 0 | I26: 0 | J26: 0 | K26: 0 | L26: 0 | M26: 0 | O26: 0 | P26: 0
A27: 47 | B27: 1845 | C27: Underground Conductors & Devices | D27: 1016362.74 | E27: 692811.43 | F27: 0 | G27: 1709174.17 | I27: 436345 | J27: 38936.24 | K27: 0 | L27: 475281.24 | M27: 1233892.93 | O27: 1362768.455 | P27: 455813.12
A28: 47 | B28: 1850 | C28: Line Transformers | D28: 751064.44 | E28: 288934.39 | F28: 0 | G28: 1039998.83 | I28: 290065.56 | J28: 22388.28 | K28: 0 | L28: 312453.84 | M28: 727544.99 | O28: 895531.635 | P28: 301259.7
A29: 47 | B29: 1855 | C29: Services (Overhead & Underground) | D29: 193249.96 | E29: 12464 | F29: 0 | G29: 205713.96 | I29: 58936.36 | J29: 4987.05 | K29: 0 | L29: 63923.41 | M29: 141790.55 | O29: 199481.96 | P29: 61429.885
A30: 47 | B30: 1860 | C30: Meters | D30: 79072 | E30: 0 | F30: -79072 | G30: 0 | I30: 39311 | J30: 0 | K30: -39311 | L30: 0 | M30: 0 | O30: 39536 | P30: 19655.5
A31: 47 | B31: 1860 | C31: Meters (Smart Meters) | D31: 310212 | E31: 25716 | F31: 0 | G31: 335928 | I31: 23677 | J31: 21538 | K31: 3163 | L31: 48378 | M31: 287550 | O31: 323070 | P31: 36027.5
A32: N/A | B32: 1905 | C32: Land | D32: 0 | E32: 0 | F32: 0 | G32: 0 | I32: 0 | J32: 0 | K32: 0 | L32: 0 | M32: 0 | O32: 0 | P32: 0
A33: 47 | B33: 1908 | C33: Buildings & Fixtures | D33: 0 | E33: 0 | F33: 0 | G33: 0 | I33: 0 | J33: 0 | K33: 0 | L33: 0 | M33: 0 | O33: 0 | P33: 0
A34: 13 | B34: 1910 | C34: Leasehold Improvements | D34: 0 | E34: 0 | F34: 0 | G34: 0 | I34: 0 | J34: 0 | K34: 0 | L34: 0 | M34: 0 | O34: 0 | P34: 0
A35: 8 | B35: 1915 | C35: Office Furniture & Equipment (10 years) | D35: 50362.82 | E35: 631.93 | F35: 0 | G35: 50994.75 | I35: 31808.21 | J35: 4308.65 | K35: 0 | L35: 36116.86 | M35: 14877.89 | O35: 50678.785 | P35: 33962.535
A36: 8 | B36: 1915 | C36: Office Furniture & Equipment (5 years) | D36: 0 | E36: 0 | F36: 0 | G36: 0 | I36: 0 | J36: 0 | K36: 0 | L36: 0 | M36: 0 | O36: 0 | P36: 0
A37: 10 | B37: 1920 | C37: Computer Equipment - Hardware | D37: 26623.67 | E37: 429.99 | F37: 0 | G37: 27053.66 | I37: 21555.5 | J37: 2089.18 | K37: 0 | L37: 23644.68 | M37: 3408.98 | O37: 26838.665 | P37: 22600.09
A38: 45 | B38: 1920 | C38: Computer Equip.-Hardware(Post Mar. 22/04) | D38: 0 | E38: 0 | F38: 0 | G38: 0 | I38: 0 | J38: 0 | K38: 0 | L38: 0 | M38: 0 | O38: 0 | P38: 0
A39: 45.1 | B39: 1920 | C39: Computer Equip.-Hardware(Post Mar. 19/07) | D39: 0 | E39: 0 | F39: 0 | G39: 0 | I39: 0 | J39: 0 | K39: 0 | L39: 0 | M39: 0 | O39: 0 | P39: 0
A40: 10 | B40: 1930 | C40: Transportation Equipment | D40: 0 | E40: 0 | F40: 0 | G40: 0 | I40: 0 | J40: 0 | K40: 0 | L40: 0 | M40: 0 | O40: 0 | P40: 0
A41: 8 | B41: 1935 | C41: Stores Equipment | D41: 4320 | E41: 0 | F41: 0 | G41: 4320 | I41: 4017.6 | J41: 151.2 | K41: 0 | L41: 4168.8 | M41: 151.2 | O41: 4320 | P41: 4093.2
A42: 8 | B42: 1940 | C42: Tools, Shop & Garage Equipment | D42: 0 | E42: 0 | F42: 0 | G42: 0 | I42: 0 | J42: 0 | K42: 0 | L42: 0 | M42: 0 | O42: 0 | P42: 0
A43: 8 | B43: 1945 | C43: Measurement & Testing Equipment | D43: 8486 | E43: 0 | F43: 0 | G43: 8486 | I43: 4543.4 | J43: 578.6 | K43: 0 | L43: 5122 | M43: 3364 | O43: 8486 | P43: 4832.7
A44: 8 | B44: 1950 | C44: Power Operated Equipment | D44: 0 | E44: 0 | F44: 0 | G44: 0 | I44: 0 | J44: 0 | K44: 0 | L44: 0 | M44: 0 | O44: 0 | P44: 0
A45: 8 | B45: 1955 | C45: Communications Equipment | D45: 0 | E45: 0 | F45: 0 | G45: 0 | I45: 0 | J45: 0 | K45: 0 | L45: 0 | M45: 0 | O45: 0 | P45: 0
A46: 8 | B46: 1955 | C46: Communication Equipment (Smart Meters) | D46: 0 | E46: 0 | F46: 0 | G46: 0 | I46: 0 | J46: 0 | K46: 0 | L46: 0 | M46: 0 | O46: 0 | P46: 0
A47: 8 | B47: 1960 | C47: Miscellaneous Equipment | D47: 0 | E47: 0 | F47: 0 | G47: 0 | I47: 0 | J47: 0 | K47: 0 | L47: 0 | M47: 0 | O47: 0 | P47: 0
A48: 47 | B48: 1970 | C48: Load Management Controls Customer Premises | D48: 0 | E48: 0 | F48: 0 | G48: 0 | I48: 0 | J48: 0 | K48: 0 | L48: 0 | M48: 0 | O48: 0 | P48: 0
A49: 47 | B49: 1975 | C49: Load Management Controls Utility Premises | D49: 0 | E49: 0 | F49: 0 | G49: 0 | I49: 0 | J49: 0 | K49: 0 | L49: 0 | M49: 0 | O49: 0 | P49: 0
A50: 47 | B50: 1980 | C50: System Supervisor Equipment | D50: 0 | E50: 0 | F50: 0 | G50: 0 | I50: 0 | J50: 0 | K50: 0 | L50: 0 | M50: 0 | O50: 0 | P50: 0
A51: 47 | B51: 1985 | C51: Miscellaneous Fixed Assets | D51: 0 | E51: 0 | F51: 0 | G51: 0 | I51: 0 | J51: 0 | K51: 0 | L51: 0 | M51: 0 | O51: 0 | P51: 0
A52: 47 | B52: 1990 | C52: Other Tangible Property | D52: 0 | E52: 0 | F52: 0 | G52: 0 | I52: 0 | J52: 0 | K52: 0 | L52: 0 | M52: 0 | O52: 0 | P52: 0
A53: 47 | B53: 1995 | C53: Contributions & Grants | D53: -555962.94 | E53: -905202 | F53: 0 | G53: -1461164.94 | I53: -190516.64 | J53: -25214.1 | K53: 0 | L53: -215730.74 | M53: =G53-L53 -> -1245434.2 | O53: -1008563.94 | P53: -203123.69
B54: etc. | D54: 0 | E54: 0 | F54: 0 | G54: 0 | I54: 0 | J54: 0 | K54: 0 | L54: 0 | M54: 0 | O54: 0 | P54: 0
B55: etc. | D55: 0 | E55: 0 | F55: 0 | G55: 0 | I55: 0 | J55: 0 | K55: 0 | L55: 0 | M55: 0 | O55: 0 | P55: 0
B56: etc. | D56: 0 | E56: 0 | F56: 0 | G56: 0 | I56: 0 | J56: 0 | K56: 0 | L56: 0 | M56: 0 | O56: 0 | P56: 0
B57: etc. | D57: 0 | E57: 0 | F57: 0 | G57: 0 | I57: 0 | J57: 0 | K57: 0 | L57: 0 | M57: 0 | O57: 0 | P57: 0
B58: etc. | D58: 0 | E58: 0 | F58: 0 | G58: 0 | I58: 0 | J58: 0 | K58: 0 | L58: 0 | M58: 0 | O58: 0 | P58: 0
B59: etc. | D59: 0 | E59: 0 | F59: 0 | G59: 0 | I59: 0 | J59: 0 | K59: 0 | L59: 0 | M59: 0 | O59: 0 | P59: 0
B60: etc. | D60: 0 | E60: 0 | F60: 0 | G60: 0 | I60: 0 | J60: 0 | K60: 0 | L60: 0 | M60: 0 | O60: 0 | P60: 0
B61: etc. | D61: 0 | E61: 0 | F61: 0 | G61: 0 | I61: 0 | J61: 0 | K61: 0 | L61: 0 | M61: 0 | O61: 0 | P61: 0
B62: etc. | D62: 0 | E62: 0 | F62: 0 | G62: 0 | I62: 0 | J62: 0 | K62: 0 | L62: 0 | M62: 0 | O62: 0 | P62: 0
B63: etc. | D63: 0 | E63: 0 | F63: 0 | G63: 0 | I63: 0 | J63: 0 | K63: 0 | L63: 0 | M63: 0 | O63: 0 | P63: 0
B64: etc. | D64: 0 | E64: 0 | F64: 0 | G64: =D64+E64+F64 -> 0 | I64: 0 | J64: 0 | K64: 0 | L64: 0 | M64: 0 | O64: 0 | P64: 0
G65: =D65+E65+F65 -> 0 | I65: 0 | J65: 0 | K65: 0 | L65: 0 | M65: 0 | O65: 0 | P65: 0
C66: Sub-Total | D66: =SUM(D16:D65) -> 3548604.28 | E66: =SUM(E16:E65) -> 319705.78 | F66: =SUM(F16:F65) -> -79072 | G66: =SUM(G16:G65) -> 3789238.06 | I66: =SUM(I16:I65) -> 1342172.85 | J66: =SUM(J16:J65) -> 119533.31 | K66: =SUM(K16:K65) -> -36148 | L66: =SUM(L16:L65) -> 1425558.16 | M66: =SUM(M16:M65) -> 2363679.9 | O66: =SUM(O16:O65) -> 3668921.17 | P66: =SUM(P16:P65) -> 1383865.505
C67: Less Socialized Renewable Energy Generation Investments (input as negative)Less Socialized Renewable Energy Generation Investments (input as negative) | G67: =D67+E67+F67 -> 0 | L67: =I67+J67+K67 -> 0 | M67: =G67+L67 -> 0 | P67: =O66-P66 -> 2285055.665
C68: Less Other Non Rate-Regulated Utility Assets (input as negative)Less Other Non Rate-Regulated Utility Assets (input as negative) | G68: 0 | L68: =I68+J68+K68 -> 0 | M68: =G68+L68 -> 0
C69: Total PP&E | D69: =SUM(D66:D68) -> 3548604.28 | E69: =SUM(E66:E68) -> 319705.78 | F69: =SUM(F66:F68) -> -79072 | G69: =SUM(G66:G68) -> 3789238.06 | I69: =SUM(I66:I68) -> 1342172.85 | J69: =SUM(J66:J68) -> 119533.31 | K69: =SUM(K66:K68) -> -36148 | L69: =SUM(L66:L68) -> 1425558.16 | M69: =SUM(M66:M68) -> 2363679.9
C70: Depreciation Expense adj. from gain or loss on the retirement of assets (pool of like assets) | L70: 0 | O70: From RRR year value Account 2105
C71: Total | J71: =J69+J70 -> 119533.31
G73: Less: Fully Allocated Depreciation
A74: 10 | C74: Transportation | G74: Transportation
A75: 8 | C75: Stores Equipment | G75: Stores Equipment
A76: 8 | C76: Tools, Shop | G76: Tools, Shop
A77: 8 | C77: Meas/Testing | G77: Meas/Testing
A78: 8 | C78: Communication | G78: Communication
G79: Net Depreciation | J79: =J71+J74+J78+J75+J76+J77 -> 119533.31
E81: Year | F81: 2015 | G81: IFRS
D83: Cost | J83: Accumulated Depreciation
A84: CCA Class | B84: OEB | C84: Description | D84: Opening Balance | E84: Additions | F84: Disposals | G84: Closing Balance | I84: Opening Balance | J84: Additions | K84: Disposals | L84: Closing Balance | M84: Net Book Value | O84: AVG Gross Bal | P84: AVG AccDep
A85: 12 | B85: 1611 | C85: Computer Software (Formally known as Account 1925) | D85: =G16 -> 125911.01 | E85: 1307.82 | F85: 0 | G85: =D85+E85+F85 -> 127218.83 | I85: =L16 -> 88821.25 | J85: 8627.552 | K85: 0 | L85: =I85+J85+K85 -> 97448.802 | M85: =G85-L85 -> 29770.028 | O85: =AVERAGE(G85,D85) -> 126564.92 | P85: =AVERAGE(L85,I85) -> 93135.026
A86: CEC | B86: 1612 | C86: Land Rights (Formally known as Account 1906 and 1806) | D86: 0 | E86: 0 | F86: 0 | G86: =D86+E86+F86 -> 0 | I86: 0 | J86: 0 | K86: 0 | L86: =I86+J86+K86 -> 0 | M86: =G86-L86 -> 0 | O86: 0 | P86: 0
A87: N/A | B87: 1805 | C87: Land | D87: 50000 | E87: 0 | F87: 0 | G87: =D87+E87+F87 -> 50000 | I87: 0 | J87: 0 | K87: 0 | L87: =I87+J87+K87 -> 0 | M87: 50000 | O87: 50000 | P87: 0
A88: 47 | B88: 1808 | C88: Buildings | D88: 0 | E88: 0 | F88: 0 | G88: =D88+E88+F88 -> 0 | I88: 0 | J88: 0 | K88: 0 | L88: =I88+J88+K88 -> 0 | M88: 0 | O88: 0 | P88: 0
A89: 13 | B89: 1810 | C89: Leasehold Improvements | D89: 0 | E89: 0 | F89: 0 | G89: 0 | I89: 0 | J89: 0 | K89: 0 | L89: 0 | M89: 0 | O89: 0 | P89: 0
A90: 47 | B90: 1815 | C90: Transformer Station Equipment >50 kV | D90: 0 | E90: 0 | F90: 0 | G90: 0 | I90: 0 | J90: 0 | K90: 0 | L90: 0 | M90: 0 | O90: 0 | P90: 0
A91: 47 | B91: 1820 | C91: Distribution Station Equipment <50 kV | D91: 284888 | E91: 75410 | F91: 0 | G91: 360298 | I91: 91649.35 | J91: 5865.316364 | K91: 0 | L91: 97514.66636 | M91: 262783.3336 | O91: 322593 | P91: 94582.00818
A92: 47 | B92: 1825 | C92: Storage Battery Equipment | D92: 0 | E92: 0 | F92: 0 | G92: 0 | I92: 0 | J92: 0 | K92: 0 | L92: 0 | M92: 0 | O92: 0 | P92: 0
A93: 47 | B93: 1830 | C93: Poles, Towers & Fixtures | D93: 746536.11 | E93: 2662.5 | F93: 0 | G93: 749198.61 | I93: 243790.98 | J93: 18696.6865 | K93: 0 | L93: 262487.6665 | M93: 486710.9435 | O93: 747867.36 | P93: 253139.3232
A94: 47 | B94: 1835 | C94: Overhead Conductors & Devices | D94: 661398.51 | E94: 884.5 | F94: 0 | G94: 662283.01 | I94: 247938.49 | J94: 11030.67933 | K94: 0 | L94: 258969.1693 | M94: 403313.8407 | O94: 661840.76 | P94: 253453.8297
A95: 47 | B95: 1840 | C95: Underground Conduit | D95: 0 | E95: 0 | F95: 0 | G95: 0 | I95: 0 | J95: 0 | K95: 0 | L95: 0 | M95: 0 | O95: 0 | P95: 0
A96: 47 | B96: 1845 | C96: Underground Conductors & Devices | D96: 1709174.17 | E96: 144092.15 | F96: 0 | G96: 1853266.32 | I96: 475281.24 | J96: 50892.007 | K96: 0 | L96: 526173.247 | M96: 1327093.073 | O96: 1781220.245 | P96: 500727.2435
A97: 47 | B97: 1850 | C97: Line Transformers | D97: 1039998.83 | E97: 110237.5 | F97: 0 | G97: 1150236.33 | I97: 312453.84 | J97: 27377.927 | K97: 0 | L97: 339831.767 | M97: 810404.563 | O97: 1095117.58 | P97: 326142.8035
A98: 47 | B98: 1855 | C98: Services (Overhead & Underground) | D98: 205713.96 | E98: 15074 | F98: 0 | G98: 220787.96 | I98: 63923.41 | J98: 5331.274 | K98: 0 | L98: 69254.684 | M98: 151533.276 | O98: 213250.96 | P98: 66589.047
A99: 47 | B99: 1860 | C99: Meters | D99: 0 | E99: 0 | F99: 0 | G99: 0 | I99: 0 | J99: 0 | K99: 0 | L99: 0 | M99: 0 | O99: 0 | P99: 0
A100: 47 | B100: 1860 | C100: Meters (Smart Meters) | D100: 335928 | E100: 9244 | F100: 0 | G100: 345172 | I100: 48378 | J100: 22703 | K100: 0 | L100: 71081 | M100: 274091 | O100: 340550 | P100: 59729.5
A101: N/A | B101: 1905 | C101: Land | D101: 0 | E101: 0 | F101: 0 | G101: 0 | I101: 0 | J101: 0 | K101: 0 | L101: 0 | M101: 0 | O101: 0 | P101: 0
A102: 47 | B102: 1908 | C102: Buildings & Fixtures | D102: 0 | E102: 0 | F102: 0 | G102: 0 | I102: 0 | J102: 0 | K102: 0 | L102: 0 | M102: 0 | O102: 0 | P102: 0
A103: 13 | B103: 1910 | C103: Leasehold Improvements | D103: 0 | E103: 0 | F103: 0 | G103: 0 | I103: 0 | J103: 0 | K103: 0 | L103: 0 | M103: 0 | O103: 0 | P103: 0
A104: 8 | B104: 1915 | C104: Office Furniture & Equipment (10 years) | D104: 50994.75 | E104: 961.6 | F104: 0 | G104: 51956.35 | I104: 36116.86 | J104: 3812.933 | K104: 0 | L104: 39929.793 | M104: 12026.557 | O104: 51475.55 | P104: 38023.3265
A105: 8 | B105: 1915 | C105: Office Furniture & Equipment (5 years) | D105: 0 | E105: 0 | F105: 0 | G105: 0 | I105: 0 | J105: 0 | K105: 0 | L105: 0 | M105: 0 | O105: 0 | P105: 0
A106: 10 | B106: 1920 | C106: Computer Equipment - Hardware | D106: 27053.66 | E106: 1384.95 | F106: 0 | G106: 28438.61 | I106: 23644.68 | J106: 1654.583 | K106: 0 | L106: 25299.263 | M106: 3139.347 | O106: 27746.135 | P106: 24471.9715
A107: 45 | B107: 1920 | C107: Computer Equip.-Hardware(Post Mar. 22/04) | D107: 0 | E107: 0 | F107: 0 | G107: 0 | I107: 0 | J107: 0 | K107: 0 | L107: 0 | M107: 0 | O107: 0 | P107: 0
A108: 45.1 | B108: 1920 | C108: Computer Equip.-Hardware(Post Mar. 19/07) | D108: 0 | E108: 0 | F108: 0 | G108: 0 | I108: 0 | J108: 0 | K108: 0 | L108: 0 | M108: 0 | O108: 0 | P108: 0
A109: 10 | B109: 1930 | C109: Transportation Equipment | D109: 0 | E109: 0 | F109: 0 | G109: 0 | I109: 0 | J109: 0 | K109: 0 | L109: 0 | M109: 0 | O109: 0 | P109: 0
A110: 8 | B110: 1935 | C110: Stores Equipment | D110: 4320 | E110: 0 | F110: 0 | G110: 4320 | I110: 4168.8 | J110: 151.4 | K110: 0 | L110: 4320.2 | M110: -0.2 | O110: 4320 | P110: 4244.5
A111: 8 | B111: 1940 | C111: Tools, Shop & Garage Equipment | D111: 0 | E111: 0 | F111: 0 | G111: 0 | I111: 0 | J111: 0 | K111: 0 | L111: 0 | M111: 0 | O111: 0 | P111: 0
A112: 8 | B112: 1945 | C112: Measurement & Testing Equipment | D112: 8486 | E112: 0 | F112: 0 | G112: 8486 | I112: 5122 | J112: 420.5 | K112: 0 | L112: 5542.5 | M112: 2943.5 | O112: 8486 | P112: 5332.25
A113: 8 | B113: 1950 | C113: Power Operated Equipment | D113: 0 | E113: 0 | F113: 0 | G113: 0 | I113: 0 | J113: 0 | K113: 0 | L113: 0 | M113: 0 | O113: 0 | P113: 0
A114: 8 | B114: 1955 | C114: Communications Equipment | D114: 0 | E114: 0 | F114: 0 | G114: 0 | I114: 0 | J114: 0 | K114: 0 | L114: 0 | M114: 0 | O114: 0 | P114: 0
A115: 8 | B115: 1955 | C115: Communication Equipment (Smart Meters) | D115: 0 | E115: 0 | F115: 0 | G115: 0 | I115: 0 | J115: 0 | K115: 0 | L115: 0 | M115: 0 | O115: 0 | P115: 0
A116: 8 | B116: 1960 | C116: Miscellaneous Equipment | D116: 0 | E116: 0 | F116: 0 | G116: 0 | I116: 0 | J116: 0 | K116: 0 | L116: 0 | M116: 0 | O116: 0 | P116: 0
A117: 47 | B117: 1970 | C117: Load Management Controls Customer Premises | D117: 0 | E117: 0 | F117: 0 | G117: 0 | I117: 0 | J117: 0 | K117: 0 | L117: 0 | M117: 0 | O117: 0 | P117: 0
A118: 47 | B118: 1975 | C118: Load Management Controls Utility Premises | D118: 0 | E118: 0 | F118: 0 | G118: 0 | I118: 0 | J118: 0 | K118: 0 | L118: 0 | M118: 0 | O118: 0 | P118: 0
A119: 47 | B119: 1980 | C119: System Supervisor Equipment | D119: 0 | E119: 0 | F119: 0 | G119: 0 | I119: 0 | J119: 0 | K119: 0 | L119: 0 | M119: 0 | O119: 0 | P119: 0
A120: 47 | B120: 1985 | C120: Miscellaneous Fixed Assets | D120: 0 | E120: 0 | F120: 0 | G120: 0 | I120: 0 | J120: 0 | K120: 0 | L120: 0 | M120: 0 | O120: 0 | P120: 0
A121: 47 | B121: 1990 | C121: Other Tangible Property | D121: 0 | E121: 0 | F121: 0 | G121: 0 | I121: 0 | J121: 0 | K121: 0 | L121: 0 | M121: 0 | O121: 0 | P121: 0
A122: 47 | B122: 1995 | C122: Contributions & Grants | D122: -1461164.94 | E122: -148144.2 | F122: 0 | G122: -1609309.14 | I122: -215730.74 | J122: -38380.92375 | K122: 0 | L122: -254111.6638 | M122: -1355197.476 | O122: -1535237.04 | P122: -234921.2019
B123: etc.
B124: etc. | D124: =G55 -> 0 | E124: 0 | F124: 0 | G124: =D124+E124+F124 -> 0 | J124: 0 | K124: 0 | L124: =I124+J124+K124 -> 0 | M124: 0 | O124: 0 | P124: 0
B125: etc. | D125: 0 | E125: 0 | F125: 0 | G125: 0 | J125: 0 | K125: 0 | L125: 0 | M125: 0 | O125: 0 | P125: 0
B126: etc. | D126: 0 | E126: 0 | F126: 0 | G126: 0 | J126: 0 | K126: 0 | L126: 0 | M126: 0 | O126: 0 | P126: 0
B127: etc. | D127: 0 | E127: 0 | F127: 0 | G127: 0 | J127: 0 | K127: 0 | L127: 0 | M127: 0 | O127: 0 | P127: 0
B128: etc. | D128: 0 | E128: 0 | F128: 0 | G128: 0 | J128: 0 | K128: 0 | L128: 0 | M128: 0 | O128: 0 | P128: 0
B129: etc. | D129: 0 | E129: 0 | F129: 0 | G129: 0 | J129: 0 | K129: 0 | L129: 0 | M129: 0 | O129: 0 | P129: 0
B130: etc. | D130: 0 | E130: 0 | F130: 0 | G130: 0 | J130: 0 | K130: 0 | L130: 0 | M130: 0 | O130: 0 | P130: 0
B131: etc. | D131: 0 | E131: 0 | F131: 0 | G131: 0 | J131: 0 | K131: 0 | L131: 0 | M131: 0 | O131: 0 | P131: 0
B132: etc. | D132: 0 | E132: 0 | F132: 0 | G132: 0 | J132: 0 | K132: 0 | L132: 0 | M132: 0 | O132: 0 | P132: 0
B133: etc. | D133: 0 | E133: 0 | F133: 0 | G133: =D133+E133+F133 -> 0 | J133: 0 | K133: 0 | L133: 0 | M133: 0 | O133: 0 | P133: 0
D134: 0 | G134: =D134+E134+F134 -> 0 | I134: =L65 -> 0 | J134: 0 | K134: 0 | L134: 0 | M134: 0 | O134: 0 | P134: 0
C135: Sub-Total | D135: =SUM(D85:D134) -> 3789238.06 | E135: =SUM(E85:E134) -> 213114.82 | F135: =SUM(F85:F134) -> 0 | G135: =SUM(G85:G134) -> 4002352.88 | I135: =SUM(I85:I134) -> 1425558.16 | J135: =SUM(J85:J134) -> 118182.9344 | K135: =SUM(K85:K134) -> 0 | L135: =SUM(L85:L134) -> 1543741.094 | M135: =SUM(M85:M134) -> 2458611.786 | O135: =SUM(O85:O134) -> 3895795.47 | P135: =SUM(P85:P134) -> 1484649.627
C136: Less Socialized Renewable Energy Generation Investments (input as negative)Less Socialized Renewable Energy Generation Investments (input as negative) | G136: =D136+E136+F136 -> 0 | L136: =I136+J136+K136 -> 0 | M136: =G136+L136 -> 0 | P136: =O135-P135 -> 2411145.843
C137: Less Other Non Rate-Regulated Utility Assets (input as negative)Less Other Non Rate-Regulated Utility Assets (input as negative) | G137: =D137+E137+F137 -> 0 | L137: =I137+J137+K137 -> 0 | M137: =G137+L137 -> 0 | P137: =AVERAGE(M138,M69) -> 2411145.843
C138: Total PP&E | D138: =SUM(D135:D137) -> 3789238.06 | E138: =SUM(E135:E137) -> 213114.82 | F138: =SUM(F135:F137) -> 0 | G138: =SUM(G135:G137) -> 4002352.88 | I138: =SUM(I135:I137) -> 1425558.16 | J138: =SUM(J135:J137) -> 118182.9344 | K138: =SUM(K135:K137) -> 0 | L138: =SUM(L135:L137) -> 1543741.094 | M138: =SUM(M135:M137) -> 2458611.786
C139: Depreciation Expense adj. from gain or loss on the retirement of assets (pool of like assets) | L139: 0 | O139: From RRR year value Account 2105
C140: Total | J140: =J138+J139 -> 118182.9344
G142: Less: Fully Allocated Depreciation
A143: 10 | C143: Transportation | G143: Transportation
A144: 8 | C144: Stores Equipment | G144: Stores Equipment
A145: 8 | C145: Tools, Shop | G145: Tools, Shop
A146: 8 | C146: Meas/Testing | G146: Meas/Testing
A147: 8 | C147: Communication | G147: Communication
G148: Net Depreciation | J148: =J140+J143+J147+J144+J145+J146 -> 118182.9344
E150: Year | F150: 2016 | G150: IFRS
D152: Cost | J152: Accumulated Depreciation
A153: CCA Class | B153: OEB | C153: Description | D153: Opening Balance | E153: Additions | F153: Disposals | G153: Closing Balance | I153: Opening Balance | J153: Additions | K153: Disposals | L153: Closing Balance | M153: Net Book Value | O153: AVG Gross Bal | P153: AVG AccDep
A154: 12 | B154: 1611 | C154: Computer Software (Formally known as Account 1925) | D154: =G85 -> 127218.83 | E154: 1365 | F154: 0 | G154: =D154+E154+F154 -> 128583.83 | I154: =L85 -> 97448.802 | J154: 0 | K154: 0 | L154: =I154+J154+K154 -> 97448.802 | M154: =G154-L154 -> 31135.028 | O154: =AVERAGE(G154,D154) -> 127901.33 | P154: =AVERAGE(L154,I154) -> 97448.802
A155: CEC | B155: 1612 | C155: Land Rights (Formally known as Account 1906 and 1806) | D155: 0 | E155: 0 | F155: 0 | G155: =D155+E155+F155 -> 0 | I155: 0 | J155: 0 | K155: 0 | L155: =I155+J155+K155 -> 0 | M155: =G155-L155 -> 0 | O155: 0 | P155: 0
A156: N/A | B156: 1805 | C156: Land | D156: 50000 | E156: 0 | F156: 0 | G156: =D156+E156+F156 -> 50000 | I156: 0 | J156: 0 | K156: 0 | L156: =I156+J156+K156 -> 0 | M156: 50000 | O156: 50000 | P156: 0
A157: 47 | B157: 1808 | C157: Buildings | D157: 0 | E157: 0 | F157: 0 | G157: =D157+E157+F157 -> 0 | I157: 0 | J157: 0 | K157: 0 | L157: =I157+J157+K157 -> 0 | M157: 0 | O157: 0 | P157: 0
A158: 13 | B158: 1810 | C158: Leasehold Improvements | D158: 0 | E158: 0 | F158: 0 | G158: 0 | I158: 0 | J158: 0 | K158: 0 | L158: 0 | M158: 0 | O158: 0 | P158: 0
A159: 47 | B159: 1815 | C159: Transformer Station Equipment >50 kV | D159: 0 | E159: 0 | F159: 0 | G159: 0 | I159: 0 | J159: 0 | K159: 0 | L159: 0 | M159: 0 | O159: 0 | P159: 0
A160: 47 | B160: 1820 | C160: Distribution Station Equipment <50 kV | D160: 360297 | E160: 50012.77 | F160: 0 | G160: 410309.77 | I160: 97514.66636 | J160: 18979.92675 | K160: 0 | L160: 116494.5931 | M160: 293815.1769 | O160: 385303.385 | P160: 107004.6297
A161: 47 | B161: 1825 | C161: Storage Battery Equipment | D161: =G92 -> 0 | E161: 0 | F161: 0 | G161: 0 | I161: 0 | J161: 12949.67275 | K161: 0 | L161: 12949.67275 | M161: -12949.67275 | O161: 0 | P161: 6474.836375
A162: 47 | B162: 1830 | C162: Poles, Towers & Fixtures | D162: 749198.61 | E162: 74099 | F162: -27052 | G162: 796245.61 | I162: 262487.6665 | J162: 0 | K162: -15194 | L162: 247293.6665 | M162: 548951.9435 | O162: 772722.11 | P162: 254890.6665
A163: 47 | B163: 1835 | C163: Overhead Conductors & Devices | D163: 662283.01 | E163: 229395 | F163: 0 | G163: 891678.01 | I163: 258969.1693 | J163: 53361.45486 | K163: 0 | L163: 312330.6242 | M163: 579347.3858 | O163: 776980.51 | P163: 285649.8968
A164: 47 | B164: 1840 | C164: Underground Conduit | D164: 0 | E164: 0 | F164: 0 | G164: 0 | I164: 0 | J164: 29251.127 | K164: 0 | L164: 29251.127 | M164: -29251.127 | O164: 0 | P164: 14625.5635
A165: 47 | B165: 1845 | C165: Underground Conductors & Devices | D165: 1853266.32 | E165: 28769 | F165: 0 | G165: 1882035.32 | I165: 526173.247 | J165: 5796.8865 | K165: 0 | L165: 531970.1335 | M165: 1350065.186 | O165: 1867650.82 | P165: 529071.6902
A166: 47 | B166: 1850 | C166: Line Transformers | D166: 1150236.33 | E166: 39618.5 | F166: 0 | G166: 1189854.83 | I166: 339831.767 | J166: 0 | K166: 0 | L166: 339831.767 | M166: 850023.063 | O166: 1170045.58 | P166: 339831.767
A167: 47 | B167: 1855 | C167: Services (Overhead & Underground) | D167: 220787.96 | E167: 22175 | F167: 0 | G167: 242962.96 | I167: 69254.684 | J167: 23295.566 | K167: 0 | L167: 92550.25 | M167: 150412.71 | O167: 231875.46 | P167: 80902.467
A168: 47 | B168: 1860 | C168: Meters | D168: 0 | E168: 0 | F168: 0 | G168: 0 | I168: 0 | J168: 0 | K168: 0 | L168: 0 | M168: 0 | O168: 0 | P168: 0
A169: 47 | B169: 1860 | C169: Meters (Smart Meters) | D169: 345172 | E169: 8523 | F169: 0 | G169: 353695 | I169: 71081 | J169: 0 | K169: 0 | L169: 71081 | M169: 282614 | O169: 349433.5 | P169: 71081
A170: N/A | B170: 1905 | C170: Land | D170: 0 | E170: 0 | F170: 0 | G170: 0 | I170: 0 | J170: 0 | K170: 0 | L170: 0 | M170: 0 | O170: 0 | P170: 0
A171: 47 | B171: 1908 | C171: Buildings & Fixtures | D171: 0 | E171: 0 | F171: 0 | G171: 0 | I171: 0 | J171: 0 | K171: 0 | L171: 0 | M171: 0 | O171: 0 | P171: 0
A172: 13 | B172: 1910 | C172: Leasehold Improvements | D172: 0 | E172: 0 | F172: 0 | G172: 0 | I172: 0 | J172: 0 | K172: 0 | L172: 0 | M172: 0 | O172: 0 | P172: 0
A173: 8 | B173: 1915 | C173: Office Furniture & Equipment (10 years) | D173: 51956.35 | E173: 1563.15 | F173: 0 | G173: 53519.5 | I173: 39929.793 | J173: 2861.6575 | K173: 0 | L173: 42791.4505 | M173: 10728.0495 | O173: 52737.925 | P173: 41360.62175
A174: 8 | B174: 1915 | C174: Office Furniture & Equipment (5 years) | D174: 0 | E174: 0 | F174: 0 | G174: 0 | I174: 0 | J174: 0 | K174: 0 | L174: 0 | M174: 0 | O174: 0 | P174: 0
A175: 10 | B175: 1920 | C175: Computer Equipment - Hardware | D175: 28438.61 | E175: 2159.94 | F175: 0 | G175: 30598.55 | I175: 25299.263 | J175: 1545.096 | K175: 0 | L175: 26844.359 | M175: 3754.191 | O175: 29518.58 | P175: 26071.811
A176: 45 | B176: 1920 | C176: Computer Equip.-Hardware(Post Mar. 22/04) | D176: 0 | E176: 0 | F176: 0 | G176: 0 | I176: 0 | J176: 0 | K176: 0 | L176: 0 | M176: 0 | O176: 0 | P176: 0
A177: 45.1 | B177: 1920 | C177: Computer Equip.-Hardware(Post Mar. 19/07) | D177: 0 | E177: 0 | F177: 0 | G177: 0 | I177: 0 | J177: 0 | K177: 0 | L177: 0 | M177: 0 | O177: 0 | P177: 0
A178: 10 | B178: 1930 | C178: Transportation Equipment | D178: 0 | E178: 0 | F178: 0 | G178: 0 | I178: 0 | J178: 0 | K178: 0 | L178: 0 | M178: 0 | O178: 0 | P178: 0
A179: 8 | B179: 1935 | C179: Stores Equipment | D179: 4320 | E179: 0 | F179: 0 | G179: 4320 | I179: 4320.2 | J179: 0 | K179: 0 | L179: 4320.2 | M179: -0.2 | O179: 4320 | P179: 4320.2
A180: 8 | B180: 1940 | C180: Tools, Shop & Garage Equipment | D180: 0 | E180: 0 | F180: 0 | G180: 0 | I180: 0 | J180: 0 | K180: 0 | L180: 0 | M180: 0 | O180: 0 | P180: 0
A181: 8 | B181: 1945 | C181: Measurement & Testing Equipment | D181: 8486 | E181: 7415.08 | F181: 0 | G181: 15901.08 | I181: 5542.5 | J181: 791.254 | K181: 0 | L181: 6333.754 | M181: 9567.326 | O181: 12193.54 | P181: 5938.127
A182: 8 | B182: 1950 | C182: Power Operated Equipment | D182: 0 | E182: 0 | F182: 0 | G182: 0 | I182: 0 | J182: 0 | K182: 0 | L182: 0 | M182: 0 | O182: 0 | P182: 0
A183: 8 | B183: 1955 | C183: Communications Equipment | D183: 0 | E183: 0 | F183: 0 | G183: 0 | I183: 0 | J183: 0 | K183: 0 | L183: 0 | M183: 0 | O183: 0 | P183: 0
A184: 8 | B184: 1955 | C184: Communication Equipment (Smart Meters) | D184: 0 | E184: 0 | F184: 0 | G184: 0 | I184: 0 | J184: 0 | K184: 0 | L184: 0 | M184: 0 | O184: 0 | P184: 0
A185: 8 | B185: 1960 | C185: Miscellaneous Equipment | D185: 0 | E185: 0 | F185: 0 | G185: 0 | I185: 0 | J185: 0 | K185: 0 | L185: 0 | M185: 0 | O185: 0 | P185: 0
A186: 47 | B186: 1970 | C186: Load Management Controls Customer Premises | D186: 0 | E186: 0 | F186: 0 | G186: 0 | I186: 0 | J186: 0 | K186: 0 | L186: 0 | M186: 0 | O186: 0 | P186: 0
A187: 47 | B187: 1975 | C187: Load Management Controls Utility Premises | D187: 0 | E187: 0 | F187: 0 | G187: 0 | I187: 0 | J187: 0 | K187: 0 | L187: 0 | M187: 0 | O187: 0 | P187: 0
A188: 47 | B188: 1980 | C188: System Supervisor Equipment | D188: 0 | E188: 0 | F188: 0 | G188: 0 | I188: 0 | J188: 0 | K188: 0 | L188: 0 | M188: 0 | O188: 0 | P188: 0
A189: 47 | B189: 1985 | C189: Miscellaneous Fixed Assets | D189: 0 | E189: 0 | F189: 0 | G189: 0 | I189: 0 | J189: 0 | K189: 0 | L189: 0 | M189: 0 | O189: 0 | P189: 0
A190: 47 | B190: 1990 | C190: Other Tangible Property | D190: 0 | E190: 0 | F190: 0 | G190: 0 | I190: 0 | J190: 0 | K190: 0 | L190: 0 | M190: 0 | O190: 0 | P190: 0
A191: 47 | B191: 1995 | C191: Contributions & Grants | D191: -1609309.14 | E191: -6450.5 | F191: 0 | G191: -1615759.64 | I191: -254111.6638 | J191: -40313 | K191: 0 | L191: -294424.6638 | M191: -1321334.976 | O191: -1612534.39 | P191: -274268.1638
B192: etc. | D192: 0 | E192: 0 | F192: 0 | G192: 0 | I192: 0 | J192: 0 | K192: 0 | L192: 0 | M192: 0 | O192: 0 | P192: 0
B193: etc. | D193: 0 | E193: 0 | F193: 0 | G193: 0 | I193: 0 | J193: 0 | K193: 0 | L193: 0 | M193: 0 | O193: 0 | P193: 0
B194: etc. | D194: 0 | E194: 0 | F194: 0 | G194: 0 | I194: 0 | J194: 0 | K194: 0 | L194: 0 | M194: 0 | O194: 0 | P194: 0
B195: etc. | D195: 0 | E195: 0 | F195: 0 | G195: 0 | I195: 0 | J195: 0 | K195: 0 | L195: 0 | M195: 0 | O195: 0 | P195: 0
B196: etc. | D196: 0 | E196: 0 | F196: 0 | G196: 0 | I196: 0 | J196: 0 | K196: 0 | L196: 0 | M196: 0 | O196: 0 | P196: 0
B197: etc. | D197: 0 | E197: 0 | F197: 0 | G197: 0 | I197: 0 | J197: 0 | K197: 0 | L197: 0 | M197: 0 | O197: 0 | P197: 0
B198: etc. | D198: 0 | E198: 0 | F198: 0 | G198: 0 | I198: 0 | J198: 0 | K198: 0 | L198: 0 | M198: 0 | O198: 0 | P198: 0
B199: etc. | D199: 0 | E199: 0 | F199: 0 | G199: 0 | I199: 0 | J199: 0 | K199: 0 | L199: 0 | M199: 0 | O199: 0 | P199: 0
B200: etc. | D200: 0 | E200: 0 | F200: 0 | G200: 0 | I200: 0 | J200: 0 | K200: 0 | L200: 0 | M200: 0 | O200: 0 | P200: 0
B201: etc. | D201: 0 | E201: 0 | F201: 0 | G201: 0 | I201: 0 | J201: 0 | K201: 0 | L201: 0 | M201: 0 | O201: 0 | P201: 0
B202: etc. | D202: 0 | E202: 0 | F202: 0 | G202: =D202+E202+F202 -> 0 | I202: 0 | J202: 0 | K202: 0 | L202: 0 | M202: 0 | O202: 0 | P202: 0
D203: 0 | G203: =D203+E203+F203 -> 0 | I203: 0 | J203: 0 | K203: 0 | L203: 0 | M203: 0 | O203: 0 | P203: 0
C204: Sub-Total | D204: =SUM(D154:D203) -> 4002351.88 | E204: =SUM(E154:E203) -> 458644.94 | F204: =SUM(F154:F203) -> -27052 | G204: =SUM(G154:G203) -> 4433944.82 | I204: =SUM(I154:I203) -> 1543741.094 | J204: =SUM(J154:J203) -> 108519.6414 | K204: =SUM(K154:K203) -> -15194 | L204: =SUM(L154:L203) -> 1637066.736 | M204: =SUM(M154:M203) -> 2796878.084 | O204: =SUM(O154:O203) -> 4218148.35 | P204: =SUM(P154:P203) -> 1590403.915
C205: Less Socialized Renewable Energy Generation Investments (input as negative)Less Socialized Renewable Energy Generation Investments (input as negative) | G205: =D205+E205+F205 -> 0 | L205: =I205+J205+K205 -> 0 | M205: =G205+L205 -> 0 | P205: =O204-P204 -> 2627744.435
C206: Less Other Non Rate-Regulated Utility Assets (input as negative)Less Other Non Rate-Regulated Utility Assets (input as negative) | G206: =D206+E206+F206 -> 0 | L206: =I206+J206+K206 -> 0 | M206: =G206+L206 -> 0 | P206: =AVERAGE(M207,M138) -> 2627744.935
C207: Total PP&E | D207: =SUM(D204:D206) -> 4002351.88 | E207: =SUM(E204:E206) -> 458644.94 | F207: =SUM(F204:F206) -> -27052 | G207: =SUM(G204:G206) -> 4433944.82 | I207: =SUM(I204:I206) -> 1543741.094 | J207: =SUM(J204:J206) -> 108519.6414 | K207: =SUM(K204:K206) -> -15194 | L207: =SUM(L204:L206) -> 1637066.736 | M207: =SUM(M204:M206) -> 2796878.084
C208: Depreciation Expense adj. from gain or loss on the retirement of assets (pool of like assets)
C209: Total | J209: =J207+J208 -> 108519.6414
G211: Less: Fully Allocated Depreciation
... 136 more rows

Sheet Appendix 2-BB Service Life
N1: File Number: | P1: 0
A2: NOT APPLICABLE | N2: Exhibit:
N3: Tab:
N4: Schedule:
N5: Page:
N7: Date:
A9: Appendix 2-BB
A10: Service Life Comparison
A11: Table F-1 from Kinetrics Report1
C15: Asset Details | F15: Useful Life | J15: USoA Account Number | K15: USoA Account Description | L15: Current | N15: Proposed | P15: Outside Range of Min, Max TUL?
A16: Parent* | B16: # | C16: Category| Component | Type | F16: MIN UL | G16: TUL | H16: MAX UL | L16: Years | M16: Rate | N16: Years | O16: Rate | P16: Below Min TUL | Q16: Above Max TUL
A17: OH | B17: 1 | C17: Fully Dressed Wood Poles | D17: Overall | F17: 35 | G17: 45 | H17: 75 | M17: =IF(ISERROR(1/L17), "", 1/L17) ->  | O17: =IF(ISERROR(1/N17), "", 1/N17) ->  | P17: =IF(ISBLANK(N17),"",IF(N17<F17,"Yes","No")) ->  | Q17: =IF(ISBLANK(N17),"",IF(N17>H17,"Yes","No")) -> 
D18: Cross Arm | E18: Wood | F18: 20 | G18: 40 | H18: 55 | M18: =IF(ISERROR(1/L18), "", 1/L18) ->  | O18: =IF(ISERROR(1/N18), "", 1/N18) ->  | P18: =IF(ISBLANK(N18),"",IF(N18<F18,"Yes","No")) ->  | Q18: =IF(ISBLANK(N18),"",IF(N18>H18,"Yes","No")) -> 
E19: Steel | F19: 30 | G19: 70 | H19: 95
B20: 2 | C20: Fully Dressed Concrete Poles | D20: Overall | F20: 50 | G20: 60 | H20: 80
D21: Cross Arm | E21: Wood | F21: 20 | G21: 40 | H21: 55
E22: Steel | F22: 30 | G22: 70 | H22: 95
B23: 3 | C23: Fully Dressed Steel Poles | D23: Overall | F23: 60 | G23: 60 | H23: 80
D24: Cross Arm | E24: Wood | F24: 20 | G24: 40 | H24: 55
E25: Steel | F25: 30 | G25: 70 | H25: 95
B26: 4 | C26: OH Line Switch | F26: 30 | G26: 45 | H26: 55
B27: 5 | C27: OH Line Switch Motor | F27: 15 | G27: 25 | H27: 25
B28: 6 | C28: OH Line Switch RTU | F28: 15 | G28: 20 | H28: 20
B29: 7 | C29: OH Integral Switches | F29: 35 | G29: 45 | H29: 60
B30: 8 | C30: OH Conductors | F30: 50 | G30: 60 | H30: 75
B31: 9 | C31: OH Transformers & Voltage Regulators | F31: 30 | G31: 40 | H31: 60
B32: 10 | C32: OH Shunt Capacitor Banks | F32: 25 | G32: 30 | H32: 40
B33: 11 | C33: Reclosers | F33: 25 | G33: 40 | H33: 55
A34: TS & MS | B34: 12 | C34: Power Transformers | D34: Overall | F34: 30 | G34: 45 | H34: 60
D35: Bushing | F35: 10 | G35: 20 | H35: 30
D36: Tap Changer | F36: 20 | G36: 30 | H36: 60
B37: 13 | C37: Station Service Transformer | F37: 30 | G37: 45 | H37: 55
B38: 14 | C38: Station Grounding Transformer | F38: 30 | G38: 40 | H38: 40
B39: 15 | C39: Station DC System | D39: Overall | F39: 10 | G39: 20 | H39: 30
D40: Battery Bank | F40: 10 | G40: 15 | H40: 15
D41: Charger | F41: 20 | G41: 20 | H41: 30
B42: 16 | C42: Station Metal Clad Switchgear | D42: Overall | F42: 30 | G42: 40 | H42: 60
D43: Removable Breaker | F43: 25 | G43: 40 | H43: 60
B44: 17 | C44: Station Independent Breakers | F44: 35 | G44: 45 | H44: 65
B45: 18 | C45: Station Switch | F45: 30 | G45: 50 | H45: 60
B46: 19 | C46: Electromechanical Relays | F46: 25 | G46: 35 | H46: 50
B47: 20 | C47: Solid State Relays | F47: 10 | G47: 30 | H47: 45
B48: 21 | C48: Digital & Numeric Relays | F48: 15 | G48: 20 | H48: 20
B49: 22 | C49: Rigid Busbars | F49: 30 | G49: 55 | H49: 60
B50: 23 | C50: Steel Structure | F50: 35 | G50: 50 | H50: 90
A51: UG | B51: 24 | C51: Primary Paper Insulated Lead Covered (PILC) Cables | F51: 60 | G51: 65 | H51: 75
B52: 25 | C52: Primary Ethylene-Propylene Rubber (EPR) Cables | F52: 20 | G52: 25 | H52: 25
B53: 26 | C53: Primary Non-Tree Retardant (TR) Cross Linked Polyethylene (XLPE) Cables Direct Buried | F53: 20 | G53: 25 | H53: 30
B54: 27 | C54: Primary Non-TR XLPE Cables in Duct | F54: 20 | G54: 25 | H54: 30
B55: 30 | C55: Secondary PILC Cables | F55: 70 | G55: 75 | H55: 80
B56: 31 | C56: Secondary Cables Direct Buried | F56: 25 | G56: 35 | H56: 40
B57: 32 | C57: Secondary Cables in Duct | F57: 35 | G57: 40 | H57: 60
B58: 33 | C58: Network Tranformers | D58: Overall | F58: 20 | G58: 35 | H58: 50
D59: Protector | F59: 20 | G59: 35 | H59: 40
B60: 34 | C60: Pad-Mounted Transformers | F60: 25 | G60: 40 | H60: 45
B61: 35 | C61: Submersible/Vault Transformers | F61: 25 | G61: 35 | H61: 45
B62: 36 | C62: UG Foundation | F62: 35 | G62: 55 | H62: 70
B63: 37 | C63: UG Vaults | D63: Overall | F63: 40 | G63: 60 | H63: 80
D64: Roof | F64: 20 | G64: 30 | H64: 45
B65: 38 | C65: UG Vault Switches | F65: 20 | G65: 35 | H65: 50
B66: 39 | C66: Pad-Mounted Switchgear | F66: 20 | G66: 30 | H66: 45
B67: 40 | C67: Ducts | F67: 30 | G67: 50 | H67: 85
B68: 41 | C68: Concrete Encased Duct Banks | F68: 35 | G68: 55 | H68: 80
B69: 42 | C69: Cable Chambers | F69: 50 | G69: 60 | H69: 80
A70: S | B70: 43 | C70: Remote SCADA | F70: 15 | G70: 20 | H70: 30
A73: Table F-2 from Kinetrics Report1
C75: Asset Details | F75: Useful Life Range | J75: USoA Account Number | K75: USoA Account Description | L75: Current | N75: Proposed | P75: Outside Range of Min, Max TUL?
B76: # | C76: Category| Component | Type | L76: Years | M76: Rate | N76: Years | O76: Rate | P76: Below Min Range | Q76: Above Max Range
B77: 1 | C77: Office Equipment | F77: 5 | G77: 15 | M77: =IF(ISERROR(1/L77), "", 1/L77) ->  | O77: =IF(ISERROR(1/N77), "", 1/N77) ->  | P77: =IF(ISBLANK(N77),"",IF(N77<F77,"Yes","No")) ->  | Q77: =IF(ISBLANK(N77),"",IF(N77>G77,"Yes","No")) -> 
B78: 2 | C78: Vehicles | D78: Trucks & Buckets | F78: 5 | G78: 15 | M78: =IF(ISERROR(1/L78), "", 1/L78) ->  | O78: =IF(ISERROR(1/N78), "", 1/N78) ->  | P78: =IF(ISBLANK(N78),"",IF(N78<F78,"Yes","No")) ->  | Q78: =IF(ISBLANK(N78),"",IF(N78>G78,"Yes","No")) -> 
D79: Trailers | F79: 5 | G79: 20
D80: Vans | F80: 5 | G80: 10
B81: 3 | C81: Administrative Buildings | F81: 50 | G81: 75
B82: 4 | C82: Leasehold Improvements | F82: Lease dependent
B83: 5 | C83: Station Buildings | D83: Station Buildings | F83: 50 | G83: 75
D84: Parking | F84: 25 | G84: 30
D85: Fence | F85: 25 | G85: 60
D86: Roof | F86: 20 | G86: 30
B87: 6 | C87: Computer Equipment | D87: Hardware | F87: 3 | G87: 5
D88: Software | F88: 2 | G88: 5
B89: 7 | C89: Equipment | D89: Power Operated | F89: 5 | G89: 10
D90: Stores | F90: 5 | G90: 10
D91: Tools, Shop, Garage Equipment | F91: 5 | G91: 10
D92: Measurement & Testing Equipment | F92: 5 | G92: 10
B93: 8 | C93: Communication | D93: Towers | F93: 60 | G93: 70
D94: Wireless | F94: 2 | G94: 10
B95: 9 | C95: Residential Energy Meters | F95: 25 | G95: 35
B96: 10 | C96: Industrial/Commercial Energy Meters | F96: 25 | G96: 35
B97: 11 | C97: Wholesale Energy Meters | F97: 15 | G97: 30
B98: 12 | C98: Current & Potential Transformer (CT & PT) | F98: 35 | G98: 50
B99: 13 | C99: Smart Meters | F99: 5 | G99: 15
B100: 14 | C100: Repeaters - Smart Metering | F100: 10 | G100: 15
B101: 15 | C101: Data Collectors - Smart Metering | F101: 15 | G101: 20
A104: * TS & MS = Transformer and Municipal Stations UG = Underground Systems S = Monitoring and Control Systems
A106: Note 1: | B106: Tables F-1 and F-2 above are to be used as a reference in order to complete columns J, K, L and N.
B107: See pages 17-19 of Kinetrics Report

Sheet App.2-CA_OldCGAAPDepExp_Yr1
K1: File Number: | L1: =EBNUMBER -> 0
A2: NOT APPLICABLE | K2: Exhibit:
K3: Tab:
K4: Schedule:
K5: Page:
K7: Date:
A9: Appendix 2-CA
A10: Depreciation and Amortization Expense
B11: Former CGAAP (Year 1)
A13: Select the set of appendices that apply | K13: Year Reflected in Schedule Below | L13: Accounting Standard
A14: 2012 Set of Appendices (2-CA to 2-CG) | C14: Assumes the applicant made capitalization and depreciation expense accounting policy changes under CGAAP effective January 1, 2012 and has adopted IFRS for financial reporting purposes effective January 1, 2015. Assumes that the applicant is reflecting these changes in a rebasing application for the first time. | K14: 2012 | L14: Former CGAAP
A15: 2013 Set of Appendices (2-CA to 2-CF) | C15: Assumes the applicant made capitalization and depreciation expense accounting policy changes under CGAAP effective January 1, 2013 and has adopted IFRS for financial reporting purposes effective January 1, 2015. Assumes that the applicant is reflecting these changes in a rebasing application for the first time. | K15: 2013 | L15: Former CGAAP
A18: Account | B18: Description | C18: Opening Regulatory Gross PP&E as at Jan. 1 | D18: Less Fully Depreciated | E18: Net for Depreciation | F18: Additions | G18: Total for Depreciation 1 | H18: Years | I18: Depreciation Rate | J18: Current Year Depreciation Expense | K18: Depreciation Expense per Appendix 2-BA Fixed Assets, Column J (l) | L18: Variance 2
C19: (a) | D19: (b) | E19: (c) | F19: (d) | G19: (e) = (c) + ½ x (d) | H19: (f) | I19: (g) = 1 / (f) | J19: (h) = (e) / (f) | L19: (m) = (h) - (l)
A20: 1611 | B20: Computer Software (Formally known as Account 1925) | E20: =C20-D20 -> 0 | G20: =E20+0.5*F20 -> 0 | I20: =IF(H20=0,0,1/H20) -> 0 | J20: =IF(H20=0,0,G20/H20) -> 0 | L20: =IF(ISERROR(+J20-K20), 0, +J20-K20) -> 0
A21: 1612 | B21: Land Rights (Formally known as Account 1906) | E21: =C21-D21 -> 0 | G21: =E21+0.5*F21 -> 0 | I21: 0 | J21: 0 | L21: 0
A22: 1805 | B22: Land | E22: 0 | G22: 0 | I22: 0 | J22: 0 | L22: 0
A23: 1808 | B23: Buildings | E23: 0 | G23: 0 | I23: 0 | J23: 0 | L23: 0
A24: 1810 | B24: Leasehold Improvements | E24: 0 | G24: 0 | I24: 0 | J24: 0 | L24: 0
A25: 1815 | B25: Transformer Station Equipment >50 kV | E25: 0 | G25: 0 | I25: 0 | J25: 0 | L25: 0
A26: 1820 | B26: Distribution Station Equipment <50 kV | E26: 0 | G26: 0 | I26: 0 | J26: 0 | L26: 0
A27: 1825 | B27: Storage Battery Equipment | E27: 0 | G27: 0 | I27: 0 | J27: 0 | L27: 0
A28: 1830 | B28: Poles, Towers & Fixtures | E28: 0 | G28: 0 | I28: 0 | J28: 0 | L28: 0
A29: 1835 | B29: Overhead Conductors & Devices | E29: 0 | G29: 0 | I29: 0 | J29: 0 | L29: 0
A30: 1840 | B30: Underground Conduit | E30: 0 | G30: 0 | I30: 0 | J30: 0 | L30: 0
A31: 1845 | B31: Underground Conductors & Devices | E31: 0 | G31: 0 | I31: 0 | J31: 0 | L31: 0
A32: 1850 | B32: Line Transformers | E32: 0 | G32: 0 | I32: 0 | J32: 0 | L32: 0
A33: 1855 | B33: Services (Overhead & Underground) | E33: 0 | G33: 0 | I33: 0 | J33: 0 | L33: 0
A34: 1860 | B34: Meters | E34: 0 | G34: 0 | I34: 0 | J34: 0 | L34: 0
A35: 1860 | B35: Meters (Smart Meters) | E35: 0 | G35: 0 | I35: 0 | J35: 0 | L35: 0
A36: 1905 | B36: Land | E36: 0 | G36: 0 | I36: 0 | J36: 0 | L36: 0
A37: 1908 | B37: Buildings & Fixtures | E37: 0 | G37: 0 | I37: 0 | J37: 0 | L37: 0
A38: 1910 | B38: Leasehold Improvements | E38: 0 | G38: 0 | I38: 0 | J38: 0 | L38: 0
A39: 1915 | B39: Office Furniture & Equipment (10 years) | E39: 0 | G39: 0 | I39: 0 | J39: 0 | L39: 0
A40: 1915 | B40: Office Furniture & Equipment (5 years) | E40: 0 | G40: 0 | I40: 0 | J40: 0 | L40: 0
A41: 1920 | B41: Computer Equipment - Hardware | E41: 0 | G41: 0 | I41: 0 | J41: 0 | L41: 0
A42: 1920 | B42: Computer Equip.-Hardware(Post Mar. 22/04) | E42: 0 | G42: 0 | I42: 0 | J42: 0 | L42: 0
A43: 1920 | B43: Computer Equip.-Hardware(Post Mar. 19/07) | E43: 0 | G43: 0 | I43: 0 | J43: 0 | L43: 0
A44: 1930 | B44: Transportation Equipment | E44: 0 | G44: 0 | I44: 0 | J44: 0 | L44: 0
A45: 1935 | B45: Stores Equipment | E45: 0 | G45: 0 | I45: 0 | J45: 0 | L45: 0
A46: 1940 | B46: Tools, Shop & Garage Equipment | E46: 0 | G46: 0 | I46: 0 | J46: 0 | L46: 0
A47: 1945 | B47: Measurement & Testing Equipment | E47: 0 | G47: 0 | I47: 0 | J47: 0 | L47: 0
A48: 1950 | B48: Power Operated Equipment | E48: 0 | G48: 0 | I48: 0 | J48: 0 | L48: 0
A49: 1955 | B49: Communications Equipment | E49: 0 | G49: 0 | I49: 0 | J49: 0 | L49: 0
A50: 1955 | B50: Communication Equipment (Smart Meters) | E50: 0 | G50: 0 | I50: 0 | J50: 0 | L50: 0
A51: 1960 | B51: Miscellaneous Equipment | E51: 0 | G51: 0 | I51: 0 | J51: 0 | L51: 0
A52: 1970 | B52: Load Management Controls Customer Premises | E52: 0 | G52: 0 | I52: 0 | J52: 0 | L52: 0
A53: 1975 | B53: Load Management Controls Utility Premises | E53: 0 | G53: 0 | I53: 0 | J53: 0 | L53: 0
A54: 1980 | B54: System Supervisor Equipment | E54: 0 | G54: 0 | I54: 0 | J54: 0 | L54: 0
A55: 1985 | B55: Miscellaneous Fixed Assets | E55: 0 | G55: 0 | I55: 0 | J55: 0 | L55: 0
A56: 1990 | B56: Other Tangible Property | E56: 0 | G56: 0 | I56: 0 | J56: 0 | L56: 0
A57: 1995 | B57: Contributions & Grants | E57: 0 | G57: 0 | I57: 0 | J57: 0 | L57: 0
B58: Total | C58: =SUM(C20:C57) -> 0 | D58: =SUM(D20:D57) -> 0 | E58: =SUM(E20:E57) -> 0 | F58: =SUM(F20:F57) -> 0 | G58: =SUM(G20:G57) -> 0 | J58: =SUM(J20:J57) -> 0 | K58: =SUM(K20:K57) -> 0 | L58: =SUM(L20:L57) -> 0
A60: Notes:
A62: 1 | B62: Board policy of the "half-year" rule - the applicant must ensure that additions in the year attract a half-year depreciation expense in the first year. Deviations from this standard practice must be supported in the application.
A63: 2 | B63: The applicant must provide an explanation of material variances.
A65: General | B65: Applicants must provide a breakdown of depreciation and amortization expense in the above format for all relevant accounts. Asset Retirement Obligations (AROs), depreciation and accretion expense should be disclosed separately consistent with the Notes of historical Audited Financial Statements.

Sheet App.2-CB_NewCGAAP_DepExp_Yr1
N1: File Number: | O1: =EBNUMBER -> 0
B2: NOT APPLICABLE | N2: Exhibit:
N3: Tab:
N4: Schedule:
N5: Page:
N7: Date:
A9: Appendix 2-CB
A10: Depreciation and Amortization Expense
A11: Revised CGAAP (Year 1)
A13: Select the set of appendices that apply | L13: Year Reflected in Schedule Below | N13: Accounting Standard
A14: 2012 Set of Appendices (2-CA to 2-CG) | C14: Assumes the applicant made capitalization and depreciation expense accounting policy changes under CGAAP effective January 1, 2012 and has adopted IFRS for financial reporting purposes effective January 1, 2015. Assumes that the applicant is reflecting these changes in a rebasing application for the first time. | L14: 2012 | N14: Revised CGAAP
A15: 2013 Set of Appendices (2-CA to 2-CF) | C15: Assumes the applicant made capitalization and depreciation expense accounting policy changes under CGAAP effective January 1, 2013 and has adopted IFRS for financial reporting purposes effective January 1, 2015. Assumes that the applicant is reflecting these changes in a rebasing application for the first time. | L15: 2013 | N15: Revised CGAAP
A18: Account | B18: Description | C18: Opening NBV as at Jan 15 | D18: Additions | E18: Average Remaining Life of Opening NBV 4 | F18: Years (new additions only) 3 | G18: Depreciation Rate on New Additions | H18: Depreciation Expense on Opening NBV | I18: Depreciation Expense on Additions 1 | J18: Current Year Depreciation Expense | K18: Depreciation Expense per Appendix 2-BA Fixed Assets, Column J (l) | L18: Variance 2 | M18: Depreciation Expense on Current Full Year Additions | N18: Less Depreciation Expense on Assets Fully Depreciated During the Year (o) | O18: Current Full Year Depreciation 6
C19: (a) | D19: (d) | E19: (i) | F19: (f) | G19: (g) = 1 / (f) | H19: (j) = (a) / (i) | I19: (h)=((d)*0.5)/(f) | J19: (k) = (j) + (h) | L19: (m) = (k) - (l) | M19: (n) = (d)/(f) | O19: (p) = (j) + (n) - (o)
A20: 1611 | B20: Computer Software (Formally known as Account 1925) | G20: =IF(F20=0,0,1/F20) -> 0 | H20: =IF(E20=0,0,+C20/E20) -> 0 | I20: =IF(F20=0,0,+(D20*0.5)/F20) -> 0 | J20: =IF(ISERROR(+H20+I20), 0, +H20+I20) -> 0 | L20: =IF(ISERROR(+J20-K20), 0, +J20-K20) -> 0 | M20: =IF(F20=0,0,+(D20)/F20) -> 0 | O20: =IF(ISERROR(+M20+H20-N20), 0, +M20+H20-N20) -> 0
A21: 1612 | B21: Land Rights (Formally known as Account 1906) | G21: 0 | H21: 0 | I21: 0 | J21: 0 | L21: 0 | M21: 0 | O21: =IF(ISERROR(+M21+H21-N21), 0, +M21+H21-N21) -> 0
A22: 1805 | B22: Land | G22: 0 | H22: 0 | I22: 0 | J22: 0 | L22: 0 | M22: 0 | O22: 0
A23: 1808 | B23: Buildings | G23: 0 | H23: 0 | I23: 0 | J23: 0 | L23: 0 | M23: 0 | O23: 0
A24: 1810 | B24: Leasehold Improvements | G24: 0 | H24: 0 | I24: 0 | J24: 0 | L24: 0 | M24: 0 | O24: 0
A25: 1815 | B25: Transformer Station Equipment >50 kV | G25: 0 | H25: 0 | I25: 0 | J25: 0 | L25: 0 | M25: 0 | O25: 0
A26: 1820 | B26: Distribution Station Equipment <50 kV | G26: 0 | H26: 0 | I26: 0 | J26: 0 | L26: 0 | M26: 0 | O26: 0
A27: 1825 | B27: Storage Battery Equipment | G27: 0 | H27: 0 | I27: 0 | J27: 0 | L27: 0 | M27: 0 | O27: 0
A28: 1830 | B28: Poles, Towers & Fixtures | G28: 0 | H28: 0 | I28: 0 | J28: 0 | L28: 0 | M28: 0 | O28: 0
A29: 1835 | B29: Overhead Conductors & Devices | G29: 0 | H29: 0 | I29: 0 | J29: 0 | L29: 0 | M29: 0 | O29: 0
A30: 1840 | B30: Underground Conduit | G30: 0 | H30: 0 | I30: 0 | J30: 0 | L30: 0 | M30: 0 | O30: 0
A31: 1845 | B31: Underground Conductors & Devices | G31: 0 | H31: 0 | I31: 0 | J31: 0 | L31: 0 | M31: 0 | O31: 0
A32: 1850 | B32: Line Transformers | G32: 0 | H32: 0 | I32: 0 | J32: 0 | L32: 0 | M32: 0 | O32: 0
A33: 1855 | B33: Services (Overhead & Underground) | G33: 0 | H33: 0 | I33: 0 | J33: 0 | L33: 0 | M33: 0 | O33: 0
A34: 1860 | B34: Meters | G34: 0 | H34: 0 | I34: 0 | J34: 0 | L34: 0 | M34: 0 | O34: 0
A35: 1860 | B35: Meters (Smart Meters) | G35: 0 | H35: 0 | I35: 0 | J35: 0 | L35: 0 | M35: 0 | O35: 0
A36: 1905 | B36: Land | G36: 0 | H36: 0 | I36: 0 | J36: 0 | L36: 0 | M36: 0 | O36: 0
A37: 1908 | B37: Buildings & Fixtures | G37: 0 | H37: 0 | I37: 0 | J37: 0 | L37: 0 | M37: 0 | O37: 0
A38: 1910 | B38: Leasehold Improvements | G38: 0 | H38: 0 | I38: 0 | J38: 0 | L38: 0 | M38: 0 | O38: 0
A39: 1915 | B39: Office Furniture & Equipment (10 years) | G39: 0 | H39: 0 | I39: 0 | J39: 0 | L39: 0 | M39: 0 | O39: 0
A40: 1915 | B40: Office Furniture & Equipment (5 years) | G40: 0 | H40: 0 | I40: 0 | J40: 0 | L40: 0 | M40: 0 | O40: 0
A41: 1920 | B41: Computer Equipment - Hardware | G41: 0 | H41: 0 | I41: 0 | J41: 0 | L41: 0 | M41: 0 | O41: 0
A42: 1920 | B42: Computer Equip.-Hardware(Post Mar. 22/04) | G42: 0 | H42: 0 | I42: 0 | J42: 0 | L42: 0 | M42: 0 | O42: 0
A43: 1920 | B43: Computer Equip.-Hardware(Post Mar. 19/07) | G43: 0 | H43: 0 | I43: 0 | J43: 0 | L43: 0 | M43: 0 | O43: 0
A44: 1930 | B44: Transportation Equipment | G44: 0 | H44: 0 | I44: 0 | J44: 0 | L44: 0 | M44: 0 | O44: 0
A45: 1935 | B45: Stores Equipment | G45: 0 | H45: 0 | I45: 0 | J45: 0 | L45: 0 | M45: 0 | O45: 0
A46: 1940 | B46: Tools, Shop & Garage Equipment | G46: 0 | H46: 0 | I46: 0 | J46: 0 | L46: 0 | M46: 0 | O46: 0
A47: 1945 | B47: Measurement & Testing Equipment | G47: 0 | H47: 0 | I47: 0 | J47: 0 | L47: 0 | M47: 0 | O47: 0
A48: 1950 | B48: Power Operated Equipment | G48: 0 | H48: 0 | I48: 0 | J48: 0 | L48: 0 | M48: 0 | O48: 0
A49: 1955 | B49: Communications Equipment | G49: 0 | H49: 0 | I49: 0 | J49: 0 | L49: 0 | M49: 0 | O49: 0
A50: 1955 | B50: Communication Equipment (Smart Meters) | G50: 0 | H50: 0 | I50: 0 | J50: 0 | L50: 0 | M50: 0 | O50: 0
A51: 1960 | B51: Miscellaneous Equipment | G51: 0 | H51: 0 | I51: 0 | J51: 0 | L51: 0 | M51: 0 | O51: 0
A52: 1970 | B52: Load Management Controls Customer Premises | G52: 0 | H52: 0 | I52: 0 | J52: 0 | L52: 0 | M52: 0 | O52: 0
A53: 1975 | B53: Load Management Controls Utility Premises | G53: 0 | H53: 0 | I53: 0 | J53: 0 | L53: 0 | M53: 0 | O53: 0
A54: 1980 | B54: System Supervisor Equipment | G54: 0 | H54: 0 | I54: 0 | J54: 0 | L54: 0 | M54: 0 | O54: 0
A55: 1985 | B55: Miscellaneous Fixed Assets | G55: 0 | H55: 0 | I55: 0 | J55: 0 | L55: 0 | M55: 0 | O55: 0
A56: 1990 | B56: Other Tangible Property | G56: 0 | H56: 0 | I56: 0 | J56: 0 | L56: 0 | M56: 0 | O56: 0
A57: 1995 | B57: Contributions & Grants | G57: 0 | H57: 0 | I57: 0 | J57: 0 | L57: 0 | M57: 0 | O57: 0
B58: Total | C58: =SUM(C20:C57) -> 0 | D58: =SUM(D20:D57) -> 0 | H58: =SUM(H20:H57) -> 0 | I58: 0 | J58: 0 | K58: 0 | L58: 0 | M58: 0 | N58: 0 | O58: 0
A60: Notes:
A62: 1 | B62: Board policy of the "half-year" rule - the applicant must ensure that additions in the year attract a half-year depreciation expense in the first year. Deviations from this standard practice must be supported in the application.
A63: 2 | B63: The applicant must provide an explanation of material variances in evidence.
A64: 3 | B64: The applicant should ensure that the years for new additions of assets are the asset useful lives determined by management in accordance with the Board's regulatory accounting policies. The capitalization and depreciation expense accounting changes should be implemented consistent with the Board’s regulatory accounting policies as set out for modified IFRS as contained in the Report of the Board, Transition to International Financial Reporting Standards, EB-2008-0408, the Kinectrics Report, and the Revised 2012 Accounting Procedures Handbook for Electricity Distributors (“APH”).
A65: 4 | B65: A recalculation should be performed to determine the average remaining life of opening balance of assets (i.e. excluding current year's additions) under the change in policies under CGAAP. For example, Asset A had a useful life of 20 years under CGAAP without the change in policies. On January 1 of the year of policy changes, Asset A was 3 years depreciated. As a result, Asset A would have a remaining service life of 17 years (20 years less 3 years) as at January 1 of the year of policy changes. Due to making the change in policies under CGAAP, management re-assessed the asset useful lives and concluded that the revised useful life of Asset A is now 30 years. Therefore, the average remaining useful life of the opening balance of Asset A is determined to be 27 years (30 years less 3 years) under the revised CGAAP as at January 1 of the year of policy changes.
A66: 5 | B66: NBV must exclude assets still on the books but which have been fully amortized or depreciated.
A67: 6 | B67: This column refers to the calculated full year depreciation but excludes the depreciation expense on assets fully depreciated during the year. This column is used for the purpose of calculating depreciation expense in the following year on the next worksheet.
A69: General: | B69: Applicants must provide a breakdown of depreciation and amortization expense in the above format for all relevant accounts. Asset Retirement Obligations (AROs), depreciation and accretion expense should be disclosed separately consistent with the Notes of historical Audited Financial Statements.

Sheet App.2-CC_DepExp_Yr2
J1: File Number: | K1: =EBNUMBER -> 0
A2: NOT APPLICABLE | J2: Exhibit:
J3: Tab:
J4: Schedule:
J5: Page:
J7: Date:
A9: Appendix 2-CC
A10: Depreciation and Amortization Expense
A11: Revised CGAAP (Year 2)
A13: Select the set of appendices that apply | J13: Year Reflected in Schedule Below | K13: Accounting Standard
A14: 2012 Set of Appendices (2-CA to 2-CG) | C14: Assumes the applicant made capitalization and depreciation expense accounting policy changes under CGAAP effective January 1, 2012 and has adopted IFRS for financial reporting purposes effective January 1, 2015. Assumes that the applicant is reflecting these changes in a rebasing application for the first time. | J14: 2013 | K14: Revised CGAAP
A15: 2013 Set of Appendices (2-CA to 2-CF) | C15: Assumes the applicant made capitalization and depreciation expense accounting policy changes under CGAAP effective January 1, 2013 and has adopted IFRS for financial reporting purposes effective January 1, 2015. Assumes that the applicant is reflecting these changes in a rebasing application for the first time. | J15: 2014 | K15: Revised CGAAP
A18: Account | B18: Description | C18: Additions | D18: Years (new additions only) | E18: Depreciation Rate on New Additions | F18: Current Year Depreciation Expense 1 | G18: Depreciation Expense per Apppendix 2-BA Fixed Assets, Column J (l) | H18: Variance 2 | I18: Depreciation Expense on Current Full Year Additions | J18: Less Depreciation Expense on Assets Fully Depreciated During the Year (o) | K18: Current Full Year Depreciation 3
C19: (d) | D19: (f) | E19: (g) = 1 / (f) | F19: (h)= Prior Full Year Deprecation + ((d)*0.5)/(f) | H19: (m) = (h) - (l) | I19: (n)=((d))/(f) | K19: (p) = Prior Full Year Depreciation + (n) - (o)
A20: 1611 | B20: Computer Software (Formally known as Account 1925) | E20: =IF(D20=0,0,1/D20) -> 0 | F20: =IF(D20=0,+'App.2-CB_NewCGAAP_DepExp_Yr1'!O20,+'App.2-CB_NewCGAAP_DepExp_Yr1'!O20+((C20*0.5)/D20)) -> 0 | H20: =IF(ISERROR(+F20-G20), 0, +F20-G20) -> 0 | I20: =IF(D20=0,0,+(C20)/D20) -> 0 | K20: =IF(ISERROR(+I20+'App.2-CB_NewCGAAP_DepExp_Yr1'!O20-J20), 0, +I20+'App.2-CB_NewCGAAP_DepExp_Yr1'!O20-J20) -> 0
A21: 1612 | B21: Land Rights (Formally known as Account 1906) | E21: 0 | F21: =IF(D21=0,+'App.2-CB_NewCGAAP_DepExp_Yr1'!O21,+'App.2-CB_NewCGAAP_DepExp_Yr1'!O21+((C21*0.5)/D21)) -> 0 | H21: 0 | I21: 0 | K21: =IF(ISERROR(+I21+'App.2-CB_NewCGAAP_DepExp_Yr1'!O21-J21), 0, +I21+'App.2-CB_NewCGAAP_DepExp_Yr1'!O21-J21) -> 0
A22: 1805 | B22: Land | E22: 0 | F22: =IF(D22=0,+'App.2-CB_NewCGAAP_DepExp_Yr1'!O22,+'App.2-CB_NewCGAAP_DepExp_Yr1'!O22+((C22*0.5)/D22)) -> 0 | H22: 0 | I22: 0 | K22: =IF(ISERROR(+I22+'App.2-CB_NewCGAAP_DepExp_Yr1'!O22-J22), 0, +I22+'App.2-CB_NewCGAAP_DepExp_Yr1'!O22-J22) -> 0
A23: 1808 | B23: Buildings | E23: 0 | F23: =IF(D23=0,+'App.2-CB_NewCGAAP_DepExp_Yr1'!O23,+'App.2-CB_NewCGAAP_DepExp_Yr1'!O23+((C23*0.5)/D23)) -> 0 | H23: 0 | I23: 0 | K23: =IF(ISERROR(+I23+'App.2-CB_NewCGAAP_DepExp_Yr1'!O23-J23), 0, +I23+'App.2-CB_NewCGAAP_DepExp_Yr1'!O23-J23) -> 0
A24: 1810 | B24: Leasehold Improvements | E24: 0 | F24: =IF(D24=0,+'App.2-CB_NewCGAAP_DepExp_Yr1'!O24,+'App.2-CB_NewCGAAP_DepExp_Yr1'!O24+((C24*0.5)/D24)) -> 0 | H24: 0 | I24: 0 | K24: =IF(ISERROR(+I24+'App.2-CB_NewCGAAP_DepExp_Yr1'!O24-J24), 0, +I24+'App.2-CB_NewCGAAP_DepExp_Yr1'!O24-J24) -> 0
A25: 1815 | B25: Transformer Station Equipment >50 kV | E25: 0 | F25: =IF(D25=0,+'App.2-CB_NewCGAAP_DepExp_Yr1'!O25,+'App.2-CB_NewCGAAP_DepExp_Yr1'!O25+((C25*0.5)/D25)) -> 0 | H25: 0 | I25: 0 | K25: =IF(ISERROR(+I25+'App.2-CB_NewCGAAP_DepExp_Yr1'!O25-J25), 0, +I25+'App.2-CB_NewCGAAP_DepExp_Yr1'!O25-J25) -> 0
A26: 1820 | B26: Distribution Station Equipment <50 kV | E26: 0 | F26: =IF(D26=0,+'App.2-CB_NewCGAAP_DepExp_Yr1'!O26,+'App.2-CB_NewCGAAP_DepExp_Yr1'!O26+((C26*0.5)/D26)) -> 0 | H26: 0 | I26: 0 | K26: =IF(ISERROR(+I26+'App.2-CB_NewCGAAP_DepExp_Yr1'!O26-J26), 0, +I26+'App.2-CB_NewCGAAP_DepExp_Yr1'!O26-J26) -> 0
A27: 1825 | B27: Storage Battery Equipment | E27: 0 | F27: =IF(D27=0,+'App.2-CB_NewCGAAP_DepExp_Yr1'!O27,+'App.2-CB_NewCGAAP_DepExp_Yr1'!O27+((C27*0.5)/D27)) -> 0 | H27: 0 | I27: 0 | K27: =IF(ISERROR(+I27+'App.2-CB_NewCGAAP_DepExp_Yr1'!O27-J27), 0, +I27+'App.2-CB_NewCGAAP_DepExp_Yr1'!O27-J27) -> 0
A28: 1830 | B28: Poles, Towers & Fixtures | E28: 0 | F28: =IF(D28=0,+'App.2-CB_NewCGAAP_DepExp_Yr1'!O28,+'App.2-CB_NewCGAAP_DepExp_Yr1'!O28+((C28*0.5)/D28)) -> 0 | H28: 0 | I28: 0 | K28: =IF(ISERROR(+I28+'App.2-CB_NewCGAAP_DepExp_Yr1'!O28-J28), 0, +I28+'App.2-CB_NewCGAAP_DepExp_Yr1'!O28-J28) -> 0
A29: 1835 | B29: Overhead Conductors & Devices | E29: 0 | F29: =IF(D29=0,+'App.2-CB_NewCGAAP_DepExp_Yr1'!O29,+'App.2-CB_NewCGAAP_DepExp_Yr1'!O29+((C29*0.5)/D29)) -> 0 | H29: 0 | I29: 0 | K29: =IF(ISERROR(+I29+'App.2-CB_NewCGAAP_DepExp_Yr1'!O29-J29), 0, +I29+'App.2-CB_NewCGAAP_DepExp_Yr1'!O29-J29) -> 0
A30: 1840 | B30: Underground Conduit | E30: 0 | F30: =IF(D30=0,+'App.2-CB_NewCGAAP_DepExp_Yr1'!O30,+'App.2-CB_NewCGAAP_DepExp_Yr1'!O30+((C30*0.5)/D30)) -> 0 | H30: 0 | I30: 0 | K30: =IF(ISERROR(+I30+'App.2-CB_NewCGAAP_DepExp_Yr1'!O30-J30), 0, +I30+'App.2-CB_NewCGAAP_DepExp_Yr1'!O30-J30) -> 0
A31: 1845 | B31: Underground Conductors & Devices | E31: 0 | F31: =IF(D31=0,+'App.2-CB_NewCGAAP_DepExp_Yr1'!O31,+'App.2-CB_NewCGAAP_DepExp_Yr1'!O31+((C31*0.5)/D31)) -> 0 | H31: 0 | I31: 0 | K31: =IF(ISERROR(+I31+'App.2-CB_NewCGAAP_DepExp_Yr1'!O31-J31), 0, +I31+'App.2-CB_NewCGAAP_DepExp_Yr1'!O31-J31) -> 0
A32: 1850 | B32: Line Transformers | E32: 0 | F32: =IF(D32=0,+'App.2-CB_NewCGAAP_DepExp_Yr1'!O32,+'App.2-CB_NewCGAAP_DepExp_Yr1'!O32+((C32*0.5)/D32)) -> 0 | H32: 0 | I32: 0 | K32: =IF(ISERROR(+I32+'App.2-CB_NewCGAAP_DepExp_Yr1'!O32-J32), 0, +I32+'App.2-CB_NewCGAAP_DepExp_Yr1'!O32-J32) -> 0
A33: 1855 | B33: Services (Overhead & Underground) | E33: 0 | F33: =IF(D33=0,+'App.2-CB_NewCGAAP_DepExp_Yr1'!O33,+'App.2-CB_NewCGAAP_DepExp_Yr1'!O33+((C33*0.5)/D33)) -> 0 | H33: 0 | I33: 0 | K33: =IF(ISERROR(+I33+'App.2-CB_NewCGAAP_DepExp_Yr1'!O33-J33), 0, +I33+'App.2-CB_NewCGAAP_DepExp_Yr1'!O33-J33) -> 0
A34: 1860 | B34: Meters | E34: 0 | F34: =IF(D34=0,+'App.2-CB_NewCGAAP_DepExp_Yr1'!O34,+'App.2-CB_NewCGAAP_DepExp_Yr1'!O34+((C34*0.5)/D34)) -> 0 | H34: 0 | I34: 0 | K34: =IF(ISERROR(+I34+'App.2-CB_NewCGAAP_DepExp_Yr1'!O34-J34), 0, +I34+'App.2-CB_NewCGAAP_DepExp_Yr1'!O34-J34) -> 0
A35: 1860 | B35: Meters (Smart Meters) | E35: 0 | F35: =IF(D35=0,+'App.2-CB_NewCGAAP_DepExp_Yr1'!O35,+'App.2-CB_NewCGAAP_DepExp_Yr1'!O35+((C35*0.5)/D35)) -> 0 | H35: 0 | I35: 0 | K35: =IF(ISERROR(+I35+'App.2-CB_NewCGAAP_DepExp_Yr1'!O35-J35), 0, +I35+'App.2-CB_NewCGAAP_DepExp_Yr1'!O35-J35) -> 0
A36: 1905 | B36: Land | E36: 0 | F36: =IF(D36=0,+'App.2-CB_NewCGAAP_DepExp_Yr1'!O36,+'App.2-CB_NewCGAAP_DepExp_Yr1'!O36+((C36*0.5)/D36)) -> 0 | H36: 0 | I36: 0 | K36: =IF(ISERROR(+I36+'App.2-CB_NewCGAAP_DepExp_Yr1'!O36-J36), 0, +I36+'App.2-CB_NewCGAAP_DepExp_Yr1'!O36-J36) -> 0
A37: 1908 | B37: Buildings & Fixtures | E37: 0 | F37: =IF(D37=0,+'App.2-CB_NewCGAAP_DepExp_Yr1'!O37,+'App.2-CB_NewCGAAP_DepExp_Yr1'!O37+((C37*0.5)/D37)) -> 0 | H37: 0 | I37: 0 | K37: =IF(ISERROR(+I37+'App.2-CB_NewCGAAP_DepExp_Yr1'!O37-J37), 0, +I37+'App.2-CB_NewCGAAP_DepExp_Yr1'!O37-J37) -> 0
A38: 1910 | B38: Leasehold Improvements | E38: 0 | F38: =IF(D38=0,+'App.2-CB_NewCGAAP_DepExp_Yr1'!O38,+'App.2-CB_NewCGAAP_DepExp_Yr1'!O38+((C38*0.5)/D38)) -> 0 | H38: 0 | I38: 0 | K38: =IF(ISERROR(+I38+'App.2-CB_NewCGAAP_DepExp_Yr1'!O38-J38), 0, +I38+'App.2-CB_NewCGAAP_DepExp_Yr1'!O38-J38) -> 0
A39: 1915 | B39: Office Furniture & Equipment (10 years) | E39: 0 | F39: =IF(D39=0,+'App.2-CB_NewCGAAP_DepExp_Yr1'!O39,+'App.2-CB_NewCGAAP_DepExp_Yr1'!O39+((C39*0.5)/D39)) -> 0 | H39: 0 | I39: 0 | K39: =IF(ISERROR(+I39+'App.2-CB_NewCGAAP_DepExp_Yr1'!O39-J39), 0, +I39+'App.2-CB_NewCGAAP_DepExp_Yr1'!O39-J39) -> 0
A40: 1915 | B40: Office Furniture & Equipment (5 years) | E40: 0 | F40: =IF(D40=0,+'App.2-CB_NewCGAAP_DepExp_Yr1'!O40,+'App.2-CB_NewCGAAP_DepExp_Yr1'!O40+((C40*0.5)/D40)) -> 0 | H40: 0 | I40: 0 | K40: =IF(ISERROR(+I40+'App.2-CB_NewCGAAP_DepExp_Yr1'!O40-J40), 0, +I40+'App.2-CB_NewCGAAP_DepExp_Yr1'!O40-J40) -> 0
A41: 1920 | B41: Computer Equipment - Hardware | E41: 0 | F41: =IF(D41=0,+'App.2-CB_NewCGAAP_DepExp_Yr1'!O41,+'App.2-CB_NewCGAAP_DepExp_Yr1'!O41+((C41*0.5)/D41)) -> 0 | H41: 0 | I41: 0 | K41: =IF(ISERROR(+I41+'App.2-CB_NewCGAAP_DepExp_Yr1'!O41-J41), 0, +I41+'App.2-CB_NewCGAAP_DepExp_Yr1'!O41-J41) -> 0
A42: 1920 | B42: Computer Equip.-Hardware(Post Mar. 22/04) | E42: 0 | F42: =IF(D42=0,+'App.2-CB_NewCGAAP_DepExp_Yr1'!O42,+'App.2-CB_NewCGAAP_DepExp_Yr1'!O42+((C42*0.5)/D42)) -> 0 | H42: 0 | I42: 0 | K42: =IF(ISERROR(+I42+'App.2-CB_NewCGAAP_DepExp_Yr1'!O42-J42), 0, +I42+'App.2-CB_NewCGAAP_DepExp_Yr1'!O42-J42) -> 0
A43: 1920 | B43: Computer Equip.-Hardware(Post Mar. 19/07) | E43: 0 | F43: =IF(D43=0,+'App.2-CB_NewCGAAP_DepExp_Yr1'!O43,+'App.2-CB_NewCGAAP_DepExp_Yr1'!O43+((C43*0.5)/D43)) -> 0 | H43: 0 | I43: 0 | K43: =IF(ISERROR(+I43+'App.2-CB_NewCGAAP_DepExp_Yr1'!O43-J43), 0, +I43+'App.2-CB_NewCGAAP_DepExp_Yr1'!O43-J43) -> 0
A44: 1930 | B44: Transportation Equipment | E44: 0 | F44: =IF(D44=0,+'App.2-CB_NewCGAAP_DepExp_Yr1'!O44,+'App.2-CB_NewCGAAP_DepExp_Yr1'!O44+((C44*0.5)/D44)) -> 0 | H44: 0 | I44: 0 | K44: =IF(ISERROR(+I44+'App.2-CB_NewCGAAP_DepExp_Yr1'!O44-J44), 0, +I44+'App.2-CB_NewCGAAP_DepExp_Yr1'!O44-J44) -> 0
A45: 1935 | B45: Stores Equipment | E45: 0 | F45: =IF(D45=0,+'App.2-CB_NewCGAAP_DepExp_Yr1'!O45,+'App.2-CB_NewCGAAP_DepExp_Yr1'!O45+((C45*0.5)/D45)) -> 0 | H45: 0 | I45: 0 | K45: =IF(ISERROR(+I45+'App.2-CB_NewCGAAP_DepExp_Yr1'!O45-J45), 0, +I45+'App.2-CB_NewCGAAP_DepExp_Yr1'!O45-J45) -> 0
A46: 1940 | B46: Tools, Shop & Garage Equipment | E46: 0 | F46: =IF(D46=0,+'App.2-CB_NewCGAAP_DepExp_Yr1'!O46,+'App.2-CB_NewCGAAP_DepExp_Yr1'!O46+((C46*0.5)/D46)) -> 0 | H46: 0 | I46: 0 | K46: =IF(ISERROR(+I46+'App.2-CB_NewCGAAP_DepExp_Yr1'!O46-J46), 0, +I46+'App.2-CB_NewCGAAP_DepExp_Yr1'!O46-J46) -> 0
A47: 1945 | B47: Measurement & Testing Equipment | E47: 0 | F47: =IF(D47=0,+'App.2-CB_NewCGAAP_DepExp_Yr1'!O47,+'App.2-CB_NewCGAAP_DepExp_Yr1'!O47+((C47*0.5)/D47)) -> 0 | H47: 0 | I47: 0 | K47: =IF(ISERROR(+I47+'App.2-CB_NewCGAAP_DepExp_Yr1'!O47-J47), 0, +I47+'App.2-CB_NewCGAAP_DepExp_Yr1'!O47-J47) -> 0
A48: 1950 | B48: Power Operated Equipment | E48: 0 | F48: =IF(D48=0,+'App.2-CB_NewCGAAP_DepExp_Yr1'!O48,+'App.2-CB_NewCGAAP_DepExp_Yr1'!O48+((C48*0.5)/D48)) -> 0 | H48: 0 | I48: 0 | K48: =IF(ISERROR(+I48+'App.2-CB_NewCGAAP_DepExp_Yr1'!O48-J48), 0, +I48+'App.2-CB_NewCGAAP_DepExp_Yr1'!O48-J48) -> 0
A49: 1955 | B49: Communications Equipment | E49: 0 | F49: =IF(D49=0,+'App.2-CB_NewCGAAP_DepExp_Yr1'!O49,+'App.2-CB_NewCGAAP_DepExp_Yr1'!O49+((C49*0.5)/D49)) -> 0 | H49: 0 | I49: 0 | K49: =IF(ISERROR(+I49+'App.2-CB_NewCGAAP_DepExp_Yr1'!O49-J49), 0, +I49+'App.2-CB_NewCGAAP_DepExp_Yr1'!O49-J49) -> 0
A50: 1955 | B50: Communication Equipment (Smart Meters) | E50: 0 | F50: =IF(D50=0,+'App.2-CB_NewCGAAP_DepExp_Yr1'!O50,+'App.2-CB_NewCGAAP_DepExp_Yr1'!O50+((C50*0.5)/D50)) -> 0 | H50: 0 | I50: 0 | K50: =IF(ISERROR(+I50+'App.2-CB_NewCGAAP_DepExp_Yr1'!O50-J50), 0, +I50+'App.2-CB_NewCGAAP_DepExp_Yr1'!O50-J50) -> 0
A51: 1960 | B51: Miscellaneous Equipment | E51: 0 | F51: =IF(D51=0,+'App.2-CB_NewCGAAP_DepExp_Yr1'!O51,+'App.2-CB_NewCGAAP_DepExp_Yr1'!O51+((C51*0.5)/D51)) -> 0 | H51: 0 | I51: 0 | K51: =IF(ISERROR(+I51+'App.2-CB_NewCGAAP_DepExp_Yr1'!O51-J51), 0, +I51+'App.2-CB_NewCGAAP_DepExp_Yr1'!O51-J51) -> 0
A52: 1970 | B52: Load Management Controls Customer Premises | E52: 0 | F52: =IF(D52=0,+'App.2-CB_NewCGAAP_DepExp_Yr1'!O52,+'App.2-CB_NewCGAAP_DepExp_Yr1'!O52+((C52*0.5)/D52)) -> 0 | H52: 0 | I52: 0 | K52: =IF(ISERROR(+I52+'App.2-CB_NewCGAAP_DepExp_Yr1'!O52-J52), 0, +I52+'App.2-CB_NewCGAAP_DepExp_Yr1'!O52-J52) -> 0
A53: 1975 | B53: Load Management Controls Utility Premises | E53: 0 | F53: =IF(D53=0,+'App.2-CB_NewCGAAP_DepExp_Yr1'!O53,+'App.2-CB_NewCGAAP_DepExp_Yr1'!O53+((C53*0.5)/D53)) -> 0 | H53: 0 | I53: 0 | K53: =IF(ISERROR(+I53+'App.2-CB_NewCGAAP_DepExp_Yr1'!O53-J53), 0, +I53+'App.2-CB_NewCGAAP_DepExp_Yr1'!O53-J53) -> 0
A54: 1980 | B54: System Supervisor Equipment | E54: 0 | F54: =IF(D54=0,+'App.2-CB_NewCGAAP_DepExp_Yr1'!O54,+'App.2-CB_NewCGAAP_DepExp_Yr1'!O54+((C54*0.5)/D54)) -> 0 | H54: 0 | I54: 0 | K54: =IF(ISERROR(+I54+'App.2-CB_NewCGAAP_DepExp_Yr1'!O54-J54), 0, +I54+'App.2-CB_NewCGAAP_DepExp_Yr1'!O54-J54) -> 0
A55: 1985 | B55: Miscellaneous Fixed Assets | E55: 0 | F55: =IF(D55=0,+'App.2-CB_NewCGAAP_DepExp_Yr1'!O55,+'App.2-CB_NewCGAAP_DepExp_Yr1'!O55+((C55*0.5)/D55)) -> 0 | H55: 0 | I55: 0 | K55: =IF(ISERROR(+I55+'App.2-CB_NewCGAAP_DepExp_Yr1'!O55-J55), 0, +I55+'App.2-CB_NewCGAAP_DepExp_Yr1'!O55-J55) -> 0
A56: 1990 | B56: Other Tangible Property | E56: 0 | F56: =IF(D56=0,+'App.2-CB_NewCGAAP_DepExp_Yr1'!O56,+'App.2-CB_NewCGAAP_DepExp_Yr1'!O56+((C56*0.5)/D56)) -> 0 | H56: 0 | I56: 0 | K56: =IF(ISERROR(+I56+'App.2-CB_NewCGAAP_DepExp_Yr1'!O56-J56), 0, +I56+'App.2-CB_NewCGAAP_DepExp_Yr1'!O56-J56) -> 0
A57: 1995 | B57: Contributions & Grants | E57: 0 | F57: =IF(D57=0,+'App.2-CB_NewCGAAP_DepExp_Yr1'!O57,+'App.2-CB_NewCGAAP_DepExp_Yr1'!O57+((C57*0.5)/D57)) -> 0 | H57: 0 | I57: 0 | K57: =IF(ISERROR(+I57+'App.2-CB_NewCGAAP_DepExp_Yr1'!O57-J57), 0, +I57+'App.2-CB_NewCGAAP_DepExp_Yr1'!O57-J57) -> 0
B58: Total | C58: =SUM(C20:C57) -> 0 | F58: =SUM(F20:F57) -> 0 | G58: 0 | H58: 0 | I58: 0 | J58: 0 | K58: 0
A60: Notes:
A61: 1 | B61: Board policy of the "half-year" rule - the applicant must ensure that additions in the year attract a half-year depreciation expense in the first year. Deviations from this standard practice must be supported in the application.
A62: 2 | B62: The applicant must provide an explanation of material variances in evidence.
A63: 3 | B63: This column refers to the calculated full year depreciation but excludes the depreciation expense on assets fully depreciated during the year. This column is used for the purpose of calculating depreciation expense in the following year on the next worksheet.
A65: General: | B65: Applicants must provide a breakdown of depreciation and amortization expense in the above format for all relevant accounts. Asset Retirement Obligations (AROs), depreciation and accretion expense should be disclosed separately consistent with the Notes of historical Audited Financial Statements.

Sheet App.2-CD_DepExp_Yr3
J1: File Number: | K1: =EBNUMBER -> 0
A2: NOT APPLICABLE | J2: Exhibit:
J3: Tab:
J4: Schedule:
J5: Page:
J7: Date:
A9: Appendix 2-CD
A10: Depreciation and Amortization Expense
A11: Revised CGAAP or MIFRS (Year 3)
A13: Select the set of appendices that apply | J13: Year Reflected in Schedule Below | K13: Accounting Standard
A14: 2012 Set of Appendices (2-CA to 2-CG) | C14: Assumes the applicant made capitalization and depreciation expense accounting policy changes under CGAAP effective January 1, 2012 and has adopted IFRS for financial reporting purposes effective January 1, 2015. Assumes that the applicant is reflecting these changes in a rebasing application for the first time. | J14: 2014 | K14: Revised CGAAP
A15: 2013 Set of Appendices (2-CA to 2-CF) | C15: Assumes the applicant made capitalization and depreciation expense accounting policy changes under CGAAP effective January 1, 2013 and has adopted IFRS for financial reporting purposes effective January 1, 2015. Assumes that the applicant is reflecting these changes in a rebasing application for the first time. | J15: 2015 | K15: MIFRS
A18: Account | B18: Description | C18: Additions | D18: Years (new additions only) | E18: Depreciation Rate on New Additions | F18: Current Year Depreciation Expense1 | G18: Depreciation Expense per Apppendix 2-BA Fixed Assets, Column J (l) | H18: Variance 2 | I18: Depreciation Expense on Current Full Year Additions | J18: Less Depreciation Expense on Assets Fully Depreciated During the Year (o) | K18: Current Full Year Depreciation 3
C19: (d) | D19: (f) | E19: (g) = 1 / (f) | F19: (h) = Prior Full Year Deprecation + ((d)*0.5)/(f) | H19: (m) = (h) - (l) | I19: (n)=((d))/(f) | K19: (p) = Prior Full Year Depreciation + (n) - (o)
A20: 1611 | B20: Computer Software (Formally known as Account 1925) | E20: =IF(D20=0,0,1/D20) -> 0 | F20: =IF(D20=0,+'App.2-CC_DepExp_Yr2'!K20,+'App.2-CC_DepExp_Yr2'!K20+((C20*0.5)/D20)) -> 0 | H20: =IF(ISERROR(+F20-G20), 0, +F20-G20) -> 0 | I20: =IF(D20=0,0,+(C20)/D20) -> 0 | K20: =IF(ISERROR(+I20+'App.2-CC_DepExp_Yr2'!K20-J20), 0, +I20+'App.2-CC_DepExp_Yr2'!K20-J20) -> 0
A21: 1612 | B21: Land Rights (Formally known as Account 1906) | E21: 0 | F21: =IF(D21=0,+'App.2-CC_DepExp_Yr2'!K21,+'App.2-CC_DepExp_Yr2'!K21+((C21*0.5)/D21)) -> 0 | H21: 0 | I21: =IF(D21=0,0,+(C21)/D21) -> 0 | K21: =IF(ISERROR(+I21+'App.2-CC_DepExp_Yr2'!K21-J21), 0, +I21+'App.2-CC_DepExp_Yr2'!K21-J21) -> 0
A22: 1805 | B22: Land | E22: 0 | F22: =IF(D22=0,+'App.2-CC_DepExp_Yr2'!K22,+'App.2-CC_DepExp_Yr2'!K22+((C22*0.5)/D22)) -> 0 | H22: 0 | I22: 0 | K22: =IF(ISERROR(+I22+'App.2-CC_DepExp_Yr2'!K22-J22), 0, +I22+'App.2-CC_DepExp_Yr2'!K22-J22) -> 0
A23: 1808 | B23: Buildings | E23: 0 | F23: =IF(D23=0,+'App.2-CC_DepExp_Yr2'!K23,+'App.2-CC_DepExp_Yr2'!K23+((C23*0.5)/D23)) -> 0 | H23: 0 | I23: 0 | K23: =IF(ISERROR(+I23+'App.2-CC_DepExp_Yr2'!K23-J23), 0, +I23+'App.2-CC_DepExp_Yr2'!K23-J23) -> 0
A24: 1810 | B24: Leasehold Improvements | E24: 0 | F24: =IF(D24=0,+'App.2-CC_DepExp_Yr2'!K24,+'App.2-CC_DepExp_Yr2'!K24+((C24*0.5)/D24)) -> 0 | H24: 0 | I24: 0 | K24: =IF(ISERROR(+I24+'App.2-CC_DepExp_Yr2'!K24-J24), 0, +I24+'App.2-CC_DepExp_Yr2'!K24-J24) -> 0
A25: 1815 | B25: Transformer Station Equipment >50 kV | E25: 0 | F25: =IF(D25=0,+'App.2-CC_DepExp_Yr2'!K25,+'App.2-CC_DepExp_Yr2'!K25+((C25*0.5)/D25)) -> 0 | H25: 0 | I25: 0 | K25: =IF(ISERROR(+I25+'App.2-CC_DepExp_Yr2'!K25-J25), 0, +I25+'App.2-CC_DepExp_Yr2'!K25-J25) -> 0
A26: 1820 | B26: Distribution Station Equipment <50 kV | E26: 0 | F26: =IF(D26=0,+'App.2-CC_DepExp_Yr2'!K26,+'App.2-CC_DepExp_Yr2'!K26+((C26*0.5)/D26)) -> 0 | H26: 0 | I26: 0 | K26: =IF(ISERROR(+I26+'App.2-CC_DepExp_Yr2'!K26-J26), 0, +I26+'App.2-CC_DepExp_Yr2'!K26-J26) -> 0
A27: 1825 | B27: Storage Battery Equipment | E27: 0 | F27: =IF(D27=0,+'App.2-CC_DepExp_Yr2'!K27,+'App.2-CC_DepExp_Yr2'!K27+((C27*0.5)/D27)) -> 0 | H27: 0 | I27: 0 | K27: =IF(ISERROR(+I27+'App.2-CC_DepExp_Yr2'!K27-J27), 0, +I27+'App.2-CC_DepExp_Yr2'!K27-J27) -> 0
A28: 1830 | B28: Poles, Towers & Fixtures | E28: 0 | F28: =IF(D28=0,+'App.2-CC_DepExp_Yr2'!K28,+'App.2-CC_DepExp_Yr2'!K28+((C28*0.5)/D28)) -> 0 | H28: 0 | I28: 0 | K28: =IF(ISERROR(+I28+'App.2-CC_DepExp_Yr2'!K28-J28), 0, +I28+'App.2-CC_DepExp_Yr2'!K28-J28) -> 0
A29: 1835 | B29: Overhead Conductors & Devices | E29: 0 | F29: =IF(D29=0,+'App.2-CC_DepExp_Yr2'!K29,+'App.2-CC_DepExp_Yr2'!K29+((C29*0.5)/D29)) -> 0 | H29: 0 | I29: 0 | K29: =IF(ISERROR(+I29+'App.2-CC_DepExp_Yr2'!K29-J29), 0, +I29+'App.2-CC_DepExp_Yr2'!K29-J29) -> 0
A30: 1840 | B30: Underground Conduit | E30: 0 | F30: =IF(D30=0,+'App.2-CC_DepExp_Yr2'!K30,+'App.2-CC_DepExp_Yr2'!K30+((C30*0.5)/D30)) -> 0 | H30: 0 | I30: 0 | K30: =IF(ISERROR(+I30+'App.2-CC_DepExp_Yr2'!K30-J30), 0, +I30+'App.2-CC_DepExp_Yr2'!K30-J30) -> 0
A31: 1845 | B31: Underground Conductors & Devices | E31: 0 | F31: =IF(D31=0,+'App.2-CC_DepExp_Yr2'!K31,+'App.2-CC_DepExp_Yr2'!K31+((C31*0.5)/D31)) -> 0 | H31: 0 | I31: 0 | K31: =IF(ISERROR(+I31+'App.2-CC_DepExp_Yr2'!K31-J31), 0, +I31+'App.2-CC_DepExp_Yr2'!K31-J31) -> 0
A32: 1850 | B32: Line Transformers | E32: 0 | F32: =IF(D32=0,+'App.2-CC_DepExp_Yr2'!K32,+'App.2-CC_DepExp_Yr2'!K32+((C32*0.5)/D32)) -> 0 | H32: 0 | I32: 0 | K32: =IF(ISERROR(+I32+'App.2-CC_DepExp_Yr2'!K32-J32), 0, +I32+'App.2-CC_DepExp_Yr2'!K32-J32) -> 0
A33: 1855 | B33: Services (Overhead & Underground) | E33: 0 | F33: =IF(D33=0,+'App.2-CC_DepExp_Yr2'!K33,+'App.2-CC_DepExp_Yr2'!K33+((C33*0.5)/D33)) -> 0 | H33: 0 | I33: 0 | K33: =IF(ISERROR(+I33+'App.2-CC_DepExp_Yr2'!K33-J33), 0, +I33+'App.2-CC_DepExp_Yr2'!K33-J33) -> 0
A34: 1860 | B34: Meters | E34: 0 | F34: =IF(D34=0,+'App.2-CC_DepExp_Yr2'!K34,+'App.2-CC_DepExp_Yr2'!K34+((C34*0.5)/D34)) -> 0 | H34: 0 | I34: 0 | K34: =IF(ISERROR(+I34+'App.2-CC_DepExp_Yr2'!K34-J34), 0, +I34+'App.2-CC_DepExp_Yr2'!K34-J34) -> 0
A35: 1860 | B35: Meters (Smart Meters) | E35: 0 | F35: =IF(D35=0,+'App.2-CC_DepExp_Yr2'!K35,+'App.2-CC_DepExp_Yr2'!K35+((C35*0.5)/D35)) -> 0 | H35: 0 | I35: 0 | K35: =IF(ISERROR(+I35+'App.2-CC_DepExp_Yr2'!K35-J35), 0, +I35+'App.2-CC_DepExp_Yr2'!K35-J35) -> 0
A36: 1905 | B36: Land | E36: 0 | F36: =IF(D36=0,+'App.2-CC_DepExp_Yr2'!K36,+'App.2-CC_DepExp_Yr2'!K36+((C36*0.5)/D36)) -> 0 | H36: 0 | I36: 0 | K36: =IF(ISERROR(+I36+'App.2-CC_DepExp_Yr2'!K36-J36), 0, +I36+'App.2-CC_DepExp_Yr2'!K36-J36) -> 0
A37: 1908 | B37: Buildings & Fixtures | E37: 0 | F37: =IF(D37=0,+'App.2-CC_DepExp_Yr2'!K37,+'App.2-CC_DepExp_Yr2'!K37+((C37*0.5)/D37)) -> 0 | H37: 0 | I37: 0 | K37: =IF(ISERROR(+I37+'App.2-CC_DepExp_Yr2'!K37-J37), 0, +I37+'App.2-CC_DepExp_Yr2'!K37-J37) -> 0
A38: 1910 | B38: Leasehold Improvements | E38: 0 | F38: =IF(D38=0,+'App.2-CC_DepExp_Yr2'!K38,+'App.2-CC_DepExp_Yr2'!K38+((C38*0.5)/D38)) -> 0 | H38: 0 | I38: 0 | K38: =IF(ISERROR(+I38+'App.2-CC_DepExp_Yr2'!K38-J38), 0, +I38+'App.2-CC_DepExp_Yr2'!K38-J38) -> 0
A39: 1915 | B39: Office Furniture & Equipment (10 years) | E39: 0 | F39: =IF(D39=0,+'App.2-CC_DepExp_Yr2'!K39,+'App.2-CC_DepExp_Yr2'!K39+((C39*0.5)/D39)) -> 0 | H39: 0 | I39: 0 | K39: =IF(ISERROR(+I39+'App.2-CC_DepExp_Yr2'!K39-J39), 0, +I39+'App.2-CC_DepExp_Yr2'!K39-J39) -> 0
A40: 1915 | B40: Office Furniture & Equipment (5 years) | E40: 0 | F40: =IF(D40=0,+'App.2-CC_DepExp_Yr2'!K40,+'App.2-CC_DepExp_Yr2'!K40+((C40*0.5)/D40)) -> 0 | H40: 0 | I40: 0 | K40: =IF(ISERROR(+I40+'App.2-CC_DepExp_Yr2'!K40-J40), 0, +I40+'App.2-CC_DepExp_Yr2'!K40-J40) -> 0
A41: 1920 | B41: Computer Equipment - Hardware | E41: 0 | F41: =IF(D41=0,+'App.2-CC_DepExp_Yr2'!K41,+'App.2-CC_DepExp_Yr2'!K41+((C41*0.5)/D41)) -> 0 | H41: 0 | I41: 0 | K41: =IF(ISERROR(+I41+'App.2-CC_DepExp_Yr2'!K41-J41), 0, +I41+'App.2-CC_DepExp_Yr2'!K41-J41) -> 0
A42: 1920 | B42: Computer Equip.-Hardware(Post Mar. 22/04) | E42: 0 | F42: =IF(D42=0,+'App.2-CC_DepExp_Yr2'!K42,+'App.2-CC_DepExp_Yr2'!K42+((C42*0.5)/D42)) -> 0 | H42: 0 | I42: 0 | K42: =IF(ISERROR(+I42+'App.2-CC_DepExp_Yr2'!K42-J42), 0, +I42+'App.2-CC_DepExp_Yr2'!K42-J42) -> 0
A43: 1920 | B43: Computer Equip.-Hardware(Post Mar. 19/07) | E43: 0 | F43: =IF(D43=0,+'App.2-CC_DepExp_Yr2'!K43,+'App.2-CC_DepExp_Yr2'!K43+((C43*0.5)/D43)) -> 0 | H43: 0 | I43: 0 | K43: =IF(ISERROR(+I43+'App.2-CC_DepExp_Yr2'!K43-J43), 0, +I43+'App.2-CC_DepExp_Yr2'!K43-J43) -> 0
A44: 1930 | B44: Transportation Equipment | E44: 0 | F44: =IF(D44=0,+'App.2-CC_DepExp_Yr2'!K44,+'App.2-CC_DepExp_Yr2'!K44+((C44*0.5)/D44)) -> 0 | H44: 0 | I44: 0 | K44: =IF(ISERROR(+I44+'App.2-CC_DepExp_Yr2'!K44-J44), 0, +I44+'App.2-CC_DepExp_Yr2'!K44-J44) -> 0
A45: 1935 | B45: Stores Equipment | E45: 0 | F45: =IF(D45=0,+'App.2-CC_DepExp_Yr2'!K45,+'App.2-CC_DepExp_Yr2'!K45+((C45*0.5)/D45)) -> 0 | H45: 0 | I45: 0 | K45: =IF(ISERROR(+I45+'App.2-CC_DepExp_Yr2'!K45-J45), 0, +I45+'App.2-CC_DepExp_Yr2'!K45-J45) -> 0
A46: 1940 | B46: Tools, Shop & Garage Equipment | E46: 0 | F46: =IF(D46=0,+'App.2-CC_DepExp_Yr2'!K46,+'App.2-CC_DepExp_Yr2'!K46+((C46*0.5)/D46)) -> 0 | H46: 0 | I46: 0 | K46: =IF(ISERROR(+I46+'App.2-CC_DepExp_Yr2'!K46-J46), 0, +I46+'App.2-CC_DepExp_Yr2'!K46-J46) -> 0
A47: 1945 | B47: Measurement & Testing Equipment | E47: 0 | F47: =IF(D47=0,+'App.2-CC_DepExp_Yr2'!K47,+'App.2-CC_DepExp_Yr2'!K47+((C47*0.5)/D47)) -> 0 | H47: 0 | I47: 0 | K47: =IF(ISERROR(+I47+'App.2-CC_DepExp_Yr2'!K47-J47), 0, +I47+'App.2-CC_DepExp_Yr2'!K47-J47) -> 0
A48: 1950 | B48: Power Operated Equipment | E48: 0 | F48: =IF(D48=0,+'App.2-CC_DepExp_Yr2'!K48,+'App.2-CC_DepExp_Yr2'!K48+((C48*0.5)/D48)) -> 0 | H48: 0 | I48: 0 | K48: =IF(ISERROR(+I48+'App.2-CC_DepExp_Yr2'!K48-J48), 0, +I48+'App.2-CC_DepExp_Yr2'!K48-J48) -> 0
A49: 1955 | B49: Communications Equipment | E49: 0 | F49: =IF(D49=0,+'App.2-CC_DepExp_Yr2'!K49,+'App.2-CC_DepExp_Yr2'!K49+((C49*0.5)/D49)) -> 0 | H49: 0 | I49: 0 | K49: =IF(ISERROR(+I49+'App.2-CC_DepExp_Yr2'!K49-J49), 0, +I49+'App.2-CC_DepExp_Yr2'!K49-J49) -> 0
A50: 1955 | B50: Communication Equipment (Smart Meters) | E50: 0 | F50: =IF(D50=0,+'App.2-CC_DepExp_Yr2'!K50,+'App.2-CC_DepExp_Yr2'!K50+((C50*0.5)/D50)) -> 0 | H50: 0 | I50: 0 | K50: =IF(ISERROR(+I50+'App.2-CC_DepExp_Yr2'!K50-J50), 0, +I50+'App.2-CC_DepExp_Yr2'!K50-J50) -> 0
A51: 1960 | B51: Miscellaneous Equipment | E51: 0 | F51: =IF(D51=0,+'App.2-CC_DepExp_Yr2'!K51,+'App.2-CC_DepExp_Yr2'!K51+((C51*0.5)/D51)) -> 0 | H51: 0 | I51: 0 | K51: =IF(ISERROR(+I51+'App.2-CC_DepExp_Yr2'!K51-J51), 0, +I51+'App.2-CC_DepExp_Yr2'!K51-J51) -> 0
A52: 1970 | B52: Load Management Controls Customer Premises | E52: 0 | F52: =IF(D52=0,+'App.2-CC_DepExp_Yr2'!K52,+'App.2-CC_DepExp_Yr2'!K52+((C52*0.5)/D52)) -> 0 | H52: 0 | I52: 0 | K52: =IF(ISERROR(+I52+'App.2-CC_DepExp_Yr2'!K52-J52), 0, +I52+'App.2-CC_DepExp_Yr2'!K52-J52) -> 0
A53: 1975 | B53: Load Management Controls Utility Premises | E53: 0 | F53: =IF(D53=0,+'App.2-CC_DepExp_Yr2'!K53,+'App.2-CC_DepExp_Yr2'!K53+((C53*0.5)/D53)) -> 0 | H53: 0 | I53: 0 | K53: =IF(ISERROR(+I53+'App.2-CC_DepExp_Yr2'!K53-J53), 0, +I53+'App.2-CC_DepExp_Yr2'!K53-J53) -> 0
A54: 1980 | B54: System Supervisor Equipment | E54: 0 | F54: =IF(D54=0,+'App.2-CC_DepExp_Yr2'!K54,+'App.2-CC_DepExp_Yr2'!K54+((C54*0.5)/D54)) -> 0 | H54: 0 | I54: 0 | K54: =IF(ISERROR(+I54+'App.2-CC_DepExp_Yr2'!K54-J54), 0, +I54+'App.2-CC_DepExp_Yr2'!K54-J54) -> 0
A55: 1985 | B55: Miscellaneous Fixed Assets | E55: 0 | F55: =IF(D55=0,+'App.2-CC_DepExp_Yr2'!K55,+'App.2-CC_DepExp_Yr2'!K55+((C55*0.5)/D55)) -> 0 | H55: 0 | I55: 0 | K55: =IF(ISERROR(+I55+'App.2-CC_DepExp_Yr2'!K55-J55), 0, +I55+'App.2-CC_DepExp_Yr2'!K55-J55) -> 0
A56: 1990 | B56: Other Tangible Property | E56: 0 | F56: =IF(D56=0,+'App.2-CC_DepExp_Yr2'!K56,+'App.2-CC_DepExp_Yr2'!K56+((C56*0.5)/D56)) -> 0 | H56: 0 | I56: 0 | K56: =IF(ISERROR(+I56+'App.2-CC_DepExp_Yr2'!K56-J56), 0, +I56+'App.2-CC_DepExp_Yr2'!K56-J56) -> 0
A57: 1995 | B57: Contributions & Grants | E57: =IF(D57=0,0,1/D57) -> 0 | F57: =IF(D57=0,+'App.2-CC_DepExp_Yr2'!K57,+'App.2-CC_DepExp_Yr2'!K57+((C57*0.5)/D57)) -> 0 | H57: 0 | I57: 0 | K57: =IF(ISERROR(+I57+'App.2-CC_DepExp_Yr2'!K57-J57), 0, +I57+'App.2-CC_DepExp_Yr2'!K57-J57) -> 0
B58: Total | C58: =SUM(C20:C57) -> 0 | F58: =SUM(F20:F57) -> 0 | G58: 0 | H58: 0 | I58: 0 | J58: 0 | K58: 0
B59: Depreciation exp. adj. from gain or loss on the retirement of assets (pool of like assets) (under MIFRS)
B60: Total Depreciation Expense | F60: =+F59+F58 -> 0
A62: Notes:
A63: 1 | B63: Board policy of the "half-year" rule - the applicant must ensure that additions in the year attract a half-year depreciation expense in the first year. Deviations from this standard practice must be supported in the application.
A64: 2 | B64: The applicant must provide an explanation of material variances in evidence.
A65: 3 | B65: This column refers to the calculated full year depreciation but excludes the depreciation expense on assets fully depreciated during the year. This column is used for the purpose of calculating depreciation expense in the following year on the next worksheet.
A67: General: | B67: Applicants must provide a breakdown of depreciation and amortization expense in the above format for all relevant accounts. Asset Retirement Obligations (AROs), depreciation and accretion expense should be disclosed separately consistent with the Notes of historical Audited Financial Statements.

Sheet App.2-CE_DepExp_Yr4
J1: File Number: | K1: =EBNUMBER -> 0
A2: NOT APPLICABLE | J2: Exhibit:
J3: Tab:
J4: Schedule:
J5: Page:
J7: Date:
A9: Appendix 2-CE
A10: Depreciation and Amortization Expense
A11: MIFRS (Year 4)
A13: Select the set of appendices that apply | J13: Year Reflected in Schedule Below | K13: Accounting Standard
A14: 2012 Set of Appendices (2-CA to 2-CG) | C14: Assumes the applicant made capitalization and depreciation expense accounting policy changes under CGAAP effective January 1, 2012 and has adopted IFRS for financial reporting purposes effective January 1, 2015. Assumes that the applicant is reflecting these changes in a rebasing application for the first time. | J14: 2015 | K14: MIFRS
A15: 2013 Set of Appendices (2-CA to 2-CF) | C15: Assumes the applicant made capitalization and depreciation expense accounting policy changes under CGAAP effective January 1, 2013 and has adopted IFRS for financial reporting purposes effective January 1, 2015. Assumes that the applicant is reflecting these changes in a rebasing application for the first time. | J15: 2016 | K15: MIFRS
A18: Account | B18: Description | C18: Additions | D18: Years (new additions only) | E18: Depreciation Rate on New Additions | F18: Current Year Depreciation Expense1 | G18: Depreciation Expense per Appendix 2-BA Fixed Assets, Column J (l) | H18: Variance 2 | I18: Depreciation Expense on Current Full Year Additions | J18: Less Depreciation Expense on Assets Fully Depreciated During the Year (o) | K18: Current Full Year Depreciation 3
C19: (d) | D19: (f) | E19: (g) = 1 / (f) | F19: (h)=Prior Full Year Depreciation + ((d)*0.5)/(f) | H19: (m) = (h) - (l) | I19: (n)=((d))/(f) | K19: (p) = Prior Full Year Depreciation + (n) - (o)
A20: 1611 | B20: Computer Software (Formally known as Account 1925) | E20: =IF(D20=0,0,1/D20) -> 0 | F20: =IF(D20=0,'App.2-CD_DepExp_Yr3'!K20,+'App.2-CD_DepExp_Yr3'!K20+((C20*0.5)/D20)) -> 0 | H20: =IF(ISERROR(+F20-G20), 0, +F20-G20) -> 0 | I20: =IF(D20=0,0,+(C20)/D20) -> 0 | K20: =IF(ISERROR(+I20+'App.2-CD_DepExp_Yr3'!K20-J20), 0, +I20+'App.2-CD_DepExp_Yr3'!K20-J20) -> 0
A21: 1612 | B21: Land Rights (Formally known as Account 1906) | E21: 0 | F21: =IF(D21=0,'App.2-CD_DepExp_Yr3'!K21,+'App.2-CD_DepExp_Yr3'!K21+((C21*0.5)/D21)) -> 0 | H21: 0 | I21: =IF(D21=0,0,+(C21)/D21) -> 0 | K21: =IF(ISERROR(+I21+'App.2-CD_DepExp_Yr3'!K21-J21), 0, +I21+'App.2-CD_DepExp_Yr3'!K21-J21) -> 0
A22: 1805 | B22: Land | E22: 0 | F22: =IF(D22=0,'App.2-CD_DepExp_Yr3'!K22,+'App.2-CD_DepExp_Yr3'!K22+((C22*0.5)/D22)) -> 0 | H22: 0 | I22: 0 | K22: =IF(ISERROR(+I22+'App.2-CD_DepExp_Yr3'!K22-J22), 0, +I22+'App.2-CD_DepExp_Yr3'!K22-J22) -> 0
A23: 1808 | B23: Buildings | E23: 0 | F23: =IF(D23=0,'App.2-CD_DepExp_Yr3'!K23,+'App.2-CD_DepExp_Yr3'!K23+((C23*0.5)/D23)) -> 0 | H23: 0 | I23: 0 | K23: =IF(ISERROR(+I23+'App.2-CD_DepExp_Yr3'!K23-J23), 0, +I23+'App.2-CD_DepExp_Yr3'!K23-J23) -> 0
A24: 1810 | B24: Leasehold Improvements | E24: 0 | F24: =IF(D24=0,'App.2-CD_DepExp_Yr3'!K24,+'App.2-CD_DepExp_Yr3'!K24+((C24*0.5)/D24)) -> 0 | H24: 0 | I24: 0 | K24: =IF(ISERROR(+I24+'App.2-CD_DepExp_Yr3'!K24-J24), 0, +I24+'App.2-CD_DepExp_Yr3'!K24-J24) -> 0
A25: 1815 | B25: Transformer Station Equipment >50 kV | E25: 0 | F25: =IF(D25=0,'App.2-CD_DepExp_Yr3'!K25,+'App.2-CD_DepExp_Yr3'!K25+((C25*0.5)/D25)) -> 0 | H25: 0 | I25: 0 | K25: =IF(ISERROR(+I25+'App.2-CD_DepExp_Yr3'!K25-J25), 0, +I25+'App.2-CD_DepExp_Yr3'!K25-J25) -> 0
A26: 1820 | B26: Distribution Station Equipment <50 kV | E26: 0 | F26: =IF(D26=0,'App.2-CD_DepExp_Yr3'!K26,+'App.2-CD_DepExp_Yr3'!K26+((C26*0.5)/D26)) -> 0 | H26: 0 | I26: 0 | K26: =IF(ISERROR(+I26+'App.2-CD_DepExp_Yr3'!K26-J26), 0, +I26+'App.2-CD_DepExp_Yr3'!K26-J26) -> 0
A27: 1825 | B27: Storage Battery Equipment | E27: 0 | F27: =IF(D27=0,'App.2-CD_DepExp_Yr3'!K27,+'App.2-CD_DepExp_Yr3'!K27+((C27*0.5)/D27)) -> 0 | H27: 0 | I27: 0 | K27: =IF(ISERROR(+I27+'App.2-CD_DepExp_Yr3'!K27-J27), 0, +I27+'App.2-CD_DepExp_Yr3'!K27-J27) -> 0
A28: 1830 | B28: Poles, Towers & Fixtures | E28: 0 | F28: =IF(D28=0,'App.2-CD_DepExp_Yr3'!K28,+'App.2-CD_DepExp_Yr3'!K28+((C28*0.5)/D28)) -> 0 | H28: 0 | I28: 0 | K28: =IF(ISERROR(+I28+'App.2-CD_DepExp_Yr3'!K28-J28), 0, +I28+'App.2-CD_DepExp_Yr3'!K28-J28) -> 0
A29: 1835 | B29: Overhead Conductors & Devices | E29: 0 | F29: =IF(D29=0,'App.2-CD_DepExp_Yr3'!K29,+'App.2-CD_DepExp_Yr3'!K29+((C29*0.5)/D29)) -> 0 | H29: 0 | I29: 0 | K29: =IF(ISERROR(+I29+'App.2-CD_DepExp_Yr3'!K29-J29), 0, +I29+'App.2-CD_DepExp_Yr3'!K29-J29) -> 0
A30: 1840 | B30: Underground Conduit | E30: 0 | F30: =IF(D30=0,'App.2-CD_DepExp_Yr3'!K30,+'App.2-CD_DepExp_Yr3'!K30+((C30*0.5)/D30)) -> 0 | H30: 0 | I30: 0 | K30: =IF(ISERROR(+I30+'App.2-CD_DepExp_Yr3'!K30-J30), 0, +I30+'App.2-CD_DepExp_Yr3'!K30-J30) -> 0
A31: 1845 | B31: Underground Conductors & Devices | E31: 0 | F31: =IF(D31=0,'App.2-CD_DepExp_Yr3'!K31,+'App.2-CD_DepExp_Yr3'!K31+((C31*0.5)/D31)) -> 0 | H31: 0 | I31: 0 | K31: =IF(ISERROR(+I31+'App.2-CD_DepExp_Yr3'!K31-J31), 0, +I31+'App.2-CD_DepExp_Yr3'!K31-J31) -> 0
A32: 1850 | B32: Line Transformers | E32: 0 | F32: =IF(D32=0,'App.2-CD_DepExp_Yr3'!K32,+'App.2-CD_DepExp_Yr3'!K32+((C32*0.5)/D32)) -> 0 | H32: 0 | I32: 0 | K32: =IF(ISERROR(+I32+'App.2-CD_DepExp_Yr3'!K32-J32), 0, +I32+'App.2-CD_DepExp_Yr3'!K32-J32) -> 0
A33: 1855 | B33: Services (Overhead & Underground) | E33: 0 | F33: =IF(D33=0,'App.2-CD_DepExp_Yr3'!K33,+'App.2-CD_DepExp_Yr3'!K33+((C33*0.5)/D33)) -> 0 | H33: 0 | I33: 0 | K33: =IF(ISERROR(+I33+'App.2-CD_DepExp_Yr3'!K33-J33), 0, +I33+'App.2-CD_DepExp_Yr3'!K33-J33) -> 0
A34: 1860 | B34: Meters | E34: 0 | F34: =IF(D34=0,'App.2-CD_DepExp_Yr3'!K34,+'App.2-CD_DepExp_Yr3'!K34+((C34*0.5)/D34)) -> 0 | H34: 0 | I34: 0 | K34: =IF(ISERROR(+I34+'App.2-CD_DepExp_Yr3'!K34-J34), 0, +I34+'App.2-CD_DepExp_Yr3'!K34-J34) -> 0
A35: 1860 | B35: Meters (Smart Meters) | E35: 0 | F35: =IF(D35=0,'App.2-CD_DepExp_Yr3'!K35,+'App.2-CD_DepExp_Yr3'!K35+((C35*0.5)/D35)) -> 0 | H35: 0 | I35: 0 | K35: =IF(ISERROR(+I35+'App.2-CD_DepExp_Yr3'!K35-J35), 0, +I35+'App.2-CD_DepExp_Yr3'!K35-J35) -> 0
A36: 1905 | B36: Land | E36: 0 | F36: =IF(D36=0,'App.2-CD_DepExp_Yr3'!K36,+'App.2-CD_DepExp_Yr3'!K36+((C36*0.5)/D36)) -> 0 | H36: 0 | I36: 0 | K36: =IF(ISERROR(+I36+'App.2-CD_DepExp_Yr3'!K36-J36), 0, +I36+'App.2-CD_DepExp_Yr3'!K36-J36) -> 0
A37: 1908 | B37: Buildings & Fixtures | E37: 0 | F37: =IF(D37=0,'App.2-CD_DepExp_Yr3'!K37,+'App.2-CD_DepExp_Yr3'!K37+((C37*0.5)/D37)) -> 0 | H37: 0 | I37: 0 | K37: =IF(ISERROR(+I37+'App.2-CD_DepExp_Yr3'!K37-J37), 0, +I37+'App.2-CD_DepExp_Yr3'!K37-J37) -> 0
A38: 1910 | B38: Leasehold Improvements | E38: 0 | F38: =IF(D38=0,'App.2-CD_DepExp_Yr3'!K38,+'App.2-CD_DepExp_Yr3'!K38+((C38*0.5)/D38)) -> 0 | H38: 0 | I38: 0 | K38: =IF(ISERROR(+I38+'App.2-CD_DepExp_Yr3'!K38-J38), 0, +I38+'App.2-CD_DepExp_Yr3'!K38-J38) -> 0
A39: 1915 | B39: Office Furniture & Equipment (10 years) | E39: 0 | F39: =IF(D39=0,'App.2-CD_DepExp_Yr3'!K39,+'App.2-CD_DepExp_Yr3'!K39+((C39*0.5)/D39)) -> 0 | H39: 0 | I39: 0 | K39: =IF(ISERROR(+I39+'App.2-CD_DepExp_Yr3'!K39-J39), 0, +I39+'App.2-CD_DepExp_Yr3'!K39-J39) -> 0
A40: 1915 | B40: Office Furniture & Equipment (5 years) | E40: 0 | F40: =IF(D40=0,'App.2-CD_DepExp_Yr3'!K40,+'App.2-CD_DepExp_Yr3'!K40+((C40*0.5)/D40)) -> 0 | H40: 0 | I40: 0 | K40: =IF(ISERROR(+I40+'App.2-CD_DepExp_Yr3'!K40-J40), 0, +I40+'App.2-CD_DepExp_Yr3'!K40-J40) -> 0
A41: 1920 | B41: Computer Equipment - Hardware | E41: 0 | F41: =IF(D41=0,'App.2-CD_DepExp_Yr3'!K41,+'App.2-CD_DepExp_Yr3'!K41+((C41*0.5)/D41)) -> 0 | H41: 0 | I41: 0 | K41: =IF(ISERROR(+I41+'App.2-CD_DepExp_Yr3'!K41-J41), 0, +I41+'App.2-CD_DepExp_Yr3'!K41-J41) -> 0
A42: 1920 | B42: Computer Equip.-Hardware(Post Mar. 22/04) | E42: 0 | F42: =IF(D42=0,'App.2-CD_DepExp_Yr3'!K42,+'App.2-CD_DepExp_Yr3'!K42+((C42*0.5)/D42)) -> 0 | H42: 0 | I42: 0 | K42: =IF(ISERROR(+I42+'App.2-CD_DepExp_Yr3'!K42-J42), 0, +I42+'App.2-CD_DepExp_Yr3'!K42-J42) -> 0
A43: 1920 | B43: Computer Equip.-Hardware(Post Mar. 19/07) | E43: 0 | F43: =IF(D43=0,'App.2-CD_DepExp_Yr3'!K43,+'App.2-CD_DepExp_Yr3'!K43+((C43*0.5)/D43)) -> 0 | H43: 0 | I43: 0 | K43: =IF(ISERROR(+I43+'App.2-CD_DepExp_Yr3'!K43-J43), 0, +I43+'App.2-CD_DepExp_Yr3'!K43-J43) -> 0
A44: 1930 | B44: Transportation Equipment | E44: 0 | F44: =IF(D44=0,'App.2-CD_DepExp_Yr3'!K44,+'App.2-CD_DepExp_Yr3'!K44+((C44*0.5)/D44)) -> 0 | H44: 0 | I44: 0 | K44: =IF(ISERROR(+I44+'App.2-CD_DepExp_Yr3'!K44-J44), 0, +I44+'App.2-CD_DepExp_Yr3'!K44-J44) -> 0
A45: 1935 | B45: Stores Equipment | E45: 0 | F45: =IF(D45=0,'App.2-CD_DepExp_Yr3'!K45,+'App.2-CD_DepExp_Yr3'!K45+((C45*0.5)/D45)) -> 0 | H45: 0 | I45: 0 | K45: =IF(ISERROR(+I45+'App.2-CD_DepExp_Yr3'!K45-J45), 0, +I45+'App.2-CD_DepExp_Yr3'!K45-J45) -> 0
A46: 1940 | B46: Tools, Shop & Garage Equipment | E46: 0 | F46: =IF(D46=0,'App.2-CD_DepExp_Yr3'!K46,+'App.2-CD_DepExp_Yr3'!K46+((C46*0.5)/D46)) -> 0 | H46: 0 | I46: 0 | K46: =IF(ISERROR(+I46+'App.2-CD_DepExp_Yr3'!K46-J46), 0, +I46+'App.2-CD_DepExp_Yr3'!K46-J46) -> 0
A47: 1945 | B47: Measurement & Testing Equipment | E47: 0 | F47: =IF(D47=0,'App.2-CD_DepExp_Yr3'!K47,+'App.2-CD_DepExp_Yr3'!K47+((C47*0.5)/D47)) -> 0 | H47: 0 | I47: 0 | K47: =IF(ISERROR(+I47+'App.2-CD_DepExp_Yr3'!K47-J47), 0, +I47+'App.2-CD_DepExp_Yr3'!K47-J47) -> 0
A48: 1950 | B48: Power Operated Equipment | E48: 0 | F48: =IF(D48=0,'App.2-CD_DepExp_Yr3'!K48,+'App.2-CD_DepExp_Yr3'!K48+((C48*0.5)/D48)) -> 0 | H48: 0 | I48: 0 | K48: =IF(ISERROR(+I48+'App.2-CD_DepExp_Yr3'!K48-J48), 0, +I48+'App.2-CD_DepExp_Yr3'!K48-J48) -> 0
A49: 1955 | B49: Communications Equipment | E49: 0 | F49: =IF(D49=0,'App.2-CD_DepExp_Yr3'!K49,+'App.2-CD_DepExp_Yr3'!K49+((C49*0.5)/D49)) -> 0 | H49: 0 | I49: 0 | K49: =IF(ISERROR(+I49+'App.2-CD_DepExp_Yr3'!K49-J49), 0, +I49+'App.2-CD_DepExp_Yr3'!K49-J49) -> 0
A50: 1955 | B50: Communication Equipment (Smart Meters) | E50: 0 | F50: =IF(D50=0,'App.2-CD_DepExp_Yr3'!K50,+'App.2-CD_DepExp_Yr3'!K50+((C50*0.5)/D50)) -> 0 | H50: 0 | I50: 0 | K50: =IF(ISERROR(+I50+'App.2-CD_DepExp_Yr3'!K50-J50), 0, +I50+'App.2-CD_DepExp_Yr3'!K50-J50) -> 0
A51: 1960 | B51: Miscellaneous Equipment | E51: 0 | F51: =IF(D51=0,'App.2-CD_DepExp_Yr3'!K51,+'App.2-CD_DepExp_Yr3'!K51+((C51*0.5)/D51)) -> 0 | H51: 0 | I51: 0 | K51: =IF(ISERROR(+I51+'App.2-CD_DepExp_Yr3'!K51-J51), 0, +I51+'App.2-CD_DepExp_Yr3'!K51-J51) -> 0
A52: 1970 | B52: Load Management Controls Customer Premises | E52: 0 | F52: =IF(D52=0,'App.2-CD_DepExp_Yr3'!K52,+'App.2-CD_DepExp_Yr3'!K52+((C52*0.5)/D52)) -> 0 | H52: 0 | I52: 0 | K52: =IF(ISERROR(+I52+'App.2-CD_DepExp_Yr3'!K52-J52), 0, +I52+'App.2-CD_DepExp_Yr3'!K52-J52) -> 0
A53: 1975 | B53: Load Management Controls Utility Premises | E53: 0 | F53: =IF(D53=0,'App.2-CD_DepExp_Yr3'!K53,+'App.2-CD_DepExp_Yr3'!K53+((C53*0.5)/D53)) -> 0 | H53: 0 | I53: 0 | K53: =IF(ISERROR(+I53+'App.2-CD_DepExp_Yr3'!K53-J53), 0, +I53+'App.2-CD_DepExp_Yr3'!K53-J53) -> 0
A54: 1980 | B54: System Supervisor Equipment | E54: 0 | F54: =IF(D54=0,'App.2-CD_DepExp_Yr3'!K54,+'App.2-CD_DepExp_Yr3'!K54+((C54*0.5)/D54)) -> 0 | H54: 0 | I54: 0 | K54: =IF(ISERROR(+I54+'App.2-CD_DepExp_Yr3'!K54-J54), 0, +I54+'App.2-CD_DepExp_Yr3'!K54-J54) -> 0
A55: 1985 | B55: Miscellaneous Fixed Assets | E55: 0 | F55: =IF(D55=0,'App.2-CD_DepExp_Yr3'!K55,+'App.2-CD_DepExp_Yr3'!K55+((C55*0.5)/D55)) -> 0 | H55: 0 | I55: 0 | K55: =IF(ISERROR(+I55+'App.2-CD_DepExp_Yr3'!K55-J55), 0, +I55+'App.2-CD_DepExp_Yr3'!K55-J55) -> 0
A56: 1990 | B56: Other Tangible Property | E56: 0 | F56: =IF(D56=0,'App.2-CD_DepExp_Yr3'!K56,+'App.2-CD_DepExp_Yr3'!K56+((C56*0.5)/D56)) -> 0 | H56: 0 | I56: 0 | K56: =IF(ISERROR(+I56+'App.2-CD_DepExp_Yr3'!K56-J56), 0, +I56+'App.2-CD_DepExp_Yr3'!K56-J56) -> 0
A57: 1995 | B57: Contributions & Grants | E57: 0 | F57: =IF(D57=0,'App.2-CD_DepExp_Yr3'!K57,+'App.2-CD_DepExp_Yr3'!K57+((C57*0.5)/D57)) -> 0 | H57: 0 | I57: 0 | K57: =IF(ISERROR(+I57+'App.2-CD_DepExp_Yr3'!K57-J57), 0, +I57+'App.2-CD_DepExp_Yr3'!K57-J57) -> 0
B58: Total | C58: =SUM(C20:C57) -> 0 | F58: =SUM(F20:F57) -> 0 | G58: =SUM(G20:G57) -> 0 | H58: =SUM(H20:H57) -> 0 | I58: =SUM(I20:I57) -> 0 | J58: 0 | K58: =SUM(K20:K57) -> 0
B59: Depreciation exp. adj. from gain or loss on the retirement of assets (pool of like assets)
B60: Total Depreciation Expense | F60: =SUM(F58:F59) -> 0
A61: Notes:
A62: 1 | B62: Board policy of the "half-year" rule - the applicant must ensure that additions in the year attract a half-year depreciation expense in the first year. Deviations from this standard practice must be supported in the application.
A63: 2 | B63: The applicant must provide an explanation of material variances in evidence.
A64: 3 | B64: This column refers to the calculated full year depreciation but excludes the depreciation expense on assets fully depreciated during the year. This column is used for the purpose of calculating depreciation expense in the following year on the next worksheet.
A66: General: | B66: Applicants must provide a breakdown of depreciation and amortization expense in the above format for all relevant accounts. Asset Retirement Obligations (AROs), depreciation and accretion expense should be disclosed separately consistent with the Notes of historical Audited Financial Statements.

Sheet App.2-CF_DepExp_Yr5
J1: File Number: | K1: =EBNUMBER -> 0
A2: NOT APPLICABLE | J2: Exhibit:
J3: Tab:
J4: Schedule:
J5: Page:
J7: Date:
A9: Appendix 2-CF
A10: Depreciation and Amortization Expense
A11: MIFRS (Year 5)
A13: Select the set of appendices that apply | J13: Year Reflected in Schedule Below | K13: Accounting Standard
A14: 2012 Set of Appendices (2-CA to 2-CG) | C14: Assumes the applicant made capitalization and depreciation expense accounting policy changes under CGAAP effective January 1, 2012 and has adopted IFRS for financial reporting purposes effective January 1, 2015. Assumes that the applicant is reflecting these changes in a rebasing application for the first time. | J14: 2016 | K14: MIFRS
A15: 2013 Set of Appendices (2-CA to 2-CF) | C15: Assumes the applicant made capitalization and depreciation expense accounting policy changes under CGAAP effective January 1, 2013 and has adopted IFRS for financial reporting purposes effective January 1, 2015. Assumes that the applicant is reflecting these changes in a rebasing application for the first time. | J15: 2017 | K15: MIFRS
A18: Account | B18: Description | C18: Additions | D18: Years (new additions only) | E18: Depreciation Rate on New Additions | F18: Current Depreciation Expense1 | G18: Depreciation Expense per Appendix 2-BA Fixed Assets, Column J (l) | H18: Variance 2 | I18: Depreciation Expense on Current Full Year Additions | J18: Less Depreciation Expense on Assets Fully Depreciated During the Year (o) | K18: Current Full Year Depreciation 3
C19: (d) | D19: (f) | E19: (g) = 1 / (f) | F19: (h)= Prior Full Year Depreciation + ((d)*0.5)/(f) | H19: (m) = (h) - (l) | I19: (n)=((d))/(f) | K19: (p) = Prior Full Year Depreciation + (n) - (o)
A20: 1611 | B20: Computer Software (Formally known as Account 1925) | E20: =IF(D20=0,0,1/D20) -> 0 | F20: =IF(D20=0,'App.2-CE_DepExp_Yr4'!K20,+'App.2-CE_DepExp_Yr4'!K20+((C20*0.5)/D20)) -> 0 | H20: =IF(ISERROR(+F20-G20), 0, +F20-G20) -> 0 | I20: =IF(D20=0,0,+(C20)/D20) -> 0 | K20: =IF(ISERROR(+I20+'App.2-CE_DepExp_Yr4'!K20-J20), 0, +'App.2-CE_DepExp_Yr4'!K20-J20) -> 0
A21: 1612 | B21: Land Rights (Formally known as Account 1906) | E21: 0 | F21: =IF(D21=0,'App.2-CE_DepExp_Yr4'!K21,+'App.2-CE_DepExp_Yr4'!K21+((C21*0.5)/D21)) -> 0 | H21: 0 | I21: =IF(D21=0,0,+(C21)/D21) -> 0 | K21: =IF(ISERROR(+I21+'App.2-CE_DepExp_Yr4'!K21-J21), 0, +'App.2-CE_DepExp_Yr4'!K21-J21) -> 0
A22: 1805 | B22: Land | E22: 0 | F22: =IF(D22=0,'App.2-CE_DepExp_Yr4'!K22,+'App.2-CE_DepExp_Yr4'!K22+((C22*0.5)/D22)) -> 0 | H22: 0 | I22: 0 | K22: =IF(ISERROR(+I22+'App.2-CE_DepExp_Yr4'!K22-J22), 0, +'App.2-CE_DepExp_Yr4'!K22-J22) -> 0
A23: 1808 | B23: Buildings | E23: 0 | F23: =IF(D23=0,'App.2-CE_DepExp_Yr4'!K23,+'App.2-CE_DepExp_Yr4'!K23+((C23*0.5)/D23)) -> 0 | H23: 0 | I23: 0 | K23: =IF(ISERROR(+I23+'App.2-CE_DepExp_Yr4'!K23-J23), 0, +'App.2-CE_DepExp_Yr4'!K23-J23) -> 0
A24: 1810 | B24: Leasehold Improvements | E24: 0 | F24: =IF(D24=0,'App.2-CE_DepExp_Yr4'!K24,+'App.2-CE_DepExp_Yr4'!K24+((C24*0.5)/D24)) -> 0 | H24: 0 | I24: 0 | K24: =IF(ISERROR(+I24+'App.2-CE_DepExp_Yr4'!K24-J24), 0, +'App.2-CE_DepExp_Yr4'!K24-J24) -> 0
A25: 1815 | B25: Transformer Station Equipment >50 kV | E25: 0 | F25: =IF(D25=0,'App.2-CE_DepExp_Yr4'!K25,+'App.2-CE_DepExp_Yr4'!K25+((C25*0.5)/D25)) -> 0 | H25: 0 | I25: 0 | K25: =IF(ISERROR(+I25+'App.2-CE_DepExp_Yr4'!K25-J25), 0, +'App.2-CE_DepExp_Yr4'!K25-J25) -> 0
A26: 1820 | B26: Distribution Station Equipment <50 kV | E26: 0 | F26: =IF(D26=0,'App.2-CE_DepExp_Yr4'!K26,+'App.2-CE_DepExp_Yr4'!K26+((C26*0.5)/D26)) -> 0 | H26: 0 | I26: 0 | K26: =IF(ISERROR(+I26+'App.2-CE_DepExp_Yr4'!K26-J26), 0, +'App.2-CE_DepExp_Yr4'!K26-J26) -> 0
A27: 1825 | B27: Storage Battery Equipment | E27: 0 | F27: =IF(D27=0,'App.2-CE_DepExp_Yr4'!K27,+'App.2-CE_DepExp_Yr4'!K27+((C27*0.5)/D27)) -> 0 | H27: 0 | I27: 0 | K27: =IF(ISERROR(+I27+'App.2-CE_DepExp_Yr4'!K27-J27), 0, +'App.2-CE_DepExp_Yr4'!K27-J27) -> 0
A28: 1830 | B28: Poles, Towers & Fixtures | E28: 0 | F28: =IF(D28=0,'App.2-CE_DepExp_Yr4'!K28,+'App.2-CE_DepExp_Yr4'!K28+((C28*0.5)/D28)) -> 0 | H28: 0 | I28: 0 | K28: =IF(ISERROR(+I28+'App.2-CE_DepExp_Yr4'!K28-J28), 0, +'App.2-CE_DepExp_Yr4'!K28-J28) -> 0
A29: 1835 | B29: Overhead Conductors & Devices | E29: 0 | F29: =IF(D29=0,'App.2-CE_DepExp_Yr4'!K29,+'App.2-CE_DepExp_Yr4'!K29+((C29*0.5)/D29)) -> 0 | H29: 0 | I29: 0 | K29: =IF(ISERROR(+I29+'App.2-CE_DepExp_Yr4'!K29-J29), 0, +'App.2-CE_DepExp_Yr4'!K29-J29) -> 0
A30: 1840 | B30: Underground Conduit | E30: 0 | F30: =IF(D30=0,'App.2-CE_DepExp_Yr4'!K30,+'App.2-CE_DepExp_Yr4'!K30+((C30*0.5)/D30)) -> 0 | H30: 0 | I30: 0 | K30: =IF(ISERROR(+I30+'App.2-CE_DepExp_Yr4'!K30-J30), 0, +'App.2-CE_DepExp_Yr4'!K30-J30) -> 0
A31: 1845 | B31: Underground Conductors & Devices | E31: 0 | F31: =IF(D31=0,'App.2-CE_DepExp_Yr4'!K31,+'App.2-CE_DepExp_Yr4'!K31+((C31*0.5)/D31)) -> 0 | H31: 0 | I31: 0 | K31: =IF(ISERROR(+I31+'App.2-CE_DepExp_Yr4'!K31-J31), 0, +'App.2-CE_DepExp_Yr4'!K31-J31) -> 0
A32: 1850 | B32: Line Transformers | E32: 0 | F32: =IF(D32=0,'App.2-CE_DepExp_Yr4'!K32,+'App.2-CE_DepExp_Yr4'!K32+((C32*0.5)/D32)) -> 0 | H32: 0 | I32: 0 | K32: =IF(ISERROR(+I32+'App.2-CE_DepExp_Yr4'!K32-J32), 0, +'App.2-CE_DepExp_Yr4'!K32-J32) -> 0
A33: 1855 | B33: Services (Overhead & Underground) | E33: 0 | F33: =IF(D33=0,'App.2-CE_DepExp_Yr4'!K33,+'App.2-CE_DepExp_Yr4'!K33+((C33*0.5)/D33)) -> 0 | H33: 0 | I33: 0 | K33: =IF(ISERROR(+I33+'App.2-CE_DepExp_Yr4'!K33-J33), 0, +'App.2-CE_DepExp_Yr4'!K33-J33) -> 0
A34: 1860 | B34: Meters | E34: 0 | F34: =IF(D34=0,'App.2-CE_DepExp_Yr4'!K34,+'App.2-CE_DepExp_Yr4'!K34+((C34*0.5)/D34)) -> 0 | H34: 0 | I34: 0 | K34: =IF(ISERROR(+I34+'App.2-CE_DepExp_Yr4'!K34-J34), 0, +'App.2-CE_DepExp_Yr4'!K34-J34) -> 0
A35: 1860 | B35: Meters (Smart Meters) | E35: 0 | F35: =IF(D35=0,'App.2-CE_DepExp_Yr4'!K35,+'App.2-CE_DepExp_Yr4'!K35+((C35*0.5)/D35)) -> 0 | H35: 0 | I35: 0 | K35: =IF(ISERROR(+I35+'App.2-CE_DepExp_Yr4'!K35-J35), 0, +'App.2-CE_DepExp_Yr4'!K35-J35) -> 0
A36: 1905 | B36: Land | E36: 0 | F36: =IF(D36=0,'App.2-CE_DepExp_Yr4'!K36,+'App.2-CE_DepExp_Yr4'!K36+((C36*0.5)/D36)) -> 0 | H36: 0 | I36: 0 | K36: =IF(ISERROR(+I36+'App.2-CE_DepExp_Yr4'!K36-J36), 0, +'App.2-CE_DepExp_Yr4'!K36-J36) -> 0
A37: 1908 | B37: Buildings & Fixtures | E37: 0 | F37: =IF(D37=0,'App.2-CE_DepExp_Yr4'!K37,+'App.2-CE_DepExp_Yr4'!K37+((C37*0.5)/D37)) -> 0 | H37: 0 | I37: 0 | K37: =IF(ISERROR(+I37+'App.2-CE_DepExp_Yr4'!K37-J37), 0, +'App.2-CE_DepExp_Yr4'!K37-J37) -> 0
A38: 1910 | B38: Leasehold Improvements | E38: 0 | F38: =IF(D38=0,'App.2-CE_DepExp_Yr4'!K38,+'App.2-CE_DepExp_Yr4'!K38+((C38*0.5)/D38)) -> 0 | H38: 0 | I38: 0 | K38: =IF(ISERROR(+I38+'App.2-CE_DepExp_Yr4'!K38-J38), 0, +'App.2-CE_DepExp_Yr4'!K38-J38) -> 0
A39: 1915 | B39: Office Furniture & Equipment (10 years) | E39: 0 | F39: =IF(D39=0,'App.2-CE_DepExp_Yr4'!K39,+'App.2-CE_DepExp_Yr4'!K39+((C39*0.5)/D39)) -> 0 | H39: 0 | I39: 0 | K39: =IF(ISERROR(+I39+'App.2-CE_DepExp_Yr4'!K39-J39), 0, +'App.2-CE_DepExp_Yr4'!K39-J39) -> 0
A40: 1915 | B40: Office Furniture & Equipment (5 years) | E40: 0 | F40: =IF(D40=0,'App.2-CE_DepExp_Yr4'!K40,+'App.2-CE_DepExp_Yr4'!K40+((C40*0.5)/D40)) -> 0 | H40: 0 | I40: 0 | K40: =IF(ISERROR(+I40+'App.2-CE_DepExp_Yr4'!K40-J40), 0, +'App.2-CE_DepExp_Yr4'!K40-J40) -> 0
A41: 1920 | B41: Computer Equipment - Hardware | E41: 0 | F41: =IF(D41=0,'App.2-CE_DepExp_Yr4'!K41,+'App.2-CE_DepExp_Yr4'!K41+((C41*0.5)/D41)) -> 0 | H41: 0 | I41: 0 | K41: =IF(ISERROR(+I41+'App.2-CE_DepExp_Yr4'!K41-J41), 0, +'App.2-CE_DepExp_Yr4'!K41-J41) -> 0
A42: 1920 | B42: Computer Equip.-Hardware(Post Mar. 22/04) | E42: 0 | F42: =IF(D42=0,'App.2-CE_DepExp_Yr4'!K42,+'App.2-CE_DepExp_Yr4'!K42+((C42*0.5)/D42)) -> 0 | H42: 0 | I42: 0 | K42: =IF(ISERROR(+I42+'App.2-CE_DepExp_Yr4'!K42-J42), 0, +'App.2-CE_DepExp_Yr4'!K42-J42) -> 0
A43: 1920 | B43: Computer Equip.-Hardware(Post Mar. 19/07) | E43: 0 | F43: =IF(D43=0,'App.2-CE_DepExp_Yr4'!K43,+'App.2-CE_DepExp_Yr4'!K43+((C43*0.5)/D43)) -> 0 | H43: 0 | I43: 0 | K43: =IF(ISERROR(+I43+'App.2-CE_DepExp_Yr4'!K43-J43), 0, +'App.2-CE_DepExp_Yr4'!K43-J43) -> 0
A44: 1930 | B44: Transportation Equipment | E44: 0 | F44: =IF(D44=0,'App.2-CE_DepExp_Yr4'!K44,+'App.2-CE_DepExp_Yr4'!K44+((C44*0.5)/D44)) -> 0 | H44: 0 | I44: 0 | K44: =IF(ISERROR(+I44+'App.2-CE_DepExp_Yr4'!K44-J44), 0, +'App.2-CE_DepExp_Yr4'!K44-J44) -> 0
A45: 1935 | B45: Stores Equipment | E45: 0 | F45: =IF(D45=0,'App.2-CE_DepExp_Yr4'!K45,+'App.2-CE_DepExp_Yr4'!K45+((C45*0.5)/D45)) -> 0 | H45: 0 | I45: 0 | K45: =IF(ISERROR(+I45+'App.2-CE_DepExp_Yr4'!K45-J45), 0, +'App.2-CE_DepExp_Yr4'!K45-J45) -> 0
A46: 1940 | B46: Tools, Shop & Garage Equipment | E46: 0 | F46: =IF(D46=0,'App.2-CE_DepExp_Yr4'!K46,+'App.2-CE_DepExp_Yr4'!K46+((C46*0.5)/D46)) -> 0 | H46: 0 | I46: 0 | K46: =IF(ISERROR(+I46+'App.2-CE_DepExp_Yr4'!K46-J46), 0, +'App.2-CE_DepExp_Yr4'!K46-J46) -> 0
A47: 1945 | B47: Measurement & Testing Equipment | E47: 0 | F47: =IF(D47=0,'App.2-CE_DepExp_Yr4'!K47,+'App.2-CE_DepExp_Yr4'!K47+((C47*0.5)/D47)) -> 0 | H47: 0 | I47: 0 | K47: =IF(ISERROR(+I47+'App.2-CE_DepExp_Yr4'!K47-J47), 0, +'App.2-CE_DepExp_Yr4'!K47-J47) -> 0
A48: 1950 | B48: Power Operated Equipment | E48: 0 | F48: =IF(D48=0,'App.2-CE_DepExp_Yr4'!K48,+'App.2-CE_DepExp_Yr4'!K48+((C48*0.5)/D48)) -> 0 | H48: 0 | I48: 0 | K48: =IF(ISERROR(+I48+'App.2-CE_DepExp_Yr4'!K48-J48), 0, +'App.2-CE_DepExp_Yr4'!K48-J48) -> 0
A49: 1955 | B49: Communications Equipment | E49: 0 | F49: =IF(D49=0,'App.2-CE_DepExp_Yr4'!K49,+'App.2-CE_DepExp_Yr4'!K49+((C49*0.5)/D49)) -> 0 | H49: 0 | I49: 0 | K49: =IF(ISERROR(+I49+'App.2-CE_DepExp_Yr4'!K49-J49), 0, +'App.2-CE_DepExp_Yr4'!K49-J49) -> 0
A50: 1955 | B50: Communication Equipment (Smart Meters) | E50: 0 | F50: =IF(D50=0,'App.2-CE_DepExp_Yr4'!K50,+'App.2-CE_DepExp_Yr4'!K50+((C50*0.5)/D50)) -> 0 | H50: 0 | I50: 0 | K50: =IF(ISERROR(+I50+'App.2-CE_DepExp_Yr4'!K50-J50), 0, +'App.2-CE_DepExp_Yr4'!K50-J50) -> 0
A51: 1960 | B51: Miscellaneous Equipment | E51: 0 | F51: =IF(D51=0,'App.2-CE_DepExp_Yr4'!K51,+'App.2-CE_DepExp_Yr4'!K51+((C51*0.5)/D51)) -> 0 | H51: 0 | I51: 0 | K51: =IF(ISERROR(+I51+'App.2-CE_DepExp_Yr4'!K51-J51), 0, +'App.2-CE_DepExp_Yr4'!K51-J51) -> 0
A52: 1970 | B52: Load Management Controls Customer Premises | E52: 0 | F52: =IF(D52=0,'App.2-CE_DepExp_Yr4'!K52,+'App.2-CE_DepExp_Yr4'!K52+((C52*0.5)/D52)) -> 0 | H52: 0 | I52: 0 | K52: =IF(ISERROR(+I52+'App.2-CE_DepExp_Yr4'!K52-J52), 0, +'App.2-CE_DepExp_Yr4'!K52-J52) -> 0
A53: 1975 | B53: Load Management Controls Utility Premises | E53: 0 | F53: =IF(D53=0,'App.2-CE_DepExp_Yr4'!K53,+'App.2-CE_DepExp_Yr4'!K53+((C53*0.5)/D53)) -> 0 | H53: 0 | I53: 0 | K53: =IF(ISERROR(+I53+'App.2-CE_DepExp_Yr4'!K53-J53), 0, +'App.2-CE_DepExp_Yr4'!K53-J53) -> 0
A54: 1980 | B54: System Supervisor Equipment | E54: 0 | F54: =IF(D54=0,'App.2-CE_DepExp_Yr4'!K54,+'App.2-CE_DepExp_Yr4'!K54+((C54*0.5)/D54)) -> 0 | H54: 0 | I54: 0 | K54: =IF(ISERROR(+I54+'App.2-CE_DepExp_Yr4'!K54-J54), 0, +'App.2-CE_DepExp_Yr4'!K54-J54) -> 0
A55: 1985 | B55: Miscellaneous Fixed Assets | E55: 0 | F55: =IF(D55=0,'App.2-CE_DepExp_Yr4'!K55,+'App.2-CE_DepExp_Yr4'!K55+((C55*0.5)/D55)) -> 0 | H55: 0 | I55: 0 | K55: =IF(ISERROR(+I55+'App.2-CE_DepExp_Yr4'!K55-J55), 0, +'App.2-CE_DepExp_Yr4'!K55-J55) -> 0
A56: 1990 | B56: Other Tangible Property | E56: 0 | F56: =IF(D56=0,'App.2-CE_DepExp_Yr4'!K56,+'App.2-CE_DepExp_Yr4'!K56+((C56*0.5)/D56)) -> 0 | H56: 0 | I56: 0 | K56: =IF(ISERROR(+I56+'App.2-CE_DepExp_Yr4'!K56-J56), 0, +'App.2-CE_DepExp_Yr4'!K56-J56) -> 0
A57: 1995 | B57: Contributions & Grants | E57: 0 | F57: =IF(D57=0,'App.2-CE_DepExp_Yr4'!K57,+'App.2-CE_DepExp_Yr4'!K57+((C57*0.5)/D57)) -> 0 | H57: 0 | I57: 0 | K57: =IF(ISERROR(+I57+'App.2-CE_DepExp_Yr4'!K57-J57), 0, +'App.2-CE_DepExp_Yr4'!K57-J57) -> 0
B58: Total | C58: =SUM(C20:C57) -> 0 | F58: =SUM(F20:F57) -> 0 | G58: =SUM(G20:G57) -> 0 | H58: =SUM(H20:H57) -> 0 | I58: =SUM(I20:I57) -> 0 | J58: 0 | K58: 0
B59: Depreciation exp. adj. from gain or loss on the retirement of assets (pool of like assets)
B60: Total Depreciation Expense | F60: =SUM(F58:F59) -> 0
A61: Notes:
A62: 1 | B62: Board policy of the "half-year" rule - the applicant must ensure that additions in the year attract a half-year depreciation expense in the first year. Deviations from this standard practice must be supported in the application.
A63: 2 | B63: The applicant must provide an explanation of material variances in evidence.
A64: 3 | B64: This column refers to the calculated full year depreciation but excludes the depreciation expense on assets fully depreciated during the year. This column is used for the purpose of calculating depreciation expense in the following year on the next worksheet.
A66: General: | B66: Applicants must provide a breakdown of depreciation and amortization expense in the above format for all relevant accounts. Asset Retirement Obligations (AROs), depreciation and accretion expense should be disclosed separately consistent with the Notes of historical Audited Financial Statements.

Sheet App.2-CG_DepExp_Yr6
J1: File Number: | K1: =EBNUMBER -> 0
A2: NOT APPLICABLE | J2: Exhibit:
J3: Tab:
J4: Schedule:
J5: Page:
J7: Date:
A9: Appendix 2-CG
A10: Depreciation and Amortization Expense
A11: MIFRS (Year 6)
A13: Select the set of appendices that apply | J13: Year Reflected in Schedule Below | K13: Accounting Standard
A14: 2012 Set of Appendices (2-CA to 2-CG) | C14: Assumes the applicant made capitalization and depreciation expense accounting policy changes under CGAAP effective January 1, 2012 and has adopted IFRS for financial reporting purposes effective January 1, 2015. Assumes that the applicant is reflecting these changes in a rebasing application for the first time. | J14: 2017 | K14: MIFRS
A15: N/A | B15: 2013 Set of Appendices | C15: Not applicable as the test year depreciation is already calculated in Appendix 2-CF. Note that this appendix is not to be used even though depreciation expense calculations will flow through from previous years to this appendix. | J15: N/A | K15: N/A
A18: Account | B18: Description | C18: Additions | D18: Years (new additions only) | E18: Depreciation Rate on New Additions | F18: Current Depreciation Expense1 | G18: Depreciation Expense per Appendix 2-BA Fixed Assets, Column J (l) | H18: Variance 2
C19: (d) | D19: (f) | E19: (g) = 1 / (f) | F19: (h)= Prior Full Year Depreciation + ((d)*0.5)/(f) | H19: (m) = (h) - (l)
A20: 1611 | B20: Computer Software (Formally known as Account 1925) | E20: =IF(D20=0,0,1/D20) -> 0 | F20: =IF(D20=0,'App.2-CF_DepExp_Yr5'!K20,+'App.2-CF_DepExp_Yr5'!K20+((C20*0.5)/D20)) -> 0 | H20: =IF(ISERROR(+F20-G20), 0, +F20-G20) -> 0
A21: 1612 | B21: Land Rights (Formally known as Account 1906) | E21: 0 | F21: =IF(D21=0,'App.2-CF_DepExp_Yr5'!K21,+'App.2-CF_DepExp_Yr5'!K21+((C21*0.5)/D21)) -> 0 | H21: 0
A22: 1805 | B22: Land | E22: 0 | F22: =IF(D22=0,'App.2-CF_DepExp_Yr5'!K22,+'App.2-CF_DepExp_Yr5'!K22+((C22*0.5)/D22)) -> 0 | H22: 0
A23: 1808 | B23: Buildings | E23: 0 | F23: =IF(D23=0,'App.2-CF_DepExp_Yr5'!K23,+'App.2-CF_DepExp_Yr5'!K23+((C23*0.5)/D23)) -> 0 | H23: 0
A24: 1810 | B24: Leasehold Improvements | E24: 0 | F24: =IF(D24=0,'App.2-CF_DepExp_Yr5'!K24,+'App.2-CF_DepExp_Yr5'!K24+((C24*0.5)/D24)) -> 0 | H24: 0
A25: 1815 | B25: Transformer Station Equipment >50 kV | E25: 0 | F25: =IF(D25=0,'App.2-CF_DepExp_Yr5'!K25,+'App.2-CF_DepExp_Yr5'!K25+((C25*0.5)/D25)) -> 0 | H25: 0
A26: 1820 | B26: Distribution Station Equipment <50 kV | E26: 0 | F26: =IF(D26=0,'App.2-CF_DepExp_Yr5'!K26,+'App.2-CF_DepExp_Yr5'!K26+((C26*0.5)/D26)) -> 0 | H26: 0
A27: 1825 | B27: Storage Battery Equipment | E27: 0 | F27: =IF(D27=0,'App.2-CF_DepExp_Yr5'!K27,+'App.2-CF_DepExp_Yr5'!K27+((C27*0.5)/D27)) -> 0 | H27: 0
A28: 1830 | B28: Poles, Towers & Fixtures | E28: 0 | F28: =IF(D28=0,'App.2-CF_DepExp_Yr5'!K28,+'App.2-CF_DepExp_Yr5'!K28+((C28*0.5)/D28)) -> 0 | H28: 0
A29: 1835 | B29: Overhead Conductors & Devices | E29: 0 | F29: =IF(D29=0,'App.2-CF_DepExp_Yr5'!K29,+'App.2-CF_DepExp_Yr5'!K29+((C29*0.5)/D29)) -> 0 | H29: 0
A30: 1840 | B30: Underground Conduit | E30: 0 | F30: =IF(D30=0,'App.2-CF_DepExp_Yr5'!K30,+'App.2-CF_DepExp_Yr5'!K30+((C30*0.5)/D30)) -> 0 | H30: 0
A31: 1845 | B31: Underground Conductors & Devices | E31: 0 | F31: =IF(D31=0,'App.2-CF_DepExp_Yr5'!K31,+'App.2-CF_DepExp_Yr5'!K31+((C31*0.5)/D31)) -> 0 | H31: 0
A32: 1850 | B32: Line Transformers | E32: 0 | F32: =IF(D32=0,'App.2-CF_DepExp_Yr5'!K32,+'App.2-CF_DepExp_Yr5'!K32+((C32*0.5)/D32)) -> 0 | H32: 0
A33: 1855 | B33: Services (Overhead & Underground) | E33: 0 | F33: =IF(D33=0,'App.2-CF_DepExp_Yr5'!K33,+'App.2-CF_DepExp_Yr5'!K33+((C33*0.5)/D33)) -> 0 | H33: 0
A34: 1860 | B34: Meters | E34: 0 | F34: =IF(D34=0,'App.2-CF_DepExp_Yr5'!K34,+'App.2-CF_DepExp_Yr5'!K34+((C34*0.5)/D34)) -> 0 | H34: 0
A35: 1860 | B35: Meters (Smart Meters) | E35: 0 | F35: =IF(D35=0,'App.2-CF_DepExp_Yr5'!K35,+'App.2-CF_DepExp_Yr5'!K35+((C35*0.5)/D35)) -> 0 | H35: 0
A36: 1905 | B36: Land | E36: 0 | F36: =IF(D36=0,'App.2-CF_DepExp_Yr5'!K36,+'App.2-CF_DepExp_Yr5'!K36+((C36*0.5)/D36)) -> 0 | H36: 0
A37: 1908 | B37: Buildings & Fixtures | E37: 0 | F37: =IF(D37=0,'App.2-CF_DepExp_Yr5'!K37,+'App.2-CF_DepExp_Yr5'!K37+((C37*0.5)/D37)) -> 0 | H37: 0
A38: 1910 | B38: Leasehold Improvements | E38: 0 | F38: =IF(D38=0,'App.2-CF_DepExp_Yr5'!K38,+'App.2-CF_DepExp_Yr5'!K38+((C38*0.5)/D38)) -> 0 | H38: 0
A39: 1915 | B39: Office Furniture & Equipment (10 years) | E39: 0 | F39: =IF(D39=0,'App.2-CF_DepExp_Yr5'!K39,+'App.2-CF_DepExp_Yr5'!K39+((C39*0.5)/D39)) -> 0 | H39: 0
A40: 1915 | B40: Office Furniture & Equipment (5 years) | E40: 0 | F40: =IF(D40=0,'App.2-CF_DepExp_Yr5'!K40,+'App.2-CF_DepExp_Yr5'!K40+((C40*0.5)/D40)) -> 0 | H40: 0
A41: 1920 | B41: Computer Equipment - Hardware | E41: 0 | F41: =IF(D41=0,'App.2-CF_DepExp_Yr5'!K41,+'App.2-CF_DepExp_Yr5'!K41+((C41*0.5)/D41)) -> 0 | H41: 0
A42: 1920 | B42: Computer Equip.-Hardware(Post Mar. 22/04) | E42: 0 | F42: =IF(D42=0,'App.2-CF_DepExp_Yr5'!K42,+'App.2-CF_DepExp_Yr5'!K42+((C42*0.5)/D42)) -> 0 | H42: 0
A43: 1920 | B43: Computer Equip.-Hardware(Post Mar. 19/07) | E43: 0 | F43: =IF(D43=0,'App.2-CF_DepExp_Yr5'!K43,+'App.2-CF_DepExp_Yr5'!K43+((C43*0.5)/D43)) -> 0 | H43: 0
A44: 1930 | B44: Transportation Equipment | E44: 0 | F44: =IF(D44=0,'App.2-CF_DepExp_Yr5'!K44,+'App.2-CF_DepExp_Yr5'!K44+((C44*0.5)/D44)) -> 0 | H44: 0
A45: 1935 | B45: Stores Equipment | E45: 0 | F45: =IF(D45=0,'App.2-CF_DepExp_Yr5'!K45,+'App.2-CF_DepExp_Yr5'!K45+((C45*0.5)/D45)) -> 0 | H45: 0
A46: 1940 | B46: Tools, Shop & Garage Equipment | E46: 0 | F46: =IF(D46=0,'App.2-CF_DepExp_Yr5'!K46,+'App.2-CF_DepExp_Yr5'!K46+((C46*0.5)/D46)) -> 0 | H46: 0
A47: 1945 | B47: Measurement & Testing Equipment | E47: 0 | F47: =IF(D47=0,'App.2-CF_DepExp_Yr5'!K47,+'App.2-CF_DepExp_Yr5'!K47+((C47*0.5)/D47)) -> 0 | H47: 0
A48: 1950 | B48: Power Operated Equipment | E48: 0 | F48: =IF(D48=0,'App.2-CF_DepExp_Yr5'!K48,+'App.2-CF_DepExp_Yr5'!K48+((C48*0.5)/D48)) -> 0 | H48: 0
A49: 1955 | B49: Communications Equipment | E49: 0 | F49: =IF(D49=0,'App.2-CF_DepExp_Yr5'!K49,+'App.2-CF_DepExp_Yr5'!K49+((C49*0.5)/D49)) -> 0 | H49: 0
A50: 1955 | B50: Communication Equipment (Smart Meters) | E50: 0 | F50: =IF(D50=0,'App.2-CF_DepExp_Yr5'!K50,+'App.2-CF_DepExp_Yr5'!K50+((C50*0.5)/D50)) -> 0 | H50: 0
A51: 1960 | B51: Miscellaneous Equipment | E51: 0 | F51: =IF(D51=0,'App.2-CF_DepExp_Yr5'!K51,+'App.2-CF_DepExp_Yr5'!K51+((C51*0.5)/D51)) -> 0 | H51: 0
A52: 1970 | B52: Load Management Controls Customer Premises | E52: 0 | F52: =IF(D52=0,'App.2-CF_DepExp_Yr5'!K52,+'App.2-CF_DepExp_Yr5'!K52+((C52*0.5)/D52)) -> 0 | H52: 0
A53: 1975 | B53: Load Management Controls Utility Premises | E53: 0 | F53: =IF(D53=0,'App.2-CF_DepExp_Yr5'!K53,+'App.2-CF_DepExp_Yr5'!K53+((C53*0.5)/D53)) -> 0 | H53: 0
A54: 1980 | B54: System Supervisor Equipment | E54: 0 | F54: =IF(D54=0,'App.2-CF_DepExp_Yr5'!K54,+'App.2-CF_DepExp_Yr5'!K54+((C54*0.5)/D54)) -> 0 | H54: 0
A55: 1985 | B55: Miscellaneous Fixed Assets | E55: 0 | F55: =IF(D55=0,'App.2-CF_DepExp_Yr5'!K55,+'App.2-CF_DepExp_Yr5'!K55+((C55*0.5)/D55)) -> 0 | H55: 0
A56: 1990 | B56: Other Tangible Property | E56: 0 | F56: =IF(D56=0,'App.2-CF_DepExp_Yr5'!K56,+'App.2-CF_DepExp_Yr5'!K56+((C56*0.5)/D56)) -> 0 | H56: 0
A57: 1995 | B57: Contributions & Grants | E57: 0 | F57: =IF(D57=0,'App.2-CF_DepExp_Yr5'!K57,+'App.2-CF_DepExp_Yr5'!K57+((C57*0.5)/D57)) -> 0 | H57: 0
B58: Total | C58: =SUM(C20:C57) -> 0 | F58: =SUM(F20:F57) -> 0 | G58: =SUM(G20:G57) -> 0 | H58: =SUM(H20:H57) -> 0
B59: Depreciation exp. adj. from gain or loss on the retirement of assets (pool of like assets)
B60: Total Depreciation Expense | F60: =SUM(F58:F59) -> 0
A61: Notes:
A62: 1 | B62: Board policy of the "half-year" rule - the applicant must ensure that additions in the year attract a half-year depreciation expense in the first year. Deviations from this standard practice must be supported in the application.
A63: 2 | B63: The applicant must provide an explanation of material variances in evidence.
A66: General: | B66: Applicants must provide a breakdown of depreciation and amortization expense in the above format for all relevant accounts. Asset Retirement Obligations (AROs), depreciation and accretion expense should be disclosed separately consistent with the Notes of historical Audited Financial Statements.

Sheet App.2-CH_DepExp
K1: File Number: | L1: =EBNUMBER -> 0
K2: Exhibit:
K3: Tab:
K4: Schedule:
K5: Page:
K7: Date:
A9: Appendix 2-CH1
A10: Depreciation and Amortization Expense
A11: Revised CGAAP or MIFRS
A13: Assumes the applicant changed capitalization and depreciation policies and reflected these changes in a prior rebasing application
C15: Determination of Depreciation Expenses
C16: Year | D16: 2014 | E16: CGAAP - with changes to policies
A18: Account | B18: Description | C18: Opening Regulatory Gross PP&E as at Jan 1, 2010 | D18: Less Fully Depreciated | E18: Net for Depreciation | F18: Additions | G18: Total for Depreciation | H18: Years | I18: Depreciation Rate | J18: 2010 Depreciation Expense | K18: 2010 Depreciation Expense per Appendix 2-B Fixed Assets, Column K (l) | L18: Variance 2
C19: (a) | D19: (b) | E19: (c) | F19: (d) | G19: (e) = (c) + ½ x (d) 1 | H19: (f) | I19: (g) = 1 / (f) | J19: (h) = (e) / (f) | L19: (m) = (h) - (l)
A20: 1611 | B20: Computer Software (Formally known as Account 1925) | C20: 85405.66 | D20: 22085.77 | E20: =C20-D20 -> 63319.89 | F20: 40505.35 | G20: =E20+0.5*F20 -> 83572.565 | H20: 5 | I20: =IF(H20=0,"",1/H20) -> 0.2 | J20: =IF(H20=0,0,G20/H20) -> 16714.513 | K20: 5179.77 | L20: =IF(ISERROR(+J20-K20), "", +J20-K20) -> 11534.743
A21: 1612 | B21: Land Rights (Formally known as Account 1906) | E21: =C21-D21 -> 0 | G21: =E21+0.5*F21 -> 0 | H21: 35 | I21: 0.02857142857 | J21: 0 | L21: =IF(ISERROR(+J21-K21), "", +J21-K21) -> 0
A22: 1612 | B22: Land Rights (Formally known as Account 1906) | E22: 0 | G22: 0 | H22: 70 | I22: 0.01428571429 | J22: 0 | L22: 0
A23: 1805 | B23: Land | C23: 50000 | E23: 50000 | G23: 50000 | H23: 0 | J23: 0 | L23: 0
A24: 1808 | B24: Buildings - Equipment | C24: 0 | E24: 0 | G24: 0 | H24: 10 | I24: 0.1 | J24: 0 | L24: 0
A25: 1808 | B25: Buildings - Equipment | E25: 0 | G25: 0 | H25: 20 | I25: 0.05 | J25: 0
A26: 1808 | B26: Buildings - Major Repairs | E26: 0 | G26: 0 | H26: 25 | I26: 0.04 | J26: 0 | L26: 0
A27: 1808 | B27: Buildings - Major Repairs | E27: 0 | G27: 0 | H27: 30 | I27: 0.03333333333 | J27: 0 | L27: 0
A28: 1808 | B28: Buildings - Brick, Stone, Concrete and Steel | E28: 0 | G28: 0 | H28: 50 | I28: 0.02 | J28: 0 | L28: 0
A29: 1810 | B29: Leasehold Improvements | C29: 0 | E29: 0 | G29: 0 | J29: 0 | L29: 0
A30: 1815 | B30: Transformer Station Equipment >50 kV | C30: 0 | E30: 0 | G30: 0 | J30: 0 | L30: 0
A31: 1820 | B31: Distribution Station Equipment <50 kV | C31: 284887.52 | E31: 284887.52 | F31: 0 | G31: 284887.52 | H31: 55 | I31: 0.01818181818 | J31: 5179.773091 | K31: 22388.28 | L31: -17208.50691
A32: 1825 | B32: Storage Battery Equipment | C32: 0 | E32: 0 | G32: 0 | J32: 0 | K32: 4987.05 | L32: -4987.05
A33: 1830 | B33: Poles, Towers & Fixtures | C33: 638783.24 | E33: 638783.24 | F33: 107752.87 | G33: 692659.675 | H33: 40 | I33: 0.025 | J33: 17316.49187 | K33: 0 | L33: 17316.49187
A34: 1835 | B34: Overhead Conductors & Devices | C34: 605736.69 | E34: 605736.69 | F34: 55661.82 | G34: 633567.6 | H34: 60 | I34: 0.01666666667 | J34: 10559.46 | K34: 21538 | L34: -10978.54
A35: 1840 | B35: Underground Conduit | C35: 0 | E35: 0 | G35: 0 | J35: 0 | K35: 0 | L35: 0
A36: 1845 | B36: Underground Conductors & Devices | C36: 1016362.74 | E36: 1016362.74 | F36: 692811.43 | G36: 1362768.455 | H36: 35 | I36: 0.02857142857 | J36: 38936.24157 | K36: 0 | L36: 38936.24157
A37: 1850 | B37: Line Transformers | C37: 751064.44 | E37: 751064.44 | F37: 288934.39 | G37: 895531.635 | H37: 40 | I37: 0.025 | J37: 22388.29087 | K37: 0 | L37: 22388.29087
A38: 1855 | B38: Services (Overhead & Underground) | C38: 193249.96 | E38: 193249.96 | F38: 12464 | G38: 199481.96 | H38: 40 | I38: 0.025 | J38: 4987.049 | K38: 4308.65 | L38: 678.399
A39: 1860 | B39: Meters | C39: 79072.18 | D39: 79072.18 | E39: 0 | G39: 0 | H39: 15 | I39: 0.06666666667 | J39: 0 | L39: 0
A40: 1860 | B40: Meters (Smart Meters) | C40: 310212.82 | E40: 310212.82 | F40: 25716.04 | G40: 323070.84 | H40: 15 | I40: 0.06666666667 | J40: 21538.056 | K40: 21537.99 | L40: 0.066
A41: 1905 | B41: Land | E41: 0 | G41: 0 | H41: 0 | J41: 0 | L41: 0
A42: 1908 | B42: Buildings & Fixtures - Equipment | E42: 0 | G42: 0 | H42: 10 | I42: 0.1 | J42: 0 | L42: 0
A43: 1908 | B43: Buildings & Fixtures - Driveways | E43: 0 | G43: 0 | H43: 20 | I43: 0.05 | J43: 0 | L43: 0
A44: 1908 | B44: Buildings & Fixtures - Major Repairs | E44: 0 | G44: 0 | H44: 25 | I44: 0.04 | J44: 0 | L44: 0
A45: 1908 | B45: Buildings & Fixtures - Brick Store etc | E45: 0 | G45: 0 | H45: 50 | I45: 0.02 | J45: 0 | L45: 0
A46: 1910 | B46: Leasehold Improvements | E46: 0 | G46: 0 | J46: 0 | L46: 0
A47: 1915 | B47: Office Furniture & Equipment (10 years) | C47: 50362.82 | D47: 7592.64 | E47: 42770.18 | F47: 631.93 | G47: 43086.145 | H47: 10 | I47: 0.1 | J47: 4308.6145 | K47: 151.2 | L47: 4157.4145
A48: 1915 | B48: Office Furniture & Equipment (5 years) | C48: 0 | E48: 0 | G48: 0 | J48: 0 | K48: 0 | L48: 0
A49: 1920 | B49: Computer Equipment - Hardware | C49: 26623.67 | D49: 16392.44 | E49: 10231.23 | F49: 429.99 | G49: 10446.225 | H49: 5 | I49: 0.2 | J49: 2089.245 | K49: 578.6 | L49: 1510.645
A50: 1920 | B50: Computer Equip.-Hardware(Post Mar. 22/04) | C50: 0 | E50: 0 | G50: 0 | J50: 0 | L50: 0
A51: 1920 | B51: Computer Equip.-Hardware(Post Mar. 19/07) | C51: 0 | E51: 0 | G51: 0 | J51: 0 | L51: 0
A52: 1930 | B52: Transportation Equipment - under 3 Tons | C52: 0 | E52: 0 | G52: 0 | H52: 5 | I52: 0.2 | J52: 0 | L52: 0
A53: 1930 | B53: Transportation Equipment - 3 Tons & Over | E53: 0 | G53: 0 | H53: 8 | J53: 0 | L53: 0
A54: 1935 | B54: Stores Equipment | C54: 4320 | D54: 2808 | E54: 1512 | F54: 0 | G54: 1512 | H54: 10 | I54: 0.1 | J54: 151.2 | K54: 0 | L54: 151.2
A55: 1940 | B55: Tools, Shop & Garage Equipment | E55: 0 | G55: 0 | H55: 10 | I55: 0.1 | J55: 0 | K55: 0 | L55: 0
A56: 1945 | B56: Measurement & Testing Equipment | C56: 8486 | D56: 2700 | E56: 5786 | F56: 0 | G56: 5786 | H56: 10 | I56: 0.1 | J56: 578.6 | K56: 0 | L56: 578.6
A57: 1950 | B57: Power Operated Equipment | E57: 0 | G57: 0 | J57: 0 | L57: 0
A58: 1955 | B58: Communications Equipment | E58: 0 | G58: 0 | J58: 0 | L58: 0
A59: 1955 | B59: Communication Equipment (Smart Meters) | E59: 0 | G59: 0 | J59: 0 | L59: 0
A60: 1960 | B60: Miscellaneous Equipment | E60: 0 | G60: 0 | J60: 0 | L60: 0
A61: 1970 | B61: Load Management Controls Customer Premises | E61: =C61-D61 -> 0 | G61: =E61+0.5*F61 -> 0 | I61: =IF(H61=0,"",1/H61) ->  | J61: =IF(H61=0,0,G61/H61) -> 0 | L61: =IF(ISERROR(+J61-K61), "", +J61-K61) -> 0
A62: 1975 | B62: Load Management Controls Utility Premises | E62: =C62-D62 -> 0 | G62: =E62+0.5*F62 -> 0 | I62: =IF(H62=0,"",1/H62) ->  | J62: =IF(H62=0,0,G62/H62) -> 0 | L62: =IF(ISERROR(+J62-K62), "", +J62-K62) -> 0
A63: 1980 | B63: System Supervisor Equipment | E63: 0 | G63: 0 | H63: 15 | I63: 0.06666666667 | J63: 0 | L63: 0
A64: 1985 | B64: Miscellaneous Fixed Assets | E64: 0 | G64: 0 | J64: 0 | L64: 0
A65: 1990 | B65: Other Tangible Property | E65: =C65-D65 -> 0 | G65: =E65+0.5*F65 -> 0 | I65: =IF(H65=0,"",1/H65) ->  | J65: =IF(H65=0,0,G65/H65) -> 0 | L65: =IF(ISERROR(+J65-K65), "", +J65-K65) -> 0
A66: 1995 | B66: Contributions & Grants | C66: -555962.94 | E66: -555962.94 | F66: -905202 | G66: -1008563.94 | H66: 40 | I66: 0.025 | J66: -25214.0985 | K66: 0 | L66: -25214.0985
A67: etc. | E67: =C67-D67 -> 0 | G67: =E67+0.5*F67 -> 0 | I67: =IF(H67=0,"",1/H67) ->  | J67: =IF(H67=0,0,G67/H67) -> 0 | L67: =IF(ISERROR(+J67-K67), "", +J67-K67) -> 0
A68: etc. | E68: =C68-D68 -> 0 | G68: =E68+0.5*F68 -> 0 | I68: =IF(H68=0,"",1/H68) ->  | J68: =IF(H68=0,0,G68/H68) -> 0 | L68: =IF(ISERROR(+J68-K68), "", +J68-K68) -> 0
A69: etc. | E69: 0 | G69: 0 | J69: 0 | L69: 0
A70: etc. | E70: 0 | G70: 0 | J70: 0 | L70: 0
A71: etc. | E71: 0 | G71: 0 | J71: 0 | L71: 0
A72: etc. | E72: 0 | G72: 0 | J72: 0 | L72: 0
A73: etc. | E73: 0 | G73: 0 | J73: 0 | L73: 0
A74: etc. | E74: 0 | G74: 0 | J74: 0 | L74: 0
A75: etc. | E75: 0 | G75: 0 | J75: 0 | L75: 0
A76: etc. | E76: 0 | G76: 0 | J76: 0 | L76: 0
E77: 0 | G77: 0 | J77: 0 | L77: 0
B78: Total | C78: =SUM(C20:C77) -> 3548604.8 | D78: =SUM(D20:D77) -> 130651.03 | E78: =SUM(E20:E77) -> 3417953.77 | F78: =SUM(F20:F77) -> 319705.82 | G78: =SUM(G20:G77) -> 3577806.68 | J78: =SUM(J20:J77) -> 119533.4364 | K78: =SUM(K20:K77) -> 80669.54 | L78: =SUM(L20:L77) -> 38863.89641
H79: 24
C82: Year | D82: 2015 | E82: CGAAP - with changes to policies
A84: Account | B84: Description | C84: Opening Regulatory Gross PP&E as at Jan 1, 2011 | D84: Less Fully Depreciated | E84: Net for Depreciation | F84: Additions | G84: Total for Depreciation | H84: Years | I84: Depreciation Rate | J84: 2011 Depreciation Expense | K84: 2011 Depreciation Expense per Appendix 2-B Fixed Assets, Column K (l) | L84: Variance 2
C85: (a) | D85: (b) | E85: (c) | F85: (d) | G85: (e) = (c) + ½ x (d) 1 | H85: (f) | I85: (g) = 1 / (f) | J85: (h) = (e) / (f) | L85: (m) = (h) - (l)
A86: 1611 | B86: Computer Software (Formally known as Account 1925) | C86: 125911.01 | D86: 83427.17 | E86: =C86-D86 -> 42483.84 | F86: 1307.82 | G86: =E86+0.5*F86 -> 43137.75 | H86: 5 | I86: =IF(H86=0,"",1/H86) -> 0.2 | J86: =IF(H86=0,0,G86/H86) -> 8627.55 | K86: 8627.55 | L86: =IF(ISERROR(+J86-K86), "", +J86-K86) -> 0
A87: 1612 | B87: Land Rights (Formally known as Account 1906) | E87: =C87-D87 -> 0 | G87: =E87+0.5*F87 -> 0 | H87: 35 | I87: 0.02857142857 | J87: 0 | L87: =IF(ISERROR(+J87-K87), "", +J87-K87) -> 0
A88: 1612 | B88: Land Rights (Formally known as Account 1906) | E88: 0 | G88: 0 | H88: 70 | I88: 0.01428571429 | J88: 0 | L88: 0
A89: 1805 | B89: Land | C89: 50000 | E89: 50000 | G89: 50000 | H89: 0 | J89: 0 | L89: 0
A90: 1808 | B90: Buildings - Equipment | E90: 0 | G90: 0 | H90: 10 | I90: 0.1 | J90: 0 | L90: 0
A91: 1808 | B91: Buildings - Equipment | E91: 0 | G91: =E91+0.5*F91 -> 0 | H91: 20 | I91: 0.05 | J91: 0 | L91: 0
A92: 1808 | B92: Buildings - Equipment | E92: 0 | G92: 0 | H92: 25 | I92: 0.04 | J92: 0 | L92: 0
A93: 1808 | B93: Buildings - Major Repairs | E93: 0 | G93: 0 | H93: 30 | I93: 0.03333333333 | J93: 0 | L93: 0
A94: 1808 | B94: Buildings - Major Repairs | E94: 0 | G94: 0 | H94: 50 | I94: 0.02 | J94: 0 | L94: 0
A95: 1808 | B95: Buildings - Brick, Stone, Concrete and Steel | E95: 0 | G95: 0 | H95: 0 | J95: 0 | L95: 0
A96: 1810 | B96: Leasehold Improvements | E96: 0 | G96: 0 | H96: 0 | J96: 0 | L96: 0
A97: 1815 | B97: Transformer Station Equipment >50 kV | C97: 284887.52 | E97: 284887.52 | F97: 75409.76 | G97: 322592.4 | H97: 55 | I97: 0.01818181818 | J97: 5865.316364 | K97: 5865.32 | L97: -0.003636363635
A98: 1820 | B98: Distribution Station Equipment <50 kV | E98: 0 | G98: 0 | H98: 0 | J98: 0 | L98: 0
A99: 1825 | B99: Storage Battery Equipment | C99: 746536.11 | E99: 746536.11 | F99: 2662.5 | G99: 747867.36 | H99: 40 | I99: 0.025 | J99: 18696.684 | K99: 18696.09 | L99: 0.594
A100: 1830 | B100: Poles, Towers & Fixtures | C100: 661398.51 | E100: 661398.51 | F100: 884.5 | G100: 661840.76 | H100: 60 | I100: 0.01666666667 | J100: 11030.67933 | K100: 11030.68 | L100: -0.0006666666668
A101: 1835 | B101: Overhead Conductors & Devices | E101: 0 | G101: 0 | J101: 0 | L101: 0
A102: 1840 | B102: Underground Conduit | C102: 1709174.17 | E102: 1709174.17 | F102: 144092.15 | G102: 1781220.245 | H102: 35 | I102: 0.02857142857 | J102: 50892.007 | K102: 50892.01 | L102: -0.003000000004
A103: 1845 | B103: Underground Conductors & Devices | C103: 1039998.63 | E103: 1039998.63 | F103: 110237.5 | G103: 1095117.38 | H103: 40 | I103: 0.025 | J103: 27377.9345 | K103: 27377.93 | L103: 0.004499999995
A104: 1850 | B104: Line Transformers | C104: 205713.96 | E104: 205713.96 | F104: 15074 | G104: 213250.96 | H104: 40 | I104: 0.025 | J104: 5331.274 | K104: 5331.27 | L104: 0.003999999999
A105: 1855 | B105: Services (Overhead & Underground) | C105: 335927.86 | E105: 335927.86 | F105: 9244.26 | G105: 340549.99 | H105: 15 | I105: 0.06666666667 | J105: 22703.33267 | K105: 22703.33 | L105: 0.002666666664
A106: 1860 | B106: Meters | E106: 0 | G106: 0 | J106: 0 | L106: 0
A107: 1860 | B107: Meters (Smart Meters) | E107: 0 | G107: 0 | H107: 0 | J107: 0 | L107: 0
A108: 1905 | B108: Land | E108: 0 | G108: 0 | H108: 0 | J108: 0 | L108: 0
A109: 1908 | B109: Buildings & Fixtures - Equipment | E109: 0 | G109: 0 | H109: 0 | J109: 0 | L109: 0
A110: 1908 | B110: Buildings & Fixtures - Equipment | E110: 0 | G110: 0 | H110: 0 | J110: 0 | L110: 0
A111: 1908 | B111: Buildings & Fixtures - Driveways | E111: 0 | G111: 0 | H111: 0 | J111: 0 | L111: 0
A112: 1908 | B112: Buildings & Fixtures - Major Repairs | E112: 0 | G112: 0 | H112: 0 | J112: 0 | L112: 0
A113: 1908 | B113: Buildings & Fixtures - Brick Store etc | E113: 0 | G113: 0 | J113: 0 | L113: 0
A114: 1910 | B114: Leasehold Improvements | E114: 0 | G114: 0 | J114: 0 | L114: 0
A115: 1915 | B115: Office Furniture & Equipment (10 years) | C115: 50994.75 | D115: 13346.76 | E115: 37647.99 | F115: 961.6 | G115: 38128.79 | H115: 10 | I115: 0.1 | J115: 3812.879 | K115: 3812.93 | L115: -0.051
A116: 1915 | B116: Office Furniture & Equipment (5 years) | E116: 0 | G116: 0 | J116: 0 | L116: 0
A117: 1920 | B117: Computer Equipment - Hardware | C117: 27053.66 | D117: 19472.93 | E117: 7580.73 | F117: 1384.95 | G117: 8273.205 | H117: 5 | I117: 0.2 | J117: 1654.641 | K117: 1654.58 | L117: 0.061
A118: 1920 | B118: Computer Equip.-Hardware(Post Mar. 22/04) | E118: 0 | G118: 0 | J118: 0 | L118: 0
A119: 1920 | B119: Computer Equip.-Hardware(Post Mar. 19/07) | E119: 0 | G119: 0 | H119: 0 | J119: 0 | L119: 0
A120: 1930 | B120: Transportation Equipment - under 3 Tons | E120: 0 | G120: 0 | H120: 0 | J120: 0 | L120: 0
A121: 1930 | B121: Transportation Equipment - 3 Tons & Over
A122: 1935 | B122: Stores Equipment | C122: 4320 | D122: 2808 | E122: =C122-D122 -> 1512 | F122: 0 | G122: =E122+0.5*F122 -> 1512 | H122: 10 | I122: =IF(H122=0,"",1/H122) -> 0.1 | J122: =IF(H122=0,0,G122/H122) -> 151.2 | K122: 151.4 | L122: =IF(ISERROR(+J122-K122), "", +J122-K122) -> -0.2
A123: 1940 | B123: Tools, Shop & Garage Equipment | C123: 4205 | E123: =C123-D123 -> 4205 | G123: =E123+0.5*F123 -> 4205 | H123: 10 | I123: =IF(H123=0,"",1/H123) -> 0.1 | J123: =IF(H123=0,0,G123/H123) -> 420.5 | K123: 420.5 | L123: =IF(ISERROR(+J124-K124), "", +J124-K124) -> 0
A124: 1945 | B124: Measurement & Testing Equipment | C124: 4281 | D124: 4281 | E124: =C124-D124 -> 0 | G124: =E124+0.5*F124 -> 0 | H124: 10 | I124: =IF(H124=0,"",1/H124) -> 0.1 | J124: =IF(H124=0,0,G124/H124) -> 0 | K124: 0 | L124: =IF(ISERROR(+#REF!-#REF!), "", +#REF!-#REF!) -> 
A125: 1950 | B125: Power Operated Equipment | E125: 0 | G125: 0 | J125: 0 | L125: 0
A126: 1955 | B126: Communications Equipment | E126: 0 | G126: 0 | J126: 0 | L126: 0
A127: 1955 | B127: Communication Equipment (Smart Meters) | E127: 0 | G127: 0 | J127: 0 | L127: 0
A128: 1960 | B128: Miscellaneous Equipment | E128: =C128-D128 -> 0 | G128: =E128+0.5*F128 -> 0 | I128: =IF(H128=0,"",1/H128) ->  | J128: =IF(H128=0,0,G128/H128) -> 0 | L128: =IF(ISERROR(+J128-K128), "", +J128-K128) -> 0
A129: 1970 | B129: Load Management Controls Customer Premises | E129: =C129-D129 -> 0 | G129: =E129+0.5*F129 -> 0 | I129: =IF(H129=0,"",1/H129) ->  | J129: =IF(H129=0,0,G129/H129) -> 0 | L129: =IF(ISERROR(+J129-K129), "", +J129-K129) -> 0
A130: 1975 | B130: Load Management Controls Utility Premises | E130: 0 | G130: 0 | H130: 15 | I130: 0.06666666667 | J130: 0 | L130: 0
A131: 1980 | B131: System Supervisor Equipment | E131: 0 | G131: 0 | J131: 0 | L131: 0
A132: 1985 | B132: Miscellaneous Fixed Assets | E132: =C132-D132 -> 0 | G132: =E132+0.5*F132 -> 0 | I132: =IF(H132=0,"",1/H132) ->  | J132: =IF(H132=0,0,G132/H132) -> 0 | L132: =IF(ISERROR(+J132-K132), "", +J132-K132) -> 0
A133: 1990 | B133: Other Tangible Property
A134: 1995 | B134: Contributions & Grants | C134: -1461164.94 | E134: =C134-D134 -> -1461164.94 | F134: -148144.2 | G134: =E134+0.5*F134 -> -1535237.04 | H134: 40 | I134: =IF(H134=0,"",1/H134) -> 0.025 | J134: =IF(H134=0,0,G134/H134) -> -38380.926 | K134: -38380.92 | L134: =IF(ISERROR(+J134-K134), "", +J134-K134) -> -0.006000000001
A135: 1609 | B135: Other Tangible Property | E135: 0 | G135: 0 | J135: 0 | L135: 0
A136: etc. | E136: 0 | G136: 0 | J136: 0 | L136: 0
A137: etc. | E137: 0 | G137: 0 | J137: 0 | L137: 0
A138: etc. | E138: 0 | G138: 0 | J138: 0 | L138: 0
A139: etc. | E139: 0 | G139: 0 | J139: 0 | L139: 0
A140: etc. | E140: 0 | G140: 0 | J140: 0 | L140: 0
A141: etc. | E141: 0 | G141: 0 | J141: 0 | L141: 0
A142: etc. | E142: 0 | G142: 0 | J142: 0 | L142: 0
A143: etc. | E143: 0 | G143: 0 | J143: 0 | L143: 0
A144: etc. | E144: 0 | G144: 0 | J144: 0 | L144: 0
A145: etc. | E145: 0 | G145: 0 | J145: 0 | L145: 0
E146: 0 | G146: 0 | J146: 0 | L146: 0
B147: Total | C147: =SUM(C86:C146) -> 3789237.24 | D147: =SUM(D86:D146) -> 123335.86 | E147: =SUM(E86:E146) -> 3665901.38 | F147: =SUM(F86:F146) -> 213114.84 | G147: =SUM(G86:G146) -> 3772458.8 | J147: =SUM(J86:J146) -> 118183.0719 | K147: =SUM(K86:K146) -> 118182.67 | L147: =SUM(L86:L146) -> 0.4018636364
C151: Year | D151: 2016 | E151: CGAAP - with changes to policies
A153: Account | B153: Description | C153: Opening Regulatory Gross PP&E as at Jan 1, 2012 | D153: Less Fully Depreciated | E153: Net for Depreciation | F153: Additions | G153: Total for Depreciation | H153: Years | I153: Depreciation Rate | J153: 2012 Depreciation Expense | K153: 2012 Depreciation Expense per Appendix 2-B Fixed Assets, Column K (l) | L153: Variance 2
C154: (a) | D154: (b) | E154: (c) | F154: (d) | G154: (e) = (c) + ½ x (d) 1 | H154: (f) | I154: (g) = 1 / (f) | J154: (h) = (e) / (f) | L154: (m) = (h) - (l)
A155: 1611 | B155: Computer Software (Formally known as Account 1925) | C155: 127219 | D155: 85377.13 | E155: =C155-D155 -> 41841.87 | F155: 1365 | G155: =E155+0.5*F155 -> 42524.37 | H155: 5 | I155: =IF(H155=0,"",1/H155) -> 0.2 | J155: 8594.83 | K155: 8594.83 | L155: =IF(ISERROR(+J155-K155), "", +J155-K155) -> 0
A156: 1612 | B156: Land Rights (Formally known as Account 1906) | E156: =C156-D156 -> 0 | G156: =E156+0.5*F156 -> 0 | H156: 35 | I156: 0.02857142857 | J156: =IF(H156=0,0,G156/H156) -> 0 | L156: =IF(ISERROR(+J156-K156), "", +J156-K156) -> 0
A157: 1612 | B157: Land Rights (Formally known as Account 1906) | E157: 0 | G157: 0 | H157: 70 | I157: 0.01428571429 | J157: 0 | L157: 0
A158: 1805 | B158: Land | C158: 50000 | E158: 50000 | G158: 50000 | J158: 0 | L158: 0
A159: 1808 | B159: Buildings | E159: 0 | G159: 0 | H159: 10 | I159: 0.1 | J159: 0 | L159: 0
A160: 1808 | B160: Buildings | E160: 0 | G160: 0 | H160: 15 | I160: 0.06666666667 | J160: 0 | L160: 0
A161: 1808 | B161: Buildings | E161: 0 | G161: 0 | H161: 20 | I161: 0.05 | J161: 0 | L161: 0
A162: 1808 | B162: Buildings | E162: 0 | G162: 0 | H162: 25 | I162: 0.04 | J162: 0 | L162: 0
A163: 1808 | B163: Buildings | E163: 0 | G163: 0 | H163: 30 | I163: 0.03333333333 | J163: 0 | L163: 0
A164: 1808 | B164: Buildings | E164: 0 | G164: 0 | H164: 50 | I164: 0.02 | J164: 0 | L164: 0
A165: 1810 | B165: Leasehold Improvements | E165: 0 | G165: 0 | J165: 0 | L165: 0
A166: 1815 | B166: Transformer Station Equipment >50 kV | E166: 0 | G166: 0 | J166: 0 | L166: 0
A167: 1820 | B167: Distribution Station Equipment <50 kV | C167: 360297.28 | E167: 360297.28 | F167: 50012.77 | G167: =E167+0.5*F167 -> 385303.665 | H167: 55 | I167: 0.01818181818 | J167: 7005.521182 | K167: 7005.52 | L167: 0.001181818182
A168: 1825 | B168: Storage Battery Equipment | E168: 0 | G168: 0 | J168: 0 | L168: 0
A169: 1830 | B169: Poles, Towers & Fixtures | C169: 749198.71 | D169: 27051.14 | E169: 722147.57 | F169: 74099 | G169: 759197.07 | H169: 40 | I169: 0.025 | J169: 18979.92675 | K169: 18979.91 | L169: 0.01675
A170: 1835 | B170: Overhead Conductors & Devices | C170: 662283.01 | E170: 662283.01 | F170: 229394.71 | G170: 776980.365 | H170: 60 | I170: 0.01666666667 | J170: 12949.67275 | K170: 12949.67 | L170: 0.00275
A171: 1840 | B171: Underground Conduit | E171: 0 | G171: 0 | H171: 25 | I171: 0.04 | J171: 0 | L171: 0
A172: 1845 | B172: Underground Conductors & Devices | C172: 1853266.32 | E172: 1853266.32 | F172: 28769.2 | G172: 1867650.92 | H172: 35 | I172: 0.02857142857 | J172: 53361.45486 | K172: 53361.45 | L172: 0.004857142863
A173: 1850 | B173: Line Transformers | C173: 1150235.83 | E173: 1150235.83 | F173: 39618.5 | G173: 1170045.08 | H173: 40 | I173: 0.025 | J173: 29251.127 | K173: 29251.13 | L173: -0.003000000001
A174: 1855 | B174: Services (Overhead & Underground) | C174: 220787.96 | E174: 220787.96 | F174: 22175 | G174: 231875.46 | H174: 40 | I174: 0.025 | J174: 5796.8865 | K174: 5796.89 | L174: -0.003500000001
A175: 1860 | B175: Meters | E175: 0 | G175: 0 | H175: 25 | I175: 0.04 | J175: 0 | L175: 0
A176: 1860 | B176: Meters (Smart Meters) | C176: 345172.12 | E176: 345172.12 | F176: 8522.74 | G176: 349433.49 | H176: 15 | I176: 0.06666666667 | J176: 23295.566 | K176: 23295.57 | L176: -0.004000000001
A177: 1905 | B177: Land | E177: 0 | G177: 0 | J177: 0 | L177: 0
A178: 1908 | B178: Buildings & Fixtures | E178: 0 | G178: 0 | H178: 5 | I178: 0.2 | J178: 0 | L178: 0
A179: 1908 | B179: Buildings & Fixtures | E179: 0 | G179: 0 | H179: 10 | I179: 0.1 | J179: 0 | L179: 0
A180: 1908 | B180: Buildings & Fixtures | E180: 0 | G180: 0 | H180: 15 | I180: 0.06666666667 | J180: 0 | L180: 0
A181: 1908 | B181: Buildings & Fixtures | E181: 0 | G181: 0 | H181: 20 | I181: 0.05 | J181: 0 | L181: 0
A182: 1908 | B182: Buildings & Fixtures | E182: 0 | G182: 0 | H182: 25 | I182: 0.04 | J182: 0 | L182: 0
A183: 1908 | B183: Buildings & Fixtures | E183: 0 | G183: 0 | H183: 50 | I183: 0.02 | J183: 0 | L183: 0
A184: 1910 | B184: Leasehold Improvements | E184: 0 | G184: 0 | J184: 0 | L184: 0
A185: 1915 | B185: Office Furniture & Equipment (10 years) | C185: 51956.5 | D185: 24121.5 | E185: 27835 | F185: 1563.15 | G185: 28616.575 | H185: 10 | I185: 0.1 | J185: 2861.6575 | K185: 2861.63 | L185: 0.0275
A186: 1915 | B186: Office Furniture & Equipment (5 years) | E186: 0 | G186: 0 | J186: 0 | L186: 0
A187: 1920 | B187: Computer Equipment - Hardware | C187: 28438.34 | D187: 21792.83 | E187: 6645.51 | F187: 2159.94 | G187: 7725.48 | H187: 5 | I187: 0.2 | J187: 1545.096 | K187: 1545.11 | L187: -0.014
A188: 1920 | B188: Computer Equip.-Hardware(Post Mar. 22/04) | E188: 0 | G188: 0 | J188: 0 | L188: 0
A189: 1920 | B189: Computer Equip.-Hardware(Post Mar. 19/07) | E189: 0 | G189: 0 | J189: 0 | L189: 0
A190: 1930 | B190: Transportation Equipment | E190: 0 | G190: 0 | H190: 5 | I190: 0.2 | J190: 0 | L190: 0
A191: 1930 | B191: Transportation Equipment | E191: 0 | G191: 0 | H191: 8 | I191: 0.125 | J191: 0 | L191: 0
A192: 1935 | B192: Stores Equipment | E192: 0 | G192: 0 | J192: 0 | L192: 0
A193: 1940 | B193: Tools, Shop & Garage Equipment | C193: 4320.2 | D193: 4320 | E193: 0 | G193: 0 | H193: 10 | I193: 0.1 | J193: 0 | L193: 0
A194: 1945 | B194: Measurement & Testing Equipment | C194: 8486 | D194: 4281 | E194: 4205 | F194: 7415.08 | G194: 7912.54 | H194: 10 | I194: 0.1 | J194: 791.254 | K194: 791.25 | L194: 0.004
A195: 1950 | B195: Power Operated Equipment | E195: 0 | G195: 0 | J195: 0 | L195: 0
A196: 1955 | B196: Communications Equipment | E196: 0 | G196: 0 | J196: 0 | L196: 0
A197: 1955 | B197: Communication Equipment (Smart Meters) | E197: 0 | G197: 0 | J197: 0 | L197: 0
A198: 1960 | B198: Miscellaneous Equipment | E198: 0 | G198: 0 | J198: 0 | L198: 0
A199: 1970 | B199: Load Management Controls Customer Premises | E199: =C199-D199 -> 0 | G199: =E199+0.5*F199 -> 0 | I199: =IF(H199=0,"",1/H199) ->  | J199: =IF(H199=0,0,G199/H199) -> 0 | L199: 0
A200: 1975 | B200: Load Management Controls Utility Premises | E200: =C200-D200 -> 0 | G200: =E200+0.5*F200 -> 0 | I200: =IF(H200=0,"",1/H200) ->  | J200: =IF(H200=0,0,G200/H200) -> 0 | L200: 0
A201: 1980 | B201: System Supervisor Equipment | E201: 0 | G201: 0 | H201: 15 | I201: 0.06666666667 | J201: 0 | L201: 0
A202: 1985 | B202: Miscellaneous Fixed Assets | E202: 0 | G202: 0 | J202: 0 | L202: 0
A203: 1990 | B203: Other Tangible Property | E203: =C203-D203 -> 0 | G203: =E203+0.5*F203 -> 0 | I203: =IF(H203=0,"",1/H203) ->  | J203: =IF(H203=0,0,G203/H203) -> 0 | L203: 0
A204: 1995 | B204: Contributions & Grants | C204: -1609309.14 | E204: -1609309.14 | F204: -6450.5 | G204: -1612534.39 | H204: 40 | I204: 0.025 | J204: =IF(H204=0,0,G204/H204) -> -40313.35975 | K204: -40313.36 | L204: 0.0002500000046
A205: 1609 | B205: Other Tangible Property | E205: 0 | G205: 0 | J205: 0 | L205: 0
A206: etc. | E206: 0 | G206: 0 | J206: 0 | L206: 0
A207: etc. | E207: 0 | G207: 0 | J207: 0 | L207: 0
A208: etc. | E208: 0 | G208: 0 | J208: 0 | L208: 0
A209: etc. | E209: 0 | G209: 0 | J209: 0 | L209: 0
A210: etc. | E210: 0 | G210: 0 | J210: 0 | L210: 0
A211: etc. | E211: 0 | G211: 0 | J211: 0 | L211: 0
A212: etc. | E212: 0 | G212: 0 | J212: 0 | L212: 0
... 137 more rows

Sheet App.2-D_Overhead
F1: File Number: | G1: =EBNUMBER -> 0
A2: NOT APPLICABLE | F2: Exhibit:
F3: Tab:
F4: Schedule:
F5: Page:
F7: Date:
A9: Appendix 2-D
A10: Overhead Expense
A12: Applicants are to provide a breakdown of OM&A before capitalization in the below table. OM&A before capitalization may be broken down by cost center, program, drivers or another format best suited to focus on capitalized vs. uncapitalized OM&A.
A14: OM&A Before Capitalization
B15: =F15-4 -> 2014 | C15: =F15-3 -> 2015 | D15: =F15-2 -> 2016 | E15: =F15-1 -> 2017 | F15: =TestYear -> 2018
B16: Historical Year | C16: Historical Year | D16: Historical Year | E16: Bridge Year | F16: Test Year
A27: Total OM&A Before Capitalization (B) | B27: =SUM(B17:B26) -> 0 | C27: =SUM(C17:C26) -> 0 | D27: 0 | E27: 0 | F27: 0
A29: Applicants are to provide a breakdown of capitalized OM&A in the below table. Capitalized OM&A may be broken down using the categories listed in the table below if possible. Otherwise, applicants are to provide its own break down of capitalized OM&A.
A31: Capitalized OM&A | G31: Directly | H31: Explanation for Change in Overhead Capitalized
B32: =F32-4 -> 2014 | C32: =F32-3 -> 2015 | D32: =F32-2 -> 2016 | E32: =F32-1 -> 2017 | F32: =TestYear -> 2018 | G32: Attributable?
B33: Historical Year | C33: Historical Year | D33: Historical Year | E33: Bridge Year | F33: Test Year | G33: (Yes/No)
A34: employee benefits
A35: costs of site preparation
A36: initial delivery and handling costs
A37: costs of testing whether the asset is functioning properly
A38: professional fees
A40: costs of opening a new facility
A41: costs of introducing a new product or service (including costs of advertising and promotional activities)
A42: costs of conducting business in a new location or with a new class of customer (including costs of staff training)
A43: administration and other general overhead costs
A45: Insert description of additional item(s) and new rows if needed
A47: Total Capitalized OM&A (A) | B47: =SUM(B34:B46) -> 0 | C47: =SUM(C34:C46) -> 0 | D47: =SUM(D34:D46) -> 0 | E47: =SUM(E34:E46) -> 0 | F47: =SUM(F34:F46) -> 0
A49: % of Capitalized OM&A (=A/B) | B49: =IF(ISERROR(B47/B27),"0%",B47/B27) -> 0% | C49: =IF(ISERROR(C47/C27),"0%",C47/C27) -> 0% | D49: 0% | E49: 0% | F49: 0%

Sheet App.2-EA_Account 1575 (2015)
H1: File Number: | I1: =EBNUMBER -> 0
A2: NOT APPLICABLE | H2: Exhibit:
H3: Tab:
H4: Schedule:
H5: Page:
H7: Date:
A9: Appendix 2-EA
A10: Account 1575 - IFRS-CGAAP Transitional PP&E Amounts
A11: 2015 Adopters of IFRS for Financial Reporting Purposes
A13: For applicants that adopted IFRS on January 1, 2015 for financial reporting purposes
B17: =RebaseYear &" Rebasing Year" -> 2014 Rebasing Year | C17: =TestYear-3 -> 2015 | D17: =TestYear-2 -> 2016 | E17: =CONCATENATE(TestYear-1," Bridge Year") -> 2017 Bridge Year | F17: =CONCATENATE(TestYear," Rebasing Year") -> 2018 Rebasing Year
A18: Reporting Basis | B18: CGAAP | C18: CGAAP | D18: CGAAP | E18: MIFRS | F18: MIFRS
B19: Forecast | C19: Actual | D19: Actual | E19: Forecast | F19: Forecast
D20: $ | E20: $
A21: PP&E Values under CGAAP
A22: Opening net PP&E - Note 1 | D22: =+C25 -> 0 | E22: =+D25 -> 0
A23: Net Additions - Note 4
A24: Net Depreciation (amounts should be negative) - Note 4
A25: Closing net PP&E (1) | C25: =C22+C23+C24 -> 0 | D25: =SUM(D22:D24) -> 0 | E25: =SUM(E22:E24) -> 0
A27: PP&E Values under MIFRS (Starts from 2014, the transition year)
A28: Opening net PP&E - Note 1 | D28: =+C31 -> 0 | E28: =+D31 -> 0
A29: Net Additions - Note 4
A30: Net Depreciation (amounts should be negative) - Note 4
A31: Closing net PP&E (2) | C31: =SUM(C28:C30) -> 0 | D31: =SUM(D28:D30) -> 0 | E31: =SUM(E28:E30) -> 0
A33: Difference in Closing net PP&E, former CGAAP vs. revised CGAAP | C33: =C25-C31 -> 0 | D33: =D25-D31 -> 0 | E33: =E25-E31 -> 0
A36: Effect on Deferral and Variance Account Rate Riders
A37: Closing balance in Account 1576 | F37: =IF(ISERROR(E33), 0, E33) -> 0 | H37: WACC
A38: Return on Rate Base Associated with Account 1576 balance at WACC - Note 2 | F38: =E33*I37*I38 -> 0 | G38: # of years of rate rider disposition period
A39: Amount included in Deferral and Variance Account Rate Rider Calculation | F39: =F37+F38 -> 0
A41: Notes:
A42: 1 For an applicant that adopted IFRS on January 1, 2015, the PP&E values as of January 1, 2014 under both CGAAP and MIFRS should be the same.
A43: 2 Return on rate base associated with deferred balance is calculated as:
A44: the deferral account closing balance as of 2016 x WACC X # of years of rate rider disposition period
A45: * Please note that the calculation should be adjusted once WACC is updated and finalized in the rate application.
A46: 3 The PP&E deferral account is cleared by including the total balance in the deferral and variance account rate rider calculation.
A47: 4 Net additions are additions net of disposals; Net depreciation is additions to depreciation net of disposals.

Sheet App.2-EB_Account 1576 (2012)
J1: File Number: | K1: =EBNUMBER -> 0
A2: NOT APPLICABLE | J2: Exhibit:
J3: Tab:
J4: Schedule:
J5: Page:
J7: Date:
A9: Appendix 2-EB
A10: Account 1576 - Accounting Changes under CGAAP
A11: 2012 Changes in Accounting Policies under CGAAP
A13: For applicants with a balance in Account 1576 and made capitalization and depreciation expense accounting policy changes under CGAAP effective January 1, 2012
B17: 2011 Rebasing Year | C17: 2012 | D17: 2013 | E17: 2014 | F17: 2015 | G17: 2016 | H17: 2017 Rebasing Year
A18: Reporting Basis | B18: CGAAP | C18: CGAAP | D18: CGAAP | E18: CGAAP | F18: MIFRS - Note 5 | G18: MIFRS | H18: MIFRS
B19: Forecast | C19: Actual | D19: Actual | E19: Actual | F19: Actual | G19: Forecast | H19: Forecast
C20: $ | D20: $ | E20: $ | G20: $
A21: PP&E Values under former CGAAP
A22: Opening net PP&E - Note 1 | D22: =+C25 -> 0 | E22: =+D25 -> 0 | F22: =+D25 -> 0 | G22: =+E25 -> 0
A23: Net Additions - Note 4
A24: Net Depreciation (amounts should be negative) - Note 4
A25: Closing net PP&E (1) | C25: =C22+C23+C24 -> 0 | D25: =D22+D23+D24 -> 0 | E25: =E22+E23+E24 -> 0 | F25: =F22+F23+F24 -> 0 | G25: =G22+G23+G24 -> 0
A27: PP&E Values under revised CGAAP (Starts from 2012)
A28: Opening net PP&E - Note 1 | D28: =+C31 -> 0 | E28: =+D31 -> 0 | F28: =+D31 -> 0 | G28: =+E31 -> 0
A29: Net Additions - Note 4
A30: Net Depreciation (amounts should be negative) - Note 4
A31: Closing net PP&E (2) | C31: =SUM(C28:C30) -> 0 | D31: =SUM(D28:D30) -> 0 | E31: =SUM(E28:E30) -> 0 | F31: =SUM(F28:F30) -> 0 | G31: =SUM(G28:G30) -> 0
A33: Difference in Closing net PP&E, former CGAAP vs. revised CGAAP | C33: =C25-C31 -> 0 | D33: =D25-D31 -> 0 | E33: =E25-E31 -> 0 | F33: =F25-F31 -> 0 | G33: =G25-G31 -> 0
A36: Effect on Deferral and Variance Account Rate Riders
A37: Closing balance in Account 1576 | H37: =IF(ISERROR(G33), 0, G33) -> 0 | J37: WACC
A38: Return on Rate Base Associated with Account 1576 balance at WACC - Note 2 | H38: =G33*K37*K38 -> 0 | I38: # of years of rate rider disposition period
A39: Amount included in Deferral and Variance Account Rate Rider Calculation | H39: =H37+H38 -> 0
A41: Notes:
A42: 1 For an applicant that made the capitalization and depreciation expense accounting policy changes on January 1, 2012, the PP&E values as of January 1, 2012 under both former CGAAP and revised CGAAP should be the same.
A43: 2 Return on rate base associated with Account 1576 balance is calculated as:
A44: the variance account ending balance as of 2016 x WACC X # of years of rate rider disposition period
A45: * Please note that the calculation should be adjusted once WACC is updated and finalized in the rate application.
A46: 3 Account 1576 is cleared by including the total balance in the deferral and variance account rate rider calculation.
A47: 4 Net additions are additions net of disposals; Net depreciation is additions to depreciation net of disposals.
A48: 5 Differences due to the adoption of MIFRS are to be shown separately in Account 1575 in Appendix 2-EA as Accounts 1575 and 1576 cannot be used interchangably.

Sheet App.2-EC_Account 1576 (2013)
I1: File Number: | J1: =EBNUMBER -> 0
A2: NOT APPLICABLE | I2: Exhibit:
I3: Tab:
I4: Schedule:
I5: Page:
I7: Date:
A9: Appendix 2-EC
A10: Account 1576 - Accounting Changes under CGAAP
A11: 2013 Changes in Accounting Policies under CGAAP
A13: For applicants with a balance in Account 1576 and made capitalization and depreciation expense accounting policy changes under CGAAP effective January 1, 2013
B17: 2012 Rebasing Year | C17: 2013 | D17: 2014 | E17: 2015 | F17: 2016 | G17: 2017 Rebasing Year
A18: Reporting Basis | B18: CGAAP | C18: CGAAP | D18: CGAAP | E18: MIFRS - Note 5 | F18: MIFRS | G18: MIFRS
B19: Actual | C19: Actual | D19: Actual | E19: Actual | F19: Forecast | G19: Forecast
C20: $ | D20: $ | F20: $
A21: PP&E Values under former CGAAP
A22: Opening net PP&E - Note 1 | D22: =+C25 -> 0 | E22: =+D25 -> 0 | F22: =+D25 -> 0
A23: Net Additions - Note 4
A24: Net Depreciation (amounts should be negative) - Note 4
A25: Closing net PP&E (1) | C25: =C22+C23+C24 -> 0 | D25: =D22+D23+D24 -> 0 | E25: =E22+E23+E24 -> 0 | F25: =F22+F23+F24 -> 0
A27: PP&E Values under revised CGAAP (Starts from 2012)
A28: Opening net PP&E - Note 1 | D28: =+C31 -> 0 | E28: =+D31 -> 0 | F28: =+D31 -> 0
A29: Net Additions - Note 4
A30: Net Depreciation (amounts should be negative) - Note 4
A31: Closing net PP&E (2) | C31: =SUM(C28:C30) -> 0 | D31: =SUM(D28:D30) -> 0 | E31: =SUM(E28:E30) -> 0 | F31: =SUM(F28:F30) -> 0
A33: Difference in Closing net PP&E, former CGAAP vs. revised CGAAP | C33: =C25-C31 -> 0 | D33: =D25-D31 -> 0 | E33: =E25-E31 -> 0 | F33: =F25-F31 -> 0
A36: Effect on Deferral and Variance Account Rate Riders
A37: Closing balance in Account 1576 | G37: =IF(ISERROR(F33), 0, F33) -> 0 | I37: WACC
A38: Return on Rate Base Associated with Account 1576 balance at WACC - Note 2 | G38: =F33*J37*J38 -> 0 | H38: # of years of rate rider disposition period
A39: Amount included in Deferral and Variance Account Rate Rider Calculation | G39: =G37+G38 -> 0
A41: Notes:
A42: 1 For an applicant that made the capitalization and depreciation expense accounting policy changes on January 1, 2013, the PP&E values as of January 1, 2013 under both former CGAAP and revised CGAAP should be the same.
A43: 2 Return on rate base associated with Account 1576 balance is calculated as:
A44: the variance account ending balance as of 2016 x WACC X # of years of rate rider disposition period
A45: * Please note that the calculation should be adjusted once WACC is updated and finalized in the rate application.
A46: 3 Account 1576 is cleared by including the total balance in the deferral and variance account rate rider calculation.
A47: 4 Net additions are additions net of disposals; Net depreciation is additions to depreciation net of disposals.
A48: 5 Differences due to the adoption of MIFRS are to be shown separately in Account 1575 in Appendix 2-EA as Accounts 1575 and 1576 cannot be used interchangably.

Sheet App.2-FA Proposed REG Invest.
J1: File Number: | K1: =EBNUMBER -> 0
A2: NOT APPLICABLE | J2: Exhibit:
J3: Tab:
J4: Schedule:
J5: Page:
J7: Date:
A9: Appendix 2-FA
A10: Renewable Generation Connection Investment Summary (past investments or over the future rate setting period)
A12: Enter the details of the Renewable Generation Connection projects as described in the appropriate section of the Filing Requirements.
A13: All costs entered on this page will be transferred to the appropriate cells in the appendices that follow.
A14: For Part A, Renewable Enabling Improvements (REI), these amounts will be transferred to Appendix 2 - FB
A15: For Part B, Expansions, these amounts will be transferred to Appendix 2 - FC
A17: If there are more than five projects proposed to be in-service in a certain year, please amend the tables below and ensure that the formulae for the Total Amounts in any given rate year are updated.
A18: Based on the current methodology and allocation, amounts allocated represent 6% for REI Connection Investments and 17% for Expansion Investments. (EB-2009-0349, 6-10-2010, p. 15, note 9)
A20: There are two scenarios described below. Separate sets of spreadsheets (2-FA, 2-FB, 2-FC) should be submited for each scenario as required.
A21: Scenario 1: Past Investments with No Recovery. The distributor has made investments in the past (during the IRM Years), but has not received approval for these projects and therefore did not receive
A22: revenue from the IESO under Regulation 330/09 and did not receive ratepayer revenue for the direct benefit portion of the investment.
A23: The WCA percentage, debt percentages, interest rates, kWh, tax rates, amortization period, CCA Class and percentage should correspond to the distributor's last Cost of Service approval.
A24: The Direct Benefit portion of the calculated Revenue Requirement for each year should be summed and can be applied for recovery from the distributor's ratepayers through a rate rider.
A25: The Provincial Recovery portion of the calculated Revenue Requirement for each year should be summed and can be applied for recovery from the IESO through a separate order.
A27: Scenario 2: Investments in the Test Year and Beyond. Distributor plans to make investments in 2017 and/or beyond. These investments should be added to 2-FA in the appropriate year.
A28: The WCA percentage, debt percentages, interest rates, kWh, tax rates, amortization period, CCA Class and percentage should correspond to the distributor's current application.
A30: Part A | G30: Test Year
A31: REI Investments (Direct Benefit at 6%) | C31: =D31-1 -> 2014 | D31: =E31-1 -> 2015 | E31: =F31-1 -> 2016 | F31: =G31-1 -> 2017 | G31: =TestYear -> 2018 | H31: =G31+1 -> 2019 | I31: =H31+1 -> 2020 | J31: =I31+1 -> 2021 | K31: =J31+1 -> 2022
A32: Project 1
A33: Name: REI Connection Project
A34: Capital Costs | C34: 0 | D34: 0 | E34: 0 | F34: 0 | G34: 0 | H34: 0 | I34: 0 | J34: 0 | K34: 0
A35: OM&A (Start-Up) | C35: 0 | D35: 0 | E35: 0 | F35: 0 | G35: 0 | H35: 0 | I35: 0 | J35: 0 | K35: 0
A36: OM&A (Ongoing) | C36: 0 | D36: 0 | E36: 0 | F36: 0 | G36: 0 | H36: 0 | I36: 0 | J36: 0 | K36: 0
A38: Project 2
A39: Name: REI Connection Project
A40: Capital Costs | C40: 0 | D40: 0 | E40: 0 | F40: 0 | G40: 0 | H40: 0 | I40: 0 | J40: 0 | K40: 0
A41: OM&A (Start-Up) | C41: 0 | D41: 0 | E41: 0 | F41: 0 | G41: 0 | H41: 0 | I41: 0 | J41: 0 | K41: 0
A42: OM&A (Ongoing) | C42: 0 | D42: 0 | E42: 0 | F42: 0 | G42: 0 | H42: 0 | I42: 0 | J42: 0 | K42: 0
A44: Project 3
A45: Name: REI Connection Project
A46: Capital Costs | C46: 0 | D46: 0 | E46: 0 | F46: 0 | G46: 0 | H46: 0 | I46: 0 | J46: 0 | K46: 0
A47: OM&A (Start-Up) | C47: 0 | D47: 0 | E47: 0 | F47: 0 | G47: 0 | H47: 0 | I47: 0 | J47: 0 | K47: 0
A48: OM&A (Ongoing) | C48: 0 | D48: 0 | E48: 0 | F48: 0 | G48: 0 | H48: 0 | I48: 0 | J48: 0 | K48: 0
A50: Project 4
A51: Name: REI Connection Project
A52: Capital Costs | C52: 0 | D52: 0 | E52: 0 | F52: 0 | G52: 0 | H52: 0 | I52: 0 | J52: 0 | K52: 0
A53: OM&A (Start-Up) | C53: 0 | D53: 0 | E53: 0 | F53: 0 | G53: 0 | H53: 0 | I53: 0 | J53: 0 | K53: 0
A54: OM&A (Ongoing) | C54: 0 | D54: 0 | E54: 0 | F54: 0 | G54: 0 | H54: 0 | I54: 0 | J54: 0 | K54: 0
A56: Project 5
A57: Name: REI Connection Project
A58: Capital Costs | C58: 0 | D58: 0 | E58: 0 | F58: 0 | G58: 0 | H58: 0 | I58: 0 | J58: 0 | K58: 0
A59: OM&A (Start-Up) | C59: 0 | D59: 0 | E59: 0 | F59: 0 | G59: 0 | H59: 0 | I59: 0 | J59: 0 | K59: 0
A60: OM&A (Ongoing) | C60: 0 | D60: 0 | E60: 0 | F60: 0 | G60: 0 | H60: 0 | I60: 0 | J60: 0 | K60: 0
A62: Total Capital Costs | C62: =SUM(C58,C52,C46,C40,C34) -> 0 | D62: 0 | E62: 0 | F62: 0 | G62: =SUM(G58,G52,G46,G40,G34) -> 0 | H62: =SUM(H58,H52,H46,H40,H34) -> 0 | I62: 0 | J62: 0 | K62: 0
A63: Total OM&A (Start-Up) | C63: 0 | D63: 0 | E63: 0 | F63: 0 | G63: =SUM(G59,G53,G47,G41,G35) -> 0 | H63: 0 | I63: 0 | J63: 0 | K63: 0
A64: Total OM&A (Ongoing) | C64: 0 | D64: 0 | E64: 0 | F64: 0 | G64: =SUM(G60,G54,G48,G42,G36) -> 0 | H64: 0 | I64: 0 | J64: 0 | K64: 0
A67: Part B | G67: Test Year
A68: Expansion Investments (Direct Benefit at 17%) | C68: =D68-1 -> 2014 | D68: =E68-1 -> 2015 | E68: =F68-1 -> 2016 | F68: =G68-1 -> 2017 | G68: =TestYear -> 2018 | H68: =G68+1 -> 2019 | I68: =H68+1 -> 2020 | J68: 2021 | K68: 2022
A69: Project 1
A70: Name: Expansion Connection Project
A71: Capital Costs | C71: 0 | D71: 0 | E71: 0 | F71: 0 | G71: 0 | H71: 0 | I71: 0 | J71: 0 | K71: 0
A72: OM&A (Start-Up) | C72: 0 | D72: 0 | E72: 0 | F72: 0 | G72: 0 | H72: 0 | I72: 0 | J72: 0 | K72: 0
A73: OM&A (Ongoing) | C73: 0 | D73: 0 | E73: 0 | F73: 0 | G73: 0 | H73: 0 | I73: 0 | J73: 0 | K73: 0
A75: Project 2
A76: Name: Expansion Connection Project
A77: Capital Costs | C77: 0 | D77: 0 | E77: 0 | F77: 0 | G77: 0 | H77: 0 | I77: 0 | J77: 0 | K77: 0
A78: OM&A (Start-Up) | C78: 0 | D78: 0 | E78: 0 | F78: 0 | G78: 0 | H78: 0 | I78: 0 | J78: 0 | K78: 0
A79: OM&A (Ongoing) | C79: 0 | D79: 0 | E79: 0 | F79: 0 | G79: 0 | H79: 0 | I79: 0 | J79: 0 | K79: 0
A81: Project 3
A82: Name: Expansion Connection Project
A83: Capital Costs | C83: 0 | D83: 0 | E83: 0 | F83: 0 | G83: 0 | H83: 0 | I83: 0 | J83: 0 | K83: 0
A84: OM&A (Start-Up) | C84: 0 | D84: 0 | E84: 0 | F84: 0 | G84: 0 | H84: 0 | I84: 0 | J84: 0 | K84: 0
A85: OM&A (Ongoing) | C85: 0 | D85: 0 | E85: 0 | F85: 0 | G85: 0 | H85: 0 | I85: 0 | J85: 0 | K85: 0
A87: Project 4
A88: Name: Expansion Connection Project
A89: Capital Costs | C89: 0 | D89: 0 | E89: 0 | F89: 0 | G89: 0 | H89: 0 | I89: 0 | J89: 0 | K89: 0
A90: OM&A (Start-Up) | C90: 0 | D90: 0 | E90: 0 | F90: 0 | G90: 0 | H90: 0 | I90: 0 | J90: 0 | K90: 0
A91: OM&A (Ongoing) | C91: 0 | D91: 0 | E91: 0 | F91: 0 | G91: 0 | H91: 0 | I91: 0 | J91: 0 | K91: 0
A93: Project 5
A94: Name: Expansion Connection Project
A95: Capital Costs | C95: 0 | D95: 0 | E95: 0 | F95: 0 | G95: 0 | H95: 0 | I95: 0 | J95: 0 | K95: 0
A96: OM&A (Start-Up) | C96: 0 | D96: 0 | E96: 0 | F96: 0 | G96: 0 | H96: 0 | I96: 0 | J96: 0 | K96: 0
A97: OM&A (Ongoing) | C97: 0 | D97: 0 | E97: 0 | F97: 0 | G97: 0 | H97: 0 | I97: 0 | J97: 0 | K97: 0
A99: Total Capital Costs | C99: =SUM(C95,C89,C83,C77,C71) -> 0 | D99: 0 | E99: 0 | F99: 0 | G99: =SUM(G95,G89,G83,G77,G71) -> 0 | H99: =SUM(H95,H89,H83,H77,H71) -> 0 | I99: 0 | J99: 0 | K99: 0
A100: Total OM&A (Start-Up) | C100: 0 | D100: 0 | E100: 0 | F100: 0 | G100: =SUM(G96,G90,G84,G78,G72) -> 0 | H100: 0 | I100: 0 | J100: 0 | K100: 0
A101: Total OM&A (Ongoing) | C101: 0 | D101: 0 | E101: 0 | F101: 0 | G101: =SUM(G97,G91,G85,G79,G73) -> 0 | H101: 0 | I101: 0 | J101: 0 | K101: 0

Sheet App.2-FB Calc of REG Improvemnt
N1: File Number: | O1: =EBNUMBER -> 0
A2: NOT APPLICABLE | N2: Exhibit:
N3: Tab:
N4: Schedule:
N5: Page:
N7: Date:
A9: Appendix 2-FB
A10: Calculation of Renewable Generation Connection Direct Benefits/Provincial Amount: Renewable Enabling Improvement Investments
A12: This table will calculate the distributor/provincial shares of the investments entered in Part A of Appendix 2-FA.
A13: Enter values in green shaded cells: WCA percentage, debt percentages, interest rates, kWh, tax rates, amortization period, CCA Class and percentage.
A14: For historical investments, enter these variables for your last cost of service test year. For 2017 and beyond, enter variables as in the application.
A15: Rate Riders are not calculated for the Test Year as these assets and costs are already in the distributor's rate base/revenue requirement.
C17: =F17-1 -> 2014 | F17: =I17-1 -> 2015 | I17: =L17-1 -> 2016 | L17: =BridgeYear -> 2017 | O17: =CONCATENATE(TestYear," Test Year") -> 2018 Test Year | R17: =TestYear+1 -> 2019 | U17: =R17+1 -> 2020 | V17: 2016 | X17: =U17+1 -> 2021 | AA17: =X17+1 -> 2022
D18: Direct Benefit | E18: Provincial | G18: Direct Benefit | H18: Provincial | J18: Direct Benefit | K18: Provincial | M18: Direct Benefit | N18: Provincial | P18: Direct Benefit | Q18: Provincial | S18: Direct Benefit | T18: Provincial | V18: Direct Benefit | W18: Provincial | Y18: Direct Benefit | Z18: Provincial | AB18: Direct Benefit | AC18: Provincial
C19: Total | D19: 0.06 | E19: 0.94 | F19: Total | G19: 0.06 | H19: 0.94 | I19: Total | J19: 0.06 | K19: 0.94 | L19: Total | M19: 0.06 | N19: 0.94 | O19: Total | P19: 0.06 | Q19: 0.94 | R19: Total | S19: 0.06 | T19: 0.94 | U19: Total | V19: 0.06 | W19: 0.94 | X19: Total | Y19: 0.06 | Z19: 0.94 | AA19: Total | AB19: 0.06 | AC19: 0.94
A20: Net Fixed Assets (average) | C20: =D82 -> 0 | D20: =C20*D19 -> 0 | E20: =C20*E19 -> 0 | F20: =E82 -> 0 | G20: =F20*G19 -> 0 | H20: =F20*H19 -> 0 | I20: =F82 -> 0 | J20: =I20*J19 -> 0 | K20: =I20*K19 -> 0 | L20: =G82 -> 0 | M20: =L20*M19 -> 0 | N20: =L20*N19 -> 0 | O20: =H82 -> 0 | P20: =O20*P19 -> 0 | Q20: =O20*Q19 -> 0 | R20: =I82 -> 0 | S20: =R20*S19 -> 0 | T20: =R20*T19 -> 0 | U20: =J82 -> 0 | V20: =U20*V19 -> 0 | W20: =U20*W19 -> 0 | X20: =K82 -> 0 | Y20: =X20*Y19 -> 0 | Z20: =X20*Z19 -> 0 | AA20: =L82 -> 0 | AB20: =AA20*AB19 -> 0 | AC20: =AA20*AC19 -> 0
A21: Incremental OM&A (on-going, N/A for Provincial Recovery) | C21: ='App.2-FA Proposed REG Invest.'!C64 -> 0 | D21: =C21 -> 0 | F21: ='App.2-FA Proposed REG Invest.'!D64 -> 0 | G21: =F21 -> 0 | I21: ='App.2-FA Proposed REG Invest.'!E64 -> 0 | J21: =I21 -> 0 | L21: ='App.2-FA Proposed REG Invest.'!F64 -> 0 | M21: =L21 -> 0 | O21: ='App.2-FA Proposed REG Invest.'!G64 -> 0 | P21: =O21 -> 0 | R21: ='App.2-FA Proposed REG Invest.'!H64 -> 0 | S21: =R21 -> 0 | U21: ='App.2-FA Proposed REG Invest.'!I64 -> 0 | V21: =U21 -> 0 | X21: ='App.2-FA Proposed REG Invest.'!J64 -> 0 | Y21: =X21 -> 0 | AA21: ='App.2-FA Proposed REG Invest.'!K64 -> 0 | AB21: =AA21 -> 0
A22: Incremental OM&A (start-up, applicable for Provincial Recovery) | C22: ='App.2-FA Proposed REG Invest.'!C63 -> 0 | D22: =C22*D19 -> 0 | E22: =C22*E19 -> 0 | F22: ='App.2-FA Proposed REG Invest.'!D63 -> 0 | G22: =F22*G19 -> 0 | H22: =F22*H19 -> 0 | I22: ='App.2-FA Proposed REG Invest.'!E63 -> 0 | J22: =I22*J19 -> 0 | K22: =I22*K19 -> 0 | L22: ='App.2-FA Proposed REG Invest.'!F63 -> 0 | M22: =L22*M19 -> 0 | N22: =L22*N19 -> 0 | O22: ='App.2-FA Proposed REG Invest.'!G63 -> 0 | P22: =O22*P19 -> 0 | Q22: =O22*Q19 -> 0 | R22: ='App.2-FA Proposed REG Invest.'!H63 -> 0 | S22: =R22*S19 -> 0 | T22: =R22*T19 -> 0 | U22: ='App.2-FA Proposed REG Invest.'!I63 -> 0 | V22: =U22*V19 -> 0 | W22: =U22*W19 -> 0 | X22: ='App.2-FA Proposed REG Invest.'!J63 -> 0 | Y22: =X22*Y19 -> 0 | Z22: =X22*Z19 -> 0 | AA22: ='App.2-FA Proposed REG Invest.'!K63 -> 0 | AB22: =AA22*AB19 -> 0 | AC22: =AA22*AC19 -> 0
A23: WCA | D23: =(D21+D22)*$B$23 -> 0 | E23: =E22*$B$23 -> 0 | G23: =(G21+G22)*$B$23 -> 0 | H23: =H22*$B$23 -> 0 | J23: =(J21+J22)*$B$23 -> 0 | K23: =K22*$B$23 -> 0 | M23: =(M21+M22)*$B$23 -> 0 | N23: =N22*$B$23 -> 0 | P23: =(P21+P22)*$B$23 -> 0 | Q23: =Q22*$B$23 -> 0 | S23: =(S21+S22)*$B$23 -> 0 | T23: =T22*$B$23 -> 0 | V23: =(V21+V22)*$B$23 -> 0 | W23: =W22*$B$23 -> 0 | Y23: =(Y21+Y22)*$B$23 -> 0 | Z23: =Z22*$B$23 -> 0 | AB23: =(AB21+AB22)*$B$23 -> 0 | AC23: =AC22*$B$23 -> 0
A24: Rate Base | D24: =SUM(D20+D23) -> 0 | E24: =SUM(E20+E23) -> 0 | G24: =SUM(G20+G23) -> 0 | H24: =SUM(H20+H23) -> 0 | J24: =SUM(J20+J23) -> 0 | K24: =SUM(K20+K23) -> 0 | M24: =SUM(M20+M23) -> 0 | N24: =SUM(N20+N23) -> 0 | P24: =SUM(P20+P23) -> 0 | Q24: =SUM(Q20+Q23) -> 0 | S24: =SUM(S20+S23) -> 0 | T24: =SUM(T20+T23) -> 0 | V24: =SUM(V20+V23) -> 0 | W24: =SUM(W20+W23) -> 0 | Y24: =SUM(Y20+Y23) -> 0 | Z24: =SUM(Z20+Z23) -> 0 | AB24: =SUM(AB20+AB23) -> 0 | AC24: =SUM(AC20+AC23) -> 0
A27: Deemed ST Debt | D27: =D24*$B$27 -> 0 | E27: =E24*$B$27 -> 0 | G27: =G24*$B$27 -> 0 | H27: =H24*$B$27 -> 0 | J27: =J24*$B$27 -> 0 | K27: =K24*$B$27 -> 0 | M27: =M24*$B$27 -> 0 | N27: =N24*$B$27 -> 0 | P27: =P24*$B$27 -> 0 | Q27: =Q24*$B$27 -> 0 | S27: =S24*$B$27 -> 0 | T27: =T24*$B$27 -> 0 | V27: =V24*$B$27 -> 0 | W27: =W24*$B$27 -> 0 | Y27: =Y24*$B$27 -> 0 | Z27: =Z24*$B$27 -> 0 | AB27: =AB24*$B$27 -> 0 | AC27: =AC24*$B$27 -> 0
A28: Deemed LT Debt | D28: =D24*$B$28 -> 0 | E28: =E24*$B$28 -> 0 | G28: =G24*$B$28 -> 0 | H28: =H24*$B$28 -> 0 | J28: =J24*$B$28 -> 0 | K28: =K24*$B$28 -> 0 | M28: =M24*$B$28 -> 0 | N28: =N24*$B$28 -> 0 | P28: =P24*$B$28 -> 0 | Q28: =Q24*$B$28 -> 0 | S28: =S24*$B$28 -> 0 | T28: =T24*$B$28 -> 0 | V28: =V24*$B$28 -> 0 | W28: =W24*$B$28 -> 0 | Y28: =Y24*$B$28 -> 0 | Z28: =Z24*$B$28 -> 0 | AB28: =AB24*$B$28 -> 0 | AC28: =AC24*$B$28 -> 0
A29: Deemed Equity | D29: =D24*$B$29 -> 0 | E29: =E24*$B$29 -> 0 | G29: =G24*$B$29 -> 0 | H29: =H24*$B$29 -> 0 | J29: =J24*$B$29 -> 0 | K29: =K24*$B$29 -> 0 | M29: =M24*$B$29 -> 0 | N29: =N24*$B$29 -> 0 | P29: =P24*$B$29 -> 0 | Q29: =Q24*$B$29 -> 0 | S29: =S24*$B$29 -> 0 | T29: =T24*$B$29 -> 0 | V29: =V24*$B$29 -> 0 | W29: =W24*$B$29 -> 0 | Y29: =Y24*$B$29 -> 0 | Z29: =Z24*$B$29 -> 0 | AB29: =AB24*$B$29 -> 0 | AC29: =AC24*$B$29 -> 0
A31: ST Interest | D31: =D27*$B31 -> 0 | E31: =E27*$B31 -> 0 | G31: =G27*$B31 -> 0 | H31: =H27*$B31 -> 0 | J31: =J27*$B31 -> 0 | K31: =K27*$B31 -> 0 | M31: =M27*$B31 -> 0 | N31: =N27*$B31 -> 0 | P31: =P27*$B31 -> 0 | Q31: =Q27*$B31 -> 0 | S31: =S27*$B31 -> 0 | T31: =T27*$B31 -> 0 | V31: =V27*$B31 -> 0 | W31: =W27*$B31 -> 0 | Y31: =Y27*$B31 -> 0 | Z31: =Z27*$B31 -> 0 | AB31: =AB27*$B31 -> 0 | AC31: =AC27*$B31 -> 0
A32: LT Interest | D32: =D28*$B32 -> 0 | E32: 0 | G32: =G28*$B32 -> 0 | H32: 0 | J32: =J28*$B32 -> 0 | K32: 0 | M32: =M28*$B32 -> 0 | N32: 0 | P32: =P28*$B32 -> 0 | Q32: 0 | S32: =S28*$B32 -> 0 | T32: 0 | V32: =V28*$B32 -> 0 | W32: 0 | Y32: =Y28*$B32 -> 0 | Z32: 0 | AB32: =AB28*$B32 -> 0 | AC32: 0
A33: ROE | D33: 0 | E33: 0 | G33: 0 | H33: 0 | J33: 0 | K33: 0 | M33: 0 | N33: 0 | P33: 0 | Q33: 0 | S33: 0 | T33: 0 | V33: 0 | W33: 0 | Y33: 0 | Z33: 0 | AB33: 0 | AC33: 0
A34: Cost of Capital Total | D34: =SUM(D31:D33) -> 0 | E34: =SUM(E31:E33) -> 0 | G34: =SUM(G31:G33) -> 0 | H34: =SUM(H31:H33) -> 0 | J34: =SUM(J31:J33) -> 0 | K34: =SUM(K31:K33) -> 0 | M34: =SUM(M31:M33) -> 0 | N34: =SUM(N31:N33) -> 0 | P34: =SUM(P31:P33) -> 0 | Q34: =SUM(Q31:Q33) -> 0 | S34: =SUM(S31:S33) -> 0 | T34: =SUM(T31:T33) -> 0 | V34: =SUM(V31:V33) -> 0 | W34: =SUM(W31:W33) -> 0 | Y34: =SUM(Y31:Y33) -> 0 | Z34: =SUM(Z31:Z33) -> 0 | AB34: =SUM(AB31:AB33) -> 0 | AC34: =SUM(AC31:AC33) -> 0
A36: OM&A | D36: =D21+D22 -> 0 | E36: =E22 -> 0 | G36: =G21+G22 -> 0 | H36: =H22 -> 0 | J36: =J21+J22 -> 0 | K36: =K22 -> 0 | M36: =M21+M22 -> 0 | N36: =N22 -> 0 | P36: =P21+P22 -> 0 | Q36: =Q22 -> 0 | S36: =S21+S22 -> 0 | T36: =T22 -> 0 | V36: =V21+V22 -> 0 | W36: =W22 -> 0 | Y36: =Y21+Y22 -> 0 | Z36: =Z22 -> 0 | AB36: =AB21+AB22 -> 0 | AC36: =AC22 -> 0
A37: Amortization | C37: =D77 -> 0 | D37: =C37*D$19 -> 0 | E37: =C37*E$19 -> 0 | F37: =E77 -> 0 | G37: =F37*G$19 -> 0 | H37: =F37*H$19 -> 0 | I37: =F77 -> 0 | J37: =I37*J$19 -> 0 | K37: =I37*K$19 -> 0 | L37: =G77 -> 0 | M37: =L37*M$19 -> 0 | N37: =L37*N$19 -> 0 | O37: =H77 -> 0 | P37: =O37*P$19 -> 0 | Q37: =O37*Q$19 -> 0 | R37: =I76+I77 -> 0 | S37: =R37*S$19 -> 0 | T37: =R37*T$19 -> 0 | U37: =J76+J77 -> 0 | V37: =U37*V$19 -> 0 | W37: =U37*W$19 -> 0 | X37: =K76+K77 -> 0 | Y37: =X37*Y$19 -> 0 | Z37: =X37*Z$19 -> 0 | AA37: =L76+L77 -> 0 | AB37: =AA37*AB$19 -> 0 | AC37: =AA37*AC$19 -> 0
A38: Grossed-up PILs | D38: =D65 -> 0 | E38: =E65 -> 0 | G38: =G65 -> 0 | H38: =H65 -> 0 | J38: =J65 -> 0 | K38: =K65 -> 0 | M38: =M65 -> 0 | N38: =N65 -> 0 | P38: =P65 -> 0 | Q38: =Q65 -> 0 | S38: =S65 -> 0 | T38: =T65 -> 0 | V38: =V65 -> 0 | W38: =W65 -> 0 | Y38: =Y65 -> 0 | Z38: =Z65 -> 0 | AB38: =AB65 -> 0 | AC38: =AC65 -> 0
A40: Revenue Requirement | D40: =SUM(D34:D38) -> 0 | E40: =SUM(E34:E38) -> 0 | G40: =SUM(G34:G38) -> 0 | H40: =SUM(H34:H38) -> 0 | J40: =SUM(J34:J38) -> 0 | K40: =SUM(K34:K38) -> 0 | M40: =SUM(M34:M38) -> 0 | N40: =SUM(N34:N38) -> 0 | P40: =SUM(P34:P38) -> 0 | Q40: =SUM(Q34:Q38) -> 0 | S40: =SUM(S34:S38) -> 0 | T40: =SUM(T34:T38) -> 0 | V40: =SUM(V34:V38) -> 0 | W40: =SUM(W34:W38) -> 0 | Y40: =SUM(Y34:Y38) -> 0 | Z40: =SUM(Z34:Z38) -> 0 | AB40: =SUM(AB34:AB38) -> 0 | AC40: =SUM(AC34:AC38) -> 0
A43: Provincial Rate Protection | E43: =E40 -> 0 | H43: =H40 -> 0 | K43: =K40 -> 0 | N43: =N40 -> 0 | Q43: =Q40 -> 0 | T43: =T40 -> 0 | W43: =W40 -> 0 | Z43: =Z40 -> 0 | AC43: =AC40 -> 0
A45: Monthly Amount Paid by IESO | E45: =E43/12 -> 0 | H45: =H43/12 -> 0 | K45: =K43/12 -> 0 | N45: =N43/12 -> 0 | Q45: =Q43/12 -> 0 | T45: =T43/12 -> 0 | W45: =W43/12 -> 0 | Z45: =Z43/12 -> 0 | AC45: =AC43/12 -> 0
A47: Note 1: The difference between the actual costs of approved eligible investments and revenue received from the IESO should be recorded in a variance account. The Board may provide
A48: regulatory accounting guidance regarding a variance account either in an individual proceeding or on a generic basis.
A49: Note 2: For the 2016 Test Year, Costs and Revenues of the Direct Benefit are to be included in the test year applicant Rate Base and Revenues.
A51: PILs Calculation
D52: =C17 -> 2014 | G52: =F17 -> 2015 | J52: =I17 -> 2016 | M52: =L17 -> 2017 | P52: =O17 -> 2018 Test Year | S52: =R17 -> 2019 | V52: =U17 -> 2020 | Y52: =X17 -> 2021 | AB52: =AA17 -> 2022
A53: Income Tax | D53: Direct Benefit | E53: Provincial | G53: Direct Benefit | H53: Provincial | J53: Direct Benefit | K53: Provincial | M53: Direct Benefit | N53: Provincial | P53: Direct Benefit | Q53: Provincial | S53: Direct Benefit | T53: Provincial | V53: Direct Benefit | W53: Provincial | Y53: Direct Benefit | Z53: Provincial | AB53: Direct Benefit | AC53: Provincial
X54: Total | AA54: Total
A55: Net Income - ROE on Rate Base | D55: =D33 -> 0 | E55: =E33 -> 0 | G55: =G33 -> 0 | H55: =H33 -> 0 | J55: =J33 -> 0 | K55: =K33 -> 0 | M55: =M33 -> 0 | N55: =N33 -> 0 | P55: =P33 -> 0 | Q55: =Q33 -> 0 | S55: =S33 -> 0 | T55: =T33 -> 0 | V55: =V33 -> 0 | W55: =W33 -> 0 | Y55: =Y33 -> 0 | Z55: =Z33 -> 0 | AB55: =AB33 -> 0 | AC55: =AC33 -> 0
A56: Amortization (6% DB and 94% P) | D56: =D37 -> 0 | E56: =E37 -> 0 | G56: =G37 -> 0 | H56: =H37 -> 0 | J56: =J37 -> 0 | K56: =K37 -> 0 | M56: =M37 -> 0 | N56: =N37 -> 0 | P56: =P37 -> 0 | Q56: =Q37 -> 0 | S56: =S37 -> 0 | T56: =T37 -> 0 | V56: =V37 -> 0 | W56: =W37 -> 0 | Y56: =Y37 -> 0 | Z56: =Z37 -> 0 | AB56: =AB37 -> 0 | AC56: =AC37 -> 0
A57: CCA (6% DB and 94% P) | D57: =-D94*D$19 -> 0 | E57: =-D94*E$19 -> 0 | G57: =-E94*G19 -> 0 | H57: =-E94*H$19 -> 0 | J57: =-F94*J$19 -> 0 | K57: =-F94*K$19 -> 0 | M57: =-G94*M$19 -> 0 | N57: =-G94*N$19 -> 0 | P57: =-H94*P$19 -> 0 | Q57: =-H94*Q$19 -> 0 | S57: =-I94*S$19 -> 0 | T57: =-I94*T$19 -> 0 | V57: =-J94*V$19 -> 0 | W57: =-J94*W$19 -> 0 | Y57: =-K94*Y$19 -> 0 | Z57: =-K94*Z$19 -> 0 | AB57: =-L94*AB$19 -> 0 | AC57: =-L94*AC$19 -> 0
A58: Taxable income | D58: =SUM(D55:D57) -> 0 | E58: =SUM(E55:E57) -> 0 | G58: =SUM(G55:G57) -> 0 | H58: =SUM(H55:H57) -> 0 | J58: =SUM(J55:J57) -> 0 | K58: =SUM(K55:K57) -> 0 | M58: =SUM(M55:M57) -> 0 | N58: =SUM(N55:N57) -> 0 | P58: =SUM(P55:P57) -> 0 | Q58: =SUM(Q55:Q57) -> 0 | S58: =SUM(S55:S57) -> 0 | T58: =SUM(T55:T57) -> 0 | V58: =SUM(V55:V57) -> 0 | W58: =SUM(W55:W57) -> 0 | Y58: =SUM(Y55:Y57) -> 0 | Z58: =SUM(Z55:Z57) -> 0 | AB58: =SUM(AB55:AB57) -> 0 | AC58: =SUM(AC55:AC57) -> 0
A60: Tax Rate (to be entered)
A62: Income Taxes Payable | D62: =D58*D60 -> 0 | E62: =E58*E60 -> 0 | G62: =G58*G60 -> 0 | H62: =H58*H60 -> 0 | J62: =J58*J60 -> 0 | K62: =K58*K60 -> 0 | M62: =M58*M60 -> 0 | N62: =N58*N60 -> 0 | P62: =P58*P60 -> 0 | Q62: =Q58*Q60 -> 0 | S62: =S58*S60 -> 0 | T62: =T58*T60 -> 0 | V62: =V58*V60 -> 0 | W62: =W58*W60 -> 0 | Y62: =Y58*Y60 -> 0 | Z62: =Z58*Z60 -> 0 | AB62: =AB58*AB60 -> 0 | AC62: =AC58*AC60 -> 0
A63: Gross Up
A64: Income Taxes Payable | D64: =D62/(1-D60) -> 0 | E64: =E62/(1-E60) -> 0 | G64: =G62/(1-G60) -> 0 | H64: =H62/(1-H60) -> 0 | J64: =J62/(1-J60) -> 0 | K64: =K62/(1-K60) -> 0 | M64: =M62/(1-M60) -> 0 | N64: =N62/(1-N60) -> 0 | P64: =P62/(1-P60) -> 0 | Q64: =Q62/(1-Q60) -> 0 | S64: =S62/(1-S60) -> 0 | T64: =T62/(1-T60) -> 0 | V64: =V62/(1-V60) -> 0 | W64: =W62/(1-W60) -> 0 | Y64: =Y62/(1-Y60) -> 0 | Z64: =Z62/(1-Z60) -> 0 | AB64: =AB62/(1-AB60) -> 0 | AC64: =AC62/(1-AC60) -> 0
A65: Grossed Up PILs | D65: =SUM(D64:D64) -> 0 | E65: =SUM(E64:E64) -> 0 | G65: =SUM(G64:G64) -> 0 | H65: =SUM(H64:H64) -> 0 | J65: =SUM(J64:J64) -> 0 | K65: =SUM(K64:K64) -> 0 | M65: =SUM(M64:M64) -> 0 | N65: =SUM(N64:N64) -> 0 | P65: =SUM(P64:P64) -> 0 | Q65: =SUM(Q64:Q64) -> 0 | S65: =SUM(S64:S64) -> 0 | T65: =SUM(T64:T64) -> 0 | V65: =SUM(V64:V64) -> 0 | W65: =SUM(W64:W64) -> 0 | Y65: =SUM(Y64:Y64) -> 0 | Z65: =SUM(Z64:Z64) -> 0 | AB65: =SUM(AB64:AB64) -> 0 | AC65: =SUM(AC64:AC64) -> 0
D68: =E68-1 -> 2014 | E68: =F68-1 -> 2015 | F68: =G68-1 -> 2016 | G68: =H68-1 -> 2017 | H68: =TestYear -> 2018 | I68: =H68+1 -> 2019 | J68: =I68+1 -> 2020 | K68: =J68+1 -> 2021 | L68: =K68+1 -> 2022
A69: Net Fixed Assets
B70: Enter applicable amortization in years: | C70: 25
A71: Opening Gross Fixed Assets | E71: =D73 -> 0 | F71: 0 | G71: 0 | H71: 0 | I71: =H73 -> 0 | J71: =I73 -> 0 | K71: =J73 -> 0 | L71: =K73 -> 0
A72: Gross Capital Additions | D72: ='App.2-FA Proposed REG Invest.'!C62 -> 0 | E72: ='App.2-FA Proposed REG Invest.'!D62 -> 0 | F72: ='App.2-FA Proposed REG Invest.'!E62 -> 0 | G72: ='App.2-FA Proposed REG Invest.'!F62 -> 0 | H72: ='App.2-FA Proposed REG Invest.'!G62 -> 0 | I72: ='App.2-FA Proposed REG Invest.'!H62 -> 0 | J72: ='App.2-FA Proposed REG Invest.'!I62 -> 0 | K72: ='App.2-FA Proposed REG Invest.'!J62 -> 0 | L72: ='App.2-FA Proposed REG Invest.'!K62 -> 0
A73: Closing Gross Fixed Assets | D73: =SUM(D71:D72) -> 0 | E73: 0 | F73: 0 | G73: 0 | H73: =SUM(H71:H72) -> 0 | I73: =SUM(I71:I72) -> 0 | J73: 0 | K73: 0 | L73: 0
A75: Opening Accumulated Amortization | E75: =+D78 -> 0 | F75: =E78 -> 0 | G75: 0 | H75: 0 | I75: 0 | J75: 0 | K75: 0 | L75: 0
A76: Current Year Amortization (before additions) | D76: =IF(ISERROR(D71/$C$70), 0, D71/$C$70) -> 0 | E76: 0 | F76: 0 | G76: 0 | H76: 0 | I76: =IF(ISERROR(I71/$C$70), 0, I71/$C$70) -> 0 | J76: =IF(ISERROR(J71/$C$70), 0, J71/$C$70) -> 0 | K76: =IF(ISERROR(K71/$C$70), 0, K71/$C$70) -> 0 | L76: =IF(ISERROR(L71/$C$70), 0, L71/$C$70) -> 0
A77: Additions (half year) | D77: =D72/$C$70/2 -> 0 | E77: =E72/$C$70/2 -> 0 | F77: =F72/$C$70/2 -> 0 | G77: 0 | H77: =H72/$C$70/2 -> 0 | I77: =I72/C70/2 -> 0 | J77: =J72/C70/2 -> 0 | K77: =K72/C70/2 -> 0 | L77: =L72/C70/2 -> 0
A78: Closing Accumulated Amortization | D78: =SUM(D75+D76+D77) -> 0 | E78: =SUM(E75+E76+E77) -> 0 | F78: =SUM(F75+F76+F77) -> 0 | G78: =SUM(G75+G76+G77) -> 0 | H78: =SUM(H75+H76+H77) -> 0 | I78: =SUM(I75:I77) -> 0 | J78: =SUM(J75:J77) -> 0 | K78: =SUM(K75:K77) -> 0 | L78: =SUM(L75:L77) -> 0
A80: Opening Net Fixed Assets | D80: =D71-D75 -> 0 | E80: 0 | F80: =F71-F75 -> 0 | G80: 0 | H80: =H71-H75 -> 0 | I80: =H81 -> 0 | J80: =I81 -> 0 | K80: =J81 -> 0 | L80: =K81 -> 0
A81: Closing Net Fixed Assets | D81: =D73-D78 -> 0 | E81: =E73-E78 -> 0 | F81: 0 | G81: 0 | H81: =H73-H78 -> 0 | I81: =I73-I78 -> 0 | J81: =J73-J78 -> 0 | K81: =K73-K78 -> 0 | L81: =L73-L78 -> 0
A82: Average Net Fixed Assets | D82: =SUM(D80:D81)/2 -> 0 | E82: 0 | F82: 0 | G82: 0 | H82: =SUM(H80:H81)/2 -> 0 | I82: =SUM(I80:I81)/2 -> 0 | J82: =SUM(J80:J81)/2 -> 0 | K82: =SUM(K80:K81)/2 -> 0 | L82: =SUM(L80:L81)/2 -> 0
A84: UCC for PILs Calculation
D85: =D68 -> 2014 | E85: =E68 -> 2015 | F85: 2016 | G85: 2017 | H85: 2018 | I85: 2019 | J85: 2020 | K85: 2021 | L85: 2022
A87: Opening UCC | E87: =D95 -> 0 | F87: 0 | G87: 0 | H87: 0 | I87: 0 | J87: 0 | K87: 0 | L87: 0
A88: Capital Additions (from Appendix 2-FA) | D88: =D72 -> 0 | E88: 0 | F88: 0 | G88: 0 | H88: =H72 -> 0 | I88: =I72 -> 0 | J88: 0 | K88: 0 | L88: 0
A89: UCC Before Half Year Rule | D89: =SUM(D87:D88) -> 0 | E89: 0 | F89: 0 | G89: 0 | H89: =SUM(H87:H88) -> 0 | I89: =SUM(I87:I88) -> 0 | J89: =SUM(J87:J88) -> 0 | K89: =SUM(K87:K88) -> 0 | L89: =SUM(L87:L88) -> 0
A90: Half Year Rule (1/2 Additions - Disposals) | D90: =D88/2 -> 0 | E90: 0 | F90: 0 | G90: 0 | H90: =H88/2 -> 0 | I90: =I88/2 -> 0 | J90: =J88/2 -> 0 | K90: =K88/2 -> 0 | L90: =L88/2 -> 0
A91: Reduced UCC | D91: =D89-D90 -> 0 | E91: 0 | F91: 0 | G91: 0 | H91: =H89-H90 -> 0 | I91: =I89-I90 -> 0 | J91: =J89-J90 -> 0 | K91: =K89-K90 -> 0 | L91: =L89-L90 -> 0
A92: CCA Rate Class (to be entered) | C92: 47 | D92: =C92 -> 47 | E92: =D92 -> 47 | F92: 47 | G92: 47 | H92: 47 | I92: 47 | J92: 47 | K92: 47 | L92: 47
A93: CCA Rate (to be entered) | C93: 0.08 | D93: =C93 -> 0.08 | E93: 0.08 | F93: 0.08 | G93: 0.08 | H93: 0.08 | I93: 0.08 | J93: 0.08 | K93: 0.08 | L93: 0.08
A94: CCA | D94: =D91*D93 -> 0 | E94: 0 | F94: 0 | G94: 0 | H94: =H91*H93 -> 0 | I94: =I91*I93 -> 0 | J94: 0 | K94: 0 | L94: =L91*L93 -> 0
A95: Closing UCC | D95: =D89-D94 -> 0 | E95: 0 | F95: 0 | G95: 0 | H95: =H89-H94 -> 0 | I95: =I89-I94 -> 0 | J95: =J89-J94 -> 0 | K95: =K89-K94 -> 0 | L95: =L89-L94 -> 0

Sheet App.2-FC Calc of REG Expansion
N1: File Number: | O1: =EBNUMBER -> 0
A2: NOT APPLICABLE | N2: Exhibit:
N3: Tab:
N4: Schedule:
N5: Page:
N7: Date:
A9: Appendix 2-FC
A10: Calculation of Renewable Generation Connection Direct Benefits/Provincial Amount: Renewable Expansion Investments
A12: This table will calculate the distributor/provincial shares of the investments entered in Part B of Appendix 2-FA.
A13: Enter values in green shaded cells: WCA percentage, debt percentages, interest rates, kWh, tax rates, amortization period, CCA Class and percentage.
A14: For historical investments, enter these variables for your last cost of service test year. For 2016 and beyond, enter variables as in the application.
A15: Rate Riders are not calculated for the Test Year as these assets and costs are already in the distributor's rate base.
D18: =G18-1 -> 2014 | G18: =J18-1 -> 2015 | J18: =M18-1 -> 2016 | M18: =BridgeYear -> 2017 | P18: =CONCATENATE(TestYear," Test Year") -> 2018 Test Year | S18: =TestYear+1 -> 2019 | T18: 2016 | V18: =S18+1 -> 2020 | Y18: =V18+1 -> 2021 | AB18: =Y18+1 -> 2022
E19: Direct Benefit | F19: Provincial | H19: Direct Benefit | I19: Provincial | K19: Direct Benefit | L19: Provincial | N19: Direct Benefit | O19: Provincial | Q19: Direct Benefit | R19: Provincial | T19: Direct Benefit | U19: Provincial | W19: Direct Benefit | X19: Provincial | Z19: Direct Benefit | AA19: Provincial | AC19: Direct Benefit | AD19: Provincial
D20: Total | E20: 0.17 | F20: 0.83 | G20: Total | H20: 0.17 | I20: 0.83 | J20: Total | K20: 0.17 | L20: 0.83 | M20: Total | N20: 0.17 | O20: 0.83 | P20: Total | Q20: 0.17 | R20: 0.83 | S20: Total | T20: 0.17 | U20: 0.83 | V20: Total | W20: 0.17 | X20: 0.83 | Y20: Total | Z20: 0.17 | AA20: 0.83 | AB20: Total | AC20: 0.17 | AD20: 0.83
A21: Net Fixed Assets (average) | D21: =D82 -> 0 | E21: =D21*E20 -> 0 | F21: =D21*F20 -> 0 | G21: =E82 -> 0 | H21: =G21*H20 -> 0 | I21: =G21*I20 -> 0 | J21: =F82 -> 0 | K21: =J21*K20 -> 0 | L21: =J21*L20 -> 0 | M21: =G82 -> 0 | N21: =M21*N20 -> 0 | O21: =M21*O20 -> 0 | P21: =H82 -> 0 | Q21: =P21*Q20 -> 0 | R21: =P21*R20 -> 0 | S21: =I82 -> 0 | T21: =S21*T20 -> 0 | U21: =S21*U20 -> 0 | V21: =J82 -> 0 | W21: =V21*W20 -> 0 | X21: =V21*X20 -> 0 | Y21: =K82 -> 0 | Z21: =Y21*Z20 -> 0 | AA21: =Y21*AA20 -> 0 | AB21: =L82 -> 0 | AC21: =AB21*AC20 -> 0 | AD21: =AB21*AD20 -> 0
A22: Incremental OM&A (on-going, N/A for Provincial Recovery) | D22: ='App.2-FA Proposed REG Invest.'!C101 -> 0 | E22: =D22 -> 0 | G22: ='App.2-FA Proposed REG Invest.'!D$101 -> 0 | H22: =G22 -> 0 | J22: ='App.2-FA Proposed REG Invest.'!E$101 -> 0 | K22: =J22 -> 0 | M22: ='App.2-FA Proposed REG Invest.'!F$101 -> 0 | N22: =M22 -> 0 | P22: ='App.2-FA Proposed REG Invest.'!G$101 -> 0 | Q22: =P22 -> 0 | S22: ='App.2-FA Proposed REG Invest.'!H$101 -> 0 | T22: =S22 -> 0 | V22: ='App.2-FA Proposed REG Invest.'!I$101 -> 0 | W22: =V22 -> 0 | Y22: ='App.2-FA Proposed REG Invest.'!J$101 -> 0 | Z22: =Y22 -> 0 | AB22: ='App.2-FA Proposed REG Invest.'!K$101 -> 0 | AC22: =AB22 -> 0
A23: Incremental OM&A (start-up, applicable for Provincial Recovery) | D23: ='App.2-FA Proposed REG Invest.'!C100 -> 0 | E23: =D23*E20 -> 0 | F23: =D23*F20 -> 0 | G23: ='App.2-FA Proposed REG Invest.'!D$100 -> 0 | H23: =G23*H20 -> 0 | I23: =G23*I20 -> 0 | J23: ='App.2-FA Proposed REG Invest.'!E$100 -> 0 | K23: =J23*K20 -> 0 | L23: =J23*L20 -> 0 | M23: ='App.2-FA Proposed REG Invest.'!F$100 -> 0 | N23: =M23*N20 -> 0 | O23: =M23*O20 -> 0 | P23: ='App.2-FA Proposed REG Invest.'!G$100 -> 0 | Q23: =P23*Q20 -> 0 | R23: =P23*R20 -> 0 | S23: ='App.2-FA Proposed REG Invest.'!H$100 -> 0 | T23: =S23*T20 -> 0 | U23: =S23*U20 -> 0 | V23: ='App.2-FA Proposed REG Invest.'!I$100 -> 0 | W23: =V23*W20 -> 0 | X23: =V23*X20 -> 0 | Y23: ='App.2-FA Proposed REG Invest.'!J$100 -> 0 | Z23: =Y23*Z20 -> 0 | AA23: =Y23*AA20 -> 0 | AB23: ='App.2-FA Proposed REG Invest.'!K$100 -> 0 | AC23: =AB23*AC20 -> 0 | AD23: =AB23*AD20 -> 0
A24: WCA | E24: =(E22+E23)*$B$24 -> 0 | F24: =F23*$B$24 -> 0 | H24: =(H22+H23)*$B$24 -> 0 | I24: =I23*$B$24 -> 0 | K24: =(K22+K23)*$B$24 -> 0 | L24: =L23*$B$24 -> 0 | N24: =(N22+N23)*$B$24 -> 0 | O24: =O23*$B$24 -> 0 | Q24: =(Q22+Q23)*$B$24 -> 0 | R24: =R23*$B$24 -> 0 | T24: =(T22+T23)*$B$24 -> 0 | U24: =U23*$B$24 -> 0 | W24: =(W22+W23)*$B$24 -> 0 | X24: =X23*$B$24 -> 0 | Z24: =(Z22+Z23)*$B$24 -> 0 | AA24: =AA23*$B$24 -> 0 | AC24: =(AC22+AC23)*$B$24 -> 0 | AD24: =AD23*$B$24 -> 0
A25: Rate Base | E25: =SUM(E21+E24) -> 0 | F25: =SUM(F21+F24) -> 0 | H25: =SUM(H21+H24) -> 0 | I25: =SUM(I21+I24) -> 0 | K25: =SUM(K21+K24) -> 0 | L25: =SUM(L21+L24) -> 0 | N25: =SUM(N21+N24) -> 0 | O25: =SUM(O21+O24) -> 0 | Q25: =SUM(Q21+Q24) -> 0 | R25: =SUM(R21+R24) -> 0 | T25: =SUM(T21+T24) -> 0 | U25: =SUM(U21+U24) -> 0 | W25: =SUM(W21+W24) -> 0 | X25: =SUM(X21+X24) -> 0 | Z25: =SUM(Z21+Z24) -> 0 | AA25: =SUM(AA21+AA24) -> 0 | AC25: =SUM(AC21+AC24) -> 0 | AD25: =SUM(AD21+AD24) -> 0
A28: Deemed ST Debt | E28: =E25*$B$28 -> 0 | F28: =F25*$B$28 -> 0 | H28: =H25*$B$28 -> 0 | I28: =I25*$B$28 -> 0 | K28: =K25*$B$28 -> 0 | L28: =L25*$B$28 -> 0 | N28: =N25*$B$28 -> 0 | O28: =O25*$B$28 -> 0 | Q28: =Q25*$B$28 -> 0 | R28: =R25*$B$28 -> 0 | T28: =T25*$B$28 -> 0 | U28: =U25*$B$28 -> 0 | W28: =W25*$B$28 -> 0 | X28: =X25*$B$28 -> 0 | Z28: =Z25*$B$28 -> 0 | AA28: =AA25*$B$28 -> 0 | AC28: =AC25*$B$28 -> 0 | AD28: =AD25*$B$28 -> 0
A29: Deemed LT Debt | E29: =E25*$B$29 -> 0 | F29: =F25*$B$29 -> 0 | H29: =H25*$B$29 -> 0 | I29: =I25*$B$29 -> 0 | K29: =K25*$B$29 -> 0 | L29: =L25*$B$29 -> 0 | N29: =N25*$B$29 -> 0 | O29: =O25*$B$29 -> 0 | Q29: =Q25*$B$29 -> 0 | R29: =R25*$B$29 -> 0 | T29: =T25*$B$29 -> 0 | U29: =U25*$B$29 -> 0 | W29: =W25*$B$29 -> 0 | X29: =X25*$B$29 -> 0 | Z29: =Z25*$B$29 -> 0 | AA29: =AA25*$B$29 -> 0 | AC29: =AC25*$B$29 -> 0 | AD29: =AD25*$B$29 -> 0
A30: Deemed Equity | E30: =E25*$B$30 -> 0 | F30: =F25*$B$30 -> 0 | H30: =H25*$B$30 -> 0 | I30: =I25*$B$30 -> 0 | K30: =K25*$B$30 -> 0 | L30: =L25*$B$30 -> 0 | N30: =N25*$B$30 -> 0 | O30: =O25*$B$30 -> 0 | Q30: =Q25*$B$30 -> 0 | R30: =R25*$B$30 -> 0 | T30: =T25*$B$30 -> 0 | U30: =U25*$B$30 -> 0 | W30: =W25*$B$30 -> 0 | X30: =X25*$B$30 -> 0 | Z30: =Z25*$B$30 -> 0 | AA30: =AA25*$B$30 -> 0 | AC30: =AC25*$B$30 -> 0 | AD30: =AD25*$B$30 -> 0
A32: ST Interest | E32: =E28*$B$32 -> 0 | F32: =F28*$B$32 -> 0 | H32: =H28*$B$32 -> 0 | I32: =I28*$B$32 -> 0 | K32: =K28*$B$32 -> 0 | L32: =L28*$B$32 -> 0 | N32: =N28*$B$32 -> 0 | O32: =O28*$B$32 -> 0 | Q32: =Q28*$B$32 -> 0 | R32: =R28*$B$32 -> 0 | T32: =T28*$B$32 -> 0 | U32: =U28*$B$32 -> 0 | W32: =W28*$B$32 -> 0 | X32: =X28*$B$32 -> 0 | Z32: =Z28*$B$32 -> 0 | AA32: =AA28*$B$32 -> 0 | AC32: =AC28*$B$32 -> 0 | AD32: =AD28*$B$32 -> 0
A33: LT Interest | E33: =E29*$B$33 -> 0 | F33: =F29*$B$33 -> 0 | H33: =H29*$B$33 -> 0 | I33: =I29*$B$33 -> 0 | K33: =K29*$B$33 -> 0 | L33: =L29*$B$33 -> 0 | N33: =N29*$B$33 -> 0 | O33: =O29*$B$33 -> 0 | Q33: =Q29*$B$33 -> 0 | R33: =R29*$B$33 -> 0 | T33: =T29*$B$33 -> 0 | U33: =U29*$B$33 -> 0 | W33: =W29*$B$33 -> 0 | X33: =X29*$B$33 -> 0 | Z33: =Z29*$B$33 -> 0 | AA33: =AA29*$B$33 -> 0 | AC33: =AC29*$B$33 -> 0 | AD33: =AD29*$B$33 -> 0
A34: ROE | E34: =E30*$B$34 -> 0 | F34: =F30*$B$34 -> 0 | H34: =H30*$B$34 -> 0 | I34: =I30*$B$34 -> 0 | K34: =K30*$B$34 -> 0 | L34: =L30*$B$34 -> 0 | N34: =N30*$B$34 -> 0 | O34: =O30*$B$34 -> 0 | Q34: =Q30*$B$34 -> 0 | R34: =R30*$B$34 -> 0 | T34: =T30*$B$34 -> 0 | U34: =U30*$B$34 -> 0 | W34: =W30*$B$34 -> 0 | X34: =X30*$B$34 -> 0 | Z34: =Z30*$B$34 -> 0 | AA34: =AA30*$B$34 -> 0 | AC34: =AC30*$B$34 -> 0 | AD34: =AD30*$B$34 -> 0
A35: Cost of Capital Total | E35: =SUM(E32:E34) -> 0 | F35: =SUM(F32:F34) -> 0 | H35: =SUM(H32:H34) -> 0 | I35: =SUM(I32:I34) -> 0 | K35: =SUM(K32:K34) -> 0 | L35: =SUM(L32:L34) -> 0 | N35: =SUM(N32:N34) -> 0 | O35: =SUM(O32:O34) -> 0 | Q35: =SUM(Q32:Q34) -> 0 | R35: =SUM(R32:R34) -> 0 | T35: =SUM(T32:T34) -> 0 | U35: =SUM(U32:U34) -> 0 | W35: =SUM(W32:W34) -> 0 | X35: =SUM(X32:X34) -> 0 | Z35: =SUM(Z32:Z34) -> 0 | AA35: =SUM(AA32:AA34) -> 0 | AC35: =SUM(AC32:AC34) -> 0 | AD35: =SUM(AD32:AD34) -> 0
A37: OM&A | E37: =E22+E23 -> 0 | F37: =F23 -> 0 | H37: =H22+H23 -> 0 | I37: =I23 -> 0 | K37: =K22+K23 -> 0 | L37: =L23 -> 0 | N37: =N22+N23 -> 0 | O37: =O23 -> 0 | Q37: =Q22+Q23 -> 0 | R37: =R23 -> 0 | T37: =T22+T23 -> 0 | U37: =U23 -> 0 | W37: =W22+W23 -> 0 | X37: =X23 -> 0 | Z37: =Z22+Z23 -> 0 | AA37: =AA23 -> 0 | AC37: =AC22+AC23 -> 0 | AD37: =AD23 -> 0
A38: Amortization | D38: =D78 -> 0 | E38: =D38*E$20 -> 0 | F38: =D38*F$20 -> 0 | G38: =E78 -> 0 | H38: =G38*H$20 -> 0 | I38: =G38*I$20 -> 0 | J38: =F78 -> 0 | K38: =J38*K$20 -> 0 | L38: =J38*L$20 -> 0 | M38: =G78 -> 0 | N38: =M38*N$20 -> 0 | O38: =M38*O$20 -> 0 | P38: =H76+H77 -> 0 | Q38: =P38*Q$20 -> 0 | R38: =P38*R$20 -> 0 | S38: =I76+I77 -> 0 | T38: =S38*T$20 -> 0 | U38: =S38*U$20 -> 0 | V38: =J76+J77 -> 0 | W38: =V38*W$20 -> 0 | X38: =V38*X$20 -> 0 | Y38: =K76+K77 -> 0 | Z38: =Y38*Z$20 -> 0 | AA38: =Y38*AA$20 -> 0 | AB38: =L76+L77 -> 0 | AC38: =AB38*AC$20 -> 0 | AD38: =AB38*AD$20 -> 0
A39: Grossed-up PILs | E39: =E66 -> 0 | F39: =F66 -> 0 | H39: =H66 -> 0 | I39: =I66 -> 0 | K39: =K66 -> 0 | L39: =L66 -> 0 | N39: =N66 -> 0 | O39: =O66 -> 0 | Q39: =Q66 -> 0 | R39: =R66 -> 0 | T39: =T66 -> 0 | U39: =U66 -> 0 | W39: =W66 -> 0 | X39: =X66 -> 0 | Z39: =Z66 -> 0 | AA39: =AA66 -> 0 | AC39: =AC66 -> 0 | AD39: =AD66 -> 0
A41: Revenue Requirement | E41: =SUM(E35:E39) -> 0 | F41: =SUM(F35:F39) -> 0 | H41: =SUM(H35:H39) -> 0 | I41: =SUM(I35:I39) -> 0 | K41: =SUM(K35:K39) -> 0 | L41: =SUM(L35:L39) -> 0 | N41: =SUM(N35:N39) -> 0 | O41: =SUM(O35:O39) -> 0 | Q41: =SUM(Q35:Q39) -> 0 | R41: =SUM(R35:R39) -> 0 | T41: =SUM(T35:T39) -> 0 | U41: =SUM(U35:U39) -> 0 | W41: =SUM(W35:W39) -> 0 | X41: =SUM(X35:X39) -> 0 | Z41: =SUM(Z35:Z39) -> 0 | AA41: =SUM(AA35:AA39) -> 0 | AC41: =SUM(AC35:AC39) -> 0 | AD41: =SUM(AD35:AD39) -> 0
A44: Provincial Rate Protection | F44: =F41 -> 0 | I44: =I41 -> 0 | L44: =L41 -> 0 | O44: =O41 -> 0 | R44: =R41 -> 0 | U44: =U41 -> 0 | X44: =X41 -> 0 | AA44: =AA41 -> 0 | AD44: =AD41 -> 0
A46: Monthly Amount Paid by IESO | F46: =F44/12 -> 0 | I46: =I44/12 -> 0 | L46: =L44/12 -> 0 | O46: =O44/12 -> 0 | R46: =R44/12 -> 0 | U46: =U44/12 -> 0 | X46: =X44/12 -> 0 | AA46: =AA44/12 -> 0 | AD46: =AD44/12 -> 0
A48: Note 1: The difference between the actual costs of approved eligible investments and revenue received from the IESO should be recorded in a variance account. The Board may provide
A49: regulatory accounting guidance regarding a variance account either in an individual proceeding or on a generic basis.
A50: Note 2: For the 2016 Test Year, Costs and Revenues of the Direct Benefit are to be included in the test year applicant Rate Base and Revenues.
A52: PILs Calculation
E53: =D18 -> 2014 | H53: =G18 -> 2015 | K53: =J18 -> 2016 | N53: =M18 -> 2017 | Q53: =P18 -> 2018 Test Year | T53: =S18 -> 2019 | W53: =V18 -> 2020 | Z53: =Y18 -> 2021 | AC53: =AB18 -> 2022
A54: Income Tax | E54: Direct Benefit | F54: Provincial | H54: Direct Benefit | I54: Provincial | K54: Direct Benefit | L54: Provincial | N54: Direct Benefit | O54: Provincial | Q54: Direct Benefit | R54: Provincial | T54: Direct Benefit | U54: Provincial | W54: Direct Benefit | X54: Provincial | Z54: Direct Benefit | AA54: Provincial | AC54: Direct Benefit | AD54: Provincial
V55: Total | Y55: Total | AB55: Total
A56: Net Income - ROE on Rate Base | E56: =E34 -> 0 | F56: =F34 -> 0 | H56: =H34 -> 0 | I56: =I34 -> 0 | K56: =K34 -> 0 | L56: =L34 -> 0 | N56: =N34 -> 0 | O56: =O34 -> 0 | Q56: =Q34 -> 0 | R56: =R34 -> 0 | T56: =T34 -> 0 | U56: =U34 -> 0 | W56: =W34 -> 0 | X56: =X34 -> 0 | Z56: =Z34 -> 0 | AA56: =AA34 -> 0 | AC56: =AC34 -> 0 | AD56: =AD34 -> 0
A57: Amortization (17% DB and 83% P) | E57: =E38 -> 0 | F57: =F38 -> 0 | H57: =H38 -> 0 | I57: =I38 -> 0 | K57: =K38 -> 0 | L57: =L38 -> 0 | N57: =N38 -> 0 | O57: =O38 -> 0 | Q57: =Q38 -> 0 | R57: =R38 -> 0 | T57: =T38 -> 0 | U57: =U38 -> 0 | W57: =W38 -> 0 | X57: =X38 -> 0 | Z57: =Z38 -> 0 | AA57: =AA38 -> 0 | AC57: =AC38 -> 0 | AD57: =AD38 -> 0
A58: CCA (17% DB and 83% P) | E58: =-D94*E$20 -> 0 | F58: =-D94*F$20 -> 0 | H58: =-E94*H$20 -> 0 | I58: =-E94*I$20 -> 0 | K58: =-F94*K$20 -> 0 | L58: =-F94*L$20 -> 0 | N58: =-G94*N$20 -> 0 | O58: =-G94*O$20 -> 0 | Q58: =-H94*Q$20 -> 0 | R58: =-H94*R$20 -> 0 | T58: =-I94*T$20 -> 0 | U58: =-I94*U$20 -> 0 | W58: =-J94*W$20 -> 0 | X58: =-J94*X$20 -> 0 | Z58: =-K94*Z$20 -> 0 | AA58: =-K94*AA$20 -> 0 | AC58: =-L94*AC$20 -> 0 | AD58: =-L94*AD$20 -> 0
A59: Taxable income | E59: =SUM(E56:E58) -> 0 | F59: =SUM(F56:F58) -> 0 | H59: =SUM(H56:H58) -> 0 | I59: =SUM(I56:I58) -> 0 | K59: =SUM(K56:K58) -> 0 | L59: =SUM(L56:L58) -> 0 | N59: =SUM(N56:N58) -> 0 | O59: =SUM(O56:O58) -> 0 | Q59: =SUM(Q56:Q58) -> 0 | R59: =SUM(R56:R58) -> 0 | T59: =SUM(T56:T58) -> 0 | U59: =SUM(U56:U58) -> 0 | W59: =SUM(W56:W58) -> 0 | X59: =SUM(X56:X58) -> 0 | Z59: =SUM(Z56:Z58) -> 0 | AA59: =SUM(AA56:AA58) -> 0 | AC59: =SUM(AC56:AC58) -> 0 | AD59: =SUM(AD56:AD58) -> 0
A61: Tax Rate (to be entered)
A63: Income Taxes Payable | E63: =E59*E61 -> 0 | F63: =F59*F61 -> 0 | H63: =H59*H61 -> 0 | I63: =I59*I61 -> 0 | K63: =K59*K61 -> 0 | L63: =L59*L61 -> 0 | N63: =N59*N61 -> 0 | O63: =O59*O61 -> 0 | Q63: =Q59*Q61 -> 0 | R63: =R59*R61 -> 0 | T63: =T59*T61 -> 0 | U63: =U59*U61 -> 0 | W63: =W59*W61 -> 0 | X63: =X59*X61 -> 0 | Z63: =Z59*Z61 -> 0 | AA63: =AA59*AA61 -> 0 | AC63: =AC59*AC61 -> 0 | AD63: =AD59*AD61 -> 0
A64: Gross Up
A65: Income Taxes Payable | E65: =E63/(1-E61) -> 0 | F65: =F63/(1-F61) -> 0 | H65: =H63/(1-H61) -> 0 | I65: =I63/(1-I61) -> 0 | K65: =K63/(1-K61) -> 0 | L65: =L63/(1-L61) -> 0 | N65: =N63/(1-N61) -> 0 | O65: =O63/(1-O61) -> 0 | Q65: =Q63/(1-Q61) -> 0 | R65: =R63/(1-R61) -> 0 | T65: =T63/(1-T61) -> 0 | U65: =U63/(1-U61) -> 0 | W65: =W63/(1-W61) -> 0 | X65: =X63/(1-X61) -> 0 | Z65: =Z63/(1-Z61) -> 0 | AA65: =AA63/(1-AA61) -> 0 | AC65: =AC63/(1-AC61) -> 0 | AD65: =AD63/(1-AD61) -> 0
A66: Grossed Up PILs | E66: =SUM(E65:E65) -> 0 | F66: =SUM(F65:F65) -> 0 | H66: =SUM(H65:H65) -> 0 | I66: =SUM(I65:I65) -> 0 | K66: =SUM(K65:K65) -> 0 | L66: =SUM(L65:L65) -> 0 | N66: =SUM(N65:N65) -> 0 | O66: =SUM(O65:O65) -> 0 | Q66: =SUM(Q65:Q65) -> 0 | R66: =SUM(R65:R65) -> 0 | T66: =SUM(T65:T65) -> 0 | U66: =SUM(U65:U65) -> 0 | W66: =SUM(W65:W65) -> 0 | X66: =SUM(X65:X65) -> 0 | Z66: =SUM(Z65:Z65) -> 0 | AA66: =SUM(AA65:AA65) -> 0 | AC66: =SUM(AC65:AC65) -> 0 | AD66: =SUM(AD65:AD65) -> 0
A69: Net Fixed Assets | D69: 2011 | E69: 2012 | F69: 2013 | G69: 2014 | H69: 2015 | I69: 2016 | J69: 2017 | K69: 2018 | L69: 2019
B70: Enter applicable amortization in years: | C70: 25
A71: Opening Gross Fixed Assets | E71: =D73 -> 0 | F71: 0 | G71: 0 | H71: 0 | I71: 0 | J71: 0 | K71: 0 | L71: 0
A72: Gross Capital Additions | D72: ='App.2-FA Proposed REG Invest.'!C99 -> 0 | E72: ='App.2-FA Proposed REG Invest.'!D99 -> 0 | F72: ='App.2-FA Proposed REG Invest.'!E99 -> 0 | G72: ='App.2-FA Proposed REG Invest.'!F99 -> 0 | H72: ='App.2-FA Proposed REG Invest.'!G99 -> 0 | I72: ='App.2-FA Proposed REG Invest.'!H99 -> 0 | J72: ='App.2-FA Proposed REG Invest.'!I99 -> 0 | K72: ='App.2-FA Proposed REG Invest.'!J99 -> 0 | L72: ='App.2-FA Proposed REG Invest.'!K99 -> 0
A73: Closing Gross Fixed Assets | D73: =SUM(D71:D72) -> 0 | E73: 0 | F73: 0 | G73: 0 | H73: 0 | I73: 0 | J73: 0 | K73: 0 | L73: 0
A75: Opening Accumulated Amortization | E75: =+D78 -> 0 | F75: =E78 -> 0 | G75: 0 | H75: =G78 -> 0 | I75: =H78 -> 0 | J75: =I78 -> 0 | K75: =J78 -> 0 | L75: =K78 -> 0
A76: Current Year Amortization (before additions) | E76: =IF(ISERROR(E71/$C$70), 0, E71/$C$70) -> 0 | F76: 0 | G76: 0 | H76: =H71/$C$70 -> 0 | I76: =I71/$C$70 -> 0 | J76: =J71/$C$70 -> 0 | K76: =K71/$C$70 -> 0 | L76: =L71/$C$70 -> 0
A77: Additions (half year) | D77: =D72/C70/2 -> 0 | E77: =E72/C70/2 -> 0 | F77: =F72/C70/2 -> 0 | G77: =G72/C70/2 -> 0 | H77: =H72/C70/2 -> 0 | I77: =I72/C70/2 -> 0 | J77: =J72/C70/2 -> 0 | K77: =K72/C70/2 -> 0 | L77: =L72/C70/2 -> 0
A78: Closing Accumulated Amortization | D78: =SUM(D75+D77) -> 0 | E78: =SUM(E75:E77) -> 0 | F78: 0 | G78: 0 | H78: 0 | I78: 0 | J78: 0 | K78: 0 | L78: 0
A80: Opening Net Fixed Assets | D80: =D71-D75 -> 0 | E80: =E71-E75 -> 0 | F80: =F71-F75 -> 0 | G80: =G71-G75 -> 0 | H80: =G81 -> 0 | I80: =H81 -> 0 | J80: =I81 -> 0 | K80: =J81 -> 0 | L80: =K81 -> 0
A81: Closing Net Fixed Assets | D81: =D73-D78 -> 0 | E81: 0 | F81: 0 | G81: 0 | H81: 0 | I81: 0 | J81: 0 | K81: 0 | L81: 0
A82: Average Net Fixed Assets | D82: =SUM(D80:D81)/2 -> 0 | E82: 0 | F82: 0 | G82: 0 | H82: 0 | I82: 0 | J82: 0 | K82: 0 | L82: 0
A84: UCC for PILs Calculation
D85: 2014 | E85: 2014 | F85: 2014 | G85: 2014 | H85: 2015 | I85: 2016 | J85: 2017 | K85: 2018 | L85: 2019
A87: Opening UCC | E87: =D95 -> 0 | F87: 0 | G87: 0 | H87: 0 | I87: 0 | J87: 0 | K87: 0 | L87: 0
A88: Capital Additions (from Appendix 2-FA) | D88: =D72 -> 0 | E88: 0 | F88: 0 | G88: 0 | H88: 0 | I88: 0 | J88: 0 | K88: 0 | L88: 0
A89: UCC Before Half Year Rule | D89: =SUM(D87:D88) -> 0 | E89: 0 | F89: 0 | G89: 0 | H89: 0 | I89: 0 | J89: 0 | K89: 0 | L89: 0
A90: Half Year Rule (1/2 Additions - Disposals) | D90: =D88/2 -> 0 | E90: 0 | F90: 0 | G90: 0 | H90: 0 | I90: 0 | J90: 0 | K90: 0 | L90: 0
A91: Reduced UCC | D91: =D89-D90 -> 0 | E91: 0 | F91: 0 | G91: 0 | H91: 0 | I91: 0 | J91: 0 | K91: 0 | L91: 0
A92: CCA Rate Class (to be entered) | C92: 47 | D92: =$C$92 -> 47 | E92: =$C$92 -> 47 | F92: 47 | G92: 47 | H92: 47 | I92: 47 | J92: 47 | K92: 47 | L92: 47
A93: CCA Rate (to be entered) | C93: 0.08 | D93: =$C$93 -> 0.08 | E93: =$C$93 -> 0.08 | F93: 0.08 | G93: 0.08 | H93: 0.08 | I93: 0.08 | J93: 0.08 | K93: 0.08 | L93: 0.08
A94: CCA | D94: =D91*D$93 -> 0 | E94: =E91*E$93 -> 0 | F94: =F91*F$93 -> 0 | G94: =G91*G$93 -> 0 | H94: =H91*H$93 -> 0 | I94: 0 | J94: 0 | K94: 0 | L94: 0
A95: Closing UCC | D95: =D89-D94 -> 0 | E95: 0 | F95: 0 | G95: 0 | H95: 0 | I95: 0 | J95: 0 | K95: 0 | L95: 0

Sheet App.2-G SQI
M1: File Number: | O1: =EBNUMBER -> 0
M2: Exhibit:
M3: Tab:
M4: Schedule:
M5: Page:
M7: Date:
A9: Appendix 2-G
A10: Service Reliability and Quality Indicators
A11: 2011 - 2015
A13: Service Reliability
A15: Index | B15: Including outages caused by loss of supply | G15: Excluding outages caused by loss of supply | L15: Excluding Major Event Days
B16: =TestYear-6 -> 2012 | C16: =TestYear-5 -> 2013 | D16: =TestYear-4 -> 2014 | E16: =TestYear-3 -> 2015 | F16: =TestYear-2 -> 2016 | G16: =B16 -> 2012 | H16: 2013 | I16: 2014 | J16: 2015 | K16: 2016 | L16: 2012 | M16: 2013 | N16: 2014 | O16: 2015 | P16: 2016
A17: SAIDI | B17: 3.08 | C17: 1.54 | D17: 0.01 | E17: 0.03 | F17: 125.59 | G17: 0.08 | H17: 0.04 | I17: 0.01 | J17: 0.03 | K17: 0.37 | L17: 0.08 | M17: 0.04 | N17: 0.01 | O17: 0.03 | P17: 0.37
A18: SAIFI | B18: 1.02 | C18: 1.02 | D18: 1.14 | E18: 0.01 | F18: 26.24 | G18: 0.02 | H18: 0.02 | I18: 0.13 | J18: 0.01 | K18: 2.07 | L18: 0.02 | M18: 0.02 | N18: 0.13 | O18: 0.01 | P18: 2.07
A20: 5 Year Historical Average
A21: SAIDI | F21: =IF(ISERROR(AVERAGE(B17:F17)), "", AVERAGE(B17:F17)) -> 26.05 | K21: =IF(ISERROR(AVERAGE(G17:K17)), "", AVERAGE(G17:K17)) -> 0.106 | P21: =IF(ISERROR(AVERAGE(L17:P17)), "", AVERAGE(L17:P17)) -> 0.106
A22: SAIFI | F22: =IF(ISERROR(AVERAGE(B18:F18)), "", AVERAGE(B18:F18)) -> 5.886 | K22: =IF(ISERROR(AVERAGE(G18:K18)), "", AVERAGE(G18:K18)) -> 0.45 | P22: =IF(ISERROR(AVERAGE(L18:P18)), "", AVERAGE(L18:P18)) -> 0.45
A24: SAIDI = System Average Interruption Duration Index
A25: SAIFI = System Average Interruption Frequency Index
A27: Service Quality
A29: Indicator | E29: OEB Minimum Standard | G29: =B16 -> 2012 | H29: =C16 -> 2013 | I29: =D16 -> 2014 | J29: =E16 -> 2015 | K29: =F16 -> 2016
A30: Low Voltage Connections | E30: 0.9 | G30: 1 | H30: 1 | I30: 1 | J30: 0.905 | K30: 1
A31: High Voltage Connections | E31: 0.9 | G31: n/a | H31: n/a | I31: n/a | J31: n/a | K31: n/a
A32: Appointment Scheduling | E32: 0.65 | G32: 1 | H32: 1 | I32: 1 | J32: 1 | K32: 1
A33: Appointments Met | E33: 0.9 | G33: 1 | H33: 1 | I33: 1 | J33: 1 | K33: 1
A34: Telephone Accessibility | E34: 0.8 | G34: 0.96 | H34: 0.97 | I34: 0.976 | J34: 0.928 | K34: 0.952
A35: Rescheduling a Missed Appointment | E35: 0.8 | G35: n/a | H35: n/a | I35: n/a | J35: n/a | K35: n/a
A36: Telephone Call Abandon Rate | E36: 0.1 | G36: 0.04 | H36: 0.03 | I36: 0.024 | J36: 0.072 | K36: 0.048
A37: Written Response to Enquires | E37: 0.8 | G37: 1 | H37: 1 | I37: 1 | J37: 0.914 | K37: 1
A38: Emergency Urban Response | E38: 0.9 | G38: 1 | H38: 1 | I38: 1 | J38: 0.889 | K38: 1
A39: Emergency Rural Response | E39: 1 | G39: n/a | H39: n/a | I39: n/a | J39: n/a | K39: n/a
A40: Reconnection Performance Standard | E40: 0.85 | G40: 0.93 | H40: 0 | I40: 0 | J40: 1 | K40: 1
A41: Micro-embedded generation facilities | E41: 0.9 | G41: n/a | H41: 1 | I41: 1 | J41: 1 | K41: 1

Sheet App.2-H_Other_Oper_Rev
G1: File Number: | H1: =EBNUMBER -> 0
G2: Exhibit:
G3: Tab:
G4: Schedule:
G5: Page:
G7: Date:
A9: Appendix 2-H
A10: Other Operating Revenue
C12: 2014 | D12: 2014 | E12: Var | F12: 2014 | G12: 2015 | H12: Var | I12: 2015 | J12: 2016 | K12: Var | L12: 2016 | M12: 2017 | N12: Var | O12: 2017 | P12: 2018 | Q12: Var
B13: USoA Description | C13: Board Approved
A14: 4235 | B14: 4235-Miscellaneous Service Revenues | C14: -14200 | D14: -14580 | E14: =D14-C14 -> -380 | F14: =D14 -> -14580 | G14: -16185 | H14: =G14-F14 -> -1605 | I14: =G14 -> -16185 | J14: -18595 | K14: =J14-I14 -> -2410 | L14: =J14 -> -18595 | M14: -19721.2 | N14: =M14-L14 -> -1126.2 | O14: =M14 -> -19721.2 | P14: -20041.2 | Q14: =P14-O14 -> -320
A15: 4225 | B15: 4225-Late Payment Charges | C15: -6000 | D15: -7963.14 | E15: =D15-C15 -> -1963.14 | F15: -7963.14 | G15: -9946.13 | H15: =G15-F15 -> -1982.99 | I15: -9946.13 | J15: -11282.8 | K15: =J15-I15 -> -1336.67 | L15: -11282.8 | M15: -11320 | N15: =M15-L15 -> -37.2 | O15: -11320 | P15: -11400 | Q15: =P15-O15 -> -80
A16: =LEFT(B16,4) -> 4082 | B16: 4082-Retail Services Revenues | C16: -4130 | D16: -3343.2 | E16: 786.8 | F16: -3343.2 | G16: -3397.6 | H16: -54.4 | I16: -3397.6 | J16: -3151.2 | K16: 246.4 | L16: -3151.2 | M16: -3238.5 | N16: -87.3 | O16: -3238.5 | P16: -3245 | Q16: -6.5
A17: 4084 | B17: 4084-Service Transaction Requests (STR) Revenues | C17: 13 | D17: -1.75 | E17: -14.75 | F17: -1.75 | G17: -2.25 | H17: -0.5 | I17: -2.25 | J17: -7.75 | K17: -5.5 | L17: -7.75 | M17: -8.75 | N17: -1 | O17: -8.75 | P17: -10 | Q17: -1.25
A18: 4210 | B18: 4210-Rent from Electric Property | C18: 0 | D18: -6561.26 | E18: -6561.26 | F18: -6561.26 | G18: -5917.42 | H18: 643.84 | I18: -5917.42 | J18: -6451.64 | K18: -534.22 | L18: -6451.64 | M18: -6481.5 | N18: -29.86 | O18: -6481.5 | P18: -6593.25 | Q18: -111.75
A19: 4240 | B19: 4240-Provision for Rate Refunds | C19: 0 | D19: 21935 | E19: 21935 | F19: 21935 | G19: 20000 | H19: -1935 | I19: 20000 | J19: 20000 | K19: 0 | L19: 20000 | M19: 20000 | N19: 0 | O19: 20000 | P19: 20000 | Q19: 0
A20: 4245 | B20: 4245-Government Assistance Directly Credited to Income | C20: 0 | D20: 0 | E20: 0 | F20: 0 | G20: 0 | H20: 0 | I20: 0 | J20: 0 | K20: 0 | L20: 0 | M20: 0 | N20: 0 | O20: 0 | P20: 0 | Q20: 0
C21: -6000 | D21: 0 | E21: 6000 | F21: 0 | G21: 0 | H21: 0 | I21: 0 | J21: 0 | K21: 0 | L21: 0 | M21: 0 | N21: 0 | O21: 0 | P21: 0 | Q21: 0
A22: 4375 | B22: 4375-Revenues from Non-Utility Operations | C22: 0 | D22: -31129.1 | E22: -31129.1 | F22: -31129.1 | G22: -9347.04 | H22: 21782.06 | I22: -9347.04 | J22: -3214.85 | K22: 6132.19 | L22: -3214.85 | M22: -75000 | N22: -71785.15 | O22: -75000 | P22: -30000 | Q22: 45000
A23: 4380 | B23: 4380-Expenses of Non-Utility Operations | C23: 0 | D23: 21859 | E23: 21859 | F23: 21859 | G23: 0 | H23: -21859 | I23: 0 | J23: 3214.85 | K23: 3214.85 | L23: 3214.85 | M23: 75000 | N23: 71785.15 | O23: 75000 | P23: 30000 | Q23: -45000
A24: 4390 | B24: 4390-Miscellaneous Non-Operating Income | C24: 0 | D24: 0 | E24: 0 | F24: 0 | G24: -7443.44 | H24: -7443.44 | I24: -7443.44 | J24: -12330.66 | K24: -4887.22 | L24: -12330.66 | M24: -5000 | N24: 7330.66 | O24: -5000 | P24: -5500 | Q24: -500
A25: 4405 | B25: 4405-Interest and Dividend Income | C25: 0 | D25: -28722.65 | E25: -28722.65 | F25: -28722.65 | G25: -23485.64 | H25: 5237.01 | I25: -23485.64 | J25: -22160.59 | K25: 1325.05 | L25: -22160.59 | M25: -11000 | N25: 11160.59 | O25: -11000 | P25: -2000 | Q25: 9000
B26: Total | C26: =SUM(C14:C21)+SUM(C22:C25) -> -30317 | D26: =SUM(D14:D21)+SUM(D22:D25) -> -48507.1 | E26: -18190.1 | F26: =SUM(F14:F21)+SUM(F22:F25) -> -48507.1 | G26: =SUM(G14:G21)+SUM(G22:G25) -> -55724.52 | H26: -7217.42 | I26: =SUM(I14:I21)+SUM(I22:I25) -> -55724.52 | J26: =SUM(J14:J21)+SUM(J22:J25) -> -53979.64 | K26: 1744.88 | L26: =SUM(L14:L21)+SUM(L22:L25) -> -53979.64 | M26: =SUM(M14:M21)+SUM(M22:M25) -> -36769.95 | N26: 17209.69 | O26: =SUM(O14:O21)+SUM(O22:O25) -> -36769.95 | P26: =SUM(P14:P21)+SUM(P22:P25) -> -28789.45 | Q26: 7980.5
B28: Specific Service Charges | C28: =C14 -> -14200 | D28: =D14 -> -14580 | E28: =D28-C28 -> -380 | F28: =F14 -> -14580 | G28: =G14 -> -16185 | H28: =G28-F28 -> -1605 | I28: =I14 -> -16185 | J28: =J14 -> -18595 | K28: =J28-I28 -> -2410 | L28: =L14 -> -18595 | M28: =M14 -> -19721.2 | N28: =M28-L28 -> -1126.2 | O28: =O14 -> -19721.2 | P28: =P14 -> -20041.2 | Q28: =P28-O28 -> -320
B29: Late Payment Charges | C29: =C15 -> -6000 | D29: =D15 -> -7963.14 | E29: =D29-C29 -> -1963.14 | F29: =F15 -> -7963.14 | G29: =G15 -> -9946.13 | H29: =G29-F29 -> -1982.99 | I29: =I15 -> -9946.13 | J29: =J15 -> -11282.8 | K29: =J29-I29 -> -1336.67 | L29: =L15 -> -11282.8 | M29: =M15 -> -11320 | N29: =M29-L29 -> -37.2 | O29: =O15 -> -11320 | P29: =P15 -> -11400 | Q29: =P29-O29 -> -80
B30: Other Distribution/Operating Revenues | C30: =SUM(C16:C20) -> -4117 | D30: =SUM(D16:D20) -> 12028.79 | E30: =D30-C30 -> 16145.79 | F30: =SUM(F16:F20) -> 12028.79 | G30: =SUM(G16:G20) -> 10682.73 | H30: =G30-F30 -> -1346.06 | I30: =SUM(I16:I20) -> 10682.73 | J30: =SUM(J16:J20) -> 10389.41 | K30: =J30-I30 -> -293.32 | L30: =SUM(L16:L20) -> 10389.41 | M30: =SUM(M16:M20) -> 10271.25 | N30: =M30-L30 -> -118.16 | O30: =SUM(O16:O20) -> 10271.25 | P30: =SUM(P16:P20) -> 10151.75 | Q30: =P30-O30 -> -119.5
B31: Other Income or Deductions | C31: =SUM(C22:C25) -> 0 | D31: =SUM(D22:D25) -> -37992.75 | E31: =D31-C31 -> -37992.75 | F31: =SUM(F22:F25) -> -37992.75 | G31: =SUM(G22:G25) -> -40276.12 | H31: =G31-F31 -> -2283.37 | I31: =SUM(I22:I25) -> -40276.12 | J31: =SUM(J22:J25) -> -34491.25 | K31: =J31-I31 -> 5784.87 | L31: =SUM(L22:L25) -> -34491.25 | M31: =SUM(M22:M25) -> -16000 | N31: =M31-L31 -> 18491.25 | O31: =SUM(O22:O25) -> -16000 | P31: =SUM(P22:P25) -> -7500 | Q31: =P31-O31 -> 8500
B32: Total | C32: =SUM(C28:C31) -> -24317 | D32: =SUM(D28:D31) -> -48507.1 | E32: =D32-C32 -> -24190.1 | F32: =D32 -> -48507.1 | G32: =SUM(G28:G31) -> -55724.52 | H32: =G32-F32 -> -7217.42 | I32: =G32 -> -55724.52 | J32: =SUM(J28:J31) -> -53979.64 | K32: =J32-I32 -> 1744.88 | L32: =J32 -> -53979.64 | M32: =SUM(M28:M31) -> -36769.95 | N32: =M32-L32 -> 17209.69 | O32: =M32 -> -36769.95 | P32: =SUM(P28:P31) -> -28789.45 | Q32: =P32-O32 -> 7980.5
A35: Description | C35: Account(s)
A36: Specific Service Charges: | C36: 4235
A37: Late Payment Charges: | C37: 4225
A38: Other Distribution Revenues: | C38: 4080, 4082, 4084, 4090, 4205, 4210, 4215, 4220, 4240, 4245
A39: Other Income and Expenses: | C39: 4305, 4310, 4315, 4320, 4325, 4330, 4335, 4340, 4345, 4350, 4355, 4360, 4365, 4370, 4375, 4380, 4385, 4390, 4395, 4398, 4405, 4415
A42: Note: Add all applicable accounts listed above to the table and include all relevant information.
A44: Account Breakdown Details
A46: For each "Other Operating Revenue" and "Other Income or Deductions" Account, a detailed breakdown of the account components is required. See the example below for Account 4405, Interest and Dividend Income.
A49: Account 4405 - Interest and Dividend Income
A50: Total from Trial Balance | C50: =C25 -> 0 | D50: =D25 -> -28722.65 | E50: =G25 -> -23485.64 | F50: =J25 -> -22160.59 | G50: =O25 -> -11000 | H50: =P25 -> -2000
C51: 2014 BA | D51: 2014 | E51: 2015 | F51: 2016 | G51: 2017 | H51: 2018
A52: Reporting Basis | C52: NewCGAAP | D52: MIFRS | E52: MIFRS | F52: MIFRS | G52: MIFRS | H52: MIFRS
A53: Short-term Investment Interest
A54: Bank Deposit Interest
A55: Miscellaneous Interest Revenue
A56: etc.1
A58: Total | C58: =SUM(C53:C57) -> 0 | D58: =SUM(D53:D57) -> 0 | E58: 0 | F58: 0 | G58: 0 | H58: 0
A59: Difference between 2.1.7 and total | D59: =D50-D58 -> -28722.65 | E59: =E50-E58 -> -23485.64 | F59: -22160.59 | G59: -11000 | H59: -2000
A61: Notes:
A62: 1 | B62: List and specify any other interest revenue.
A63: 2 | B63: In the transition year to IFRS, the applicant is to present information in both MIFRS and CGAAP. For the typical applicant that adopted IFRS on January 1, 2015, 2014 must be presented in both a CGAAP and MIFRS basis.

Sheet App_2-I LF_CDM
A2: NOTE: REVISED CALCULATIONS IN THIS TABLE WERE DONE BY KEITH RICHIE FROM THE OEB AFTER THE TABLES WERE FOUND TO BE INCORRECT FOR 2018 FILERS
A5: 2011-2014 CDM Program - 2014, last year of the current CDM plan
A6: 4 Year (2011-2014) kWh Target:
A7: 1200000
B8: 2011 | C8: 2012 | D8: 2013 | E8: 2014 | F8: Total
A9: 2011 CDM Programs | B9: =B15/$F$19 -> 0.04625407166 | C9: =C15/$F$19 -> 0.04625407166 | D9: =D15/$F$19 -> 0.04625407166 | E9: =E15/$F$19 -> 0.04625407166 | F9: =SUM(B9:E9) -> 0.1850162866
A10: 2012 CDM Programs | C10: =C16/$F$19 -> 0.1459283388 | D10: =D16/$F$19 -> 0.1459283388 | E10: =E16/$F$19 -> 0.1433224756 | F10: =SUM(B10:E10) -> 0.4351791531
A11: 2013 CDM Programs | D11: =D17/$F$19 -> 0.1433224756 | E11: =E17/$F$19 -> 0.1433224756 | F11: =SUM(B11:E11) -> 0.2866449511
A12: 2014 CDM Programs | E12: =E18/$F$19 -> 0.09381107492 | F12: =SUM(B12:E12) -> 0.09381107492
A13: Total in Year | B13: =SUM(B9:B12) -> 0.04625407166 | C13: =SUM(C9:C12) -> 0.1921824104 | D13: =SUM(D9:D12) -> 0.335504886 | E13: =SUM(E9:E12) -> 0.4267100977 | F13: =SUM(B13:E13) -> 1.000651466
A14: kWh
A15: 2011 CDM Programs | B15: =0.071*1000000 -> 71000 | C15: =0.071*1000000 -> 71000 | D15: =0.071*1000000 -> 71000 | E15: =0.071*1000000 -> 71000 | F15: =SUM(B15:E15) -> 284000
A16: 2012 CDM Programs | B16: =-0.002*1000000 -> -2000 | C16: =0.224*1000000 -> 224000 | D16: =0.224*1000000 -> 224000 | E16: =0.22*1000000 -> 220000 | F16: =SUM(B16:E16) -> 666000
A17: 2013 CDM Programs | B17: 0 | C17: 0 | D17: =0.22*1000000 -> 220000 | E17: =0.22*1000000 -> 220000 | F17: =SUM(B17:E17) -> 440000
A18: 2014 CDM Programs | B18: 0 | C18: 0 | D18: =0.001*1000000 -> 1000 | E18: =0.144*1000000 -> 144000 | F18: =SUM(B18:E18) -> 145000
A19: Total in Year | B19: =SUM(B15:B18) -> 69000 | C19: =SUM(C15:C18) -> 295000 | D19: =SUM(D15:D18) -> 516000 | E19: =SUM(E15:E18) -> 655000 | F19: =SUM(F15:F18) -> 1535000
A23: 2015-2020 CDM Program - 2015, first year of the current CDM plan
A24: 6 Year (2015-2020) kWh Target:
A25: 1790000
B26: 2015 | C26: 2016 | D26: 2017 | E26: 2018 | F26: 2019 | G26: 2020 | H26: Total
A27: %
A28: 2015 CDM Programs | B28: =B36/$H$42 -> 0.9612882682 | C28: 0.9612882682 | D28: 0.9612882682 | E28: 0.9612882682 | F28: 0.9612882682 | G28: 0.8832564246 | H28: =SUM(B28:G28) -> 5.689697765
A29: 2016 CDM Programs | C29: =C37/$H$42 -> 0.02334871508 | D29: =D37/$H$42 -> 0.02334871508 | E29: =E37/$H$42 -> 0.02334871508 | F29: =F37/$H$42 -> 0.02334871508 | G29: =G37/$H$42 -> 0.02334871508 | H29: =SUM(B29:G29) -> 0.1167435754
A30: 2017 CDM Programs | D30: =D38/$H$42 -> 0.02334871508 | E30: =E38/$H$42 -> 0.02334871508 | F30: =F38/$H$42 -> 0.02334871508 | G30: =G38/$H$42 -> 0.02334871508 | H30: =SUM(B30:G30) -> 0.09339486034
A31: 2018 CDM Programs | E31: =E39/$H$42 -> 0.02334871508 | F31: =F39/$H$42 -> 0.02334871508 | G31: =G39/$H$42 -> 0.02334871508 | H31: =SUM(E31:G31) -> 0.07004614525
A32: 2019 CDM Programs | F32: =F40/$H$42 -> 0.02334871508 | G32: =G40/$H$42 -> 0.02334871508 | H32: =SUM(F32:G32) -> 0.04669743017
A33: 2020 CDM Programs | G33: =G41/$H$42 -> 0.02334871508 | H33: =SUM(B33:G33) -> 0.02334871508
A34: Total in Year | B34: =SUM(B28:B33) -> 0.9612882682 | C34: =SUM(C28:C33) -> 0.9846369832 | D34: =SUM(D28:D33) -> 1.007985698 | E34: =SUM(E28:E31) -> 1.031334413 | F34: =SUM(F28:F32) -> 1.054683128 | G34: =SUM(G28:G33) -> 1 | H34: =SUM(B34:G34) -> 6.039928492
A35: kWh
A36: =A28 -> 2015 CDM Programs | B36: 1720706 | C36: =B36 -> 1720706 | D36: =C36 -> 1720706 | E36: =D36 -> 1720706 | F36: =E36 -> 1720706 | G36: 1581029 | H36: =SUM(G36) -> 1581029
A37: 2016 CDM Programs | C37: =D37 -> 41794.2 | D37: =E37 -> 41794.2 | E37: =F37 -> 41794.2 | F37: =G37 -> 41794.2 | G37: =1/5*(A25-H36) -> 41794.2 | H37: 41794.2
A38: 2017 CDM Programs | D38: =E38 -> 41794.2 | E38: =F38 -> 41794.2 | F38: =G38 -> 41794.2 | G38: =1/4*(A25-(H36+H37)) -> 41794.2 | H38: 41794.2
A39: 2018 CDM Programs | E39: =F39 -> 41794.2 | F39: =G39 -> 41794.2 | G39: =1/3*(A25-(H37+H38+H36)) -> 41794.2 | H39: 41794.2
A40: 2019 CDM Programs | F40: =E39 -> 41794.2 | G40: =1/2*(A25-(H37+H38+H36+H39)) -> 41794.2 | H40: 41794.2
A41: 2020 CDM Programs | G41: =A25-(H37+H38+H36+H39+H40) -> 41794.2 | H41: 41794.2
A42: Total in Year | B42: =SUM(B36:B41) -> 1720706 | C42: =SUM(C36:C41) -> 1762500.2 | D42: =SUM(D36:D41) -> 1804294.4 | E42: =SUM(E36:E39) -> 1846088.6 | F42: =SUM(F36:F40) -> 1887882.8 | G42: =SUM(G36:G41) -> 1790000 | H42: =A25 -> 1790000
A45: Weight Factor for Inclusion in CDM Adjustment to 2014 Load Forecast
B46: 2011 | C46: 2012 | D46: 2013 | E46: 2014 | F46: 2015 | G46: 2016 | H46: 2017 | I46: 2018
A47: Weight Factor for each year's CDM program impact on 2014 load forecast | B47: 0 | C47: 0 | D47: 0 | E47: 0 | F47: 0 | G47: 0.5 | H47: 1 | I47: 0.5 | J47: Distributor can select "0", "0.5", or "1" from drop-down list
A48: Default Value selection rationale.
A51: 2011-2014 and 2015-2020 LRAMVA and 2015 CDM adjustment to Load Forecast
B52: 2011 | C52: 2012 | D52: 2013 | E52: 2014 | F52: 2015 | G52: 2016 | H52: 2017 | I52: 2018 | J52: Total for 2018
B53: kWh
A54: Amount used for CDM threshold for LRAMVA (2014) | B54: 0 | C54: 0 | D54: =E17 -> 220000 | E54: =E18 -> 144000 | F54: =E36 -> 1720706 | J54: =SUM(D54:I54) -> 2084706
A56: 2011 CDM adjustment (per Board Decision in 2011 Cost of Service Application) | B56: 0 | C56: =B56 -> 0 | D56: =B56 -> 0 | E56: =B56 -> 0 | G56: =SUM(B56:E57) -> 0
A58: Amount used for CDM threshold for LRAMVA (2015) | G58: =E37 -> 41794.2 | H58: =E38 -> 41794.2 | I58: =E39 -> 41794.2 | J58: =SUM(F58:I58) -> 125382.6
A60: Manual Adjustment for 2015 Load Forecast (billed basis) | B60: 0 | F60: =F58*F47 -> 0 | G60: =G58*G47 -> 20897.1 | H60: =H58*H47 -> 41794.2 | I60: =I58*I47 -> 20897.1 | J60: =SUM(F60:I60) -> 83588.4

Sheet App.2-IA_Load_Forecast_Instrct
Q1: File Number: | R1: =EBNUMBER -> 0
Q2: Exhibit:
Q3: Tab:
Q4: Schedule:
Q5: Page:
Q7: Date:
B9: Appendix 2-IA
B10: Instructions on Customer, Connections, Load Forecast and Revenues Data and Analysis
B12: This sheet requires no inputs, but serves as a summary of the hiostorical and forecasted data to be provided with respect to:
B14: 1) | C14: Customers and connections
B15: 2) | C15: Consumption (kWh)
B16: 3) | C16: Demand (kW or kCA) for applicable demand-billed customer classes
B17: 4) | C17: Revenues
B19: The spreadsheet summarizes the data provided and the analyses (variance or year-over-year) that are required. Data are required to be provided on a customer class level. Consumption (kWh) must also be provided on a total distribution system level.
B21: Appendix 2-IB (formerly 2-IA) is the appendix spreadsheet that the distributor populates, and the spreadsheet is laid out for inputting the necessary data. The spreadsheet also calculates necessary statistics such as average consumption per customer/connection per year, and variances and % annual changes, as necessary.
B23: The distributor is required to provide suitable documentation in Exhibit 3 of its Application, in accordance with section 2.3.2 of Chaoter 2 of the Filing Requirements. This would include explanations for material variations or of trends in the data.
B25: The distributor is also required to input its test year customer/connection and load forecast in Sheet 10 - Load Forecast of the Revenue Requirement Work Form. This sheet should also be updated to reflect changes in the load forecast made through the stages of processing of the rates application.
B27: The applicant must demonstrate the historical accuracy of its load forecast approach for at least the past 5 years. Such analysis will cover both customer/connections and consumption (kWh) and demand (kW or kVA) by providing the following, as shown in the following table:
D29: Calendar Year | F29: Customers / Connections | I29: Consumption (kWh) (3) | M29: Demand (kW or kVA) | Q29: Revenues
D30: (for 2017 Cost of Service) | I30: Weather-actual | J30: Weather-normalized | M30: Weather-actual | N30: Weather-normalized | Q30: Weather-actual | R30: Weather-normalized
C31: Historical | D31: 2012 | F31: 2384 | I31: 30091478.35 | J31: 30243327.41 | M31: 13489 | N31: 13489
C32: Historical | D32: 2013 | F32: 2388 | I32: 30301350.4 | J32: 30138225.79 | M32: 13642 | N32: 13642 | Q32: 769895
C33: Historical | D33: 2014 | F33: 2397.5 | G33: Board-approved (2) | I33: 30157452.24 | J33: 30476269.16 | K33: Board-approved (2) | M33: 13217 | N33: 19738 | O33: Board-approved (2) | Q33: 792808.4762
C34: Historical | D34: 2015 | F34: 2471 | I34: 29896471.9 | J34: 30222148.14 | M34: 13288 | N34: 13288 | Q34: 792971.2008
C35: Historical | D35: 2016 | F35: 2622.5 | I35: 29672838.79 | J35: 31427034.15 | M35: 12978 | N35: 12978 | Q35: 829111.6846
C36: Bridge Year (Forecast) | D36: 2017 | F36: 2751.453151 | J36: 30047092.15 | N36: 13290.7099 | R36: 820815.3423
C37: Test Year (Forecast) | D37: 2018 | F37: 2828.098143 | J37: 29963503.75 | N37: 13339.32081 | R37: 1107885.261
B40: Notes:
B42: (1) | C42: “Weather-normalized actuals” are estimated by replacing the actual weather-related values (typically Heating Degree Days (HDD) and Cooling Degree Days (CDD)) by the “typical” or “weather-normalized” values. These “weather-normalized HDD and CDD values would be the same as used to estimate the Bridge Year and Test Year forecasts.
B43: (2) | C43: For 2017 Cost of Service rebasers, the typical situation is that 2013 would have been the most recent cost of service rebasing application. If the most recent rebasing application was for a rate year other than 2013, that year should be used. An applicant must provide historical information back to the greater of: a) at least five (5) historical actual years; or b) to its last cost of service application.
B44: (3) | C44: Consumption must be provided on a total distribution system basis as well as at a customer class level.
B45: (4) | C45: Revenues exclude commodity charges.

Sheet App.2-IB_Load_Forecast_Analysis
T1: File Number: | U1: =EBNUMBER -> 0
T2: Exhibit:
T3: Tab:
T4: Schedule:
T5: Page:
T7: Date:
B9: Appendix 2-IB
B10: Customer, Connections, Load Forecast and Revenues Data and Analysis
B12: This sheet requires no inputs, but serves as a summary of the hiostorical and forecasted data to be provided with respect to:
B14: 1) | C14: Customers and connections
B15: 2) | C15: Consumption (kWh)
B16: 3) | C16: Demand (kW or kCA) for applicable demand-billed customer classes
B17: 4) | C17: Revenues
B19: The spreadsheet summarizes the data provided and the analyses (variance or year-over-year) that are required. Data are required to be provided on a customer class level. Consumption (kWh) must also be provided on a total distribution system level.
B21: Appendix 2-IB (formerly 2-IA) is the appendix spreadsheet that the distributor populates, and the spreadsheet is laid out for inputting the necessary data. The spreadsheet also calculates necessary statistics such as average consumption per customer/connection per year, and variances and % annual changes, as necessary.
B23: The distributor is required to provide suitable documentation in Exhibit 3 of its Application, in accordance with section 2.3.2 of Chaoter 2 of the Filing Requirements. This would include explanations for material variations or of trends in the data.
B25: The distributor is also required to input its test year customer/connection and load forecast in Sheet 10 - Load Forecast of the Revenue Requirement Work Form. This sheet should also be updated to reflect changes in the load forecast made through the stages of processing of the rates application.
B27: The applicant must demonstrate the historical accuracy of its load forecast approach for at least the past 5 years. Such analysis will cover both customer/connections and consumption (kWh) and demand (kW or kVA) by providing the following, as shown in the following table:
B29: This sheet is to be filled in accordance with the instructions documented in section 2.3.2 of Chapter 2 of the Filing Requirements for Distribution Rate Applications, in terms of one set of tables per customer class.
B31: Color coding for Cells: | F31: Data input | K31: Drop-down List
F33: No data entry required | K33: Blank or calculated value
B35: Distribution System (Total)
D37: Calendar Year | K37: Consumption (kWh) (3)
D38: =CONCATENATE("(for ",TestYear," Cost of Service") -> (for 2018 Cost of Service | L38: Actual (Weather actual) | M38: Weather-normalized | O38: Weather-normalized
C39: Historical | D39: =D40-1 -> 2012 | K39: Actual | L39: 30091478.35 | M39: 30243327.41 | N39: =IF(D39=RebaseYear,"Board-approved","") -> 
C40: Historical | D40: 2013 | K40: Actual | L40: 30301350.4 | M40: 30138225.79
C41: Historical | D41: 2014 | K41: Actual | L41: 30157452.24 | M41: 30476269.16 | N41: Board-approved
C42: Historical | D42: 2015 | K42: Actual | L42: 29896471.9 | M42: 30222148.14
C43: Historical | D43: 2016 | K43: Actual | L43: 29672838.79 | M43: 31427034.15
C44: Bridge Year | D44: 2017 | K44: Forecast | M44: 30476293.18
C45: Test Year | D45: =TestYear -> 2018 | K45: Forecast | M45: 2959106.381
O46: =SUM(O39:O44) -> 0
C47: Variance Analysis | K47: Year | L47: Year-over-year | O47: Versus Board-approved
D48: =D39 -> 2012 | K48: =D48 -> 2012
D49: 2013 | K49: =D49 -> 2013 | L49: =IF(L39=0,"",L40/L39-1) -> 0.006974467917 | M49: -0.003475200317
D50: 2014 | K50: 2014 | L50: -0.00474890243 | M50: 0.01121643245
D51: 2015 | K51: 2015 | L51: -0.008653925336 | M51: -0.008338324381
D52: 2016 | K52: 2016 | L52: -0.007480250872 | M52: 0.03986764951
D53: 2017 | K53: 2017 | L53: =IF(K44="Forecast","",IF(L43=0,"",L44/L43-1)) ->  | M53: =IF(M43=0,"",M44/M43-1) -> -0.03025232894
D54: 2018 | K54: 2018 | L54: =IF(K45="Forecast","",IF(L44=0,"",L45/L44-1)) ->  | M54: =IF(M44=0,"",M45/M44-1) -> -0.9029046491 | O54: =IF(O46=0,"",M45/O46-1) -> 
D55: Geometric Mean | K55: Geometric Mean | M55: =IF(M39=0,"",(M45/M39)^(1/(K54-K48-1)-1)) -> 6.420593785 | O55: =IF(O46=0,"",(M45/O46)^(1/(TestYear-RebaseYear-1))-1) -> 
B57: Customer Class Analysis (one for each Customer Class, excluding MicroFIT and Standby)
B59: 1 | C59: Customer Class: | D59: Residential | H59: Is the customer class billed on consumption (kWh) or demand (kW or kVA)? | N59: kWh
D61: Calendar Year | F61: Customers | K61: Consumption (kWh) (3) | Q61: =CONCATENATE("Consumption (kWh) per ",LEFT(F61,LEN(F61)-1)) -> Consumption (kWh) per Customer
D62: =CONCATENATE("(for ",TestYear," Cost of Service") -> (for 2018 Cost of Service | L62: Actual (Weather actual) | M62: Weather-normalized | O62: Weather-normalized | R62: =L62 -> Actual (Weather actual) | S62: =M62 -> Weather-normalized | U62: =O62 -> Weather-normalized
C63: Historical | D63: =D64-1 -> 2012 | F63: =K39 -> Actual | G63: 1788 | H63: =IF(D63=RebaseYear,"Board-approved","") ->  | K63: =F63 -> Actual | L63: 19634780 | M63: 19709811.81 | N63: =H63 ->  | Q63: =K63 -> Actual | R63: =IF(G63=0,"",L63/G63) -> 10981.42058 | S63: =IF(G63=0,"",M63/G63) -> 11023.38468 | T63: =N63 ->  | U63: =IF(T63="","",IF(I63=0,"",O63/I63)) -> 
C64: Historical | D64: 2013 | F64: =K40 -> Actual | G64: 1790 | K64: =F64 -> Actual | L64: 19650696 | M64: 19506513.66 | N64: =H64 ->  | Q64: =K64 -> Actual | R64: =IF(G64=0,"",L64/G64) -> 10978.04246 | S64: =IF(G64=0,"",M64/G64) -> 10897.49367 | T64: =N64 ->  | U64: =IF(T64="","",IF(I64=0,"",O64/I64)) -> 
C65: Historical | D65: 2014 | F65: Actual | G65: 1799.5 | H65: Board-approved | I65: 2048 | K65: Actual | L65: 19479913 | M65: 19630955.18 | N65: Board-approved | O65: 22293395.2 | Q65: Actual | R65: 10825.18088 | S65: 10909.11652 | T65: Board-approved | U65: 10885.44688
C66: Historical | D66: 2015 | F66: Actual | G66: 1846.5 | K66: Actual | L66: 19377540 | M66: 19528753.17 | Q66: Actual | R66: 10494.19984 | S66: 10576.09162
C67: Historical | D67: 2016 | F67: Actual | G67: 1926.5 | K67: Actual | L67: 19268403 | M67: 20463869.24 | Q67: Actual | R67: 10001.76642 | S67: 10622.3043
C68: Bridge Year | D68: 2017 | F68: Forecast | G68: 2040 | K68: Forecast | M68: 21046899.58 | Q68: Forecast | R68: 0 | S68: 10317.10764
C69: Test Year | D69: =TestYear -> 2018 | F69: Forecast | G69: 2100 | K69: Forecast | M69: 21676646.19 | Q69: Forecast | R69: 0 | S69: 10322.21247
I70: =SUM(I63:I68) -> 2048 | O70: =SUM(O63:O68) -> 22293395.2 | U70: =SUM(U63:U68) -> 10885.44688
C71: Variance Analysis | D71: Year | G71: Year-over-year | I71: Test Year Versus Board-approved | K71: Year | L71: Year-over-year | O71: =I71 -> Test Year Versus Board-approved | Q71: Year | R71: Year-over-year | U71: =O71 -> Test Year Versus Board-approved
D72: =D63 -> 2012 | K72: =D72 -> 2012 | Q72: =K72 -> 2012
D73: 2013 | G73: =IF(G63=0,"",G64/G63-1) -> 0.001118568233 | K73: =D73 -> 2013 | L73: =IF(L63=0,"",L64/L63-1) -> 0.0008106024106 | M73: -0.01031456569 | Q73: =K73 -> 2013 | R73: =IF(R63="","",IF(R63=0,"",R64/R63-1)) -> -0.0003076217262 | S73: =IF(S63="","",IF(S63=0,"",S64/S63-1)) -> -0.01142035947
D74: 2014 | G74: 0.00530726257 | K74: 2014 | L74: -0.008690938988 | M74: 0.0063794856 | Q74: 2014 | R74: =IF(R64="","",IF(R64=0,"",R65/R64-1)) -> -0.01392430163 | S74: 0.001066562503
D75: 2015 | G75: 0.02611836621 | K75: 2015 | L75: -0.005255310945 | M75: -0.005206166048 | Q75: 2015 | R75: -0.03057510536 | S75: -0.03052721137
D76: 2016 | G76: 0.04332520986 | K76: 2016 | L76: -0.005632139064 | M76: 0.04788406389 | Q76: 2016 | R76: -0.04692434196 | S76: 0.004369542683
D77: 2017 | G77: 0.05891513107 | K77: 2017 | L77: =IF(K68="Forecast","",IF(L67=0,"",L68/L67-1)) ->  | M77: =IF(M67=0,"",M68/M67-1) -> 0.02849071901 | Q77: 2017 | R77: =IF(Q68="Forecast","",IF(R67=0,"",R68/R67-1)) ->  | S77: =IF(S67="","",IF(S67=0,"",S68/S67-1)) -> -0.02873168129
D78: 2018 | G78: 0.02941176471 | I78: =IF(I70=0,"",G69/I70-1) -> 0.025390625 | K78: 2018 | L78: =IF(K69="Forecast","",IF(L68=0,"",L69/L68-1)) ->  | M78: =IF(M68=0,"",M69/M68-1) -> 0.02992111058 | O78: =IF(O70=0,"",M69/O70-1) -> -0.02766510011 | Q78: 2018 | R78: =IF(Q69="Forecast","",IF(R68=0,"",R69/R68-1)) ->  | S78: 0.0004947931382 | U78: =IF(U70=0,"",S69/U70-1) -> -0.0517419643
D79: Geometric Mean | G79: =IF(G63=0,"",GEOMEAN(G73:G78)) -> 0.01505432467 | I79: =IF(I70=0,"",(G69/I70)^(1/(TestYear-RebaseYear-1))-1) -> 0.008392903765 | K79: Geometric Mean | M79: =IF(M63=0,"",(M69/M63)^(1/(K78-K72-1)-1)) -> 0.9267280552 | O79: =IF(O70=0,"",(M69/O70)^(1/(TestYear-RebaseYear-1))-1) -> -0.009308071412 | Q79: Geometric Mean | S79: =IF(S63="","",IF(S63=0,"",(S69/S63)^(1/(Q78-Q72-1)-1))) -> 1.053983313 | U79: =IF(U70=0,"",(S69/U70)^(1/(TestYear-RebaseYear-1))-1) -> -0.01755364909
D81: Calendar Year | F81: Revenues | K81: =IF(ISBLANK(N59),"",CONCATENATE("Demand (",N59,")")) -> Demand (kWh) | Q81: =CONCATENATE("Demand (",N59,") per ",LEFT(F61,LEN(F61)-1)) -> Demand (kWh) per Customer
D82: =CONCATENATE("(for ",TestYear," Cost of Service") -> (for 2018 Cost of Service | L82: Actual (Weather actual) | M82: Weather-normalized | O82: =M82 -> Weather-normalized | R82: =L82 -> Actual (Weather actual) | S82: =M82 -> Weather-normalized | U82: =O82 -> Weather-normalized
C83: Historical | D83: =D84-1 -> 2012 | F83: =F63 -> Actual | H83: =IF(D83=RebaseYear,"Board-approved","") ->  | K83: =K63 -> Actual | N83: =N63 ->  | Q83: =K83 -> Actual | R83: =IF(G83=0,"",L83/G83) ->  | S83: =IF(G83=0,"",M83/G83) ->  | T83: =N83 ->  | U83: =IF(T83="","",IF(I83=0,"",O83/I83)) -> 
C84: Historical | D84: 2013 | F84: Actual | K84: Actual | Q84: =K84 -> Actual | R84: =IF(G84=0,"",L84/G84) ->  | S84: =IF(G84=0,"",M84/G84) ->  | T84: =N84 ->  | U84: =IF(T84="","",IF(I84=0,"",O84/I84)) -> 
C85: Historical | D85: 2014 | F85: Actual | G85: 580995.2968 | H85: Board-approved | I85: 661016.7348 | K85: Actual | N85: Board-approved | Q85: Actual | R85: 0 | S85: 0 | T85: Board-approved | U85: 0
C86: Historical | D86: 2015 | F86: Actual | G86: 601330.212 | K86: Actual | Q86: Actual | R86: 0 | S86: 0
C87: Historical | D87: 2016 | F87: Actual | G87: 634580.0718 | K87: Actual | Q87: Actual | R87: 0 | S87: 0
C88: Bridge Year (Forecast) | D88: 2017 | F88: Forecast | G88: 686915.277 | K88: Forecast | Q88: Forecast | R88: 0 | S88: 0
C89: Test Year (Forecast) | D89: =TestYear -> 2018 | F89: Forecast | G89: 905860.4802 | K89: Forecast | Q89: Forecast | R89: 0 | S89: 0
I90: =SUM(I83:I88) -> 661016.7348 | O90: =SUM(O83:O88) -> 0 | U90: =SUM(U83:U88) -> 0
C91: Variance Analysis | D91: Year | G91: Year-over-year | I91: =I71 -> Test Year Versus Board-approved | K91: Year | L91: Year-over-year | O91: =I91 -> Test Year Versus Board-approved | Q91: Year | R91: Year-over-year | U91: =O91 -> Test Year Versus Board-approved
D92: =D83 -> 2012 | K92: =D92 -> 2012 | Q92: =K92 -> 2012
D93: =D84 -> 2013 | G93: =IF(G83=0,"",G84/G83-1) ->  | K93: =D93 -> 2013 | L93: =IF(L83=0,"",L84/L83-1) ->  | M93: =IF(M83=0,"",M84/M83-1) ->  | Q93: =K93 -> 2013 | R93: =IF(R83="","",IF(R83=0,"",R84/R83-1)) ->  | S93: =IF(S83="","",IF(S83=0,"",S84/S83-1)) -> 
D94: =D85 -> 2014 | G94: =IF(G84=0,"",G85/G84-1) ->  | K94: 2014 | L94: =IF(L84=0,"",L85/L84-1) ->  | Q94: 2014 | R94: =IF(R84="","",IF(R84=0,"",R85/R84-1)) -> 
D95: 2015 | G95: 0.03500013737 | K95: 2015 | L95: =IF(L85=0,"",L86/L85-1) ->  | Q95: 2015
D96: 2016 | G96: 0.05529384544 | K96: 2016 | L96: =IF(L86=0,"",L87/L86-1) ->  | Q96: 2016
D97: 2017 | G97: 0.08247218521 | K97: 2017 | L97: =IF(K88="Forecast","",IF(L87=0,"",L88/L87-1)) ->  | M97: =IF(M87=0,"",M88/M87-1) ->  | Q97: 2017 | R97: =IF(Q88="Forecast","",IF(R87=0,"",R88/R87-1)) ->  | S97: =IF(S87="","",IF(S87=0,"",S88/S87-1)) -> 
D98: 2018 | G98: 0.3187368378 | I98: =IF(I90=0,"",G89/I90-1) -> 0.3704047607 | K98: 2018 | L98: =IF(K89="Forecast","",IF(L88=0,"",L89/L88-1)) ->  | M98: =IF(M88=0,"",M89/M88-1) ->  | O98: =IF(O90=0,"",M89/O90-1) ->  | Q98: 2018 | R98: =IF(Q89="Forecast","",IF(R88=0,"",R89/R88-1)) ->  | U98: =IF(U90=0,"",S89/U90-1) -> 
D99: Geometric Mean | G99: =IF(G83=0,"",GEOMEAN(G93:G98)) ->  | I99: =IF(I90=0,"",(G89/I90)^(1/(TestYear-RebaseYear-1))-1) -> 0.1107499087 | K99: Geometric Mean | M99: =IF(M83=0,"",GEOMEAN(M93:M98)) ->  | O99: =IF(O90=0,"",(M89/O90)^(1/(TestYear-RebaseYear-1))-1) ->  | Q99: Geometric Mean | S99: =IF(S83="","",IF(S83=0,"",(S89/S83)^(1/(Q98-Q92-1)-1))) ->  | U99: =IF(U90=0,"",(S89/U90)^(1/(TestYear-RebaseYear-1))-1) -> 
B101: 2 | C101: Customer Class: | D101: GS < 50 kW | H101: Is the customer class billed on consumption (kWh) or demand (kW or kVA)? | N101: kWh
D103: Calendar Year | F103: Customers | K103: Consumption (kWh) (3) | Q103: =CONCATENATE("Consumption (kWh) per ",LEFT(F103,LEN(F103)-1)) -> Consumption (kWh) per Customer
D104: =CONCATENATE("(for ",TestYear," Cost of Service") -> (for 2018 Cost of Service | L104: Actual (Weather actual) | M104: Weather-normalized | O104: Weather-normalized | R104: =L104 -> Actual (Weather actual) | S104: =M104 -> Weather-normalized | U104: =O104 -> Weather-normalized
C105: Historical | D105: =D106-1 -> 2012 | F105: =F63 -> Actual | G105: 157 | H105: =IF(D105=RebaseYear,"Board-approved","") ->  | K105: =F105 -> Actual | L105: 4742923 | M105: 4761047.476 | N105: =H105 ->  | Q105: =K105 -> Actual | R105: =IF(G105=0,"",L105/G105) -> 30209.70064 | S105: =IF(G105=0,"",M105/G105) -> 30325.14316 | T105: =N105 ->  | U105: =IF(T105="","",IF(I105=0,"",O105/I105)) -> 
C106: Historical | D106: 2013 | F106: Actual | G106: 159 | K106: =F106 -> Actual | L106: 4699450 | M106: 4664968.896 | N106: =H106 ->  | Q106: =K106 -> Actual | R106: =IF(G106=0,"",L106/G106) -> 29556.28931 | S106: =IF(G106=0,"",M106/G106) -> 29339.42702 | T106: =N106 ->  | U106: =IF(T106="","",IF(I106=0,"",O106/I106)) -> 
C107: Historical | D107: 2014 | F107: Actual | G107: 159 | H107: Board-approved | I107: 168 | K107: Actual | L107: 4701954 | M107: 4738411.73 | N107: Board-approved | Q107: Actual | R107: 29572.03774 | S107: 29801.33163 | T107: Board-approved | U107: 0
C108: Historical | D108: 2015 | F108: Actual | G108: 165 | K108: Actual | L108: 4594197 | M108: 4630047.944 | Q108: Actual | R108: 27843.61818 | S108: 28060.89663
C109: Historical | D109: 2016 | F109: Actual | G109: 163 | K109: Actual | L109: 4538610 | M109: 4792042.128 | Q109: Actual | R109: 27844.23313 | S109: 29399.03146
C110: Bridge Year | D110: 2017 | F110: Forecast | G110: 168 | K110: Forecast | M110: 4941574.888 | Q110: Forecast | R110: 0 | S110: 29414.13624
C111: Test Year | D111: =TestYear -> 2018 | F111: Forecast | G111: 172 | K111: Forecast | M111: 5057633.022 | Q111: Forecast | R111: 0 | S111: 29404.84315
I112: =SUM(I105:I110) -> 168 | O112: =SUM(O105:O110) -> 0 | U112: =SUM(U105:U110) -> 0
C113: Variance Analysis | D113: Year | G113: Year-over-year | I113: Test Year Versus Board-approved | K113: Year | L113: Year-over-year | O113: =I113 -> Test Year Versus Board-approved | Q113: Year | R113: Year-over-year | U113: =O113 -> Test Year Versus Board-approved
D114: =D105 -> 2012 | K114: =D114 -> 2012 | Q114: =K114 -> 2012
D115: 2013 | G115: =IF(G105=0,"",G106/G105-1) -> 0.0127388535 | K115: =D115 -> 2013 | L115: =IF(L105=0,"",L106/L105-1) -> -0.009165866703 | M115: -0.0201801348 | Q115: =K115 -> 2013 | R115: =IF(R105="","",IF(R105=0,"",R106/R105-1)) -> -0.02162918913 | S115: =IF(S105="","",IF(S105=0,"",S106/S105-1)) -> -0.03250491298
D116: 2014 | G116: 0 | K116: 2014 | L116: =IF(L106=0,"",L107/L106-1) -> 0.0005328283097 | M116: 0.01574347767 | Q116: 2014 | R116: =IF(R106="","",IF(R106=0,"",R107/R106-1)) -> 0.0005328283097 | S116: 0.01574347767
D117: 2015 | G117: 0.03773584906 | K117: 2015 | L117: =IF(L107=0,"",L108/L107-1) -> -0.02291749345 | M117: -0.02286922114 | Q117: 2015 | R117: =IF(R107="","",IF(R107=0,"",R108/R107-1)) -> -0.05844776642 | S117: -0.05840124947
D118: 2016 | G118: -0.01212121212 | K118: 2016 | L118: =IF(L108=0,"",L109/L108-1) -> -0.01209939408 | M118: 0.0349875825 | Q118: 2016 | R118: =IF(R108="","",IF(R108=0,"",R109/R108-1)) -> 2.208574375e-05 | S118: 0.04768681664
D119: 2017 | G119: 0.03067484663 | K119: 2017 | L119: =IF(K110="Forecast","",IF(L109=0,"",L110/L109-1)) ->  | M119: =IF(M109=0,"",M110/M109-1) -> 0.03120439172 | Q119: 2017 | R119: =IF(Q110="Forecast","",IF(R109=0,"",R110/R109-1)) ->  | S119: 0.0005137848224
D120: 2018 | G120: 0.02380952381 | I120: =IF(I112=0,"",G111/I112-1) -> 0.02380952381 | K120: 2018 | L120: =IF(K111="Forecast","",IF(L110=0,"",L111/L110-1)) ->  | M120: =IF(M110=0,"",M111/M110-1) -> 0.02348606195 | O120: =IF(O112=0,"",M111/O112-1) ->  | Q120: 2018 | R120: =IF(Q111="Forecast","",IF(R110=0,"",R111/R110-1)) ->  | S120: -0.0003159394863 | U120: =IF(U112=0,"",S111/U112-1) -> 
D121: Geometric Mean | G121: =IF(G105=0,"",GEOMEAN(G115:G120)) ->  | I121: =IF(I112=0,"",(G111/I112)^(1/(TestYear-RebaseYear-1))-1) -> 0.007874339957 | K121: Geometric Mean | M121: =IF(M105=0,"",(M111/M105)^(1/(K120-K114-1)-1)) -> 0.9528052873 | O121: =IF(O112=0,"",(M111/O112)^(1/(TestYear-RebaseYear-1))-1) ->  | Q121: Geometric Mean | S121: =IF(S105="","",IF(S105=0,"",(S111/S105)^(1/(Q120-Q114-1)-1))) -> 1.024960654 | U121: =IF(U112=0,"",(S111/U112)^(1/(TestYear-RebaseYear-1))-1) -> 
D124: Calendar Year | F124: Revenues | K124: =IF(ISBLANK(N101),"",CONCATENATE("Demand (",N101,")")) -> Demand (kWh) | Q124: =CONCATENATE("Demand (",N101,") per ",LEFT(F103,LEN(F103)-1)) -> Demand (kWh) per Customer
D125: =CONCATENATE("(for ",TestYear," Cost of Service") -> (for 2018 Cost of Service | L125: Actual (Weather actual) | M125: Weather-normalized | O125: =M125 -> Weather-normalized | R125: =L125 -> Actual (Weather actual) | S125: =M125 -> Weather-normalized | U125: =O125 -> Weather-normalized
C126: Historical | D126: =D127-1 -> 2012 | F126: =F105 -> Actual | H126: =IF(D126=RebaseYear,"Board-approved","") ->  | K126: =K105 -> Actual | N126: =N105 ->  | Q126: =K126 -> Actual | R126: =IF(G126=0,"",L126/G126) ->  | S126: =IF(G126=0,"",M126/G126) ->  | T126: =N126 ->  | U126: =IF(T126="","",IF(I126=0,"",O126/I126)) -> 
C127: Historical | D127: 2013 | F127: Actual | K127: Actual | Q127: =K127 -> Actual | R127: =IF(G127=0,"",L127/G127) ->  | S127: =IF(G127=0,"",M127/G127) ->  | T127: =N127 ->  | U127: =IF(T127="","",IF(I127=0,"",O127/I127)) -> 
C128: Historical | D128: 2014 | F128: Actual | G128: 99413 | H128: Board-approved | I128: 105010 | K128: Actual | N128: Board-approved | Q128: Actual | R128: 0 | S128: 0 | T128: Board-approved | U128: 0
C129: Historical | D129: 2015 | F129: Actual | G129: 99353 | K129: Actual | Q129: Actual | R129: 0 | S129: 0
C130: Historical | D130: 2016 | F130: Actual | G130: 99888 | K130: Actual | Q130: Actual | R130: 0 | S130: 0
C131: Bridge Year (Forecast) | D131: 2017 | F131: Forecast | G131: 109246 | K131: Forecast | Q131: Forecast | R131: 0 | S131: 0
C132: Test Year (Forecast) | D132: =TestYear -> 2018 | F132: Forecast | G132: 101117 | K132: Forecast | Q132: Forecast | R132: 0 | S132: 0
I133: =SUM(I126:I131) -> 105010 | O133: =SUM(O126:O131) -> 0 | U133: =SUM(U126:U131) -> 0
C134: Variance Analysis | D134: Year | G134: Year-over-year | I134: =I113 -> Test Year Versus Board-approved | K134: Year | L134: Year-over-year | O134: =I134 -> Test Year Versus Board-approved | Q134: Year | R134: Year-over-year | U134: =O134 -> Test Year Versus Board-approved
D135: =D126 -> 2012 | K135: =D135 -> 2012 | Q135: =K135 -> 2012
D136: =D127 -> 2013 | G136: =IF(G126=0,"",G127/G126-1) ->  | K136: =D136 -> 2013 | L136: =IF(L126=0,"",L127/L126-1) ->  | M136: =IF(M126=0,"",M127/M126-1) ->  | Q136: =K136 -> 2013 | R136: =IF(R126="","",IF(R126=0,"",R127/R126-1)) ->  | S136: =IF(S126="","",IF(S126=0,"",S127/S126-1)) -> 
D137: =D128 -> 2014 | G137: =IF(G127=0,"",G128/G127-1) ->  | K137: 2014 | L137: =IF(L127=0,"",L128/L127-1) ->  | Q137: 2014 | R137: =IF(R127="","",IF(R127=0,"",R128/R127-1)) -> 
D138: 2015 | G138: -0.0006035427962 | K138: 2015 | L138: =IF(L128=0,"",L129/L128-1) ->  | Q138: 2015 | R138: =IF(R128="","",IF(R128=0,"",R129/R128-1)) -> 
D139: 2016 | G139: 0.005384839914 | K139: 2016 | L139: =IF(L129=0,"",L130/L129-1) ->  | Q139: 2016 | R139: =IF(R129="","",IF(R129=0,"",R130/R129-1)) -> 
D140: 2017 | G140: 0.09368492712 | K140: 2017 | L140: =IF(K131="Forecast","",IF(L130=0,"",L131/L130-1)) ->  | Q140: 2017 | R140: =IF(Q131="Forecast","",IF(R130=0,"",R131/R130-1)) -> 
D141: 2018 | G141: -0.07441004705 | I141: =IF(I133=0,"",G132/I133-1) -> -0.03707265975 | K141: 2018 | L141: =IF(K132="Forecast","",IF(L131=0,"",L132/L131-1)) ->  | O141: =IF(O133=0,"",M132/O133-1) ->  | Q141: 2018 | R141: =IF(Q132="Forecast","",IF(R131=0,"",R132/R131-1)) ->  | U141: =IF(U133=0,"",S132/U133-1) -> 
D142: Geometric Mean | G142: =IF(G126=0,"",GEOMEAN(G136:G141)) ->  | I142: =IF(I133=0,"",(G132/I133)^(1/(TestYear-RebaseYear-1))-1) -> -0.01251348747 | K142: Geometric Mean | M142: =IF(M126=0,"",GEOMEAN(M136:M141)) ->  | O142: =IF(O133=0,"",(M132/O133)^(1/(TestYear-RebaseYear-1))-1) ->  | Q142: Geometric Mean | S142: =IF(S126="","",IF(S126=0,"",(S132/S126)^(1/(Q141-Q135-1)-1))) ->  | U142: =IF(U133=0,"",(S132/U133)^(1/(TestYear-RebaseYear-1))-1) -> 
B144: 3 | C144: Customer Class: | D144: GS > 50 kW | H144: Is the customer class billed on consumption (kWh) or demand (kW or kVA)? | N144: kW
D146: Calendar Year | F146: Customers | K146: Consumption (kWh) (3) | Q146: =CONCATENATE("Consumption (kWh) per ",LEFT(F146,LEN(F146)-1)) -> Consumption (kWh) per Customer
D147: =CONCATENATE("(for ",TestYear," Cost of Service") -> (for 2018 Cost of Service | L147: Actual (Weather actual) | M147: Weather-normalized | O147: Weather-normalized | R147: =L147 -> Actual (Weather actual) | S147: =M147 -> Weather-normalized | U147: =O147 -> Weather-normalized
C148: Historical | D148: =D149-1 -> 2012 | F148: =F105 -> Actual | G148: 11 | H148: =IF(D148=RebaseYear,"Board-approved","") ->  | K148: =F148 -> Actual | L148: 4292894 | M148: 4309298.747 | N148: =H148 ->  | Q148: =K148 -> Actual | R148: =IF(G148=0,"",L148/G148) -> 390263.0909 | S148: =IF(G148=0,"",M148/G148) -> 391754.4316 | T148: =N148 ->  | U148: =IF(T148="","",IF(I148=0,"",O148/I148)) -> 
C149: Historical | D149: 2013 | F149: =F106 -> Actual | G149: 11 | K149: =F149 -> Actual | L149: 4289465 | M149: 4257992.064 | N149: =H149 ->  | Q149: =K149 -> Actual | R149: =IF(G149=0,"",L149/G149) -> 389951.3636 | S149: =IF(G149=0,"",M149/G149) -> 387090.1876 | T149: =N149 ->  | U149: =IF(T149="","",IF(I149=0,"",O149/I149)) -> 
C150: Historical | D150: 2014 | F150: Actual | G150: 11 | H150: Board-approved | K150: Actual | L150: 4346251 | M150: 4379950.701 | N150: Board-approved | Q150: Actual | R150: 395113.7273 | S150: 398177.3365 | T150: Board-approved
C151: Historical | D151: 2015 | F151: Actual | G151: 11 | K151: Actual | L151: 4316369 | M151: 4350051.905 | Q151: Actual | R151: 392397.1818 | S151: 395459.2641
C152: Historical | D152: 2016 | F152: Actual | G152: 11 | K152: Actual | L152: 4274953 | M152: 4513662.745 | Q152: Actual | R152: 388632.0909 | S152: 410332.9769
C153: Bridge Year | D153: 2017 | F153: Forecast | G153: 9 | K153: Forecast | M153: 3657935.676 | Q153: Forecast | R153: 0 | S153: 406437.2973
C154: Test Year | D154: =TestYear -> 2018 | F154: Forecast | G154: 9 | K154: Forecast | M154: 2835388.399 | Q154: Forecast | R154: 0 | S154: 315043.1555
I155: =SUM(I148:I153) -> 0 | O155: =SUM(O148:O153) -> 0 | U155: =SUM(U148:U153) -> 0
C156: Variance Analysis | D156: Year | G156: Year-over-year | I156: Test Year Versus Board-approved | K156: Year | L156: Year-over-year | O156: =I156 -> Test Year Versus Board-approved | Q156: Year | R156: Year-over-year | U156: =O156 -> Test Year Versus Board-approved
D157: =D148 -> 2012 | K157: =D157 -> 2012 | Q157: =K157 -> 2012
D158: 2013 | G158: =IF(G148=0,"",G149/G148-1) -> 0 | K158: =D158 -> 2013 | L158: =IF(L148=0,"",L149/L148-1) -> -0.0007987618609 | M158: -0.01190604002 | Q158: =K158 -> 2013 | R158: =IF(R148="","",IF(R148=0,"",R149/R148-1)) -> -0.0007987618609 | S158: =IF(S148="","",IF(S148=0,"",S149/S148-1)) -> -0.01190604002
D159: 2014 | G159: 0 | K159: 2014 | L159: =IF(L149=0,"",L150/L149-1) -> 0.01323848079 | M159: 0.02864228846 | Q159: 2014 | R159: =IF(R149="","",IF(R149=0,"",R150/R149-1)) -> 0.01323848079 | S159: 0.02864228846
D160: 2015 | G160: 0 | K160: 2015 | L160: =IF(L150=0,"",L151/L150-1) -> -0.006875350733 | M160: -0.006826285873 | Q160: 2015 | R160: =IF(R150="","",IF(R150=0,"",R151/R150-1)) -> -0.006875350733 | S160: -0.006826285873
D161: 2016 | G161: 0 | K161: 2016 | L161: =IF(L151=0,"",L152/L151-1) -> -0.009595101809 | M161: 0.03761123856 | Q161: 2016 | R161: =IF(R151="","",IF(R151=0,"",R152/R151-1)) -> -0.009595101809 | S161: 0.03761123856
D162: 2017 | G162: -0.1818181818 | K162: 2017 | L162: =IF(K153="Forecast","",IF(L152=0,"",L153/L152-1)) ->  | M162: =IF(M152=0,"",M153/M152-1) -> -0.1895859566 | Q162: 2017 | R162: =IF(Q153="Forecast","",IF(R152=0,"",R153/R152-1)) ->  | S162: =IF(S152="","",IF(S152=0,"",S153/S152-1)) -> -0.009493946989
D163: 2018 | G163: 0 | I163: =IF(I155=0,"",G154/I155-1) ->  | K163: 2018 | L163: =IF(K154="Forecast","",IF(L153=0,"",L154/L153-1)) ->  | M163: =IF(M153=0,"",M154/M153-1) -> -0.2248665229 | O163: =IF(O155=0,"",M154/O155-1) ->  | Q163: 2018 | R163: =IF(Q154="Forecast","",IF(R153=0,"",R154/R153-1)) ->  | S163: =IF(S153="","",IF(S153=0,"",S154/S153-1)) -> -0.2248665229 | U163: =IF(U155=0,"",S154/U155-1) -> 
D164: Geometric Mean | G164: =IF(G148=0,"",GEOMEAN(G158:G163)) ->  | I164: =IF(I155=0,"",(G154/I155)^(1/(TestYear-RebaseYear-1))-1) ->  | K164: Geometric Mean | M164: =IF(M148=0,"",(M154/M148)^(1/(K163-K157-1)-1)) -> 1.397768458 | O164: =IF(O155=0,"",(M154/O155)^(1/(TestYear-RebaseYear-1))-1) ->  | Q164: Geometric Mean | S164: =IF(S148="","",IF(S148=0,"",(S154/S148)^(1/(Q163-Q157-1)-1))) -> 1.190460789 | U164: =IF(U155=0,"",(S154/U155)^(1/(TestYear-RebaseYear-1))-1) -> 
D166: Calendar Year | F166: Revenues | K166: =IF(ISBLANK(N144),"",CONCATENATE("Demand (",N144,")")) -> Demand (kW) | Q166: =CONCATENATE("Demand (",N144,") per ",LEFT(F146,LEN(F146)-1)) -> Demand (kW) per Customer
D167: =CONCATENATE("(for ",TestYear," Cost of Service") -> (for 2018 Cost of Service | L167: Actual (Weather actual) | M167: Weather-normalized | O167: =M167 -> Weather-normalized | R167: =L167 -> Actual (Weather actual) | S167: =M167 -> Weather-normalized | U167: =O167 -> Weather-normalized
C168: Historical | D168: =D169-1 -> 2012 | F168: =F148 -> Actual | H168: =IF(D168=RebaseYear,"Board-approved","") ->  | K168: =K148 -> Actual | L168: 12485.5 | M168: 12485.5 | N168: =N148 ->  | Q168: =K168 -> Actual | R168: =IF(G168=0,"",L168/G168) ->  | S168: =IF(G168=0,"",M168/G168) ->  | T168: =N168 ->  | U168: =IF(T168="","",IF(I168=0,"",O168/I168)) -> 
C169: Historical | D169: 2013 | F169: Actual | K169: Actual | L169: 12638.95 | M169: 12638.95 | Q169: =K169 -> Actual | R169: =IF(G169=0,"",L169/G169) ->  | S169: =IF(G169=0,"",M169/G169) ->  | T169: =N169 ->  | U169: =IF(T169="","",IF(I169=0,"",O169/I169)) -> 
C170: Historical | D170: 2014 | F170: Actual | G170: 90677 | H170: Board-approved | K170: Actual | L170: 12213.6 | M170: 12213.6 | N170: Board-approved | Q170: Actual | R170: 0.1346934724 | S170: 0.1346934724 | T170: Board-approved
C171: Historical | D171: 2015 | F171: Actual | G171: 68878 | K171: Actual | L171: 12238.48 | M171: 12238.48 | Q171: Actual | R171: 0.1776834403 | S171: 0.1776834403
C172: Historical | D172: 2016 | F172: Actual | G172: 69568 | K172: Actual | L172: 12169.34 | M172: 12169.34 | Q172: Actual | R172: 0.1749272654 | S172: 0.1749272654
C173: Bridge Year (Forecast) | D173: 2017 | F173: Forecast | G173: 68479 | K173: Forecast | M173: 12700.7099 | Q173: Forecast | R173: 0 | S173: 0.1854686824
C174: Test Year (Forecast) | D174: =TestYear -> 2018 | F174: Forecast | G174: 71906 | K174: Forecast | M174: 12771.53316 | Q174: Forecast | R174: 0 | S174: 0.1776142903
I175: =SUM(I168:I173) -> 0 | O175: =SUM(O168:O173) -> 0 | U175: =SUM(U168:U173) -> 0
C176: Variance Analysis | D176: Year | G176: Year-over-year | I176: =I156 -> Test Year Versus Board-approved | K176: Year | L176: Year-over-year | O176: =I176 -> Test Year Versus Board-approved | Q176: Year | R176: Year-over-year | U176: =O176 -> Test Year Versus Board-approved
D177: =D168 -> 2012 | K177: =D177 -> 2012 | Q177: =K177 -> 2012
D178: =D169 -> 2013 | G178: =IF(G168=0,"",G169/G168-1) ->  | K178: =D178 -> 2013 | L178: =IF(L168=0,"",L169/L168-1) -> 0.0122902567 | M178: =IF(M168=0,"",M169/M168-1) -> 0.0122902567 | Q178: =K178 -> 2013 | R178: =IF(R168="","",IF(R168=0,"",R169/R168-1)) ->  | S178: =IF(S168="","",IF(S168=0,"",S169/S168-1)) -> 
D179: =D170 -> 2014 | G179: =IF(G169=0,"",G170/G169-1) ->  | K179: 2014 | L179: =IF(L169=0,"",L170/L169-1) -> -0.03365390321 | M179: -0.03365390321 | Q179: 2014 | R179: =IF(R169="","",IF(R169=0,"",R170/R169-1)) -> 
D180: 2015 | G180: -0.2404027482 | K180: 2015 | L180: =IF(L170=0,"",L171/L170-1) -> 0.002037073426 | M180: 0.002037073426 | Q180: 2015 | R180: =IF(R170="","",IF(R170=0,"",R171/R170-1)) -> 0.3191689031 | S180: 0.3191689031
D181: 2016 | G181: 0.01001771248 | K181: 2016 | L181: =IF(L171=0,"",L172/L171-1) -> -0.005649394369 | M181: -0.005649394369 | Q181: 2016 | R181: =IF(R171="","",IF(R171=0,"",R172/R171-1)) -> -0.01551171495 | S181: -0.01551171495
D182: 2017 | G182: -0.01565374885 | K182: 2017 | L182: =IF(K173="Forecast","",IF(L172=0,"",L173/L172-1)) ->  | M182: =IF(M172=0,"",M173/M172-1) -> 0.04366464408 | Q182: 2017 | R182: =IF(Q173="Forecast","",IF(R172=0,"",R173/R172-1)) ->  | S182: =IF(S172="","",IF(S172=0,"",S173/S172-1)) -> 0.06026171468
D183: 2018 | G183: 0.0500445392 | I183: =IF(I175=0,"",G174/I175-1) ->  | K183: 2018 | L183: =IF(K174="Forecast","",IF(L173=0,"",L174/L173-1)) ->  | M183: =IF(M173=0,"",M174/M173-1) -> 0.005576322856 | O183: =IF(O175=0,"",M174/O175-1) ->  | Q183: 2018 | R183: =IF(Q174="Forecast","",IF(R173=0,"",R174/R173-1)) ->  | S183: =IF(S173="","",IF(S173=0,"",S174/S173-1)) -> -0.04234888587 | U183: =IF(U175=0,"",S174/U175-1) -> 
D184: Geometric Mean | G184: =IF(G168=0,"",GEOMEAN(G178:G183)) ->  | I184: =IF(I175=0,"",(G174/I175)^(1/(TestYear-RebaseYear-1))-1) ->  | K184: Geometric Mean | M184: =IF(M168=0,"",GEOMEAN(M178:M183)) ->  | O184: =IF(O175=0,"",(M174/O175)^(1/(TestYear-RebaseYear-1))-1) ->  | Q184: Geometric Mean | S184: =IF(S168="","",IF(S168=0,"",(S174/S168)^(1/(Q183-Q177-1)-1))) ->  | U184: =IF(U175=0,"",(S174/U175)^(1/(TestYear-RebaseYear-1))-1) -> 
B187: 4 | C187: Customer Class: | D187: Street Lighting | H187: Is the customer class billed on consumption (kWh) or demand (kW or kVA)? | N187: kW
D189: Calendar Year | F189: Customers | K189: Consumption (kWh) (3) | Q189: =CONCATENATE("Consumption (kWh) per ",LEFT(F189,LEN(F189)-1)) -> Consumption (kWh) per Customer
D190: =CONCATENATE("(for ",TestYear," Cost of Service") -> (for 2018 Cost of Service | L190: Actual (Weather actual) | M190: Weather-normalized | O190: Weather-normalized | R190: =L190 -> Actual (Weather actual) | S190: =M190 -> Weather-normalized | U190: =O190 -> Weather-normalized
C191: Historical | D191: =D192-1 -> 2012 | F191: =F148 -> Actual | G191: 409 | H191: =IF(D191=RebaseYear,"Board-approved","") ->  | K191: =F191 -> Actual | L191: 355537 | M191: 355537 | N191: =H191 ->  | Q191: =K191 -> Actual | R191: =IF(G191=0,"",L191/G191) -> 869.2836186 | S191: =IF(G191=0,"",M191/G191) -> 869.2836186 | T191: =N191 ->  | U191: =IF(T191="","",IF(I191=0,"",O191/I191)) -> 
C192: Historical | D192: 2013 | F192: Actual | G192: 409 | K192: =F192 -> Actual | L192: 359464 | M192: 359464 | N192: =H192 ->  | Q192: =K192 -> Actual | R192: =IF(G192=0,"",L192/G192) -> 878.8850856 | S192: =IF(G192=0,"",M192/G192) -> 878.8850856 | T192: =N192 ->  | U192: =IF(T192="","",IF(I192=0,"",O192/I192)) -> 
C193: Historical | D193: 2014 | F193: Actual | G193: 409 | H193: Board-approved | K193: Actual | L193: 359464 | M193: 359464 | N193: Board-approved | Q193: Actual | R193: 878.8850856 | S193: 878.8850856 | T193: Board-approved
C194: Historical | D194: 2015 | F194: Actual | G194: 430 | K194: Actual | L194: 373173 | M194: 373173 | Q194: Actual | R194: 867.844186 | S194: 867.844186
C195: Historical | D195: 2016 | F195: Actual | G195: 504.5 | K195: Actual | L195: 376348 | M195: 376348 | Q195: Actual | R195: 745.9821606 | S195: 745.9821606
C196: Bridge Year | D196: 2017 | F196: Forecast | G196: 517 | K196: Forecast | M196: 385594.4357 | Q196: Forecast | R196: 0 | S196: 745.83063
C197: Test Year | D197: =TestYear -> 2018 | F197: Forecast | G197: 530 | K197: Forecast | M197: 395068.0457 | Q197: Forecast | R197: 0 | S197: 745.4114069
I198: =SUM(I191:I196) -> 0 | O198: =SUM(O191:O196) -> 0 | U198: =SUM(U191:U196) -> 0
C199: Variance Analysis | D199: Year | G199: Year-over-year | I199: Test Year Versus Board-approved | K199: Year | L199: Year-over-year | O199: =I199 -> Test Year Versus Board-approved | Q199: Year | R199: Year-over-year | U199: =O199 -> Test Year Versus Board-approved
D200: =D191 -> 2012 | K200: =D200 -> 2012 | Q200: =K200 -> 2012
D201: 2013 | G201: =IF(G191=0,"",G192/G191-1) -> 0 | K201: =D201 -> 2013 | L201: =IF(L191=0,"",L192/L191-1) -> 0.01104526392 | M201: 0.01104526392 | Q201: =K201 -> 2013 | R201: =IF(R191="","",IF(R191=0,"",R192/R191-1)) -> 0.01104526392 | S201: =IF(S191="","",IF(S191=0,"",S192/S191-1)) -> 0.01104526392
D202: 2014 | G202: 0 | K202: 2014 | L202: =IF(L192=0,"",L193/L192-1) -> 0 | M202: 0 | Q202: 2014 | R202: =IF(R192="","",IF(R192=0,"",R193/R192-1)) -> 0 | S202: 0
D203: 2015 | G203: 0.05134474328 | K203: 2015 | L203: =IF(L193=0,"",L194/L193-1) -> 0.03813733781 | M203: 0.03813733781 | Q203: 2015 | R203: =IF(R193="","",IF(R193=0,"",R194/R193-1)) -> -0.01256239264 | S203: -0.01256239264
D204: 2016 | G204: 0.173255814 | K204: 2016 | L204: =IF(L194=0,"",L195/L194-1) -> 0.008508118219 | M204: 0.008508118219 | Q204: 2016 | R204: =IF(R194="","",IF(R194=0,"",R195/R194-1)) -> -0.1404192451 | S204: -0.1404192451
D205: 2017 | G205: 0.02477700694 | K205: 2017 | L205: =IF(K196="Forecast","",IF(L195=0,"",L196/L195-1)) ->  | M205: =IF(M195=0,"",M196/M195-1) -> 0.02456884507 | Q205: 2017 | R205: =IF(Q196="Forecast","",IF(R195=0,"",R196/R195-1)) ->  | S205: =IF(S195="","",IF(S195=0,"",S196/S195-1)) -> -0.0002031289437
D206: 2018 | G206: 0.0251450677 | I206: =IF(I198=0,"",G197/I198-1) ->  | K206: 2018 | L206: =IF(K197="Forecast","",IF(L196=0,"",L197/L196-1)) ->  | M206: =IF(M196=0,"",M197/M196-1) -> 0.02456884507 | O206: =IF(O198=0,"",M197/O198-1) ->  | Q206: 2018 | R206: =IF(Q197="Forecast","",IF(R196=0,"",R197/R196-1)) ->  | S206: =IF(S196="","",IF(S196=0,"",S197/S196-1)) -> -0.000562088869 | U206: =IF(U198=0,"",S197/U198-1) -> 
D207: Geometric Mean | G207: =IF(G191=0,"",GEOMEAN(G201:G206)) ->  | I207: =IF(I198=0,"",(G197/I198)^(1/(TestYear-RebaseYear-1))-1) ->  | K207: Geometric Mean | M207: =IF(M191=0,"",(M197/M191)^(1/(K206-K200-1)-1)) -> 0.9191159857 | O207: =IF(O198=0,"",(M197/O198)^(1/(TestYear-RebaseYear-1))-1) ->  | Q207: Geometric Mean | S207: =IF(S191="","",IF(S191=0,"",(S197/S191)^(1/(Q206-Q200-1)-1))) -> 1.130869182 | U207: =IF(U198=0,"",(S197/U198)^(1/(TestYear-RebaseYear-1))-1) -> 
D209: Calendar Year | F209: Revenues | K209: =IF(ISBLANK(N187),"",CONCATENATE("Demand (",N187,")")) -> Demand (kW) | Q209: =CONCATENATE("Demand (",N187,") per ",LEFT(F189,LEN(F189)-1)) -> Demand (kW) per Customer
D210: =CONCATENATE("(for ",TestYear," Cost of Service") -> (for 2018 Cost of Service | L210: Actual (Weather actual) | M210: Weather-normalized | O210: =M210 -> Weather-normalized | R210: =L210 -> Actual (Weather actual) | S210: =M210 -> Weather-normalized | U210: =O210 -> Weather-normalized
C211: Historical | D211: =D212-1 -> 2012 | F211: =F191 -> Actual | H211: =IF(D211=RebaseYear,"Board-approved","") ->  | K211: =K191 -> Actual | L211: 1003 | M211: 1003 | N211: =N191 ->  | Q211: =K211 -> Actual | R211: =IF(G211=0,"",L211/G211) ->  | S211: =IF(G211=0,"",M211/G211) ->  | T211: =N211 ->  | U211: =IF(T211="","",IF(I211=0,"",O211/I211)) -> 
C212: Historical | D212: 2013 | F212: Actual | K212: Actual | L212: 1003 | M212: 1003 | Q212: =K212 -> Actual | R212: =IF(G212=0,"",L212/G212) ->  | S212: =IF(G212=0,"",M212/G212) ->  | T212: =N212 ->  | U212: =IF(T212="","",IF(I212=0,"",O212/I212)) -> 
C213: Historical | D213: 2014 | F213: Actual | G213: 16923 | H213: Board-approved | K213: Actual | L213: 1003 | M213: 1003 | N213: Board-approved | Q213: Actual | R213: 0.05926845122 | S213: 0.05926845122 | T213: Board-approved
C214: Historical | D214: 2015 | F214: Actual | G214: 18510 | K214: Actual | L214: 1050 | M214: 1050 | Q214: Actual | R214: 0.056726094 | S214: 0.056726094
C215: Historical | D215: 2016 | F215: Actual | G215: 20334 | K215: Actual | L215: 576 | M215: 576 | Q215: Actual | R215: 0.0283269401 | S215: 0.0283269401
C216: Bridge Year (Forecast) | D216: 2017 | F216: Forecast | G216: 17115 | K216: Forecast | M216: 590 | Q216: Forecast | R216: 0 | S216: 0.03447268478
C217: Test Year (Forecast) | D217: =TestYear -> 2018 | F217: Forecast | G217: 23154 | K217: Forecast | M217: 605 | Q217: Forecast | R217: 0 | S217: 0.02612939449
I218: =SUM(I211:I216) -> 0 | O218: =SUM(O211:O216) -> 0 | U218: =SUM(U211:U216) -> 0
C219: Variance Analysis | D219: Year | G219: Year-over-year | I219: =I199 -> Test Year Versus Board-approved | K219: Year | L219: Year-over-year | O219: =I219 -> Test Year Versus Board-approved | Q219: Year | R219: Year-over-year | U219: =O219 -> Test Year Versus Board-approved
D220: =D211 -> 2012 | K220: =D220 -> 2012 | Q220: =K220 -> 2012
D221: =D212 -> 2013 | G221: =IF(G211=0,"",G212/G211-1) ->  | K221: =D221 -> 2013 | L221: =IF(L211=0,"",L212/L211-1) -> 0 | M221: =IF(M211=0,"",M212/M211-1) -> 0 | Q221: =K221 -> 2013 | R221: =IF(R211="","",IF(R211=0,"",R212/R211-1)) ->  | S221: =IF(S211="","",IF(S211=0,"",S212/S211-1)) -> 
D222: =D213 -> 2014 | G222: =IF(G212=0,"",G213/G212-1) ->  | K222: 2014 | L222: =IF(L212=0,"",L213/L212-1) -> 0 | M222: 0 | Q222: 2014 | R222: =IF(R212="","",IF(R212=0,"",R213/R212-1)) -> 
D223: 2015 | G223: 0.09377769899 | K223: 2015 | L223: =IF(L213=0,"",L214/L213-1) -> 0.04685942173 | M223: 0.04685942173 | Q223: 2015 | R223: =IF(R213="","",IF(R213=0,"",R214/R213-1)) -> -0.04289562431 | S223: -0.04289562431
D224: 2016 | G224: 0.09854132901 | K224: 2016 | L224: =IF(L214=0,"",L215/L214-1) -> -0.4514285714 | M224: -0.4514285714 | Q224: 2016 | R224: =IF(R214="","",IF(R214=0,"",R215/R214-1)) -> -0.5006365131 | S224: -0.5006365131
D225: 2017 | G225: -0.158306285 | K225: 2017 | L225: =IF(K216="Forecast","",IF(L215=0,"",L216/L215-1)) ->  | M225: =IF(M215=0,"",M216/M215-1) -> 0.02430555556 | Q225: 2017 | R225: =IF(Q216="Forecast","",IF(R215=0,"",R216/R215-1)) ->  | S225: =IF(S215="","",IF(S215=0,"",S216/S215-1)) -> 0.2169575908
D226: 2018 | G226: 0.3528483786 | I226: =IF(I218=0,"",G217/I218-1) ->  | K226: 2018 | L226: =IF(K217="Forecast","",IF(L216=0,"",L217/L216-1)) ->  | M226: =IF(M216=0,"",M217/M216-1) -> 0.02542372881 | O226: =IF(O218=0,"",M217/O218-1) ->  | Q226: 2018 | R226: =IF(Q217="Forecast","",IF(R216=0,"",R217/R216-1)) ->  | S226: =IF(S216="","",IF(S216=0,"",S217/S216-1)) -> -0.2420261243 | U226: =IF(U218=0,"",S217/U218-1) -> 
D227: Geometric Mean | G227: =IF(G211=0,"",GEOMEAN(G221:G226)) ->  | I227: =IF(I218=0,"",(G217/I218)^(1/(TestYear-RebaseYear-1))-1) ->  | K227: Geometric Mean | M227: =IF(M211=0,"",GEOMEAN(M221:M226)) ->  | O227: =IF(O218=0,"",(M217/O218)^(1/(TestYear-RebaseYear-1))-1) ->  | Q227: Geometric Mean | S227: =IF(S211="","",IF(S211=0,"",(S217/S211)^(1/(Q226-Q220-1)-1))) ->  | U227: =IF(U218=0,"",(S217/U218)^(1/(TestYear-RebaseYear-1))-1) -> 
B232: 5 | C232: Customer Class: | D232: Unmetered Scattered Load | H232: Is the customer class billed on consumption (kWh) or demand (kW or kVA)? | N232: kWh
D234: Calendar Year | F234: Customers | K234: Consumption (kWh) (3) | Q234: =CONCATENATE("Consumption (kWh) per ",LEFT(F234,LEN(F234)-1)) -> Consumption (kWh) per Customer
... 38 more rows

Sheet App.2-JA_OM&A_Summary_Analys
K1: File Number: | L1: =EBNUMBER -> 0
K2: Exhibit:
K3: Tab:
K4: Schedule:
K5: Page:
K7: Date:
A9: Appendix 2-JA
A10: Summary of Recoverable OM&A Expenses
B13: ="Last Rebasing Year (" & RebaseYear & " Board-Approved)" -> Last Rebasing Year (2014 Board-Approved) | C13: ="Last Rebasing Year (" & RebaseYear & " Actuals)" -> Last Rebasing Year (2014 Actuals) | D13: =BridgeYear -2 & " Actuals" -> 2015 Actuals | E13: =BridgeYear -1 & " Actuals" -> 2016 Actuals | F13: =BridgeYear & " Bridge Year" -> 2017 Bridge Year | G13: =TestYear & " Test Year" -> 2018 Test Year
A14: Reporting Basis
A15: Operations | B15: 20900 | C15: 28850.98 | D15: 39763.95 | E15: 34208.83 | F15: 35830 | G15: 37769
A16: Maintenance | B16: 40300 | C16: 44654.86 | D16: 26250.54 | E16: 46222.76 | F16: 50645 | G16: 56215
A17: SubTotal | B17: =SUM(B15:B16) -> 61200 | C17: =SUM(C15:C16) -> 73505.84 | D17: 66014.49 | E17: 80431.59 | F17: 86475 | G17: 93984
A18: %Change (year over year) | D18: =IF(ISERROR((D17-C17)/C17), "", (D17-C17)/C17) -> -0.1019150315 | E18: =IF(ISERROR((E17-D17)/D17), "", (E17-D17)/D17) -> 0.2183929619 | F18: 0.07513726883 | G18: 0.08683434519
A19: %Change (Test Year vs Last Rebasing Year - Actual) | G19: =IF(ISERROR((G17-C17)/C17), "", (G17-C17)/C17) -> 0.278592286
A20: Billing and Collecting | B20: 170174 | C20: 166890.58 | D20: 210564.67 | E20: 177779.02 | F20: 198023 | G20: 209970
A21: Community Relations | B21: 4000 | C21: 6981.61 | D21: 8362.7 | E21: 7862.84 | F21: 7500 | G21: 7875
A22: Administrative and General | B22: 320905 | C22: 321703.08 | D22: 328130.52 | E22: 334951.92 | F22: 359618 | G22: 410142
A23: SubTotal | B23: =SUM(B20:B22) -> 495079 | C23: =SUM(C20:C22) -> 495575.27 | D23: 547057.89 | E23: 520593.78 | F23: 565141 | G23: 627987
A24: %Change (year over year) | D24: =IF(ISERROR((D23-C23)/C23), "", (D23-C23)/C23) -> 0.1038845623 | E24: =IF(ISERROR((E23-D23)/D23), "", (E23-D23)/D23) -> -0.04837533739 | F24: =IF(ISERROR((F23-E23)/E23), "", (F23-E23)/E23) -> 0.08557001968 | G24: =IF(ISERROR((G23-F23)/F23), "", (G23-F23)/F23) -> 0.1112041066
A25: %Change (Test Year vs Last Rebasing Year - Actual) | G25: =IF(ISERROR((G23-C23)/C23), "", (G23-C23)/C23) -> 0.2671879289
A26: Total | B26: =SUM(B23,B17) -> 556279 | C26: =SUM(C23,C17) -> 569081.11 | D26: 613072.38 | E26: 601025.37 | F26: 651616 | G26: 721971
A27: %Change (year over year) | D27: =IF(ISERROR((D26-C26)/C26), "", (D26-C26)/C26) -> 0.07730228473 | E27: =IF(ISERROR((E26-D26)/D26), "", (E26-D26)/D26) -> -0.01965022466 | F27: =IF(ISERROR((F26-E26)/E26), "", (F26-E26)/E26) -> 0.08417386774 | G27: =IF(ISERROR((G26-F26)/F26), "", (G26-F26)/F26) -> 0.1079700314
B30: =B13 -> Last Rebasing Year (2014 Board-Approved) | C30: =C13 -> Last Rebasing Year (2014 Actuals) | D30: 2015 Actuals | E30: 2016 Actuals | F30: 2017 Bridge Year | G30: 2018 Test Year
A31: Operations | B31: =B15 -> 20900 | C31: =C15 -> 28850.98 | D31: 39763.95 | E31: 34208.83 | F31: 35830 | G31: 37769
A32: Maintenance | B32: =B16 -> 40300 | C32: =C16 -> 44654.86 | D32: 26250.54 | E32: 46222.76 | F32: 50645 | G32: 56215
A33: Billing and Collecting | B33: =B20 -> 170174 | C33: =C20 -> 166890.58 | D33: 210564.67 | E33: 177779.02 | F33: 198023 | G33: 209970
A34: Community Relations | B34: =B21 -> 4000 | C34: =C21 -> 6981.61 | D34: 8362.7 | E34: 7862.84 | F34: 7500 | G34: 7875
A35: Administrative and General | B35: =B22 -> 320905 | C35: =C22 -> 321703.08 | D35: 328130.52 | E35: 334951.92 | F35: 359618 | G35: 410142
A36: Total | B36: =SUM(B31:B35) -> 556279 | C36: =SUM(C31:C35) -> 569081.11 | D36: 613072.38 | E36: 601025.37 | F36: 651616 | G36: 721971
A37: %Change (year over year) | D37: =IF(ISERROR((D36-C36)/C36), "", (D36-C36)/C36) -> 0.07730228473 | E37: =IF(ISERROR((E36-D36)/D36), "", (E36-D36)/D36) -> -0.01965022466 | F37: =IF(ISERROR((F36-E36)/E36), "", (F36-E36)/E36) -> 0.08417386774 | G37: =IF(ISERROR((G36-F36)/F36), "", (G36-F36)/F36) -> 0.1079700314
B40: =B13 -> Last Rebasing Year (2014 Board-Approved) | C40: =C13 -> Last Rebasing Year (2014 Actuals) | D40: ="Variance " & 'LDC Info'!E28 & " BA – " & 'LDC Info'!E28 & " Actuals" -> Variance 2014 BA – 2014 Actuals | E40: =D13 -> 2015 Actuals | F40: ="Variance " & 'LDC Info'!E26 -2 & " Actuals vs. " & 'LDC Info'!E28 & " Actuals" -> Variance 2015 Actuals vs. 2014 Actuals | G40: =E13 -> 2016 Actuals | H40: ="Variance " & 'LDC Info'!E26 -1 & " Actuals vs. " & 'LDC Info'!E26-2 & " Actuals" -> Variance 2016 Actuals vs. 2015 Actuals | I40: =F13 -> 2017 Bridge Year | J40: ="Variance " & 'LDC Info'!E26 & " Bridge vs. " & 'LDC Info'!E26 -1 & " Actuals" -> Variance 2017 Bridge vs. 2016 Actuals | K40: =G13 -> 2018 Test Year | L40: ="Variance " & TestYear & " Test vs. " & BridgeYear & " Bridge" -> Variance 2018 Test vs. 2017 Bridge
A41: Operations | B41: =B15 -> 20900 | C41: 28850.98 | D41: =B41-C41 -> -7950.98 | E41: =D15 -> 39763.95 | F41: =E41-C41 -> 10912.97 | G41: =E15 -> 34208.83 | H41: =G41-E41 -> -5555.12 | I41: =F15 -> 35830 | J41: =I41-G41 -> 1621.17 | K41: =G15 -> 37769 | L41: =K41-I41 -> 1939
A42: Maintenance | B42: 40300 | C42: 44654.86 | D42: =B42-C42 -> -4354.86 | E42: =D16 -> 26250.54 | F42: =E42-C42 -> -18404.32 | G42: =E16 -> 46222.76 | H42: =G42-E42 -> 19972.22 | I42: =F16 -> 50645 | J42: 4422.24 | K42: =G16 -> 56215 | L42: 5570
A43: Billing and Collecting | B43: =B20 -> 170174 | C43: 166890.58 | D43: 3283.42 | E43: =D20 -> 210564.67 | F43: 43674.09 | G43: =E20 -> 177779.02 | H43: -32785.65 | I43: =F20 -> 198023 | J43: 20243.98 | K43: =G20 -> 209970 | L43: 11947
A44: Community Relations | B44: 4000 | C44: 6981.61 | D44: -2981.61 | E44: =D21 -> 8362.7 | F44: 1381.09 | G44: =E21 -> 7862.84 | H44: -499.86 | I44: =F21 -> 7500 | J44: -362.84 | K44: =G21 -> 7875 | L44: 375
A45: Administrative and General | B45: 320905 | C45: 321703.08 | D45: -798.08 | E45: 328130.52 | F45: 6427.44 | G45: 334951.92 | H45: 6821.4 | I45: 359618 | J45: 24666.08 | K45: 410142 | L45: 50524
A46: Total OM&A Expenses | B46: =SUM(B41:B45) -> 556279 | C46: =SUM(C41:C45) -> 569081.11 | D46: -12802.11 | E46: 613072.38 | F46: 43991.27 | G46: 601025.37 | H46: -12047.01 | I46: 651616 | J46: 50590.63 | K46: 721971 | L46: 70355
A47: Adjustments for Total non-recoverable items (from Appendices 2-JA and 2-JB)
A48: Total Recoverable OM&A Expenses | B48: =B46-B47 -> 556279 | C48: =C46-C47 -> 569081.11 | D48: -12802.11 | E48: 613072.38 | F48: 43991.27 | G48: 601025.37 | H48: -12047.01 | I48: 651616 | J48: 50590.63 | K48: 721971 | L48: 70355
A49: Variance from previous year | E49: =E48-C48 -> 43991.27 | G49: =G48-E48 -> -12047.01 | I49: =I48-G48 -> 50590.63 | K49: =K48-I48 -> 70355
